Workbook

Sheet Калькулятор лизинга
X2: ПЕРСОНАЛЬНЫЙ ГРАФИК ПЛАТЕЖЕЙ ПО ЛИЗИНГУ | AB2: ГРАФИК ПЛАТЕЖЕЙ ПО ЛИЗИНГУ | AG2: ГРАФИК ПЛАТЕЖЕЙ ПО КРЕДИТУ
X4: внесите размер платежей
E5: полная стоимость с НДС | H5: Стоимость оборудования, руб. | K5: 4190000 | X5: 1 | Y5: 50000 | AB5: 1 | AC5: =IF(AB5<=$F$16,IF($F$18=Лист2!$A$2,'Аннуитетное (с ндс)'!N11,IF('Калькулятор лизинга'!$F$18=Лист2!$A$3,Равномерное!N10,'Калькулятор лизинга'!Y5)),"") -> 50000 | AG5: 1 | AH5: =IF(AG5<=$O$16,IF($O$18=Лист2!$A$2,'Кредит аннуитет'!M10,'Кредит равномерное'!M10),"") -> 116999.4167
X6: =IF(X5<$F$16,X5+1,"") -> 2 | Y6: 50000 | AB6: =IF(AB5<$F$16,AB5+1,"") -> 2 | AC6: =IF(AB6<=$F$16,IF($F$18=Лист2!$A$2,'Аннуитетное (с ндс)'!N12,IF('Калькулятор лизинга'!$F$18=Лист2!$A$3,Равномерное!N11,'Калькулятор лизинга'!Y6)),"") -> 50000 | AG6: =IF(AG5<$O$16,AG5+1,"") -> 2 | AH6: =IF(AG6<=$O$16,IF($O$18=Лист2!$A$2,'Кредит аннуитет'!M11,'Кредит равномерное'!M11),"") -> 116998.699
H7: Система налогообложения | K7: ОСН | X7: =IF(X6<$F$16,X6+1,"") -> 3 | Y7: 50000 | AB7: =IF(AB6<$F$16,AB6+1,"") -> 3 | AC7: =IF(AB7<=$F$16,IF($F$18=Лист2!$A$2,'Аннуитетное (с ндс)'!N13,IF('Калькулятор лизинга'!$F$18=Лист2!$A$3,Равномерное!N12,'Калькулятор лизинга'!Y7)),"") -> 50000 | AG7: =IF(AG6<$O$16,AG6+1,"") -> 3 | AH7: =IF(AG7<=$O$16,IF($O$18=Лист2!$A$2,'Кредит аннуитет'!M12,'Кредит равномерное'!M12),"") -> 116997.9549
X8: 4 | Y8: 50000 | AB8: 4 | AC8: =IF(AB8<=$F$16,IF($F$18=Лист2!$A$2,'Аннуитетное (с ндс)'!N14,IF('Калькулятор лизинга'!$F$18=Лист2!$A$3,Равномерное!N13,'Калькулятор лизинга'!Y8)),"") -> 50000 | AG8: 4 | AH8: =IF(AG8<=$O$16,IF($O$18=Лист2!$A$2,'Кредит аннуитет'!M13,'Кредит равномерное'!M13),"") -> 116997.1834
E9: определяется автоматически исходя из налогообложения | H9: Налог на прибыль, % | K9: =VLOOKUP(K7,Лист2!C2:D10,2,) -> 20 | X9: 5 | Y9: 50000 | AB9: 5 | AC9: =IF(AB9<=$F$16,IF($F$18=Лист2!$A$2,'Аннуитетное (с ндс)'!N15,IF('Калькулятор лизинга'!$F$18=Лист2!$A$3,Равномерное!N14,'Калькулятор лизинга'!Y9)),"") -> 50000 | AG9: 5 | AH9: =IF(AG9<=$O$16,IF($O$18=Лист2!$A$2,'Кредит аннуитет'!M14,'Кредит равномерное'!M14),"") -> 116996.3834
X10: 6 | Y10: 50000 | AB10: 6 | AC10: =IF(AB10<=$F$16,IF($F$18=Лист2!$A$2,'Аннуитетное (с ндс)'!N16,IF('Калькулятор лизинга'!$F$18=Лист2!$A$3,Равномерное!N15,'Калькулятор лизинга'!Y10)),"") -> 50000 | AG10: 6 | AH10: =IF(AG10<=$O$16,IF($O$18=Лист2!$A$2,'Кредит аннуитет'!M15,'Кредит равномерное'!M15),"") -> 116995.5539
H11: НДС, % | K11: 20 | X11: 7 | Y11: 60000 | AB11: 7 | AC11: =IF(AB11<=$F$16,IF($F$18=Лист2!$A$2,'Аннуитетное (с ндс)'!N17,IF('Калькулятор лизинга'!$F$18=Лист2!$A$3,Равномерное!N16,'Калькулятор лизинга'!Y11)),"") -> 60000 | AG11: 7 | AH11: =IF(AG11<=$O$16,IF($O$18=Лист2!$A$2,'Кредит аннуитет'!M16,'Кредит равномерное'!M16),"") -> 116994.6939
X12: 8 | Y12: 60000 | AB12: 8 | AC12: =IF(AB12<=$F$16,IF($F$18=Лист2!$A$2,'Аннуитетное (с ндс)'!N18,IF('Калькулятор лизинга'!$F$18=Лист2!$A$3,Равномерное!N17,'Калькулятор лизинга'!Y12)),"") -> 60000 | AG12: 8 | AH12: =IF(AG12<=$O$16,IF($O$18=Лист2!$A$2,'Кредит аннуитет'!M17,'Кредит равномерное'!M17),"") -> 116993.8021
X13: 9 | Y13: 60000 | AB13: 9 | AC13: =IF(AB13<=$F$16,IF($F$18=Лист2!$A$2,'Аннуитетное (с ндс)'!N19,IF('Калькулятор лизинга'!$F$18=Лист2!$A$3,Равномерное!N18,'Калькулятор лизинга'!Y13)),"") -> 60000 | AG13: 9 | AH13: =IF(AG13<=$O$16,IF($O$18=Лист2!$A$2,'Кредит аннуитет'!M18,'Кредит равномерное'!M18),"") -> 116992.8774
D14: УСЛОВИЯ ДОГОВОРА ЛИЗИНГА | M14: УСЛОВИЯ ДОГОВОРА КРЕДИТОВАНИЯ | X14: 10 | Y14: 60000 | AB14: 10 | AC14: =IF(AB14<=$F$16,IF($F$18=Лист2!$A$2,'Аннуитетное (с ндс)'!N20,IF('Калькулятор лизинга'!$F$18=Лист2!$A$3,Равномерное!N19,'Калькулятор лизинга'!Y14)),"") -> 60000 | AG14: 10 | AH14: =IF(AG14<=$O$16,IF($O$18=Лист2!$A$2,'Кредит аннуитет'!M19,'Кредит равномерное'!M19),"") -> 116991.9187
X15: 11 | Y15: 60000 | AB15: 11 | AC15: =IF(AB15<=$F$16,IF($F$18=Лист2!$A$2,'Аннуитетное (с ндс)'!N21,IF('Калькулятор лизинга'!$F$18=Лист2!$A$3,Равномерное!N20,'Калькулятор лизинга'!Y15)),"") -> 60000 | AG15: 11 | AH15: =IF(AG15<=$O$16,IF($O$18=Лист2!$A$2,'Кредит аннуитет'!M20,'Кредит равномерное'!M20),"") -> 116990.9246
D16: Срок лизинга, мес | F16: 72 | M16: Срок кредита, мес | O16: 72 | X16: 12 | Y16: 50000 | AB16: 12 | AC16: =IF(AB16<=$F$16,IF($F$18=Лист2!$A$2,'Аннуитетное (с ндс)'!N22,IF('Калькулятор лизинга'!$F$18=Лист2!$A$3,Равномерное!N21,'Калькулятор лизинга'!Y16)),"") -> 50000 | AG16: 12 | AH16: =IF(AG16<=$O$16,IF($O$18=Лист2!$A$2,'Кредит аннуитет'!M21,'Кредит равномерное'!M21),"") -> 116989.8938
X17: 13 | Y17: 50000 | AB17: 13 | AC17: =IF(AB17<=$F$16,IF($F$18=Лист2!$A$2,'Аннуитетное (с ндс)'!N23,IF('Калькулятор лизинга'!$F$18=Лист2!$A$3,Равномерное!N22,'Калькулятор лизинга'!Y17)),"") -> 50000 | AG17: 13 | AH17: =IF(AG17<=$O$16,IF($O$18=Лист2!$A$2,'Кредит аннуитет'!M22,'Кредит равномерное'!M22),"") -> 116988.8251
B18: размер платежей установлен индивидуально | D18: Способ начисления процентов | F18: Персональный | K18: равные ежемесячные платежи | M18: Способ начисления процентов | O18: Аннуитетный | X18: 14 | Y18: 50000 | AB18: 14 | AC18: =IF(AB18<=$F$16,IF($F$18=Лист2!$A$2,'Аннуитетное (с ндс)'!N24,IF('Калькулятор лизинга'!$F$18=Лист2!$A$3,Равномерное!N23,'Калькулятор лизинга'!Y18)),"") -> 50000 | AG18: 14 | AH18: =IF(AG18<=$O$16,IF($O$18=Лист2!$A$2,'Кредит аннуитет'!M23,'Кредит равномерное'!M23),"") -> 116987.7169
X19: 15 | Y19: 50000 | AB19: 15 | AC19: =IF(AB19<=$F$16,IF($F$18=Лист2!$A$2,'Аннуитетное (с ндс)'!N25,IF('Калькулятор лизинга'!$F$18=Лист2!$A$3,Равномерное!N24,'Калькулятор лизинга'!Y19)),"") -> 50000 | AG19: 15 | AH19: =IF(AG19<=$O$16,IF($O$18=Лист2!$A$2,'Кредит аннуитет'!M24,'Кредит равномерное'!M24),"") -> 116986.5679
X20: 16 | Y20: 50000 | AB20: 16 | AC20: =IF(AB20<=$F$16,IF($F$18=Лист2!$A$2,'Аннуитетное (с ндс)'!N26,IF('Калькулятор лизинга'!$F$18=Лист2!$A$3,Равномерное!N25,'Калькулятор лизинга'!Y20)),"") -> 50000 | AG20: 16 | AH20: =IF(AG20<=$O$16,IF($O$18=Лист2!$A$2,'Кредит аннуитет'!M25,'Кредит равномерное'!M25),"") -> 116985.3765
B21: выбор: процент по договору или ежемесячный платеж | D21: Ежемесячный платеж, руб. (только аннуитет) | F21: 116755 | K21: выбор: процент по договору или ежемесячный платеж | M21: Ежемесячный платеж, руб. (только аннуитет) | O21: 116755 | X21: 17 | Y21: 60000 | AB21: 17 | AC21: =IF(AB21<=$F$16,IF($F$18=Лист2!$A$2,'Аннуитетное (с ндс)'!N27,IF('Калькулятор лизинга'!$F$18=Лист2!$A$3,Равномерное!N26,'Калькулятор лизинга'!Y21)),"") -> 60000 | AG21: 17 | AH21: =IF(AG21<=$O$16,IF($O$18=Лист2!$A$2,'Кредит аннуитет'!M26,'Кредит равномерное'!M26),"") -> 116984.1412
X22: 18 | Y22: 60000 | AB22: 18 | AC22: =IF(AB22<=$F$16,IF($F$18=Лист2!$A$2,'Аннуитетное (с ндс)'!N28,IF('Калькулятор лизинга'!$F$18=Лист2!$A$3,Равномерное!N27,'Калькулятор лизинга'!Y22)),"") -> 60000 | AG22: 18 | AH22: =IF(AG22<=$O$16,IF($O$18=Лист2!$A$2,'Кредит аннуитет'!M27,'Кредит равномерное'!M27),"") -> 116982.8603
X23: 19 | Y23: 60000 | AB23: 19 | AC23: =IF(AB23<=$F$16,IF($F$18=Лист2!$A$2,'Аннуитетное (с ндс)'!N29,IF('Калькулятор лизинга'!$F$18=Лист2!$A$3,Равномерное!N28,'Калькулятор лизинга'!Y23)),"") -> 60000 | AG23: 19 | AH23: =IF(AG23<=$O$16,IF($O$18=Лист2!$A$2,'Кредит аннуитет'!M28,'Кредит равномерное'!M28),"") -> 116981.5322
B24: выбор: в % от стоимости или в рублях | D24: Аванс, % | F24: 30 | K24: выбор: в % от стоимости или в рублях | M24: Собственные средства, % | O24: 30 | X24: 20 | Y24: 60000 | AB24: 20 | AC24: =IF(AB24<=$F$16,IF($F$18=Лист2!$A$2,'Аннуитетное (с ндс)'!N30,IF('Калькулятор лизинга'!$F$18=Лист2!$A$3,Равномерное!N29,'Калькулятор лизинга'!Y24)),"") -> 60000 | AG24: 20 | AH24: =IF(AG24<=$O$16,IF($O$18=Лист2!$A$2,'Кредит аннуитет'!M29,'Кредит равномерное'!M29),"") -> 116980.1551
X25: 21 | Y25: 60000 | AB25: 21 | AC25: =IF(AB25<=$F$16,IF($F$18=Лист2!$A$2,'Аннуитетное (с ндс)'!N31,IF('Калькулятор лизинга'!$F$18=Лист2!$A$3,Равномерное!N30,'Калькулятор лизинга'!Y25)),"") -> 60000 | AG25: 21 | AH25: =IF(AG25<=$O$16,IF($O$18=Лист2!$A$2,'Кредит аннуитет'!M30,'Кредит равномерное'!M30),"") -> 116978.7273
X26: 22 | Y26: 60000 | AB26: 22 | AC26: =IF(AB26<=$F$16,IF($F$18=Лист2!$A$2,'Аннуитетное (с ндс)'!N32,IF('Калькулятор лизинга'!$F$18=Лист2!$A$3,Равномерное!N31,'Калькулятор лизинга'!Y26)),"") -> 60000 | AG26: 22 | AH26: =IF(AG26<=$O$16,IF($O$18=Лист2!$A$2,'Кредит аннуитет'!M31,'Кредит равномерное'!M31),"") -> 116977.2468
B27: единоразовая выплата в конце срока договора | D27: Выкупной платеж, руб. | F27: 1000 | K27: срок полезного использования для расчета амортизации | M27: СПИ, мес | O27: 60 | X27: 23 | Y27: 50000 | AB27: 23 | AC27: =IF(AB27<=$F$16,IF($F$18=Лист2!$A$2,'Аннуитетное (с ндс)'!N33,IF('Калькулятор лизинга'!$F$18=Лист2!$A$3,Равномерное!N32,'Калькулятор лизинга'!Y27)),"") -> 50000 | AG27: 23 | AH27: =IF(AG27<=$O$16,IF($O$18=Лист2!$A$2,'Кредит аннуитет'!M32,'Кредит равномерное'!M32),"") -> 116975.7117
X28: =IF(X27<$F$16,X27+1,"") -> 24 | Y28: 50000 | AB28: =IF(AB27<$F$16,AB27+1,"") -> 24 | AC28: =IF(AB28<=$F$16,IF($F$18=Лист2!$A$2,'Аннуитетное (с ндс)'!N34,IF('Калькулятор лизинга'!$F$18=Лист2!$A$3,Равномерное!N33,'Калькулятор лизинга'!Y28)),"") -> 50000 | AG28: =IF(AG27<$O$16,AG27+1,"") -> 24 | AH28: =IF(AG28<=$O$16,IF($O$18=Лист2!$A$2,'Кредит аннуитет'!M33,'Кредит равномерное'!M33),"") -> 116974.1201
X29: 25 | Y29: 50000 | AB29: 25 | AC29: =IF(AB29<=$F$16,IF($F$18=Лист2!$A$2,'Аннуитетное (с ндс)'!N35,IF('Калькулятор лизинга'!$F$18=Лист2!$A$3,Равномерное!N34,'Калькулятор лизинга'!Y29)),"") -> 50000 | AG29: 25 | AH29: =IF(AG29<=$O$16,IF($O$18=Лист2!$A$2,'Кредит аннуитет'!M34,'Кредит равномерное'!M34),"") -> 116972.4697
B30: годовой процент по страхованию | D30: Страхование, % | F30: 0.1 | K30: годовой процент по страхованию | M30: Страхование, % | O30: 0.1 | X30: 26 | Y30: 50000 | AB30: 26 | AC30: =IF(AB30<=$F$16,IF($F$18=Лист2!$A$2,'Аннуитетное (с ндс)'!N36,IF('Калькулятор лизинга'!$F$18=Лист2!$A$3,Равномерное!N35,'Калькулятор лизинга'!Y30)),"") -> 50000 | AG30: 26 | AH30: =IF(AG30<=$O$16,IF($O$18=Лист2!$A$2,'Кредит аннуитет'!M35,'Кредит равномерное'!M35),"") -> 116970.7585
X31: 27 | Y31: 50000 | AB31: 27 | AC31: =IF(AB31<=$F$16,IF($F$18=Лист2!$A$2,'Аннуитетное (с ндс)'!N37,IF('Калькулятор лизинга'!$F$18=Лист2!$A$3,Равномерное!N36,'Калькулятор лизинга'!Y31)),"") -> 50000 | AG31: 27 | AH31: =IF(AG31<=$O$16,IF($O$18=Лист2!$A$2,'Кредит аннуитет'!M36,'Кредит равномерное'!M36),"") -> 116968.9842
X32: 28 | Y32: 50000 | AB32: 28 | AC32: =IF(AB32<=$F$16,IF($F$18=Лист2!$A$2,'Аннуитетное (с ндс)'!N38,IF('Калькулятор лизинга'!$F$18=Лист2!$A$3,Равномерное!N37,'Калькулятор лизинга'!Y32)),"") -> 50000 | AG32: 28 | AH32: =IF(AG32<=$O$16,IF($O$18=Лист2!$A$2,'Кредит аннуитет'!M37,'Кредит равномерное'!M37),"") -> 116967.1445
I33: ЛИЗИНГ | L33: КРЕДИТ | X33: 29 | Y33: 50000 | AB33: 29 | AC33: =IF(AB33<=$F$16,IF($F$18=Лист2!$A$2,'Аннуитетное (с ндс)'!N39,IF('Калькулятор лизинга'!$F$18=Лист2!$A$3,Равномерное!N38,'Калькулятор лизинга'!Y33)),"") -> 50000 | AG33: 29 | AH33: =IF(AG33<=$O$16,IF($O$18=Лист2!$A$2,'Кредит аннуитет'!M38,'Кредит равномерное'!M38),"") -> 116965.2369
X34: 30 | Y34: 50000 | AB34: 30 | AC34: =IF(AB34<=$F$16,IF($F$18=Лист2!$A$2,'Аннуитетное (с ндс)'!N40,IF('Калькулятор лизинга'!$F$18=Лист2!$A$3,Равномерное!N39,'Калькулятор лизинга'!Y34)),"") -> 50000 | AG34: 30 | AH34: =IF(AG34<=$O$16,IF($O$18=Лист2!$A$2,'Кредит аннуитет'!M39,'Кредит равномерное'!M39),"") -> 116963.259
X35: 31 | Y35: 50000 | AB35: 31 | AC35: =IF(AB35<=$F$16,IF($F$18=Лист2!$A$2,'Аннуитетное (с ндс)'!N41,IF('Калькулятор лизинга'!$F$18=Лист2!$A$3,Равномерное!N40,'Калькулятор лизинга'!Y35)),"") -> 50000 | AG35: 31 | AH35: =IF(AG35<=$O$16,IF($O$18=Лист2!$A$2,'Кредит аннуитет'!M40,'Кредит равномерное'!M40),"") -> 116961.2082
B36: сумма всех платежей по договору ( с учетом собственных средств (аванса) и страхования) | F36: Сумма договора | I36: =IF(F18=Лист2!A2,'Аннуитетное (с ндс)'!N4,IF(F18=Лист2!A3,Равномерное!N4,Персональный!C3)) -> 3208000 | L36: =IF(O18=Лист2!A2,'Кредит аннуитет'!M4,'Кредит равномерное'!M4) -> 9675730.44 | S36: → | X36: 32 | Y36: 50000 | AB36: 32 | AC36: =IF(AB36<=$F$16,IF($F$18=Лист2!$A$2,'Аннуитетное (с ндс)'!N42,IF('Калькулятор лизинга'!$F$18=Лист2!$A$3,Равномерное!N41,'Калькулятор лизинга'!Y36)),"") -> 50000 | AG36: 32 | AH36: =IF(AG36<=$O$16,IF($O$18=Лист2!$A$2,'Кредит аннуитет'!M41,'Кредит равномерное'!M41),"") -> 116959.0818
F37: в т.ч. собственные средства (аванс) | I37: =IF(D24=Лист2!L2,'Калькулятор лизинга'!K5*'Калькулятор лизинга'!F24/100,'Калькулятор лизинга'!F24) -> 1257000 | L37: =IF(M24=Лист2!N2,'Калькулятор лизинга'!O24/100*'Калькулятор лизинга'!K5,'Калькулятор лизинга'!O24) -> 1257000 | X37: 33 | Y37: 60000 | AB37: 33 | AC37: =IF(AB37<=$F$16,IF($F$18=Лист2!$A$2,'Аннуитетное (с ндс)'!N43,IF('Калькулятор лизинга'!$F$18=Лист2!$A$3,Равномерное!N42,'Калькулятор лизинга'!Y37)),"") -> 60000 | AG37: 33 | AH37: =IF(AG37<=$O$16,IF($O$18=Лист2!$A$2,'Кредит аннуитет'!M42,'Кредит равномерное'!M42),"") -> 116956.877
S38: → | X38: =IF(X37<$F$16,X37+1,"") -> 34 | Y38: 60000 | AB38: =IF(AB37<$F$16,AB37+1,"") -> 34 | AC38: =IF(AB38<=$F$16,IF($F$18=Лист2!$A$2,'Аннуитетное (с ндс)'!N44,IF('Калькулятор лизинга'!$F$18=Лист2!$A$3,Равномерное!N43,'Калькулятор лизинга'!Y38)),"") -> 60000 | AG38: =IF(AG37<$O$16,AG37+1,"") -> 34 | AH38: =IF(AG38<=$O$16,IF($O$18=Лист2!$A$2,'Кредит аннуитет'!M43,'Кредит равномерное'!M43),"") -> 116954.5908
B39: =IF(F18=Лист2!A4,"невозможно расчитать страхование","") -> невозможно расчитать страхование | F39: в т.ч. страхование | I39: =IF(F18=Лист2!A2,'Аннуитетное (с ндс)'!W4,IF(F18=Лист2!A3,Равномерное!W4,"неизвестно")) -> неизвестно | L39: =IF(O18=Лист2!A2,'Кредит аннуитет'!AB4,'Кредит равномерное'!AA4) -> 12370.44024 | X39: 35 | Y39: 60000 | AB39: 35 | AC39: =IF(AB39<=$F$16,IF($F$18=Лист2!$A$2,'Аннуитетное (с ндс)'!N45,IF('Калькулятор лизинга'!$F$18=Лист2!$A$3,Равномерное!N44,'Калькулятор лизинга'!Y39)),"") -> 60000 | AG39: 35 | AH39: =IF(AG39<=$O$16,IF($O$18=Лист2!$A$2,'Кредит аннуитет'!M44,'Кредит равномерное'!M44),"") -> 116952.2204
X40: 36 | Y40: 60000 | AB40: 36 | AC40: =IF(AB40<=$F$16,IF($F$18=Лист2!$A$2,'Аннуитетное (с ндс)'!N46,IF('Калькулятор лизинга'!$F$18=Лист2!$A$3,Равномерное!N45,'Калькулятор лизинга'!Y40)),"") -> 60000 | AG40: 36 | AH40: =IF(AG40<=$O$16,IF($O$18=Лист2!$A$2,'Кредит аннуитет'!M45,'Кредит равномерное'!M45),"") -> 116949.7626
B41: =IF('Аннуитетное (с ндс)'!D32="да","НДС на оборудование и на процент по лизингу подлежат возмещению","предприятие не является плательщиком НДС") -> НДС на оборудование и на процент по лизингу подлежат возмещению | F41: НДС к возмещению | I41: =IF(F18=Лист2!A2,'Аннуитетное (с ндс)'!T4,IF(F18=Лист2!A3,Равномерное!T4,Персональный!D3)) -> 534666.6667 | L41: =IF(O18=Лист2!A2,'Кредит аннуитет'!O4,'Кредит равномерное'!O4) -> 698333.3333 | X41: 37 | AB41: 37 | AC41: =IF(AB41<=$F$16,IF($F$18=Лист2!$A$2,'Аннуитетное (с ндс)'!N47,IF('Калькулятор лизинга'!$F$18=Лист2!$A$3,Равномерное!N46,'Калькулятор лизинга'!Y41)),"") -> 0 | AG41: 37 | AH41: =IF(AG41<=$O$16,IF($O$18=Лист2!$A$2,'Кредит аннуитет'!M46,'Кредит равномерное'!M46),"") -> 116947.2141
X42: 38 | AB42: 38 | AC42: =IF(AB42<=$F$16,IF($F$18=Лист2!$A$2,'Аннуитетное (с ндс)'!N48,IF('Калькулятор лизинга'!$F$18=Лист2!$A$3,Равномерное!N47,'Калькулятор лизинга'!Y42)),"") -> 0 | AG42: 38 | AH42: =IF(AG42<=$O$16,IF($O$18=Лист2!$A$2,'Кредит аннуитет'!M47,'Кредит равномерное'!M47),"") -> 116944.5717
X43: 39 | AB43: 39 | AC43: =IF(AB43<=$F$16,IF($F$18=Лист2!$A$2,'Аннуитетное (с ндс)'!N49,IF('Калькулятор лизинга'!$F$18=Лист2!$A$3,Равномерное!N48,'Калькулятор лизинга'!Y43)),"") -> 0 | AG43: 39 | AH43: =IF(AG43<=$O$16,IF($O$18=Лист2!$A$2,'Кредит аннуитет'!M48,'Кредит равномерное'!M48),"") -> 116941.8319
B44: =IF('Аннуитетное (с ндс)'!D33="да","налогооблагаемая база сокращается на расходы по лизингу и страхованию, проценты по кредиту и амортизацию","расходы не влияют на налогооблагаемую базу") -> налогооблагаемая база сокращается на расходы по лизингу и страхованию, проценты по кредиту и амортизацию | F44: Экономия налога на прибыль | I44: =IF(F18=Лист2!A2,'Аннуитетное (с ндс)'!S4,IF(F18=Лист2!A3,Равномерное!S4,Персональный!F3)) -> 534666.6667 | L44: =IF(O18=Лист2!A2,SUM('Кредит аннуитет'!W4:Y4),SUM('Кредит равномерное'!V4:X4)) -> 1795350.531 | X44: 40 | AB44: 40 | AC44: =IF(AB44<=$F$16,IF($F$18=Лист2!$A$2,'Аннуитетное (с ндс)'!N50,IF('Калькулятор лизинга'!$F$18=Лист2!$A$3,Равномерное!N49,'Калькулятор лизинга'!Y44)),"") -> 0 | AG44: 40 | AH44: =IF(AG44<=$O$16,IF($O$18=Лист2!$A$2,'Кредит аннуитет'!M49,'Кредит равномерное'!M49),"") -> 116938.991
X45: 41 | AB45: 41 | AC45: =IF(AB45<=$F$16,IF($F$18=Лист2!$A$2,'Аннуитетное (с ндс)'!N51,IF('Калькулятор лизинга'!$F$18=Лист2!$A$3,Равномерное!N50,'Калькулятор лизинга'!Y45)),"") -> 0 | AG45: 41 | AH45: =IF(AG45<=$O$16,IF($O$18=Лист2!$A$2,'Кредит аннуитет'!M50,'Кредит равномерное'!M50),"") -> 116936.0454
X46: 42 | AB46: 42 | AC46: =IF(AB46<=$F$16,IF($F$18=Лист2!$A$2,'Аннуитетное (с ндс)'!N52,IF('Калькулятор лизинга'!$F$18=Лист2!$A$3,Равномерное!N51,'Калькулятор лизинга'!Y46)),"") -> 0 | AG46: 42 | AH46: =IF(AG46<=$O$16,IF($O$18=Лист2!$A$2,'Кредит аннуитет'!M51,'Кредит равномерное'!M51),"") -> 116932.9912
X47: 43 | AB47: 43 | AC47: =IF(AB47<=$F$16,IF($F$18=Лист2!$A$2,'Аннуитетное (с ндс)'!N53,IF('Калькулятор лизинга'!$F$18=Лист2!$A$3,Равномерное!N52,'Калькулятор лизинга'!Y47)),"") -> 0 | AG47: 43 | AH47: =IF(AG47<=$O$16,IF($O$18=Лист2!$A$2,'Кредит аннуитет'!M52,'Кредит равномерное'!M52),"") -> 116929.8244
B48: сумма договора за вычетом НДС к возмещениию и экономии налога на прибыль | F48: Чистая сумма договора | I48: =IF(F18=Лист2!A2,'Аннуитетное (с ндс)'!D30,Равномерное!D27) -> 8335608469 | L48: =IF(O18=Лист2!A2,'Кредит аннуитет'!D35,'Кредит равномерное'!D35) -> 7182046.576 | X48: 44 | AB48: 44 | AC48: =IF(AB48<=$F$16,IF($F$18=Лист2!$A$2,'Аннуитетное (с ндс)'!N54,IF('Калькулятор лизинга'!$F$18=Лист2!$A$3,Равномерное!N53,'Калькулятор лизинга'!Y48)),"") -> 0 | AG48: 44 | AH48: =IF(AG48<=$O$16,IF($O$18=Лист2!$A$2,'Кредит аннуитет'!M53,'Кредит равномерное'!M53),"") -> 116926.5408
X49: 45 | AB49: 45 | AC49: =IF(AB49<=$F$16,IF($F$18=Лист2!$A$2,'Аннуитетное (с ндс)'!N55,IF('Калькулятор лизинга'!$F$18=Лист2!$A$3,Равномерное!N54,'Калькулятор лизинга'!Y49)),"") -> 0 | AG49: 45 | AH49: =IF(AG49<=$O$16,IF($O$18=Лист2!$A$2,'Кредит аннуитет'!M54,'Кредит равномерное'!M54),"") -> 116923.1361
X50: 46 | AB50: 46 | AC50: =IF(AB50<=$F$16,IF($F$18=Лист2!$A$2,'Аннуитетное (с ндс)'!N56,IF('Калькулятор лизинга'!$F$18=Лист2!$A$3,Равномерное!N55,'Калькулятор лизинга'!Y50)),"") -> 0 | AG50: 46 | AH50: =IF(AG50<=$O$16,IF($O$18=Лист2!$A$2,'Кредит аннуитет'!M55,'Кредит равномерное'!M55),"") -> 116919.6059
X51: 47 | AB51: 47 | AC51: =IF(AB51<=$F$16,IF($F$18=Лист2!$A$2,'Аннуитетное (с ндс)'!N57,IF('Калькулятор лизинга'!$F$18=Лист2!$A$3,Равномерное!N56,'Калькулятор лизинга'!Y51)),"") -> 0 | AG51: 47 | AH51: =IF(AG51<=$O$16,IF($O$18=Лист2!$A$2,'Кредит аннуитет'!M56,'Кредит равномерное'!M56),"") -> 116915.9455
B52: только для аннуитетного способа начисления процентов (без учета страхования) | F52: Ежемесячный платеж | I52: =IF(F18=Лист2!A2,'Аннуитетное (с ндс)'!M11,"по графику") -> по графику | L52: =IF(O18=Лист2!A2,'Кредит аннуитет'!L10,"по графику") -> 116755 | X52: 48 | AB52: 48 | AC52: =IF(AB52<=$F$16,IF($F$18=Лист2!$A$2,'Аннуитетное (с ндс)'!N58,IF('Калькулятор лизинга'!$F$18=Лист2!$A$3,Равномерное!N57,'Калькулятор лизинга'!Y52)),"") -> 0 | AG52: 48 | AH52: =IF(AG52<=$O$16,IF($O$18=Лист2!$A$2,'Кредит аннуитет'!M57,'Кредит равномерное'!M57),"") -> 116912.1502
X53: 49 | AB53: 49 | AC53: =IF(AB53<=$F$16,IF($F$18=Лист2!$A$2,'Аннуитетное (с ндс)'!N59,IF('Калькулятор лизинга'!$F$18=Лист2!$A$3,Равномерное!N58,'Калькулятор лизинга'!Y53)),"") -> 0 | AG53: 49 | AH53: =IF(AG53<=$O$16,IF($O$18=Лист2!$A$2,'Кредит аннуитет'!M58,'Кредит равномерное'!M58),"") -> 116908.2149
X54: 50 | AB54: 50 | AC54: =IF(AB54<=$F$16,IF($F$18=Лист2!$A$2,'Аннуитетное (с ндс)'!N60,IF('Калькулятор лизинга'!$F$18=Лист2!$A$3,Равномерное!N59,'Калькулятор лизинга'!Y54)),"") -> 0 | AG54: 50 | AH54: =IF(AG54<=$O$16,IF($O$18=Лист2!$A$2,'Кредит аннуитет'!M59,'Кредит равномерное'!M59),"") -> 116904.1346
B55: процент, который начисляется на остаток основного долга | F55: Ставка по заемным средствам | I55: =IF(F18=Лист2!A2,'Аннуитетное (с ндс)'!D16,IF(F18=Лист2!A3,Равномерное!D15,"")) ->  | L55: =IF(O18=Лист2!A2,'Кредит аннуитет'!D16,'Кредит равномерное'!D16) -> 0.4424547464 | X55: 51 | AB55: 51 | AC55: =IF(AB55<=$F$16,IF($F$18=Лист2!$A$2,'Аннуитетное (с ндс)'!N61,IF('Калькулятор лизинга'!$F$18=Лист2!$A$3,Равномерное!N60,'Калькулятор лизинга'!Y55)),"") -> 0 | AG55: 51 | AH55: =IF(AG55<=$O$16,IF($O$18=Лист2!$A$2,'Кредит аннуитет'!M60,'Кредит равномерное'!M60),"") -> 116899.9038
X56: 52 | AB56: 52 | AC56: =IF(AB56<=$F$16,IF($F$18=Лист2!$A$2,'Аннуитетное (с ндс)'!N62,IF('Калькулятор лизинга'!$F$18=Лист2!$A$3,Равномерное!N61,'Калькулятор лизинга'!Y56)),"") -> 0 | AG56: 52 | AH56: =IF(AG56<=$O$16,IF($O$18=Лист2!$A$2,'Кредит аннуитет'!M61,'Кредит равномерное'!M61),"") -> 116895.517
X57: 53 | AB57: 53 | AC57: =IF(AB57<=$F$16,IF($F$18=Лист2!$A$2,'Аннуитетное (с ндс)'!N63,IF('Калькулятор лизинга'!$F$18=Лист2!$A$3,Равномерное!N62,'Калькулятор лизинга'!Y57)),"") -> 0 | AG57: 53 | AH57: =IF(AG57<=$O$16,IF($O$18=Лист2!$A$2,'Кредит аннуитет'!M62,'Кредит равномерное'!M62),"") -> 116890.9684
B58: отношение переплаты к стоимости оборудования в годовом выражении | F58: Годовое удорожание | I58: =(I36-K5)/K5/F16*12 -> -0.03906125696 | L58: =(L36-K5)/K5/O16*12 -> 0.218207257 | X58: 54 | AB58: 54 | AC58: =IF(AB58<=$F$16,IF($F$18=Лист2!$A$2,'Аннуитетное (с ндс)'!N64,IF('Калькулятор лизинга'!$F$18=Лист2!$A$3,Равномерное!N63,'Калькулятор лизинга'!Y58)),"") -> 0 | AG58: 54 | AH58: =IF(AG58<=$O$16,IF($O$18=Лист2!$A$2,'Кредит аннуитет'!M63,'Кредит равномерное'!M63),"") -> 116886.2522
X59: 55 | AB59: 55 | AC59: =IF(AB59<=$F$16,IF($F$18=Лист2!$A$2,'Аннуитетное (с ндс)'!N65,IF('Калькулятор лизинга'!$F$18=Лист2!$A$3,Равномерное!N64,'Калькулятор лизинга'!Y59)),"") -> 0 | AG59: 55 | AH59: =IF(AG59<=$O$16,IF($O$18=Лист2!$A$2,'Кредит аннуитет'!M64,'Кредит равномерное'!M64),"") -> 116881.362
X60: 56 | AB60: 56 | AC60: =IF(AB60<=$F$16,IF($F$18=Лист2!$A$2,'Аннуитетное (с ндс)'!N66,IF('Калькулятор лизинга'!$F$18=Лист2!$A$3,Равномерное!N65,'Калькулятор лизинга'!Y60)),"") -> 0 | AG60: 56 | AH60: =IF(AG60<=$O$16,IF($O$18=Лист2!$A$2,'Кредит аннуитет'!M65,'Кредит равномерное'!M65),"") -> 116876.2916
B61: процент, расчитанный на основе графика платежей по договору с учетом страхования | F61: Эффективная ставка на основе потока платежей | I61: =IF(F18=Лист2!A2,'Аннуитетное (с ндс)'!N3,IF(F18=Лист2!A3,Равномерное!N3,Персональный!C2)) -> -0.2191707678 | L61: =IF(O18=Лист2!A2,'Кредит аннуитет'!M3,'Кредит равномерное'!M3) -> 0.5454270422 | O61: Для договора лизинга рассчитана на временном горизонте, равном сроку лизинга, а для кредитного договора - на временном горизонте, равном сроку кредитования | X61: 57 | AB61: 57 | AC61: =IF(AB61<=$F$16,IF($F$18=Лист2!$A$2,'Аннуитетное (с ндс)'!N67,IF('Калькулятор лизинга'!$F$18=Лист2!$A$3,Равномерное!N66,'Калькулятор лизинга'!Y61)),"") -> 0 | AG61: 57 | AH61: =IF(AG61<=$O$16,IF($O$18=Лист2!$A$2,'Кредит аннуитет'!M66,'Кредит равномерное'!M66),"") -> 116871.0341
X62: 58 | AB62: 58 | AC62: =IF(AB62<=$F$16,IF($F$18=Лист2!$A$2,'Аннуитетное (с ндс)'!N68,IF('Калькулятор лизинга'!$F$18=Лист2!$A$3,Равномерное!N67,'Калькулятор лизинга'!Y62)),"") -> 0 | AG62: 58 | AH62: =IF(AG62<=$O$16,IF($O$18=Лист2!$A$2,'Кредит аннуитет'!M67,'Кредит равномерное'!M67),"") -> 116865.5829
X63: 59 | AB63: 59 | AC63: =IF(AB63<=$F$16,IF($F$18=Лист2!$A$2,'Аннуитетное (с ндс)'!N69,IF('Калькулятор лизинга'!$F$18=Лист2!$A$3,Равномерное!N68,'Калькулятор лизинга'!Y63)),"") -> 0 | AG63: 59 | AH63: =IF(AG63<=$O$16,IF($O$18=Лист2!$A$2,'Кредит аннуитет'!M68,'Кредит равномерное'!M68),"") -> 116859.9306
X64: 60 | AB64: 60 | AC64: =IF(AB64<=$F$16,IF($F$18=Лист2!$A$2,'Аннуитетное (с ндс)'!N70,IF('Калькулятор лизинга'!$F$18=Лист2!$A$3,Равномерное!N69,'Калькулятор лизинга'!Y64)),"") -> 0 | AG64: 60 | AH64: =IF(AG64<=$O$16,IF($O$18=Лист2!$A$2,'Кредит аннуитет'!M69,'Кредит равномерное'!M69),"") -> 116854.07
B65: процент, расчитанный на основе графика платежей по договору за вычетом НДС к возмещению | F65: Эффективная ставка с учетом возмещения НДС | I65: =IF(F18=Лист2!A2,'Аннуитетное (с ндс)'!R3,IF(F18=Лист2!A3,Равномерное!R3,Персональный!E2)) -> -0.3212141626 | L65: =IF(O18=Лист2!A2,'Кредит аннуитет'!V3,'Кредит равномерное'!U3) -> 0.3914508283 | O65: Для договора лизинга рассчитана на временном горизонте, равном сроку лизинга, а для кредитного договора - на временном горизонте, равном сроку кредитования | X65: 61 | AB65: 61 | AC65: =IF(AB65<=$F$16,IF($F$18=Лист2!$A$2,'Аннуитетное (с ндс)'!N71,IF('Калькулятор лизинга'!$F$18=Лист2!$A$3,Равномерное!N70,'Калькулятор лизинга'!Y65)),"") -> 0 | AG65: 61 | AH65: =IF(AG65<=$O$16,IF($O$18=Лист2!$A$2,'Кредит аннуитет'!M70,'Кредит равномерное'!M70),"") -> 116847.9932
X66: 62 | AB66: 62 | AC66: =IF(AB66<=$F$16,IF($F$18=Лист2!$A$2,'Аннуитетное (с ндс)'!N72,IF('Калькулятор лизинга'!$F$18=Лист2!$A$3,Равномерное!N71,'Калькулятор лизинга'!Y66)),"") -> 0 | AG66: 62 | AH66: =IF(AG66<=$O$16,IF($O$18=Лист2!$A$2,'Кредит аннуитет'!M71,'Кредит равномерное'!M71),"") -> 116841.6924
X67: 63 | AB67: 63 | AC67: =IF(AB67<=$F$16,IF($F$18=Лист2!$A$2,'Аннуитетное (с ндс)'!N73,IF('Калькулятор лизинга'!$F$18=Лист2!$A$3,Равномерное!N72,'Калькулятор лизинга'!Y67)),"") -> 0 | AG67: 63 | AH67: =IF(AG67<=$O$16,IF($O$18=Лист2!$A$2,'Кредит аннуитет'!M72,'Кредит равномерное'!M72),"") -> 116835.1593
X68: 64 | AB68: 64 | AC68: =IF(AB68<=$F$16,IF($F$18=Лист2!$A$2,'Аннуитетное (с ндс)'!N74,IF('Калькулятор лизинга'!$F$18=Лист2!$A$3,Равномерное!N73,'Калькулятор лизинга'!Y68)),"") -> 0 | AG68: 64 | AH68: =IF(AG68<=$O$16,IF($O$18=Лист2!$A$2,'Кредит аннуитет'!M73,'Кредит равномерное'!M73),"") -> 116828.3853
B69: процент, расчитанный на основе графика платежей по договору за вычетом НДС к возмещению и экономии налога на прибыль | F69: Эффективная ставка с учетом возмещения НДС и экономии налога на прибыль | I69: =IF(F18=Лист2!A2,'Аннуитетное (с ндс)'!V3,IF(F18=Лист2!A3,Равномерное!V3,Персональный!G2)) -> -0.3747106738 | L69: =IF(O18=Лист2!A2,'Кредит аннуитет'!AA3,'Кредит равномерное'!Z3) -> 0.234081465 | O69: Для договора лизинга рассчитана на временном горизонте, равном сроку лизинга, а для кредитного договора - на временном горизонте, равном сроку амортизации имущества | X69: 65 | AB69: 65 | AC69: =IF(AB69<=$F$16,IF($F$18=Лист2!$A$2,'Аннуитетное (с ндс)'!N75,IF('Калькулятор лизинга'!$F$18=Лист2!$A$3,Равномерное!N74,'Калькулятор лизинга'!Y69)),"") -> 0 | AG69: 65 | AH69: =IF(AG69<=$O$16,IF($O$18=Лист2!$A$2,'Кредит аннуитет'!M74,'Кредит равномерное'!M74),"") -> 116821.3615
X70: 66 | AB70: 66 | AC70: =IF(AB70<=$F$16,IF($F$18=Лист2!$A$2,'Аннуитетное (с ндс)'!N76,IF('Калькулятор лизинга'!$F$18=Лист2!$A$3,Равномерное!N75,'Калькулятор лизинга'!Y70)),"") -> 0 | AG70: 66 | AH70: =IF(AG70<=$O$16,IF($O$18=Лист2!$A$2,'Кредит аннуитет'!M75,'Кредит равномерное'!M75),"") -> 116814.0787
X71: =IF(X70<$F$16,X70+1,"") -> 67 | AB71: =IF(AB70<$F$16,AB70+1,"") -> 67 | AC71: =IF(AB71<=$F$16,IF($F$18=Лист2!$A$2,'Аннуитетное (с ндс)'!N77,IF('Калькулятор лизинга'!$F$18=Лист2!$A$3,Равномерное!N76,'Калькулятор лизинга'!Y71)),"") -> 0 | AG71: =IF(AG70<$O$16,AG70+1,"") -> 67 | AH71: =IF(AG71<=$O$16,IF($O$18=Лист2!$A$2,'Кредит аннуитет'!M76,'Кредит равномерное'!M76),"") -> 116806.5274
X72: 68 | AB72: 68 | AC72: =IF(AB72<=$F$16,IF($F$18=Лист2!$A$2,'Аннуитетное (с ндс)'!N78,IF('Калькулятор лизинга'!$F$18=Лист2!$A$3,Равномерное!N77,'Калькулятор лизинга'!Y72)),"") -> 0 | AG72: 68 | AH72: =IF(AG72<=$O$16,IF($O$18=Лист2!$A$2,'Кредит аннуитет'!M77,'Кредит равномерное'!M77),"") -> 116798.6977
X73: 69 | AB73: 69 | AC73: =IF(AB73<=$F$16,IF($F$18=Лист2!$A$2,'Аннуитетное (с ндс)'!N79,IF('Калькулятор лизинга'!$F$18=Лист2!$A$3,Равномерное!N78,'Калькулятор лизинга'!Y73)),"") -> 0 | AG73: 69 | AH73: =IF(AG73<=$O$16,IF($O$18=Лист2!$A$2,'Кредит аннуитет'!M78,'Кредит равномерное'!M78),"") -> 116790.5793
K74: =IF(I69<0,"отрицательное значение ставки говорит о росте общей эффективности бизнеса в случае использования финансовых инструментов при условии наличия прибыли (налоговой базы) в размере, достаточном для уменьшения налога",IF(L69<0,"отрицательное значение ставки говорит о росте общей эффективности бизнеса в случае использования финансовых инструментов при условии наличия прибыли (налоговой базы) в размере, достаточном для уменьшения налога","")) -> отрицательное значение ставки говорит о росте общей эффективности бизнеса в случае использования финансовых инструментов при условии наличия прибыли (налоговой базы) в размере, достаточном для уменьшения налога | X74: 70 | AB74: 70 | AC74: =IF(AB74<=$F$16,IF($F$18=Лист2!$A$2,'Аннуитетное (с ндс)'!N80,IF('Калькулятор лизинга'!$F$18=Лист2!$A$3,Равномерное!N79,'Калькулятор лизинга'!Y74)),"") -> 0 | AG74: 70 | AH74: =IF(AG74<=$O$16,IF($O$18=Лист2!$A$2,'Кредит аннуитет'!M79,'Кредит равномерное'!M79),"") -> 116782.1616
X75: 71 | AB75: 71 | AC75: =IF(AB75<=$F$16,IF($F$18=Лист2!$A$2,'Аннуитетное (с ндс)'!N81,IF('Калькулятор лизинга'!$F$18=Лист2!$A$3,Равномерное!N80,'Калькулятор лизинга'!Y75)),"") -> 0 | AG75: 71 | AH75: =IF(AG75<=$O$16,IF($O$18=Лист2!$A$2,'Кредит аннуитет'!M80,'Кредит равномерное'!M80),"") -> 116773.4335
X76: 72 | AB76: 72 | AC76: =IF(AB76<=$F$16,IF($F$18=Лист2!$A$2,'Аннуитетное (с ндс)'!N82,IF('Калькулятор лизинга'!$F$18=Лист2!$A$3,Равномерное!N81,'Калькулятор лизинга'!Y76)),"") -> 0 | AG76: 72 | AH76: =IF(AG76<=$O$16,IF($O$18=Лист2!$A$2,'Кредит аннуитет'!M81,'Кредит равномерное'!M81),"") -> 116764.3836
AC77: =IF(AB77<=$F$16,IF($F$18=Лист2!$A$2,'Аннуитетное (с ндс)'!N83,IF('Калькулятор лизинга'!$F$18=Лист2!$A$3,Равномерное!N82,'Калькулятор лизинга'!Y77)),"") ->  | AH77: =IF(AG77<=$O$16,IF($O$18=Лист2!$A$2,'Кредит аннуитет'!M82,'Кредит равномерное'!M82),"") -> 
AC78: =IF(AB78<=$F$16,IF($F$18=Лист2!$A$2,'Аннуитетное (с ндс)'!N84,IF('Калькулятор лизинга'!$F$18=Лист2!$A$3,Равномерное!N83,'Калькулятор лизинга'!Y78)),"") ->  | AH78: =IF(AG78<=$O$16,IF($O$18=Лист2!$A$2,'Кредит аннуитет'!M83,'Кредит равномерное'!M83),"") -> 
AC79: =IF(AB79<=$F$16,IF($F$18=Лист2!$A$2,'Аннуитетное (с ндс)'!N85,IF('Калькулятор лизинга'!$F$18=Лист2!$A$3,Равномерное!N84,'Калькулятор лизинга'!Y79)),"") ->  | AH79: =IF(AG79<=$O$16,IF($O$18=Лист2!$A$2,'Кредит аннуитет'!M84,'Кредит равномерное'!M84),"") -> 
AC80: =IF(AB80<=$F$16,IF($F$18=Лист2!$A$2,'Аннуитетное (с ндс)'!N86,IF('Калькулятор лизинга'!$F$18=Лист2!$A$3,Равномерное!N85,'Калькулятор лизинга'!Y80)),"") ->  | AH80: =IF(AG80<=$O$16,IF($O$18=Лист2!$A$2,'Кредит аннуитет'!M85,'Кредит равномерное'!M85),"") -> 
AC81: =IF(AB81<=$F$16,IF($F$18=Лист2!$A$2,'Аннуитетное (с ндс)'!N87,IF('Калькулятор лизинга'!$F$18=Лист2!$A$3,Равномерное!N86,'Калькулятор лизинга'!Y81)),"") ->  | AH81: =IF(AG81<=$O$16,IF($O$18=Лист2!$A$2,'Кредит аннуитет'!M86,'Кредит равномерное'!M86),"") -> 
AC82: =IF(AB82<=$F$16,IF($F$18=Лист2!$A$2,'Аннуитетное (с ндс)'!N88,IF('Калькулятор лизинга'!$F$18=Лист2!$A$3,Равномерное!N87,'Калькулятор лизинга'!Y82)),"") ->  | AH82: =IF(AG82<=$O$16,IF($O$18=Лист2!$A$2,'Кредит аннуитет'!M87,'Кредит равномерное'!M87),"") -> 
AC83: =IF(AB83<=$F$16,IF($F$18=Лист2!$A$2,'Аннуитетное (с ндс)'!N89,IF('Калькулятор лизинга'!$F$18=Лист2!$A$3,Равномерное!N88,'Калькулятор лизинга'!Y83)),"") ->  | AH83: =IF(AG83<=$O$16,IF($O$18=Лист2!$A$2,'Кредит аннуитет'!M88,'Кредит равномерное'!M88),"") -> 
AC84: =IF(AB84<=$F$16,IF($F$18=Лист2!$A$2,'Аннуитетное (с ндс)'!N90,IF('Калькулятор лизинга'!$F$18=Лист2!$A$3,Равномерное!N89,'Калькулятор лизинга'!Y84)),"") ->  | AH84: =IF(AG84<=$O$16,IF($O$18=Лист2!$A$2,'Кредит аннуитет'!M89,'Кредит равномерное'!M89),"") -> 
AC85: =IF(AB85<=$F$16,IF($F$18=Лист2!$A$2,'Аннуитетное (с ндс)'!N91,IF('Калькулятор лизинга'!$F$18=Лист2!$A$3,Равномерное!N90,'Калькулятор лизинга'!Y85)),"") ->  | AH85: =IF(AG85<=$O$16,IF($O$18=Лист2!$A$2,'Кредит аннуитет'!M90,'Кредит равномерное'!M90),"") -> 
AC86: =IF(AB86<=$F$16,IF($F$18=Лист2!$A$2,'Аннуитетное (с ндс)'!N92,IF('Калькулятор лизинга'!$F$18=Лист2!$A$3,Равномерное!N91,'Калькулятор лизинга'!Y86)),"") ->  | AH86: =IF(AG86<=$O$16,IF($O$18=Лист2!$A$2,'Кредит аннуитет'!M91,'Кредит равномерное'!M91),"") -> 
AC87: =IF(AB87<=$F$16,IF($F$18=Лист2!$A$2,'Аннуитетное (с ндс)'!N93,IF('Калькулятор лизинга'!$F$18=Лист2!$A$3,Равномерное!N92,'Калькулятор лизинга'!Y87)),"") ->  | AH87: =IF(AG87<=$O$16,IF($O$18=Лист2!$A$2,'Кредит аннуитет'!M92,'Кредит равномерное'!M92),"") -> 
AC88: =IF(AB88<=$F$16,IF($F$18=Лист2!$A$2,'Аннуитетное (с ндс)'!N94,IF('Калькулятор лизинга'!$F$18=Лист2!$A$3,Равномерное!N93,'Калькулятор лизинга'!Y88)),"") ->  | AH88: =IF(AG88<=$O$16,IF($O$18=Лист2!$A$2,'Кредит аннуитет'!M93,'Кредит равномерное'!M93),"") -> 
AC89: =IF(AB89<=$F$16,IF($F$18=Лист2!$A$2,'Аннуитетное (с ндс)'!N95,IF('Калькулятор лизинга'!$F$18=Лист2!$A$3,Равномерное!N94,'Калькулятор лизинга'!Y89)),"") ->  | AH89: =IF(AG89<=$O$16,IF($O$18=Лист2!$A$2,'Кредит аннуитет'!M94,'Кредит равномерное'!M94),"") -> 
AC90: =IF(AB90<=$F$16,IF($F$18=Лист2!$A$2,'Аннуитетное (с ндс)'!N96,IF('Калькулятор лизинга'!$F$18=Лист2!$A$3,Равномерное!N95,'Калькулятор лизинга'!Y90)),"") ->  | AH90: =IF(AG90<=$O$16,IF($O$18=Лист2!$A$2,'Кредит аннуитет'!M95,'Кредит равномерное'!M95),"") -> 
AC91: =IF(AB91<=$F$16,IF($F$18=Лист2!$A$2,'Аннуитетное (с ндс)'!N97,IF('Калькулятор лизинга'!$F$18=Лист2!$A$3,Равномерное!N96,'Калькулятор лизинга'!Y91)),"") ->  | AH91: =IF(AG91<=$O$16,IF($O$18=Лист2!$A$2,'Кредит аннуитет'!M96,'Кредит равномерное'!M96),"") -> 
AC92: =IF(AB92<=$F$16,IF($F$18=Лист2!$A$2,'Аннуитетное (с ндс)'!N98,IF('Калькулятор лизинга'!$F$18=Лист2!$A$3,Равномерное!N97,'Калькулятор лизинга'!Y92)),"") ->  | AH92: =IF(AG92<=$O$16,IF($O$18=Лист2!$A$2,'Кредит аннуитет'!M97,'Кредит равномерное'!M97),"") -> 
AC93: =IF(AB93<=$F$16,IF($F$18=Лист2!$A$2,'Аннуитетное (с ндс)'!N99,IF('Калькулятор лизинга'!$F$18=Лист2!$A$3,Равномерное!N98,'Калькулятор лизинга'!Y93)),"") ->  | AH93: =IF(AG93<=$O$16,IF($O$18=Лист2!$A$2,'Кредит аннуитет'!M98,'Кредит равномерное'!M98),"") -> 
AC94: =IF(AB94<=$F$16,IF($F$18=Лист2!$A$2,'Аннуитетное (с ндс)'!N100,IF('Калькулятор лизинга'!$F$18=Лист2!$A$3,Равномерное!N99,'Калькулятор лизинга'!Y94)),"") ->  | AH94: =IF(AG94<=$O$16,IF($O$18=Лист2!$A$2,'Кредит аннуитет'!M99,'Кредит равномерное'!M99),"") -> 
AC95: =IF(AB95<=$F$16,IF($F$18=Лист2!$A$2,'Аннуитетное (с ндс)'!N101,IF('Калькулятор лизинга'!$F$18=Лист2!$A$3,Равномерное!N100,'Калькулятор лизинга'!Y95)),"") ->  | AH95: =IF(AG95<=$O$16,IF($O$18=Лист2!$A$2,'Кредит аннуитет'!M100,'Кредит равномерное'!M100),"") -> 
AC96: =IF(AB96<=$F$16,IF($F$18=Лист2!$A$2,'Аннуитетное (с ндс)'!N102,IF('Калькулятор лизинга'!$F$18=Лист2!$A$3,Равномерное!N101,'Калькулятор лизинга'!Y96)),"") ->  | AH96: =IF(AG96<=$O$16,IF($O$18=Лист2!$A$2,'Кредит аннуитет'!M101,'Кредит равномерное'!M101),"") -> 
AC97: =IF(AB97<=$F$16,IF($F$18=Лист2!$A$2,'Аннуитетное (с ндс)'!N103,IF('Калькулятор лизинга'!$F$18=Лист2!$A$3,Равномерное!N102,'Калькулятор лизинга'!Y97)),"") ->  | AH97: =IF(AG97<=$O$16,IF($O$18=Лист2!$A$2,'Кредит аннуитет'!M102,'Кредит равномерное'!M102),"") -> 
AC98: =IF(AB98<=$F$16,IF($F$18=Лист2!$A$2,'Аннуитетное (с ндс)'!N104,IF('Калькулятор лизинга'!$F$18=Лист2!$A$3,Равномерное!N103,'Калькулятор лизинга'!Y98)),"") ->  | AH98: =IF(AG98<=$O$16,IF($O$18=Лист2!$A$2,'Кредит аннуитет'!M103,'Кредит равномерное'!M103),"") -> 
AC99: =IF(AB99<=$F$16,IF($F$18=Лист2!$A$2,'Аннуитетное (с ндс)'!N105,IF('Калькулятор лизинга'!$F$18=Лист2!$A$3,Равномерное!N104,'Калькулятор лизинга'!Y99)),"") ->  | AH99: =IF(AG99<=$O$16,IF($O$18=Лист2!$A$2,'Кредит аннуитет'!M104,'Кредит равномерное'!M104),"") -> 
AC100: =IF(AB100<=$F$16,IF($F$18=Лист2!$A$2,'Аннуитетное (с ндс)'!N106,IF('Калькулятор лизинга'!$F$18=Лист2!$A$3,Равномерное!N105,'Калькулятор лизинга'!Y100)),"") ->  | AH100: =IF(AG100<=$O$16,IF($O$18=Лист2!$A$2,'Кредит аннуитет'!M105,'Кредит равномерное'!M105),"") -> 
AC101: =IF(AB101<=$F$16,IF($F$18=Лист2!$A$2,'Аннуитетное (с ндс)'!N107,IF('Калькулятор лизинга'!$F$18=Лист2!$A$3,Равномерное!N106,'Калькулятор лизинга'!Y101)),"") ->  | AH101: =IF(AG101<=$O$16,IF($O$18=Лист2!$A$2,'Кредит аннуитет'!M106,'Кредит равномерное'!M106),"") -> 
AC102: =IF(AB102<=$F$16,IF($F$18=Лист2!$A$2,'Аннуитетное (с ндс)'!N108,IF('Калькулятор лизинга'!$F$18=Лист2!$A$3,Равномерное!N107,'Калькулятор лизинга'!Y102)),"") ->  | AH102: =IF(AG102<=$O$16,IF($O$18=Лист2!$A$2,'Кредит аннуитет'!M107,'Кредит равномерное'!M107),"") -> 
AC103: =IF(AB103<=$F$16,IF($F$18=Лист2!$A$2,'Аннуитетное (с ндс)'!N109,IF('Калькулятор лизинга'!$F$18=Лист2!$A$3,Равномерное!N108,'Калькулятор лизинга'!Y103)),"") ->  | AH103: =IF(AG103<=$O$16,IF($O$18=Лист2!$A$2,'Кредит аннуитет'!M108,'Кредит равномерное'!M108),"") -> 
AC104: =IF(AB104<=$F$16,IF($F$18=Лист2!$A$2,'Аннуитетное (с ндс)'!N110,IF('Калькулятор лизинга'!$F$18=Лист2!$A$3,Равномерное!N109,'Калькулятор лизинга'!Y104)),"") ->  | AH104: =IF(AG104<=$O$16,IF($O$18=Лист2!$A$2,'Кредит аннуитет'!M109,'Кредит равномерное'!M109),"") -> 
AC105: =IF(AB105<=$F$16,IF($F$18=Лист2!$A$2,'Аннуитетное (с ндс)'!N111,IF('Калькулятор лизинга'!$F$18=Лист2!$A$3,Равномерное!N110,'Калькулятор лизинга'!Y105)),"") ->  | AH105: =IF(AG105<=$O$16,IF($O$18=Лист2!$A$2,'Кредит аннуитет'!M110,'Кредит равномерное'!M110),"") -> 
AC106: =IF(AB106<=$F$16,IF($F$18=Лист2!$A$2,'Аннуитетное (с ндс)'!N112,IF('Калькулятор лизинга'!$F$18=Лист2!$A$3,Равномерное!N111,'Калькулятор лизинга'!Y106)),"") ->  | AH106: =IF(AG106<=$O$16,IF($O$18=Лист2!$A$2,'Кредит аннуитет'!M111,'Кредит равномерное'!M111),"") -> 
AC107: =IF(AB107<=$F$16,IF($F$18=Лист2!$A$2,'Аннуитетное (с ндс)'!N113,IF('Калькулятор лизинга'!$F$18=Лист2!$A$3,Равномерное!N112,'Калькулятор лизинга'!Y107)),"") ->  | AH107: =IF(AG107<=$O$16,IF($O$18=Лист2!$A$2,'Кредит аннуитет'!M112,'Кредит равномерное'!M112),"") -> 
AC108: =IF(AB108<=$F$16,IF($F$18=Лист2!$A$2,'Аннуитетное (с ндс)'!N114,IF('Калькулятор лизинга'!$F$18=Лист2!$A$3,Равномерное!N113,'Калькулятор лизинга'!Y108)),"") ->  | AH108: =IF(AG108<=$O$16,IF($O$18=Лист2!$A$2,'Кредит аннуитет'!M113,'Кредит равномерное'!M113),"") -> 
AC109: =IF(AB109<=$F$16,IF($F$18=Лист2!$A$2,'Аннуитетное (с ндс)'!N115,IF('Калькулятор лизинга'!$F$18=Лист2!$A$3,Равномерное!N114,'Калькулятор лизинга'!Y109)),"") ->  | AH109: =IF(AG109<=$O$16,IF($O$18=Лист2!$A$2,'Кредит аннуитет'!M114,'Кредит равномерное'!M114),"") -> 
AC110: =IF(AB110<=$F$16,IF($F$18=Лист2!$A$2,'Аннуитетное (с ндс)'!N116,IF('Калькулятор лизинга'!$F$18=Лист2!$A$3,Равномерное!N115,'Калькулятор лизинга'!Y110)),"") ->  | AH110: =IF(AG110<=$O$16,IF($O$18=Лист2!$A$2,'Кредит аннуитет'!M115,'Кредит равномерное'!M115),"") -> 
AC111: =IF(AB111<=$F$16,IF($F$18=Лист2!$A$2,'Аннуитетное (с ндс)'!N117,IF('Калькулятор лизинга'!$F$18=Лист2!$A$3,Равномерное!N116,'Калькулятор лизинга'!Y111)),"") ->  | AH111: =IF(AG111<=$O$16,IF($O$18=Лист2!$A$2,'Кредит аннуитет'!M116,'Кредит равномерное'!M116),"") -> 
AC112: =IF(AB112<=$F$16,IF($F$18=Лист2!$A$2,'Аннуитетное (с ндс)'!N118,IF('Калькулятор лизинга'!$F$18=Лист2!$A$3,Равномерное!N117,'Калькулятор лизинга'!Y112)),"") ->  | AH112: =IF(AG112<=$O$16,IF($O$18=Лист2!$A$2,'Кредит аннуитет'!M117,'Кредит равномерное'!M117),"") -> 
AC113: =IF(AB113<=$F$16,IF($F$18=Лист2!$A$2,'Аннуитетное (с ндс)'!N119,IF('Калькулятор лизинга'!$F$18=Лист2!$A$3,Равномерное!N118,'Калькулятор лизинга'!Y113)),"") ->  | AH113: =IF(AG113<=$O$16,IF($O$18=Лист2!$A$2,'Кредит аннуитет'!M118,'Кредит равномерное'!M118),"") -> 
AC114: =IF(AB114<=$F$16,IF($F$18=Лист2!$A$2,'Аннуитетное (с ндс)'!N120,IF('Калькулятор лизинга'!$F$18=Лист2!$A$3,Равномерное!N119,'Калькулятор лизинга'!Y114)),"") ->  | AH114: =IF(AG114<=$O$16,IF($O$18=Лист2!$A$2,'Кредит аннуитет'!M119,'Кредит равномерное'!M119),"") -> 
AC115: =IF(AB115<=$F$16,IF($F$18=Лист2!$A$2,'Аннуитетное (с ндс)'!N121,IF('Калькулятор лизинга'!$F$18=Лист2!$A$3,Равномерное!N120,'Калькулятор лизинга'!Y115)),"") ->  | AH115: =IF(AG115<=$O$16,IF($O$18=Лист2!$A$2,'Кредит аннуитет'!M120,'Кредит равномерное'!M120),"") -> 
AC116: =IF(AB116<=$F$16,IF($F$18=Лист2!$A$2,'Аннуитетное (с ндс)'!N122,IF('Калькулятор лизинга'!$F$18=Лист2!$A$3,Равномерное!N121,'Калькулятор лизинга'!Y116)),"") ->  | AH116: =IF(AG116<=$O$16,IF($O$18=Лист2!$A$2,'Кредит аннуитет'!M121,'Кредит равномерное'!M121),"") -> 
AC117: =IF(AB117<=$F$16,IF($F$18=Лист2!$A$2,'Аннуитетное (с ндс)'!N123,IF('Калькулятор лизинга'!$F$18=Лист2!$A$3,Равномерное!N122,'Калькулятор лизинга'!Y117)),"") ->  | AH117: =IF(AG117<=$O$16,IF($O$18=Лист2!$A$2,'Кредит аннуитет'!M122,'Кредит равномерное'!M122),"") -> 
AC118: =IF(AB118<=$F$16,IF($F$18=Лист2!$A$2,'Аннуитетное (с ндс)'!N124,IF('Калькулятор лизинга'!$F$18=Лист2!$A$3,Равномерное!N123,'Калькулятор лизинга'!Y118)),"") ->  | AH118: =IF(AG118<=$O$16,IF($O$18=Лист2!$A$2,'Кредит аннуитет'!M123,'Кредит равномерное'!M123),"") -> 
AC119: =IF(AB119<=$F$16,IF($F$18=Лист2!$A$2,'Аннуитетное (с ндс)'!N125,IF('Калькулятор лизинга'!$F$18=Лист2!$A$3,Равномерное!N124,'Калькулятор лизинга'!Y119)),"") ->  | AH119: =IF(AG119<=$O$16,IF($O$18=Лист2!$A$2,'Кредит аннуитет'!M124,'Кредит равномерное'!M124),"") -> 
AC120: =IF(AB120<=$F$16,IF($F$18=Лист2!$A$2,'Аннуитетное (с ндс)'!N126,IF('Калькулятор лизинга'!$F$18=Лист2!$A$3,Равномерное!N125,'Калькулятор лизинга'!Y120)),"") ->  | AH120: =IF(AG120<=$O$16,IF($O$18=Лист2!$A$2,'Кредит аннуитет'!M125,'Кредит равномерное'!M125),"") -> 
AC121: =IF(AB121<=$F$16,IF($F$18=Лист2!$A$2,'Аннуитетное (с ндс)'!N127,IF('Калькулятор лизинга'!$F$18=Лист2!$A$3,Равномерное!N126,'Калькулятор лизинга'!Y121)),"") ->  | AH121: =IF(AG121<=$O$16,IF($O$18=Лист2!$A$2,'Кредит аннуитет'!M126,'Кредит равномерное'!M126),"") -> 
AC122: =IF(AB122<=$F$16,IF($F$18=Лист2!$A$2,'Аннуитетное (с ндс)'!N128,IF('Калькулятор лизинга'!$F$18=Лист2!$A$3,Равномерное!N127,'Калькулятор лизинга'!Y122)),"") ->  | AH122: =IF(AG122<=$O$16,IF($O$18=Лист2!$A$2,'Кредит аннуитет'!M127,'Кредит равномерное'!M127),"") -> 
AC123: =IF(AB123<=$F$16,IF($F$18=Лист2!$A$2,'Аннуитетное (с ндс)'!N129,IF('Калькулятор лизинга'!$F$18=Лист2!$A$3,Равномерное!N128,'Калькулятор лизинга'!Y123)),"") ->  | AH123: =IF(AG123<=$O$16,IF($O$18=Лист2!$A$2,'Кредит аннуитет'!M128,'Кредит равномерное'!M128),"") -> 
AC124: =IF(AB124<=$F$16,IF($F$18=Лист2!$A$2,'Аннуитетное (с ндс)'!N130,IF('Калькулятор лизинга'!$F$18=Лист2!$A$3,Равномерное!N129,'Калькулятор лизинга'!Y124)),"") ->  | AH124: =IF(AG124<=$O$16,IF($O$18=Лист2!$A$2,'Кредит аннуитет'!M129,'Кредит равномерное'!M129),"") -> 
AC125: =IF(AB125<=$F$16,IF($F$18=Лист2!$A$2,'Аннуитетное (с ндс)'!N131,IF('Калькулятор лизинга'!$F$18=Лист2!$A$3,Равномерное!N130,'Калькулятор лизинга'!Y125)),"") ->  | AH125: =IF(AG125<=$O$16,IF($O$18=Лист2!$A$2,'Кредит аннуитет'!M130,'Кредит равномерное'!M130),"") -> 
AC126: =IF(AB126<=$F$16,IF($F$18=Лист2!$A$2,'Аннуитетное (с ндс)'!N132,IF('Калькулятор лизинга'!$F$18=Лист2!$A$3,Равномерное!N131,'Калькулятор лизинга'!Y126)),"") ->  | AH126: =IF(AG126<=$O$16,IF($O$18=Лист2!$A$2,'Кредит аннуитет'!M131,'Кредит равномерное'!M131),"") -> 
AC127: =IF(AB127<=$F$16,IF($F$18=Лист2!$A$2,'Аннуитетное (с ндс)'!N133,IF('Калькулятор лизинга'!$F$18=Лист2!$A$3,Равномерное!N132,'Калькулятор лизинга'!Y127)),"") ->  | AH127: =IF(AG127<=$O$16,IF($O$18=Лист2!$A$2,'Кредит аннуитет'!M132,'Кредит равномерное'!M132),"") -> 
AC128: =IF(AB128<=$F$16,IF($F$18=Лист2!$A$2,'Аннуитетное (с ндс)'!N134,IF('Калькулятор лизинга'!$F$18=Лист2!$A$3,Равномерное!N133,'Калькулятор лизинга'!Y128)),"") ->  | AH128: =IF(AG128<=$O$16,IF($O$18=Лист2!$A$2,'Кредит аннуитет'!M133,'Кредит равномерное'!M133),"") -> 
AC129: =IF(AB129<=$F$16,IF($F$18=Лист2!$A$2,'Аннуитетное (с ндс)'!N135,IF('Калькулятор лизинга'!$F$18=Лист2!$A$3,Равномерное!N134,'Калькулятор лизинга'!Y129)),"") ->  | AH129: =IF(AG129<=$O$16,IF($O$18=Лист2!$A$2,'Кредит аннуитет'!M134,'Кредит равномерное'!M134),"") -> 
AC130: =IF(AB130<=$F$16,IF($F$18=Лист2!$A$2,'Аннуитетное (с ндс)'!N136,IF('Калькулятор лизинга'!$F$18=Лист2!$A$3,Равномерное!N135,'Калькулятор лизинга'!Y130)),"") ->  | AH130: =IF(AG130<=$O$16,IF($O$18=Лист2!$A$2,'Кредит аннуитет'!M135,'Кредит равномерное'!M135),"") -> 
AC131: =IF(AB131<=$F$16,IF($F$18=Лист2!$A$2,'Аннуитетное (с ндс)'!N137,IF('Калькулятор лизинга'!$F$18=Лист2!$A$3,Равномерное!N136,'Калькулятор лизинга'!Y131)),"") ->  | AH131: =IF(AG131<=$O$16,IF($O$18=Лист2!$A$2,'Кредит аннуитет'!M136,'Кредит равномерное'!M136),"") -> 
AC132: =IF(AB132<=$F$16,IF($F$18=Лист2!$A$2,'Аннуитетное (с ндс)'!N138,IF('Калькулятор лизинга'!$F$18=Лист2!$A$3,Равномерное!N137,'Калькулятор лизинга'!Y132)),"") ->  | AH132: =IF(AG132<=$O$16,IF($O$18=Лист2!$A$2,'Кредит аннуитет'!M137,'Кредит равномерное'!M137),"") -> 
AC133: =IF(AB133<=$F$16,IF($F$18=Лист2!$A$2,'Аннуитетное (с ндс)'!N139,IF('Калькулятор лизинга'!$F$18=Лист2!$A$3,Равномерное!N138,'Калькулятор лизинга'!Y133)),"") ->  | AH133: =IF(AG133<=$O$16,IF($O$18=Лист2!$A$2,'Кредит аннуитет'!M138,'Кредит равномерное'!M138),"") -> 
AC134: =IF(AB134<=$F$16,IF($F$18=Лист2!$A$2,'Аннуитетное (с ндс)'!N140,IF('Калькулятор лизинга'!$F$18=Лист2!$A$3,Равномерное!N139,'Калькулятор лизинга'!Y134)),"") ->  | AH134: =IF(AG134<=$O$16,IF($O$18=Лист2!$A$2,'Кредит аннуитет'!M139,'Кредит равномерное'!M139),"") -> 
X135: =IF(X134<$F$16,X134+1,"") ->  | AB135: =IF(AB134<$F$16,AB134+1,"") ->  | AC135: =IF(AB135<=$F$16,IF($F$18=Лист2!$A$2,'Аннуитетное (с ндс)'!N141,IF('Калькулятор лизинга'!$F$18=Лист2!$A$3,Равномерное!N140,'Калькулятор лизинга'!Y135)),"") ->  | AG135: =IF(AG134<$O$16,AG134+1,"") ->  | AH135: =IF(AG135<=$O$16,IF($O$18=Лист2!$A$2,'Кредит аннуитет'!M140,'Кредит равномерное'!M140),"") -> 
AC136: =IF(AB136<=$F$16,IF($F$18=Лист2!$A$2,'Аннуитетное (с ндс)'!N142,IF('Калькулятор лизинга'!$F$18=Лист2!$A$3,Равномерное!N141,'Калькулятор лизинга'!Y136)),"") ->  | AH136: =IF(AG136<=$O$16,IF($O$18=Лист2!$A$2,'Кредит аннуитет'!M141,'Кредит равномерное'!M141),"") -> 
AC137: =IF(AB137<=$F$16,IF($F$18=Лист2!$A$2,'Аннуитетное (с ндс)'!N143,IF('Калькулятор лизинга'!$F$18=Лист2!$A$3,Равномерное!N142,'Калькулятор лизинга'!Y137)),"") ->  | AH137: =IF(AG137<=$O$16,IF($O$18=Лист2!$A$2,'Кредит аннуитет'!M142,'Кредит равномерное'!M142),"") -> 
AC138: =IF(AB138<=$F$16,IF($F$18=Лист2!$A$2,'Аннуитетное (с ндс)'!N144,IF('Калькулятор лизинга'!$F$18=Лист2!$A$3,Равномерное!N143,'Калькулятор лизинга'!Y138)),"") ->  | AH138: =IF(AG138<=$O$16,IF($O$18=Лист2!$A$2,'Кредит аннуитет'!M143,'Кредит равномерное'!M143),"") -> 
AC139: =IF(AB139<=$F$16,IF($F$18=Лист2!$A$2,'Аннуитетное (с ндс)'!N145,IF('Калькулятор лизинга'!$F$18=Лист2!$A$3,Равномерное!N144,'Калькулятор лизинга'!Y139)),"") ->  | AH139: =IF(AG139<=$O$16,IF($O$18=Лист2!$A$2,'Кредит аннуитет'!M144,'Кредит равномерное'!M144),"") -> 
AC140: =IF(AB140<=$F$16,IF($F$18=Лист2!$A$2,'Аннуитетное (с ндс)'!N146,IF('Калькулятор лизинга'!$F$18=Лист2!$A$3,Равномерное!N145,'Калькулятор лизинга'!Y140)),"") ->  | AH140: =IF(AG140<=$O$16,IF($O$18=Лист2!$A$2,'Кредит аннуитет'!M145,'Кредит равномерное'!M145),"") -> 
AC141: =IF(AB141<=$F$16,IF($F$18=Лист2!$A$2,'Аннуитетное (с ндс)'!N147,IF('Калькулятор лизинга'!$F$18=Лист2!$A$3,Равномерное!N146,'Калькулятор лизинга'!Y141)),"") ->  | AH141: =IF(AG141<=$O$16,IF($O$18=Лист2!$A$2,'Кредит аннуитет'!M146,'Кредит равномерное'!M146),"") -> 
AC142: =IF(AB142<=$F$16,IF($F$18=Лист2!$A$2,'Аннуитетное (с ндс)'!N148,IF('Калькулятор лизинга'!$F$18=Лист2!$A$3,Равномерное!N147,'Калькулятор лизинга'!Y142)),"") ->  | AH142: =IF(AG142<=$O$16,IF($O$18=Лист2!$A$2,'Кредит аннуитет'!M147,'Кредит равномерное'!M147),"") -> 
AC143: =IF(AB143<=$F$16,IF($F$18=Лист2!$A$2,'Аннуитетное (с ндс)'!N149,IF('Калькулятор лизинга'!$F$18=Лист2!$A$3,Равномерное!N148,'Калькулятор лизинга'!Y143)),"") ->  | AH143: =IF(AG143<=$O$16,IF($O$18=Лист2!$A$2,'Кредит аннуитет'!M148,'Кредит равномерное'!M148),"") -> 
AC144: =IF(AB144<=$F$16,IF($F$18=Лист2!$A$2,'Аннуитетное (с ндс)'!N150,IF('Калькулятор лизинга'!$F$18=Лист2!$A$3,Равномерное!N149,'Калькулятор лизинга'!Y144)),"") ->  | AH144: =IF(AG144<=$O$16,IF($O$18=Лист2!$A$2,'Кредит аннуитет'!M149,'Кредит равномерное'!M149),"") -> 
AC145: =IF(AB145<=$F$16,IF($F$18=Лист2!$A$2,'Аннуитетное (с ндс)'!N151,IF('Калькулятор лизинга'!$F$18=Лист2!$A$3,Равномерное!N150,'Калькулятор лизинга'!Y145)),"") ->  | AH145: =IF(AG145<=$O$16,IF($O$18=Лист2!$A$2,'Кредит аннуитет'!M150,'Кредит равномерное'!M150),"") -> 
AC146: =IF(AB146<=$F$16,IF($F$18=Лист2!$A$2,'Аннуитетное (с ндс)'!N152,IF('Калькулятор лизинга'!$F$18=Лист2!$A$3,Равномерное!N151,'Калькулятор лизинга'!Y146)),"") ->  | AH146: =IF(AG146<=$O$16,IF($O$18=Лист2!$A$2,'Кредит аннуитет'!M151,'Кредит равномерное'!M151),"") -> 
AC147: =IF(AB147<=$F$16,IF($F$18=Лист2!$A$2,'Аннуитетное (с ндс)'!N153,IF('Калькулятор лизинга'!$F$18=Лист2!$A$3,Равномерное!N152,'Калькулятор лизинга'!Y147)),"") ->  | AH147: =IF(AG147<=$O$16,IF($O$18=Лист2!$A$2,'Кредит аннуитет'!M152,'Кредит равномерное'!M152),"") -> 
AC148: =IF(AB148<=$F$16,IF($F$18=Лист2!$A$2,'Аннуитетное (с ндс)'!N154,IF('Калькулятор лизинга'!$F$18=Лист2!$A$3,Равномерное!N153,'Калькулятор лизинга'!Y148)),"") ->  | AH148: =IF(AG148<=$O$16,IF($O$18=Лист2!$A$2,'Кредит аннуитет'!M153,'Кредит равномерное'!M153),"") -> 
AC149: =IF(AB149<=$F$16,IF($F$18=Лист2!$A$2,'Аннуитетное (с ндс)'!N155,IF('Калькулятор лизинга'!$F$18=Лист2!$A$3,Равномерное!N154,'Калькулятор лизинга'!Y149)),"") ->  | AH149: =IF(AG149<=$O$16,IF($O$18=Лист2!$A$2,'Кредит аннуитет'!M154,'Кредит равномерное'!M154),"") -> 
AC150: =IF(AB150<=$F$16,IF($F$18=Лист2!$A$2,'Аннуитетное (с ндс)'!N156,IF('Калькулятор лизинга'!$F$18=Лист2!$A$3,Равномерное!N155,'Калькулятор лизинга'!Y150)),"") ->  | AH150: =IF(AG150<=$O$16,IF($O$18=Лист2!$A$2,'Кредит аннуитет'!M155,'Кредит равномерное'!M155),"") -> 
AC151: =IF(AB151<=$F$16,IF($F$18=Лист2!$A$2,'Аннуитетное (с ндс)'!N157,IF('Калькулятор лизинга'!$F$18=Лист2!$A$3,Равномерное!N156,'Калькулятор лизинга'!Y151)),"") ->  | AH151: =IF(AG151<=$O$16,IF($O$18=Лист2!$A$2,'Кредит аннуитет'!M156,'Кредит равномерное'!M156),"") -> 
AC152: =IF(AB152<=$F$16,IF($F$18=Лист2!$A$2,'Аннуитетное (с ндс)'!N158,IF('Калькулятор лизинга'!$F$18=Лист2!$A$3,Равномерное!N157,'Калькулятор лизинга'!Y152)),"") ->  | AH152: =IF(AG152<=$O$16,IF($O$18=Лист2!$A$2,'Кредит аннуитет'!M157,'Кредит равномерное'!M157),"") -> 
AC153: =IF(AB153<=$F$16,IF($F$18=Лист2!$A$2,'Аннуитетное (с ндс)'!N159,IF('Калькулятор лизинга'!$F$18=Лист2!$A$3,Равномерное!N158,'Калькулятор лизинга'!Y153)),"") ->  | AH153: =IF(AG153<=$O$16,IF($O$18=Лист2!$A$2,'Кредит аннуитет'!M158,'Кредит равномерное'!M158),"") -> 
AC154: =IF(AB154<=$F$16,IF($F$18=Лист2!$A$2,'Аннуитетное (с ндс)'!N160,IF('Калькулятор лизинга'!$F$18=Лист2!$A$3,Равномерное!N159,'Калькулятор лизинга'!Y154)),"") ->  | AH154: =IF(AG154<=$O$16,IF($O$18=Лист2!$A$2,'Кредит аннуитет'!M159,'Кредит равномерное'!M159),"") -> 
AC155: =IF(AB155<=$F$16,IF($F$18=Лист2!$A$2,'Аннуитетное (с ндс)'!N161,IF('Калькулятор лизинга'!$F$18=Лист2!$A$3,Равномерное!N160,'Калькулятор лизинга'!Y155)),"") ->  | AH155: =IF(AG155<=$O$16,IF($O$18=Лист2!$A$2,'Кредит аннуитет'!M160,'Кредит равномерное'!M160),"") -> 
AC156: =IF(AB156<=$F$16,IF($F$18=Лист2!$A$2,'Аннуитетное (с ндс)'!N162,IF('Калькулятор лизинга'!$F$18=Лист2!$A$3,Равномерное!N161,'Калькулятор лизинга'!Y156)),"") ->  | AH156: =IF(AG156<=$O$16,IF($O$18=Лист2!$A$2,'Кредит аннуитет'!M161,'Кредит равномерное'!M161),"") -> 
AC157: =IF(AB157<=$F$16,IF($F$18=Лист2!$A$2,'Аннуитетное (с ндс)'!N163,IF('Калькулятор лизинга'!$F$18=Лист2!$A$3,Равномерное!N162,'Калькулятор лизинга'!Y157)),"") ->  | AH157: =IF(AG157<=$O$16,IF($O$18=Лист2!$A$2,'Кредит аннуитет'!M162,'Кредит равномерное'!M162),"") -> 
AC158: =IF(AB158<=$F$16,IF($F$18=Лист2!$A$2,'Аннуитетное (с ндс)'!N164,IF('Калькулятор лизинга'!$F$18=Лист2!$A$3,Равномерное!N163,'Калькулятор лизинга'!Y158)),"") ->  | AH158: =IF(AG158<=$O$16,IF($O$18=Лист2!$A$2,'Кредит аннуитет'!M163,'Кредит равномерное'!M163),"") -> 
AC159: =IF(AB159<=$F$16,IF($F$18=Лист2!$A$2,'Аннуитетное (с ндс)'!N165,IF('Калькулятор лизинга'!$F$18=Лист2!$A$3,Равномерное!N164,'Калькулятор лизинга'!Y159)),"") ->  | AH159: =IF(AG159<=$O$16,IF($O$18=Лист2!$A$2,'Кредит аннуитет'!M164,'Кредит равномерное'!M164),"") -> 
AC160: =IF(AB160<=$F$16,IF($F$18=Лист2!$A$2,'Аннуитетное (с ндс)'!N166,IF('Калькулятор лизинга'!$F$18=Лист2!$A$3,Равномерное!N165,'Калькулятор лизинга'!Y160)),"") ->  | AH160: =IF(AG160<=$O$16,IF($O$18=Лист2!$A$2,'Кредит аннуитет'!M165,'Кредит равномерное'!M165),"") -> 
AC161: =IF(AB161<=$F$16,IF($F$18=Лист2!$A$2,'Аннуитетное (с ндс)'!N167,IF('Калькулятор лизинга'!$F$18=Лист2!$A$3,Равномерное!N166,'Калькулятор лизинга'!Y161)),"") ->  | AH161: =IF(AG161<=$O$16,IF($O$18=Лист2!$A$2,'Кредит аннуитет'!M166,'Кредит равномерное'!M166),"") -> 
AC162: =IF(AB162<=$F$16,IF($F$18=Лист2!$A$2,'Аннуитетное (с ндс)'!N168,IF('Калькулятор лизинга'!$F$18=Лист2!$A$3,Равномерное!N167,'Калькулятор лизинга'!Y162)),"") ->  | AH162: =IF(AG162<=$O$16,IF($O$18=Лист2!$A$2,'Кредит аннуитет'!M167,'Кредит равномерное'!M167),"") -> 
AC163: =IF(AB163<=$F$16,IF($F$18=Лист2!$A$2,'Аннуитетное (с ндс)'!N169,IF('Калькулятор лизинга'!$F$18=Лист2!$A$3,Равномерное!N168,'Калькулятор лизинга'!Y163)),"") ->  | AH163: =IF(AG163<=$O$16,IF($O$18=Лист2!$A$2,'Кредит аннуитет'!M168,'Кредит равномерное'!M168),"") -> 
AC164: =IF(AB164<=$F$16,IF($F$18=Лист2!$A$2,'Аннуитетное (с ндс)'!N170,IF('Калькулятор лизинга'!$F$18=Лист2!$A$3,Равномерное!N169,'Калькулятор лизинга'!Y164)),"") ->  | AH164: =IF(AG164<=$O$16,IF($O$18=Лист2!$A$2,'Кредит аннуитет'!M169,'Кредит равномерное'!M169),"") -> 
AC165: =IF(AB165<=$F$16,IF($F$18=Лист2!$A$2,'Аннуитетное (с ндс)'!N171,IF('Калькулятор лизинга'!$F$18=Лист2!$A$3,Равномерное!N170,'Калькулятор лизинга'!Y165)),"") ->  | AH165: =IF(AG165<=$O$16,IF($O$18=Лист2!$A$2,'Кредит аннуитет'!M170,'Кредит равномерное'!M170),"") -> 
AC166: =IF(AB166<=$F$16,IF($F$18=Лист2!$A$2,'Аннуитетное (с ндс)'!N172,IF('Калькулятор лизинга'!$F$18=Лист2!$A$3,Равномерное!N171,'Калькулятор лизинга'!Y166)),"") ->  | AH166: =IF(AG166<=$O$16,IF($O$18=Лист2!$A$2,'Кредит аннуитет'!M171,'Кредит равномерное'!M171),"") -> 
AC167: =IF(AB167<=$F$16,IF($F$18=Лист2!$A$2,'Аннуитетное (с ндс)'!N173,IF('Калькулятор лизинга'!$F$18=Лист2!$A$3,Равномерное!N172,'Калькулятор лизинга'!Y167)),"") ->  | AH167: =IF(AG167<=$O$16,IF($O$18=Лист2!$A$2,'Кредит аннуитет'!M172,'Кредит равномерное'!M172),"") -> 
AC168: =IF(AB168<=$F$16,IF($F$18=Лист2!$A$2,'Аннуитетное (с ндс)'!N174,IF('Калькулятор лизинга'!$F$18=Лист2!$A$3,Равномерное!N173,'Калькулятор лизинга'!Y168)),"") ->  | AH168: =IF(AG168<=$O$16,IF($O$18=Лист2!$A$2,'Кредит аннуитет'!M173,'Кредит равномерное'!M173),"") -> 
AC169: =IF(AB169<=$F$16,IF($F$18=Лист2!$A$2,'Аннуитетное (с ндс)'!N175,IF('Калькулятор лизинга'!$F$18=Лист2!$A$3,Равномерное!N174,'Калькулятор лизинга'!Y169)),"") ->  | AH169: =IF(AG169<=$O$16,IF($O$18=Лист2!$A$2,'Кредит аннуитет'!M174,'Кредит равномерное'!M174),"") -> 
AC170: =IF(AB170<=$F$16,IF($F$18=Лист2!$A$2,'Аннуитетное (с ндс)'!N176,IF('Калькулятор лизинга'!$F$18=Лист2!$A$3,Равномерное!N175,'Калькулятор лизинга'!Y170)),"") ->  | AH170: =IF(AG170<=$O$16,IF($O$18=Лист2!$A$2,'Кредит аннуитет'!M175,'Кредит равномерное'!M175),"") -> 
AC171: =IF(AB171<=$F$16,IF($F$18=Лист2!$A$2,'Аннуитетное (с ндс)'!N177,IF('Калькулятор лизинга'!$F$18=Лист2!$A$3,Равномерное!N176,'Калькулятор лизинга'!Y171)),"") ->  | AH171: =IF(AG171<=$O$16,IF($O$18=Лист2!$A$2,'Кредит аннуитет'!M176,'Кредит равномерное'!M176),"") -> 
AC172: =IF(AB172<=$F$16,IF($F$18=Лист2!$A$2,'Аннуитетное (с ндс)'!N178,IF('Калькулятор лизинга'!$F$18=Лист2!$A$3,Равномерное!N177,'Калькулятор лизинга'!Y172)),"") ->  | AH172: =IF(AG172<=$O$16,IF($O$18=Лист2!$A$2,'Кредит аннуитет'!M177,'Кредит равномерное'!M177),"") -> 
AC173: =IF(AB173<=$F$16,IF($F$18=Лист2!$A$2,'Аннуитетное (с ндс)'!N179,IF('Калькулятор лизинга'!$F$18=Лист2!$A$3,Равномерное!N178,'Калькулятор лизинга'!Y173)),"") ->  | AH173: =IF(AG173<=$O$16,IF($O$18=Лист2!$A$2,'Кредит аннуитет'!M178,'Кредит равномерное'!M178),"") -> 
AC174: =IF(AB174<=$F$16,IF($F$18=Лист2!$A$2,'Аннуитетное (с ндс)'!N180,IF('Калькулятор лизинга'!$F$18=Лист2!$A$3,Равномерное!N179,'Калькулятор лизинга'!Y174)),"") ->  | AH174: =IF(AG174<=$O$16,IF($O$18=Лист2!$A$2,'Кредит аннуитет'!M179,'Кредит равномерное'!M179),"") -> 
AC175: =IF(AB175<=$F$16,IF($F$18=Лист2!$A$2,'Аннуитетное (с ндс)'!N181,IF('Калькулятор лизинга'!$F$18=Лист2!$A$3,Равномерное!N180,'Калькулятор лизинга'!Y175)),"") ->  | AH175: =IF(AG175<=$O$16,IF($O$18=Лист2!$A$2,'Кредит аннуитет'!M180,'Кредит равномерное'!M180),"") -> 
AC176: =IF(AB176<=$F$16,IF($F$18=Лист2!$A$2,'Аннуитетное (с ндс)'!N182,IF('Калькулятор лизинга'!$F$18=Лист2!$A$3,Равномерное!N181,'Калькулятор лизинга'!Y176)),"") ->  | AH176: =IF(AG176<=$O$16,IF($O$18=Лист2!$A$2,'Кредит аннуитет'!M181,'Кредит равномерное'!M181),"") -> 
AC177: =IF(AB177<=$F$16,IF($F$18=Лист2!$A$2,'Аннуитетное (с ндс)'!N183,IF('Калькулятор лизинга'!$F$18=Лист2!$A$3,Равномерное!N182,'Калькулятор лизинга'!Y177)),"") ->  | AH177: =IF(AG177<=$O$16,IF($O$18=Лист2!$A$2,'Кредит аннуитет'!M182,'Кредит равномерное'!M182),"") -> 
AC178: =IF(AB178<=$F$16,IF($F$18=Лист2!$A$2,'Аннуитетное (с ндс)'!N184,IF('Калькулятор лизинга'!$F$18=Лист2!$A$3,Равномерное!N183,'Калькулятор лизинга'!Y178)),"") ->  | AH178: =IF(AG178<=$O$16,IF($O$18=Лист2!$A$2,'Кредит аннуитет'!M183,'Кредит равномерное'!M183),"") -> 
AC179: =IF(AB179<=$F$16,IF($F$18=Лист2!$A$2,'Аннуитетное (с ндс)'!N185,IF('Калькулятор лизинга'!$F$18=Лист2!$A$3,Равномерное!N184,'Калькулятор лизинга'!Y179)),"") ->  | AH179: =IF(AG179<=$O$16,IF($O$18=Лист2!$A$2,'Кредит аннуитет'!M184,'Кредит равномерное'!M184),"") -> 
AC180: =IF(AB180<=$F$16,IF($F$18=Лист2!$A$2,'Аннуитетное (с ндс)'!N186,IF('Калькулятор лизинга'!$F$18=Лист2!$A$3,Равномерное!N185,'Калькулятор лизинга'!Y180)),"") ->  | AH180: =IF(AG180<=$O$16,IF($O$18=Лист2!$A$2,'Кредит аннуитет'!M185,'Кредит равномерное'!M185),"") -> 
AC181: =IF(AB181<=$F$16,IF($F$18=Лист2!$A$2,'Аннуитетное (с ндс)'!N187,IF('Калькулятор лизинга'!$F$18=Лист2!$A$3,Равномерное!N186,'Калькулятор лизинга'!Y181)),"") ->  | AH181: =IF(AG181<=$O$16,IF($O$18=Лист2!$A$2,'Кредит аннуитет'!M186,'Кредит равномерное'!M186),"") -> 
AC182: =IF(AB182<=$F$16,IF($F$18=Лист2!$A$2,'Аннуитетное (с ндс)'!N188,IF('Калькулятор лизинга'!$F$18=Лист2!$A$3,Равномерное!N187,'Калькулятор лизинга'!Y182)),"") ->  | AH182: =IF(AG182<=$O$16,IF($O$18=Лист2!$A$2,'Кредит аннуитет'!M187,'Кредит равномерное'!M187),"") -> 
AC183: =IF(AB183<=$F$16,IF($F$18=Лист2!$A$2,'Аннуитетное (с ндс)'!N189,IF('Калькулятор лизинга'!$F$18=Лист2!$A$3,Равномерное!N188,'Калькулятор лизинга'!Y183)),"") ->  | AH183: =IF(AG183<=$O$16,IF($O$18=Лист2!$A$2,'Кредит аннуитет'!M188,'Кредит равномерное'!M188),"") -> 
AC184: =IF(AB184<=$F$16,IF($F$18=Лист2!$A$2,'Аннуитетное (с ндс)'!N190,IF('Калькулятор лизинга'!$F$18=Лист2!$A$3,Равномерное!N189,'Калькулятор лизинга'!Y184)),"") ->  | AH184: =IF(AG184<=$O$16,IF($O$18=Лист2!$A$2,'Кредит аннуитет'!M189,'Кредит равномерное'!M189),"") -> 
AC185: =IF(AB185<=$F$16,IF($F$18=Лист2!$A$2,'Аннуитетное (с ндс)'!N191,IF('Калькулятор лизинга'!$F$18=Лист2!$A$3,Равномерное!N190,'Калькулятор лизинга'!Y185)),"") ->  | AH185: =IF(AG185<=$O$16,IF($O$18=Лист2!$A$2,'Кредит аннуитет'!M190,'Кредит равномерное'!M190),"") -> 
AC186: =IF(AB186<=$F$16,IF($F$18=Лист2!$A$2,'Аннуитетное (с ндс)'!N192,IF('Калькулятор лизинга'!$F$18=Лист2!$A$3,Равномерное!N191,'Калькулятор лизинга'!Y186)),"") ->  | AH186: =IF(AG186<=$O$16,IF($O$18=Лист2!$A$2,'Кредит аннуитет'!M191,'Кредит равномерное'!M191),"") -> 
AC187: =IF(AB187<=$F$16,IF($F$18=Лист2!$A$2,'Аннуитетное (с ндс)'!N193,IF('Калькулятор лизинга'!$F$18=Лист2!$A$3,Равномерное!N192,'Калькулятор лизинга'!Y187)),"") ->  | AH187: =IF(AG187<=$O$16,IF($O$18=Лист2!$A$2,'Кредит аннуитет'!M192,'Кредит равномерное'!M192),"") -> 
AC188: =IF(AB188<=$F$16,IF($F$18=Лист2!$A$2,'Аннуитетное (с ндс)'!N194,IF('Калькулятор лизинга'!$F$18=Лист2!$A$3,Равномерное!N193,'Калькулятор лизинга'!Y188)),"") ->  | AH188: =IF(AG188<=$O$16,IF($O$18=Лист2!$A$2,'Кредит аннуитет'!M193,'Кредит равномерное'!M193),"") -> 
AC189: =IF(AB189<=$F$16,IF($F$18=Лист2!$A$2,'Аннуитетное (с ндс)'!N195,IF('Калькулятор лизинга'!$F$18=Лист2!$A$3,Равномерное!N194,'Калькулятор лизинга'!Y189)),"") ->  | AH189: =IF(AG189<=$O$16,IF($O$18=Лист2!$A$2,'Кредит аннуитет'!M194,'Кредит равномерное'!M194),"") -> 
AC190: =IF(AB190<=$F$16,IF($F$18=Лист2!$A$2,'Аннуитетное (с ндс)'!N196,IF('Калькулятор лизинга'!$F$18=Лист2!$A$3,Равномерное!N195,'Калькулятор лизинга'!Y190)),"") ->  | AH190: =IF(AG190<=$O$16,IF($O$18=Лист2!$A$2,'Кредит аннуитет'!M195,'Кредит равномерное'!M195),"") -> 
AC191: =IF(AB191<=$F$16,IF($F$18=Лист2!$A$2,'Аннуитетное (с ндс)'!N197,IF('Калькулятор лизинга'!$F$18=Лист2!$A$3,Равномерное!N196,'Калькулятор лизинга'!Y191)),"") ->  | AH191: =IF(AG191<=$O$16,IF($O$18=Лист2!$A$2,'Кредит аннуитет'!M196,'Кредит равномерное'!M196),"") -> 
AC192: =IF(AB192<=$F$16,IF($F$18=Лист2!$A$2,'Аннуитетное (с ндс)'!N198,IF('Калькулятор лизинга'!$F$18=Лист2!$A$3,Равномерное!N197,'Калькулятор лизинга'!Y192)),"") ->  | AH192: =IF(AG192<=$O$16,IF($O$18=Лист2!$A$2,'Кредит аннуитет'!M197,'Кредит равномерное'!M197),"") -> 
AC193: =IF(AB193<=$F$16,IF($F$18=Лист2!$A$2,'Аннуитетное (с ндс)'!N199,IF('Калькулятор лизинга'!$F$18=Лист2!$A$3,Равномерное!N198,'Калькулятор лизинга'!Y193)),"") ->  | AH193: =IF(AG193<=$O$16,IF($O$18=Лист2!$A$2,'Кредит аннуитет'!M198,'Кредит равномерное'!M198),"") -> 
AC194: =IF(AB194<=$F$16,IF($F$18=Лист2!$A$2,'Аннуитетное (с ндс)'!N200,IF('Калькулятор лизинга'!$F$18=Лист2!$A$3,Равномерное!N199,'Калькулятор лизинга'!Y194)),"") ->  | AH194: =IF(AG194<=$O$16,IF($O$18=Лист2!$A$2,'Кредит аннуитет'!M199,'Кредит равномерное'!M199),"") -> 
AC195: =IF(AB195<=$F$16,IF($F$18=Лист2!$A$2,'Аннуитетное (с ндс)'!N201,IF('Калькулятор лизинга'!$F$18=Лист2!$A$3,Равномерное!N200,'Калькулятор лизинга'!Y195)),"") ->  | AH195: =IF(AG195<=$O$16,IF($O$18=Лист2!$A$2,'Кредит аннуитет'!M200,'Кредит равномерное'!M200),"") -> 
AC196: =IF(AB196<=$F$16,IF($F$18=Лист2!$A$2,'Аннуитетное (с ндс)'!N202,IF('Калькулятор лизинга'!$F$18=Лист2!$A$3,Равномерное!N201,'Калькулятор лизинга'!Y196)),"") ->  | AH196: =IF(AG196<=$O$16,IF($O$18=Лист2!$A$2,'Кредит аннуитет'!M201,'Кредит равномерное'!M201),"") -> 
AC197: =IF(AB197<=$F$16,IF($F$18=Лист2!$A$2,'Аннуитетное (с ндс)'!N203,IF('Калькулятор лизинга'!$F$18=Лист2!$A$3,Равномерное!N202,'Калькулятор лизинга'!Y197)),"") ->  | AH197: =IF(AG197<=$O$16,IF($O$18=Лист2!$A$2,'Кредит аннуитет'!M202,'Кредит равномерное'!M202),"") -> 
AC198: =IF(AB198<=$F$16,IF($F$18=Лист2!$A$2,'Аннуитетное (с ндс)'!N204,IF('Калькулятор лизинга'!$F$18=Лист2!$A$3,Равномерное!N203,'Калькулятор лизинга'!Y198)),"") ->  | AH198: =IF(AG198<=$O$16,IF($O$18=Лист2!$A$2,'Кредит аннуитет'!M203,'Кредит равномерное'!M203),"") -> 
X199: =IF(X198<$F$16,X198+1,"") ->  | AB199: =IF(AB198<$F$16,AB198+1,"") ->  | AC199: =IF(AB199<=$F$16,IF($F$18=Лист2!$A$2,'Аннуитетное (с ндс)'!N205,IF('Калькулятор лизинга'!$F$18=Лист2!$A$3,Равномерное!N204,'Калькулятор лизинга'!Y199)),"") ->  | AG199: =IF(AG198<$O$16,AG198+1,"") ->  | AH199: =IF(AG199<=$O$16,IF($O$18=Лист2!$A$2,'Кредит аннуитет'!M204,'Кредит равномерное'!M204),"") -> 
AC200: =IF(AB200<=$F$16,IF($F$18=Лист2!$A$2,'Аннуитетное (с ндс)'!N206,IF('Калькулятор лизинга'!$F$18=Лист2!$A$3,Равномерное!N205,'Калькулятор лизинга'!Y200)),"") ->  | AH200: =IF(AG200<=$O$16,IF($O$18=Лист2!$A$2,'Кредит аннуитет'!M205,'Кредит равномерное'!M205),"") -> 
AC201: =IF(AB201<=$F$16,IF($F$18=Лист2!$A$2,'Аннуитетное (с ндс)'!N207,IF('Калькулятор лизинга'!$F$18=Лист2!$A$3,Равномерное!N206,'Калькулятор лизинга'!Y201)),"") ->  | AH201: =IF(AG201<=$O$16,IF($O$18=Лист2!$A$2,'Кредит аннуитет'!M206,'Кредит равномерное'!M206),"") -> 
AC202: =IF(AB202<=$F$16,IF($F$18=Лист2!$A$2,'Аннуитетное (с ндс)'!N208,IF('Калькулятор лизинга'!$F$18=Лист2!$A$3,Равномерное!N207,'Калькулятор лизинга'!Y202)),"") ->  | AH202: =IF(AG202<=$O$16,IF($O$18=Лист2!$A$2,'Кредит аннуитет'!M207,'Кредит равномерное'!M207),"") -> 
... 63 more rows

Sheet Аннуитетное (с ндс) (hidden)
L1: ЛП облагается НДС | P1: НДС возмещается по ОС и ЛП (по мере платежей) | U1: В расходы идет весь ЛП без НДС
G3: ЧИСТВНДОХ | M3: =XIRR(M10:M190,H10:H190) -> 0.5439584553 | N3: =XIRR(N10:N190,H10:H190) -> 0.5454477489 | Q3: =XIRR(Q10:Q190,H10:H190) -> 0.3636947453 | R3: =XIRR(R10:R190,H10:H190) -> 0.3650039136 | U3: =XIRR(U10:U190,H10:H190) -> 0.2051029146 | V3: =XIRR(V10:V190,H10:H190) -> 0.2060541451
I4: =SUM(I8:I190) -> 3491666.667 | J4: =SUM(J8:J190) -> 698333.3333 | K4: =SUM(K8:K190) -> 4561133.333 | L4: =SUM(L8:L190) -> 912226.6667 | M4: =SUM(M8:M190)-M10-M9 -> 9664360 | N4: =SUM(N8:N190)-N10-N9 -> 9676730.44 | P4: =SUM(P8:P190)-P10-P9 -> 1610726.667 | Q4: =SUM(Q8:Q190)-Q10-Q9 -> 7844133.333 | R4: =SUM(R8:R190)-R10-R9 -> 7856503.774 | S4: =SUM(S8:S190) -> 1610726.667 | T4: =SUM(T8:T190) -> 1613200.611 | U4: =SUM(U8:U190)-U10-U9 -> 5395406.667 | V4: =SUM(V8:V190)-V10-V9 -> 5405303.162 | W4: =SUM(W8:W190) -> 12370.44024
K5: Ост ст-ть*% в мес
G6: Платеж | I6: Погашение стоимости имущества | K6: Процент по ставке | L6: НДС по процентам | M6: Лизинговый платеж | N6: Лизинговый платеж со страхованием | O6: Остаточная стоимость имущества | P6: Возмещение НДС | Q6: Поток без НДС | R6: Поток без НДС со страхованием | S6: Экономия НП от% | T6: Экономия НП от% и страхования | U6: Поток без НДС и НП | V6: Поток без НДС и НП со страхованием | W6: Страхование
I7: без НДС | J7: НДС
G8: Аванс | H8: 2020-01-01 | I8: =D19-J8 -> 1047500 | J8: =D19*$D$21/(1+$D$21) -> 209500 | M8: =SUM(I8:J8) -> 1257000 | N8: =M8 -> 1257000 | O8: =D11-J8-I8 -> 2933000 | P8: =IF($D$32="нет",0,J8) -> 209500 | Q8: =M8-P8 -> 1047500 | R8: =Q8 -> 1047500 | S8: =IF($D$33="да",Q8*$D$22,0) -> 209500 | T8: =IF($D$33="да",R8*$D$22,0) -> 209500 | U8: =IF($D$33="да",Q8*$D$22,0) -> 209500 | V8: =U8 -> 209500
F9: в конце | G9: Выкупная стоимость | M9: =D20 -> 1000
G10: 0 | H10: 2020-01-01 | M10: =-(D11-M8) -> -2933000 | N10: =M10 -> -2933000 | Q10: =M10 -> -2933000 | R10: =Q10 -> -2933000 | U10: =Q10 -> -2933000 | V10: =U10 -> -2933000
A11: Стоимость оборудования | D11: ='Калькулятор лизинга'!K5 -> 4190000 | G11: 1 | H11: 2020-02-01 | I11: =IF(G11<$D$14,(M11-L11-K11)*1/(1+$D$21),IF(G11=$D$14,(M11-L11-K11-$D$20)*1/(1+$D$21),0)) -> 7176.404774 | J11: =IF(G11<=$D$14,I11*$D$21,0) -> 1435.280955 | K11: =IF(G11<=$D$14,O8*$D$17,0) -> 90119.42856 | L11: =IF(G11<=$D$14,K11*$D$21,0) -> 18023.88571 | M11: =IF(G11<=$D$14,-$D$25,0)+IF(G11=$D$14,$D$20,0) -> 116755 | N11: =M11+W11 -> 116999.4167 | O11: =IF(G11<$D$14,O8-I11-J11,0) -> 2924388.314 | P11: =IF($D$32="нет",0,J11+L11+IF(G11=$D$14,$D$20*$D$21/(1+$D$21),0)) -> 19459.16667 | Q11: =IF(G11<=$D$14,M11-P11,0)-P8 -> -112204.1667 | R11: =Q11+W11 -> -111959.75 | S11: =IF($D$33="да",Q12*$D$22,0) -> 19459.16667 | T11: =IF($D$33="да",R12*$D$22,0) -> 19507.90647 | U11: =Q11-S11-T8 -> -341163.3333 | V11: =R11-T11-T8 -> -340967.6565 | W11: =IF(G11<=$D$14,O8*$D$23,0) -> 244.4166667
A12: НДС | D12: =D11*D21/(1+D21) -> 698333.3333 | G12: 2 | H12: 2020-03-01 | I12: 7441.007636 | J12: =IF(G12<=$D$14,I12*$D$21,0) -> 1488.201527 | K12: =IF(G12<=$D$14,O11*$D$17,0) -> 89854.8257 | L12: =IF(G12<=$D$14,K12*$D$21,0) -> 17970.96514 | M12: 116755 | N12: =M12+W12 -> 116998.699 | O12: =IF(G12<$D$14,O11-I12-J12,0) -> 2915459.105 | P12: 19459.16667 | Q12: =IF(G12<=$D$14,M12-P12,0) -> 97295.83333 | R12: =Q12+W12 -> 97539.53236 | S12: =IF($D$33="да",Q12*$D$22,0) -> 19459.16667 | T12: =IF($D$33="да",R12*$D$22,0) -> 19507.90647 | U12: =Q12-S12 -> 77836.66667 | V12: =R12-T12 -> 78031.62589 | W12: =IF(G12<=$D$14,O11*$D$23,0) -> 243.6990262
A13: Без НДС | D13: =D11-D12 -> 3491666.667 | G13: 3 | H13: 2020-04-01 | I13: 7715.366732 | J13: 1543.073346 | K13: 89580.4666 | L13: 17916.09332 | M13: 116755 | N13: 116997.9549 | O13: 2906200.665 | P13: 19459.16667 | Q13: 97295.83333 | R13: 97538.78826 | S13: 19459.16667 | T13: 19507.75765 | U13: 77836.66667 | V13: 78031.03061 | W13: =IF(G13<=$D$14,O12*$D$23,0) -> 242.9549254
A14: Срок, мес | D14: ='Калькулятор лизинга'!F16 -> 72 | G14: 4 | H14: 2020-05-01 | I14: 7999.841785 | J14: 1599.968357 | K14: 89295.99155 | L14: 17859.19831 | M14: 116755 | N14: 116997.1834 | O14: 2896600.855 | P14: 19459.16667 | Q14: 97295.83333 | R14: 97538.01672 | S14: 19459.16667 | T14: 19507.60334 | U14: 77836.66667 | V14: 78030.41338 | W14: 242.1833888
A15: Срок, лет | D15: =D14/12 -> 6 | G15: 5 | H15: 2020-06-01 | I15: 8294.805782 | J15: 1658.961156 | K15: 89001.02755 | L15: 17800.20551 | M15: 116755 | N15: 116996.3834 | O15: 2886647.088 | P15: 19459.16667 | Q15: 97295.83333 | R15: 97537.21674 | S15: 19459.16667 | T15: 19507.44335 | U15: 77836.66667 | V15: 78029.77339 | W15: 241.3834046
A16: Ставка в год | D16: =IF('Калькулятор лизинга'!D21=Лист2!G2,'Калькулятор лизинга'!F21/100,RATE('Аннуитетное (с ндс)'!D14,'Аннуитетное (с ндс)'!D25,'Аннуитетное (с ндс)'!O8)/(1+D21)*12) -> 0.3687122887 | G16: 6 | H16: 2020-07-01 | I16: 8600.645464 | J16: 1720.129093 | K16: 88695.18787 | L16: 17739.03757 | M16: 116755 | N16: 116995.5539 | O16: 2876326.313 | P16: 19459.16667 | Q16: 97295.83333 | R16: 97536.38726 | S16: 19459.16667 | T16: 19507.27745 | U16: 77836.66667 | V16: 78029.10981 | W16: 240.553924
A17: Ставка в мес | D17: =D16/12 -> 0.03072602406 | E17: =D17*(1+$D$21) -> 0.03687122887 | G17: 7 | H17: 2020-08-01 | I17: 8917.761832 | J17: 1783.552366 | K17: 88378.0715 | L17: =IF(G17<=$D$14,K17*$D$21,0) -> 17675.6143 | M17: 116755 | N17: 116994.6939 | O17: 2865624.999 | P17: 19459.16667 | Q17: 97295.83333 | R17: 97535.52719 | S17: 19459.16667 | T17: 19507.10544 | U17: 77836.66667 | V17: 78028.42175 | W17: 239.6938594
A18: Аванс, % | D18: =IF('Калькулятор лизинга'!D24=Лист2!L2,'Калькулятор лизинга'!F24/100,'Аннуитетное (с ндс)'!D19/'Аннуитетное (с ндс)'!D11) -> 0.3 | G18: 8 | H18: 2020-09-01 | I18: 9246.570669 | J18: 1849.314134 | K18: 88049.26266 | L18: 17609.85253 | M18: 116755 | N18: 116993.8021 | O18: 2854529.114 | P18: 19459.16667 | Q18: 97295.83333 | R18: 97534.63542 | S18: 19459.16667 | T18: 19506.92708 | U18: 77836.66667 | V18: 78027.70833 | W18: 238.8020833
A19: Аванс | D19: =IF('Калькулятор лизинга'!D24=Лист2!L2,D11*D18,'Калькулятор лизинга'!F24) -> 1257000 | G19: 9 | H19: 2020-10-01 | I19: 9587.503093 | J19: 1917.500619 | K19: 87708.33024 | L19: 17541.66605 | M19: 116755 | N19: 116992.8774 | O19: 2843024.111 | P19: 19459.16667 | Q19: 97295.83333 | R19: 97533.71076 | S19: 19459.16667 | T19: 19506.74215 | U19: 77836.66667 | V19: 78026.96861 | W19: 237.8774262
A20: Выкупной платеж | D20: ='Калькулятор лизинга'!F27 -> 1000 | G20: 10 | H20: 2020-11-01 | I20: 9941.006113 | J20: 1988.201223 | K20: 87354.82722 | L20: 17470.96544 | M20: 116755 | N20: 116991.9187 | O20: 2831094.903 | P20: 19459.16667 | Q20: 97295.83333 | R20: 97532.75201 | S20: 19459.16667 | T20: 19506.5504 | U20: 77836.66667 | V20: 78026.20161 | W20: 236.9186759
A21: Ставка НДС | D21: ='Калькулятор лизинга'!K11/100 -> 0.2 | G21: 11 | H21: 2020-12-01 | I21: 10307.54322 | J21: 2061.508645 | K21: 86988.29011 | L21: 17397.65802 | M21: 116755 | N21: 116990.9246 | O21: 2818725.851 | P21: 19459.16667 | Q21: 97295.83333 | R21: 97531.75791 | S21: 19459.16667 | T21: 19506.35158 | U21: 77836.66667 | V21: 78025.40633 | W21: 235.9245753
A22: Ставка НП | D22: ='Калькулятор лизинга'!K9/100 -> 0.2 | G22: 12 | H22: 2021-01-01 | I22: 10687.59501 | J22: 2137.519002 | K22: 86608.23832 | L22: 17321.64766 | M22: 116755 | N22: 116989.8938 | O22: 2805900.737 | P22: 19459.16667 | Q22: 97295.83333 | R22: 97530.72715 | S22: 19459.16667 | T22: 19506.14543 | U22: 77836.66667 | V22: 78024.58172 | W22: 234.893821
A23: Страхование | D23: ='Калькулятор лизинга'!F30/100/12 -> 8.333333333e-05 | G23: 13 | H23: 2021-02-01 | I23: 11081.65977 | J23: 2216.331954 | K23: 86214.17356 | L23: 17242.83471 | M23: 116755 | N23: 116988.8251 | O23: 2792602.746 | P23: 19459.16667 | Q23: 97295.83333 | R23: 97529.65839 | S23: 19459.16667 | T23: 19505.93168 | U23: 77836.66667 | V23: 78023.72672 | W23: 233.8250615
A24: Сумма договора | D24: =M4 -> 9664360 | G24: 14 | H24: 2021-03-01 | I24: 11490.25419 | J24: 2298.050837 | K24: 85805.57915 | L24: 17161.11583 | M24: 116755 | N24: 116987.7169 | O24: 2778814.441 | P24: 19459.16667 | Q24: 97295.83333 | R24: 97528.55023 | S24: 19459.16667 | T24: 19505.71005 | U24: 77836.66667 | V24: 78022.84018 | W24: 232.7168955
A25: Платеж по лизингу | D25: =IF('Калькулятор лизинга'!D21=Лист2!G3,-'Калькулятор лизинга'!F21,PMT('Аннуитетное (с ндс)'!E17,'Аннуитетное (с ндс)'!D14,'Аннуитетное (с ндс)'!O8)) -> -116755 | G25: 15 | H25: 2021-04-01 | I25: 11913.91398 | J25: 2382.782796 | K25: 85381.91936 | L25: 17076.38387 | M25: 116755 | N25: 116986.5679 | O25: 2764517.744 | P25: 19459.16667 | Q25: 97295.83333 | R25: 97527.4012 | S25: 19459.16667 | T25: 19505.48024 | U25: 77836.66667 | V25: 78021.92096 | W25: 231.5678701
G26: 16 | H26: 2021-05-01 | I26: 12353.19463 | J26: 2470.638925 | K26: 84942.63871 | L26: 16988.52774 | M26: 116755 | N26: 116985.3765 | O26: 2749693.91 | P26: 19459.16667 | Q26: 97295.83333 | R26: 97526.20981 | S26: 19459.16667 | T26: 19505.24196 | U26: 77836.66667 | V26: 78020.96785 | W26: 230.3764787
A27: Удорожание | D27: =(M4-D11)/D11 -> 1.306529833 | G27: 17 | H27: 2021-06-01 | I27: 12808.67209 | J27: 2561.734419 | K27: 84487.16124 | L27: 16897.43225 | M27: 116755 | N27: 116984.1412 | O27: 2734323.504 | P27: 19459.16667 | Q27: 97295.83333 | R27: 97524.97449 | S27: 19459.16667 | T27: 19504.9949 | U27: 77836.66667 | V27: 78019.97959 | W27: 229.1411592
A28: Удорожание в год | D28: =D27/D15 -> 0.2177549722 | G28: 18 | H28: 2021-07-01 | I28: 13280.94357 | J28: 2656.188715 | K28: 84014.88976 | L28: 16802.97795 | M28: 116755 | N28: 116982.8603 | O28: 2718386.372 | P28: 19459.16667 | Q28: 97295.83333 | R28: 97523.69363 | S28: 19459.16667 | T28: 19504.73873 | U28: 77836.66667 | V28: 78018.9549 | W28: 227.860292
D29: =D28*1.45/(1-D18) -> 0.4510638709 | G29: 19 | H29: 2021-08-01 | I29: 13770.62828 | J29: 2754.125657 | K29: 83525.20505 | L29: 16705.04101 | M29: 116755 | N29: 116981.5322 | O29: 2701861.618 | P29: 19459.16667 | Q29: 97295.83333 | R29: 97522.36553 | S29: 19459.16667 | T29: 19504.47311 | U29: 77836.66667 | V29: 78017.89242 | W29: 226.5321976
A30: С учетом всех вычетов | D30: =N4-P4-T4 -> 6452803.162 | G30: 20 | H30: 2021-09-01 | I30: 14278.36827 | J30: 2855.673654 | K30: 83017.46506 | L30: 16603.49301 | M30: 116755 | N30: 116980.1551 | O30: 2684727.576 | P30: 19459.16667 | Q30: 97295.83333 | R30: 97520.98847 | S30: 19459.16667 | T30: 19504.19769 | U30: 77836.66667 | V30: 78016.79077 | W30: 225.1551348
G31: 21 | H31: 2021-10-01 | I31: 14804.82925 | J31: 2960.965851 | K31: 82491.00408 | L31: 16498.20082 | M31: 116755 | N31: 116978.7273 | O31: 2666961.781 | P31: 19459.16667 | Q31: 97295.83333 | R31: 97519.56063 | S31: 19459.16667 | T31: 19503.91213 | U31: 77836.66667 | V31: 78015.64851 | W31: 223.727298
A32: возмещение ндс | D32: =VLOOKUP('Калькулятор лизинга'!K7,Лист2!C2:E10,3,) -> да | G32: 22 | H32: 2021-11-01 | I32: 15350.7015 | J32: 3070.1403 | K32: 81945.13183 | L32: 16389.02637 | M32: 116755 | N32: 116977.2468 | O32: 2648540.939 | P32: 19459.16667 | Q32: 97295.83333 | R32: 97518.08015 | S32: 19459.16667 | T32: 19503.61603 | U32: 77836.66667 | V32: 78014.46412 | W32: 222.2468151
A33: учет расходов | D33: =VLOOKUP('Калькулятор лизинга'!K7,Лист2!C2:F10,4,) -> да | G33: 23 | H33: 2021-12-01 | I33: 15916.70073 | J33: 3183.340146 | K33: 81379.1326 | L33: 16275.82652 | M33: 116755 | N33: 116975.7117 | O33: 2629440.898 | P33: 19459.16667 | Q33: 97295.83333 | R33: 97516.54508 | S33: 19459.16667 | T33: 19503.30902 | U33: 77836.66667 | V33: 78013.23606 | W33: 220.7117449
G34: 24 | H34: 2022-01-01 | I34: 16503.56905 | J34: 3300.713809 | K34: 80792.26429 | L34: 16158.45286 | M34: 116755 | N34: 116974.1201 | O34: 2609636.615 | P34: 19459.16667 | Q34: 97295.83333 | R34: 97514.95341 | S34: 19459.16667 | T34: 19502.99068 | U34: 77836.66667 | V34: 78011.96273 | W34: 219.1200748
G35: 25 | H35: 2022-02-01 | I35: 17112.07592 | J35: 3422.415184 | K35: 80183.75742 | L35: 16036.75148 | M35: 116755 | N35: 116972.4697 | O35: 2589102.124 | P35: 19459.16667 | Q35: 97295.83333 | R35: 97513.30305 | S35: 19459.16667 | T35: 19502.66061 | U35: 77836.66667 | V35: 78010.64244 | W35: 217.4697179
G36: 26 | H36: 2022-03-01 | I36: 17743.01919 | J36: 3548.603837 | K36: 79552.81415 | L36: 15910.56283 | M36: 116755 | N36: 116970.7585 | O36: 2567810.501 | P36: 19459.16667 | Q36: 97295.83333 | R36: 97511.59184 | S36: 19459.16667 | T36: 19502.31837 | U36: 77836.66667 | V36: 78009.27347 | W36: 215.7585103
G37: 27 | H37: 2022-04-01 | I37: 18397.22611 | J37: 3679.445221 | K37: 78898.60723 | L37: 15779.72145 | M37: 116755 | N37: 116968.9842 | O37: 2545733.83 | P37: 19459.16667 | Q37: 97295.83333 | R37: 97509.81754 | S37: 19459.16667 | T37: 19501.96351 | U37: 77836.66667 | V37: 78007.85403 | W37: 213.9842084
G38: 28 | H38: 2022-05-01 | I38: 19075.55444 | J38: 3815.110888 | K38: 78220.27889 | L38: 15644.05578 | M38: 116755 | N38: 116967.1445 | O38: 2522843.164 | P38: 19459.16667 | Q38: 97295.83333 | R38: 97507.97782 | S38: 19459.16667 | T38: 19501.59556 | U38: 77836.66667 | V38: 78006.38226 | W38: 212.1444858
G39: 29 | H39: 2022-06-01 | I39: 19778.89357 | J39: 3955.778715 | K39: 77516.93976 | L39: 15503.38795 | M39: 116755 | N39: 116965.2369 | O39: 2499108.492 | P39: 19459.16667 | Q39: 97295.83333 | R39: 97506.07026 | S39: 19459.16667 | T39: 19501.21405 | U39: 77836.66667 | V39: 78004.85621 | W39: 210.2369304
G40: 30 | H40: 2022-07-01 | I40: 20508.16569 | J40: 4101.633137 | K40: 76787.66765 | L40: 15357.53353 | M40: 116755 | N40: 116963.259 | O40: 2474498.693 | P40: 19459.16667 | Q40: 97295.83333 | R40: 97504.09237 | S40: 19459.16667 | T40: 19500.81847 | U40: 77836.66667 | V40: 78003.2739 | W40: 208.259041
G41: 31 | H41: 2022-08-01 | I41: 21264.32696 | J41: 4252.865391 | K41: 76031.50638 | L41: 15206.30128 | M41: 116755 | N41: 116961.2082 | O41: 2448981.501 | P41: 19459.16667 | Q41: 97295.83333 | R41: 97502.04156 | S41: 19459.16667 | T41: 19500.40831 | U41: 77836.66667 | V41: 78001.63325 | W41: 206.2082244
G42: 32 | H42: 2022-09-01 | I42: 22048.36882 | J42: 4409.673765 | K42: 75247.46451 | L42: 15049.4929 | M42: 116755 | N42: 116959.0818 | O42: 2422523.458 | P42: 19459.16667 | Q42: 97295.83333 | R42: 97499.91513 | S42: 19459.16667 | T42: 19499.98303 | U42: 77836.66667 | V42: 77999.9321 | W42: 204.0817917
G43: 33 | H43: 2022-10-01 | I43: =IF(G43<$D$14,(M43-L43-K43)*1/(1+$D$21),IF(G43=$D$14,(M43-L43-K43-$D$20)*1/(1+$D$21),0)) -> 22861.31928 | J43: 4572.263855 | K43: 74434.51406 | L43: 14886.90281 | M43: =IF(G43<=$D$14,-$D$25,0)+IF(G43=$D$14,$D$20,0) -> 116755 | N43: 116956.877 | O43: 2395089.875 | P43: =IF($D$32="нет",0,J43+L43+IF(G43=$D$14,$D$20*$D$21/(1+$D$21),0)) -> 19459.16667 | Q43: =IF(G43<=$D$14,M43-P43,0) -> 97295.83333 | R43: 97497.71029 | S43: 19459.16667 | T43: 19499.54206 | U43: 77836.66667 | V43: 77998.16823 | W43: 201.8769549
G44: 34 | H44: 2022-11-01 | I44: 23704.24421 | J44: 4740.848842 | K44: =IF(G44<=$D$14,O43*$D$17,0) -> 73591.58912 | L44: 14718.31782 | M44: 116755 | N44: 116954.5908 | O44: =IF(G44<$D$14,O43-I44-J44,0) -> 2366644.782 | P44: 19459.16667 | Q44: 97295.83333 | R44: 97495.42416 | S44: 19459.16667 | T44: 19499.08483 | U44: 77836.66667 | V44: 77996.33933 | W44: =IF(G44<=$D$14,O43*$D$23,0) -> 199.5908229
G45: 35 | H45: 2022-12-01 | I45: 24578.24882 | J45: 4915.649765 | K45: 72717.58451 | L45: 14543.5169 | M45: 116755 | N45: 116952.2204 | O45: 2337150.883 | P45: 19459.16667 | Q45: 97295.83333 | R45: 97493.05373 | S45: 19459.16667 | T45: 19498.61075 | U45: 77836.66667 | V45: 77994.44299 | W45: 197.2203985
G46: 36 | H46: 2023-01-01 | I46: 25484.47906 | J46: =IF(G46<=$D$14,I46*$D$21,0) -> 5096.895812 | K46: 71811.35427 | L46: 14362.27085 | M46: 116755 | N46: 116949.7626 | O46: 2306569.509 | P46: 19459.16667 | Q46: 97295.83333 | R46: 97490.59591 | S46: 19459.16667 | T46: 19498.11918 | U46: =Q46-S46 -> 77836.66667 | V46: 77992.47673 | W46: 194.7625736
G47: 37 | H47: 2023-02-01 | I47: 26424.12312 | J47: 5284.824624 | K47: 70871.71021 | L47: 14174.34204 | M47: 116755 | N47: 116947.2141 | O47: 2274860.561 | P47: 19459.16667 | Q47: 97295.83333 | R47: 97488.04746 | S47: 19459.16667 | T47: 19497.60949 | U47: 77836.66667 | V47: 77990.43797 | W47: 192.2141257
G48: 38 | H48: 2023-03-01 | I48: 27398.41301 | J48: 5479.682603 | K48: 69897.42032 | L48: 13979.48406 | M48: 116755 | N48: 116944.5717 | O48: 2241982.465 | P48: 19459.16667 | Q48: 97295.83333 | R48: 97485.40505 | S48: 19459.16667 | T48: 19497.08101 | U48: 77836.66667 | V48: 77988.32404 | W48: 189.5717134
G49: 39 | H49: 2023-04-01 | I49: 28408.62617 | J49: 5681.725234 | K49: 68887.20716 | L49: 13777.44143 | M49: 116755 | N49: 116941.8319 | O49: 2207892.114 | P49: 19459.16667 | Q49: 97295.83333 | R49: 97482.66521 | S49: 19459.16667 | T49: 19496.53304 | U49: 77836.66667 | V49: 77986.13216 | W49: 186.8318721
G50: 40 | H50: 2023-05-01 | I50: 29456.08713 | J50: 5891.217426 | K50: 67839.74621 | L50: 13567.94924 | M50: 116755 | N50: 116938.991 | O50: 2172544.809 | P50: 19459.16667 | Q50: 97295.83333 | R50: 97479.82434 | S50: 19459.16667 | T50: 19495.96487 | U50: 77836.66667 | V50: 77983.85947 | W50: 183.9910095
G51: 41 | H51: 2023-06-01 | I51: 30542.16926 | J51: 6108.433852 | K51: 66753.66408 | L51: 13350.73282 | M51: 116755 | N51: 116936.0454 | O51: 2135894.206 | P51: 19459.16667 | Q51: 97295.83333 | R51: 97476.87873 | S51: 19459.16667 | T51: 19495.37575 | U51: 77836.66667 | V51: 77981.50299 | W51: 181.0454008
G52: 42 | H52: 2023-07-01 | I52: 31668.29657 | J52: 6333.659314 | K52: 65627.53676 | L52: 13125.50735 | M52: 116755 | N52: 116932.9912 | O52: 2097892.25 | P52: 19459.16667 | Q52: 97295.83333 | R52: 97473.82452 | S52: 19459.16667 | T52: 19494.7649 | U52: 77836.66667 | V52: 77979.05961 | W52: 177.9911838
G53: 43 | H53: 2023-08-01 | I53: 32835.94558 | J53: 6567.189116 | K53: 64459.88775 | L53: 12891.97755 | M53: 116755 | N53: 116929.8244 | O53: 2058489.116 | P53: 19459.16667 | Q53: 97295.83333 | R53: 97470.65769 | S53: 19459.16667 | T53: 19494.13154 | U53: 77836.66667 | V53: 77976.52615 | W53: 174.8243542
G54: 44 | H54: 2023-09-01 | I54: 34046.64725 | J54: 6809.329449 | K54: 63249.18609 | L54: 12649.83722 | M54: 116755 | N54: 116926.5408 | O54: 2017633.139 | P54: 19459.16667 | Q54: 97295.83333 | R54: 97467.37409 | S54: 19459.16667 | T54: 19493.47482 | U54: 77836.66667 | V54: 77973.89927 | W54: 171.5407596
G55: 45 | H55: 2023-10-01 | I55: 35301.98897 | J55: 7060.397794 | K55: 61993.84436 | L55: 12398.76887 | M55: 116755 | N55: 116923.1361 | O55: 1975270.752 | P55: 19459.16667 | Q55: 97295.83333 | R55: 97463.96943 | S55: 19459.16667 | T55: 19492.79389 | U55: 77836.66667 | V55: 77971.17554 | W55: 168.1360949
G56: 46 | H56: 2023-11-01 | I56: 36603.61668 | J56: 7320.723337 | K56: 60692.21665 | L56: 12138.44333 | M56: 116755 | N56: 116919.6059 | O56: 1931346.412 | P56: 19459.16667 | Q56: 97295.83333 | R56: 97460.43923 | S56: 19459.16667 | T56: 19492.08785 | U56: 77836.66667 | V56: 77968.35138 | W56: 164.605896
G57: 47 | H57: 2023-12-01 | I57: 37953.23701 | J57: 7590.647402 | K57: 59342.59632 | L57: 11868.51926 | M57: 116755 | N57: 116915.9455 | O57: 1885802.528 | P57: 19459.16667 | Q57: 97295.83333 | R57: 97456.77887 | S57: 19459.16667 | T57: 19491.35577 | U57: 77836.66667 | V57: 77965.42309 | W57: 160.9455343
G58: 48 | H58: 2024-01-01 | I58: 39352.6195 | J58: 7870.5239 | K58: 57943.21383 | L58: 11588.64277 | M58: 116755 | N58: 116912.1502 | O58: 1838579.384 | P58: 19459.16667 | Q58: 97295.83333 | R58: 97452.98354 | S58: 19459.16667 | T58: 19490.59671 | U58: 77836.66667 | V58: 77962.38684 | W58: 157.1502106
G59: 49 | H59: 2024-02-01 | I59: 40803.59894 | J59: 8160.719788 | K59: 56492.23439 | L59: 11298.44688 | M59: 116755 | N59: 116908.2149 | O59: 1789615.066 | P59: 19459.16667 | Q59: 97295.83333 | R59: 97449.04828 | S59: 19459.16667 | T59: 19489.80966 | U59: 77836.66667 | V59: 77959.23863 | W59: 153.2149487
G60: 50 | H60: 2024-03-01 | I60: 42308.07778 | J60: 8461.615555 | K60: 54987.75556 | L60: 10997.55111 | M60: 116755 | N60: 116904.1346 | O60: 1738845.372 | P60: 19459.16667 | Q60: 97295.83333 | R60: 97444.96792 | S60: 19459.16667 | T60: 19488.99358 | U60: 77836.66667 | V60: 77955.97434 | W60: 149.1345888
G61: 51 | H61: 2024-04-01 | I61: 43868.02859 | J61: 8773.605719 | K61: 53427.80474 | L61: 10685.56095 | M61: 116755 | N61: 116899.9038 | O61: 1686203.738 | P61: 19459.16667 | Q61: 97295.83333 | R61: 97440.73711 | S61: 19459.16667 | T61: 19488.14742 | U61: 77836.66667 | V61: 77952.58969 | W61: 144.903781
G62: 52 | H62: 2024-05-01 | I62: 45485.49672 | J62: 9097.099343 | K62: 51810.33662 | L62: 10362.06732 | M62: 116755 | N62: 116895.517 | O62: 1631621.142 | P62: 19459.16667 | Q62: 97295.83333 | R62: 97436.35031 | S62: 19459.16667 | T62: 19487.27006 | U62: 77836.66667 | V62: 77949.08025 | W62: 140.5169782
G63: 53 | H63: 2024-06-01 | I63: 47162.60288 | J63: 9432.520575 | K63: 50133.23046 | L63: 10026.64609 | M63: 116755 | N63: 116890.9684 | O63: 1575026.018 | P63: 19459.16667 | Q63: 97295.83333 | R63: 97431.80176 | S63: 19459.16667 | T63: 19486.36035 | U63: 77836.66667 | V63: 77945.44141 | W63: 135.9684285
G64: 54 | H64: 2024-07-01 | I64: 48901.546 | J64: 9780.3092 | K64: 48394.28733 | L64: 9678.857467 | M64: 116755 | N64: 116886.2522 | O64: 1516344.163 | P64: 19459.16667 | Q64: 97295.83333 | R64: 97427.0855 | S64: 19459.16667 | T64: 19485.4171 | U64: 77836.66667 | V64: 77941.6684 | W64: 131.2521682
G65: 55 | H65: 2024-08-01 | I65: 50704.6061 | J65: 10140.92122 | K65: 46591.22724 | L65: 9318.245448 | M65: 116755 | N65: 116881.362 | O65: 1455498.636 | P65: 19459.16667 | Q65: 97295.83333 | R65: 97422.19535 | S65: 19459.16667 | T65: 19484.43907 | U65: 77836.66667 | V65: 77937.75628 | W65: 126.3620136
G66: 56 | H66: 2024-09-01 | I66: 52574.14723 | J66: 10514.82945 | K66: 44721.6861 | L66: 8944.33722 | M66: 116755 | N66: 116876.2916 | O66: 1392409.659 | P66: 19459.16667 | Q66: 97295.83333 | R66: 97417.12489 | S66: 19459.16667 | T66: 19483.42498 | U66: 77836.66667 | V66: 77933.69991 | W66: 121.291553
G67: 57 | H67: 2024-10-01 | I67: 54512.62065 | J67: 10902.52413 | K67: 42783.21269 | L67: 8556.642537 | M67: 116755 | N67: 116871.0341 | O67: 1326994.514 | P67: 19459.16667 | Q67: 97295.83333 | R67: 97411.86747 | S67: 19459.16667 | T67: 19482.37349 | U67: 77836.66667 | V67: 77929.49398 | W67: 116.0341383
G68: 58 | H68: 2024-11-01 | I68: 56522.56796 | J68: 11304.51359 | K68: 40773.26537 | L68: 8154.653075 | M68: 116755 | N68: 116865.5829 | O68: 1259167.433 | P68: 19459.16667 | Q68: 97295.83333 | R68: 97406.41621 | S68: 19459.16667 | T68: 19481.28324 | U68: 77836.66667 | V68: 77925.13297 | W68: 110.5828762
G69: 59 | H69: 2024-12-01 | I69: 58606.6245 | J69: 11721.3249 | K69: 38689.20884 | L69: 7737.841767 | M69: 116755 | N69: 116859.9306 | O69: 1188839.483 | P69: 19459.16667 | Q69: 97295.83333 | R69: 97400.76395 | S69: 19459.16667 | T69: 19480.15279 | U69: 77836.66667 | V69: 77920.61116 | W69: 104.9306194
G70: 60 | H70: 2025-01-01 | I70: 60767.52276 | J70: 12153.50455 | K70: 36528.31057 | L70: 7305.662114 | M70: 116755 | N70: 116854.07 | O70: 1115918.456 | P70: 19459.16667 | Q70: 97295.83333 | R70: 97394.90329 | S70: 19459.16667 | T70: 19478.98066 | U70: 77836.66667 | V70: 77915.92263 | W70: 99.06995696
G71: 61 | H71: 2025-02-01 | I71: 63008.096 | J71: 12601.6192 | K71: 34287.73733 | L71: 6857.547466 | M71: 116755 | N71: 116847.9932 | O71: 1040308.741 | P71: 19459.16667 | Q71: 97295.83333 | R71: 97388.82654 | S71: 19459.16667 | T71: 19477.76531 | U71: 77836.66667 | V71: 77911.06123 | W71: 92.99320468
G72: 62 | H72: 2025-03-01 | I72: 65331.28193 | J72: 13066.25639 | K72: 31964.5514 | L72: 6392.91028 | M72: 116755 | N72: 116841.6924 | O72: 961911.2027 | P72: 19459.16667 | Q72: 97295.83333 | R72: 97382.52573 | S72: 19459.16667 | T72: 19476.50515 | U72: 77836.66667 | V72: 77906.02058 | W72: 86.69239508
G73: 63 | H73: 2025-04-01 | I73: 67740.12658 | J73: 13548.02532 | K73: 29555.70675 | L73: 5911.141351 | M73: 116755 | N73: 116835.1593 | O73: 880623.0508 | P73: 19459.16667 | Q73: 97295.83333 | R73: 97375.9926 | S73: 19459.16667 | T73: 19475.19852 | U73: 77836.66667 | V73: 77900.79408 | W73: 80.15926689
G74: 64 | H74: 2025-05-01 | I74: 70237.78829 | J74: 14047.55766 | K74: 27058.04504 | L74: 5411.609009 | M74: 116755 | N74: 116828.3853 | O74: 796337.7048 | P74: 19459.16667 | Q74: 97295.83333 | R74: 97369.21859 | S74: 19459.16667 | T74: 19473.84372 | U74: 77836.66667 | V74: 77895.37487 | W74: 73.38525423
G75: 65 | H75: 2025-06-01 | I75: =IF(G75<$D$14,(M75-L75-K75)*1/(1+$D$21),IF(G75=$D$14,(M75-L75-K75-$D$20)*1/(1+$D$21),0)) -> 72827.54186 | J75: 14565.50837 | K75: 24468.29148 | L75: 4893.658295 | M75: =IF(G75<=$D$14,-$D$25,0)+IF(G75=$D$14,$D$20,0) -> 116755 | N75: 116821.3615 | O75: 708944.6546 | P75: =IF($D$32="нет",0,J75+L75+IF(G75=$D$14,$D$20*$D$21/(1+$D$21),0)) -> 19459.16667 | Q75: =IF(G75<=$D$14,M75-P75,0) -> 97295.83333 | R75: 97362.19481 | S75: 19459.16667 | T75: 19472.43896 | U75: 77836.66667 | V75: 77889.75585 | W75: 66.3614754
G76: 66 | H76: 2025-07-01 | I76: 75512.78282 | J76: =IF(G76<=$D$14,I76*$D$21,0) -> 15102.55656 | K76: =IF(G76<=$D$14,O75*$D$17,0) -> 21783.05051 | L76: =IF(G76<=$D$14,K76*$D$21,0) -> 4356.610102 | M76: 116755 | N76: =M76+W76 -> 116814.0787 | O76: =IF(G76<$D$14,O75-I76-J76,0) -> 618329.3152 | P76: 19459.16667 | Q76: 97295.83333 | R76: =Q76+W76 -> 97354.91205 | S76: =IF($D$33="да",Q76*$D$22,0) -> 19459.16667 | T76: =IF($D$33="да",R76*$D$22,0) -> 19470.98241 | U76: =Q76-S76 -> 77836.66667 | V76: =R76-T76 -> 77883.92964 | W76: =IF(G76<=$D$14,O75*$D$23,0) -> 59.07872122
G77: 67 | H77: 2025-08-01 | I77: 78297.03192 | J77: 15659.40638 | K77: 18998.80141 | L77: 3799.760283 | M77: 116755 | N77: 116806.5274 | O77: 524372.8769 | P77: 19459.16667 | Q77: 97295.83333 | R77: 97347.36078 | S77: 19459.16667 | T77: 19469.47216 | U77: 77836.66667 | V77: 77877.88862 | W77: 51.52744293
G78: 68 | H78: 2025-09-01 | I78: 81183.9397 | J78: 16236.78794 | K78: 16111.89363 | L78: 3222.378726 | M78: 116755 | N78: 116798.6977 | O78: 426952.1493 | P78: 19459.16667 | Q78: 97295.83333 | R78: 97339.53107 | S78: 19459.16667 | T78: 19467.90621 | U78: 77836.66667 | V78: 77871.62486 | W78: 43.69773974
G79: 69 | H79: 2025-10-01 | I79: 84177.29132 | J79: 16835.45826 | K79: 13118.54201 | L79: 2623.708402 | M79: 116755 | N79: 116790.5793 | O79: 325939.3997 | P79: 19459.16667 | Q79: 97295.83333 | R79: 97331.41268 | S79: 19459.16667 | T79: 19466.28254 | U79: 77836.66667 | V79: 77865.13014 | W79: 35.57934577
G80: 70 | H80: 2025-11-01 | I80: 87281.0115 | J80: 17456.2023 | K80: 10014.82184 | L80: 2002.964367 | M80: 116755 | N80: 116782.1616 | O80: 221202.1859 | P80: 19459.16667 | Q80: 97295.83333 | R80: 97322.99495 | S80: 19459.16667 | T80: 19464.59899 | U80: 77836.66667 | V80: 77858.39596 | W80: 27.16161664
G81: 71 | H81: 2025-12-01 | I81: 90499.16965 | J81: 18099.83393 | K81: 6796.663685 | L81: 1359.332737 | M81: 116755 | N81: 116773.4335 | O81: 112603.1823 | P81: 19459.16667 | Q81: 97295.83333 | R81: 97314.26685 | S81: 19459.16667 | T81: 19462.85337 | U81: 77836.66667 | V81: 77851.41348 | W81: 18.43351549
G82: 72 | H82: 2026-01-01 | I82: 93835.98525 | J82: 18767.19705 | K82: 3459.848088 | L82: 691.9696176 | M82: 117755 | N82: 117764.3836 | O82: 0 | P82: 19625.83333 | Q82: 98129.16667 | R82: 98138.55027 | S82: 19625.83333 | T82: 19627.71005 | U82: 78503.33333 | V82: 78510.84021 | W82: 9.383598525
G83: 73 | H83: 2026-02-01 | I83: 0 | J83: 0 | K83: 0 | L83: 0 | M83: 0 | N83: 0 | O83: 0 | P83: 0 | Q83: 0 | R83: 0 | S83: 0 | T83: 0 | U83: 0 | V83: 0 | W83: 0
G84: 74 | H84: 2026-03-01 | I84: 0 | J84: 0 | K84: 0 | L84: 0 | M84: 0 | N84: 0 | O84: 0 | P84: 0 | Q84: 0 | R84: 0 | S84: 0 | T84: 0 | U84: 0 | V84: 0 | W84: 0
G85: 75 | H85: 2026-04-01 | I85: 0 | J85: 0 | K85: 0 | L85: 0 | M85: 0 | N85: 0 | O85: 0 | P85: 0 | Q85: 0 | R85: 0 | S85: 0 | T85: 0 | U85: 0 | V85: 0 | W85: 0
G86: 76 | H86: 2026-05-01 | I86: 0 | J86: 0 | K86: 0 | L86: 0 | M86: 0 | N86: 0 | O86: 0 | P86: 0 | Q86: 0 | R86: 0 | S86: 0 | T86: 0 | U86: 0 | V86: 0 | W86: 0
G87: 77 | H87: 2026-06-01 | I87: 0 | J87: 0 | K87: 0 | L87: 0 | M87: 0 | N87: 0 | O87: 0 | P87: 0 | Q87: 0 | R87: 0 | S87: 0 | T87: 0 | U87: 0 | V87: 0 | W87: 0
G88: 78 | H88: 2026-07-01 | I88: 0 | J88: 0 | K88: 0 | L88: 0 | M88: 0 | N88: 0 | O88: 0 | P88: 0 | Q88: 0 | R88: 0 | S88: 0 | T88: 0 | U88: 0 | V88: 0 | W88: 0
G89: 79 | H89: 2026-08-01 | I89: 0 | J89: 0 | K89: 0 | L89: 0 | M89: 0 | N89: 0 | O89: 0 | P89: 0 | Q89: 0 | R89: 0 | S89: 0 | T89: 0 | U89: 0 | V89: 0 | W89: 0
G90: 80 | H90: 2026-09-01 | I90: 0 | J90: 0 | K90: 0 | L90: 0 | M90: 0 | N90: 0 | O90: 0 | P90: 0 | Q90: 0 | R90: 0 | S90: 0 | T90: 0 | U90: 0 | V90: 0 | W90: 0
G91: 81 | H91: 2026-10-01 | I91: 0 | J91: 0 | K91: 0 | L91: 0 | M91: 0 | N91: 0 | O91: 0 | P91: 0 | Q91: 0 | R91: 0 | S91: 0 | T91: 0 | U91: 0 | V91: 0 | W91: 0
G92: 82 | H92: 2026-11-01 | I92: 0 | J92: 0 | K92: 0 | L92: 0 | M92: 0 | N92: 0 | O92: 0 | P92: 0 | Q92: 0 | R92: 0 | S92: 0 | T92: 0 | U92: 0 | V92: 0 | W92: 0
G93: 83 | H93: 2026-12-01 | I93: 0 | J93: 0 | K93: 0 | L93: 0 | M93: 0 | N93: 0 | O93: 0 | P93: 0 | Q93: 0 | R93: 0 | S93: 0 | T93: 0 | U93: 0 | V93: 0 | W93: 0
G94: 84 | H94: 2027-01-01 | I94: 0 | J94: 0 | K94: 0 | L94: 0 | M94: 0 | N94: 0 | O94: 0 | P94: 0 | Q94: 0 | R94: 0 | S94: 0 | T94: 0 | U94: 0 | V94: 0 | W94: 0
G95: 85 | H95: 2027-02-01 | I95: 0 | J95: 0 | K95: 0 | L95: 0 | M95: 0 | N95: 0 | O95: 0 | P95: 0 | Q95: 0 | R95: 0 | S95: 0 | T95: 0 | U95: 0 | V95: 0 | W95: 0
G96: 86 | H96: 2027-03-01 | I96: 0 | J96: 0 | K96: 0 | L96: 0 | M96: 0 | N96: 0 | O96: 0 | P96: 0 | Q96: 0 | R96: 0 | S96: 0 | T96: 0 | U96: 0 | V96: 0 | W96: 0
G97: 87 | H97: 2027-04-01 | I97: 0 | J97: 0 | K97: 0 | L97: 0 | M97: 0 | N97: 0 | O97: 0 | P97: 0 | Q97: 0 | R97: 0 | S97: 0 | T97: 0 | U97: 0 | V97: 0 | W97: 0
G98: 88 | H98: 2027-05-01 | I98: 0 | J98: 0 | K98: 0 | L98: 0 | M98: 0 | N98: 0 | O98: 0 | P98: 0 | Q98: 0 | R98: 0 | S98: 0 | T98: 0 | U98: 0 | V98: 0 | W98: 0
G99: 89 | H99: 2027-06-01 | I99: 0 | J99: 0 | K99: 0 | L99: 0 | M99: 0 | N99: 0 | O99: 0 | P99: 0 | Q99: 0 | R99: 0 | S99: 0 | T99: 0 | U99: 0 | V99: 0 | W99: 0
G100: 90 | H100: 2027-07-01 | I100: 0 | J100: 0 | K100: 0 | L100: 0 | M100: 0 | N100: 0 | O100: 0 | P100: 0 | Q100: 0 | R100: 0 | S100: 0 | T100: 0 | U100: 0 | V100: 0 | W100: 0
G101: 91 | H101: 2027-08-01 | I101: 0 | J101: 0 | K101: 0 | L101: 0 | M101: 0 | N101: 0 | O101: 0 | P101: 0 | Q101: 0 | R101: 0 | S101: 0 | T101: 0 | U101: 0 | V101: 0 | W101: 0
G102: 92 | H102: 2027-09-01 | I102: 0 | J102: 0 | K102: 0 | L102: 0 | M102: 0 | N102: 0 | O102: 0 | P102: 0 | Q102: 0 | R102: 0 | S102: 0 | T102: 0 | U102: 0 | V102: 0 | W102: 0
G103: 93 | H103: 2027-10-01 | I103: 0 | J103: 0 | K103: 0 | L103: 0 | M103: 0 | N103: 0 | O103: 0 | P103: 0 | Q103: 0 | R103: 0 | S103: 0 | T103: 0 | U103: 0 | V103: 0 | W103: 0
G104: 94 | H104: 2027-11-01 | I104: 0 | J104: 0 | K104: 0 | L104: 0 | M104: 0 | N104: 0 | O104: 0 | P104: 0 | Q104: 0 | R104: 0 | S104: 0 | T104: 0 | U104: 0 | V104: 0 | W104: 0
G105: 95 | H105: 2027-12-01 | I105: 0 | J105: 0 | K105: 0 | L105: 0 | M105: 0 | N105: 0 | O105: 0 | P105: 0 | Q105: 0 | R105: 0 | S105: 0 | T105: 0 | U105: 0 | V105: 0 | W105: 0
G106: 96 | H106: 2028-01-01 | I106: 0 | J106: 0 | K106: 0 | L106: 0 | M106: 0 | N106: 0 | O106: 0 | P106: 0 | Q106: 0 | R106: 0 | S106: 0 | T106: 0 | U106: 0 | V106: 0 | W106: 0
G107: 97 | H107: 2028-02-01 | I107: =IF(G107<$D$14,(M107-L107-K107)*1/(1+$D$21),IF(G107=$D$14,(M107-L107-K107-$D$20)*1/(1+$D$21),0)) -> 0 | J107: 0 | K107: 0 | L107: 0 | M107: =IF(G107<=$D$14,-$D$25,0)+IF(G107=$D$14,$D$20,0) -> 0 | N107: 0 | O107: 0 | P107: =IF($D$32="нет",0,J107+L107+IF(G107=$D$14,$D$20*$D$21/(1+$D$21),0)) -> 0 | Q107: =IF(G107<=$D$14,M107-P107,0) -> 0 | R107: 0 | S107: 0 | T107: 0 | U107: 0 | V107: 0 | W107: 0
G108: 98 | H108: 2028-03-01 | I108: 0 | J108: 0 | K108: =IF(G108<=$D$14,O107*$D$17,0) -> 0 | L108: 0 | M108: 0 | N108: 0 | O108: =IF(G108<$D$14,O107-I108-J108,0) -> 0 | P108: 0 | Q108: 0 | R108: 0 | S108: 0 | T108: 0 | U108: 0 | V108: 0 | W108: =IF(G108<=$D$14,O107*$D$23,0) -> 0
G109: 99 | H109: 2028-04-01 | I109: 0 | J109: 0 | K109: 0 | L109: 0 | M109: 0 | N109: 0 | O109: 0 | P109: 0 | Q109: 0 | R109: 0 | S109: 0 | T109: 0 | U109: 0 | V109: 0 | W109: 0
G110: 100 | H110: 2028-05-01 | I110: 0 | J110: 0 | K110: 0 | L110: 0 | M110: 0 | N110: 0 | O110: 0 | P110: 0 | Q110: 0 | R110: 0 | S110: 0 | T110: 0 | U110: 0 | V110: 0 | W110: 0
G111: 101 | H111: 2028-06-01 | I111: 0 | J111: 0 | K111: 0 | L111: 0 | M111: 0 | N111: 0 | O111: 0 | P111: 0 | Q111: 0 | R111: 0 | S111: 0 | T111: 0 | U111: 0 | V111: 0 | W111: 0
G112: 102 | H112: 2028-07-01 | I112: 0 | J112: 0 | K112: 0 | L112: 0 | M112: 0 | N112: 0 | O112: 0 | P112: 0 | Q112: 0 | R112: 0 | S112: 0 | T112: 0 | U112: 0 | V112: 0 | W112: 0
G113: 103 | H113: 2028-08-01 | I113: 0 | J113: 0 | K113: 0 | L113: 0 | M113: 0 | N113: 0 | O113: 0 | P113: 0 | Q113: 0 | R113: 0 | S113: 0 | T113: 0 | U113: 0 | V113: 0 | W113: 0
G114: 104 | H114: 2028-09-01 | I114: 0 | J114: 0 | K114: 0 | L114: 0 | M114: 0 | N114: 0 | O114: 0 | P114: 0 | Q114: 0 | R114: 0 | S114: 0 | T114: 0 | U114: 0 | V114: 0 | W114: 0
G115: 105 | H115: 2028-10-01 | I115: 0 | J115: 0 | K115: 0 | L115: 0 | M115: 0 | N115: 0 | O115: 0 | P115: 0 | Q115: 0 | R115: 0 | S115: 0 | T115: 0 | U115: 0 | V115: 0 | W115: 0
G116: 106 | H116: 2028-11-01 | I116: 0 | J116: 0 | K116: 0 | L116: 0 | M116: 0 | N116: 0 | O116: 0 | P116: 0 | Q116: 0 | R116: 0 | S116: 0 | T116: 0 | U116: 0 | V116: 0 | W116: 0
G117: 107 | H117: 2028-12-01 | I117: 0 | J117: 0 | K117: 0 | L117: 0 | M117: 0 | N117: 0 | O117: 0 | P117: 0 | Q117: 0 | R117: 0 | S117: 0 | T117: 0 | U117: 0 | V117: 0 | W117: 0
G118: 108 | H118: 2029-01-01 | I118: 0 | J118: 0 | K118: 0 | L118: 0 | M118: 0 | N118: 0 | O118: 0 | P118: 0 | Q118: 0 | R118: 0 | S118: 0 | T118: 0 | U118: 0 | V118: 0 | W118: 0
G119: 109 | H119: 2029-02-01 | I119: 0 | J119: 0 | K119: 0 | L119: 0 | M119: 0 | N119: 0 | O119: 0 | P119: 0 | Q119: 0 | R119: 0 | S119: 0 | T119: 0 | U119: 0 | V119: 0 | W119: 0
G120: 110 | H120: 2029-03-01 | I120: 0 | J120: 0 | K120: 0 | L120: 0 | M120: 0 | N120: 0 | O120: 0 | P120: 0 | Q120: 0 | R120: 0 | S120: 0 | T120: 0 | U120: 0 | V120: 0 | W120: 0
G121: 111 | H121: 2029-04-01 | I121: 0 | J121: 0 | K121: 0 | L121: 0 | M121: 0 | N121: 0 | O121: 0 | P121: 0 | Q121: 0 | R121: 0 | S121: 0 | T121: 0 | U121: 0 | V121: 0 | W121: 0
G122: 112 | H122: 2029-05-01 | I122: 0 | J122: 0 | K122: 0 | L122: 0 | M122: 0 | N122: 0 | O122: 0 | P122: 0 | Q122: 0 | R122: 0 | S122: 0 | T122: 0 | U122: 0 | V122: 0 | W122: 0
G123: 113 | H123: 2029-06-01 | I123: 0 | J123: 0 | K123: 0 | L123: 0 | M123: 0 | N123: 0 | O123: 0 | P123: 0 | Q123: 0 | R123: 0 | S123: 0 | T123: 0 | U123: 0 | V123: 0 | W123: 0
G124: 114 | H124: 2029-07-01 | I124: 0 | J124: 0 | K124: 0 | L124: 0 | M124: 0 | N124: 0 | O124: 0 | P124: 0 | Q124: 0 | R124: 0 | S124: 0 | T124: 0 | U124: 0 | V124: 0 | W124: 0
G125: 115 | H125: 2029-08-01 | I125: 0 | J125: 0 | K125: 0 | L125: 0 | M125: 0 | N125: 0 | O125: 0 | P125: 0 | Q125: 0 | R125: 0 | S125: 0 | T125: 0 | U125: 0 | V125: 0 | W125: 0
G126: 116 | H126: 2029-09-01 | I126: 0 | J126: 0 | K126: 0 | L126: 0 | M126: 0 | N126: 0 | O126: 0 | P126: 0 | Q126: 0 | R126: 0 | S126: 0 | T126: 0 | U126: 0 | V126: 0 | W126: 0
G127: 117 | H127: 2029-10-01 | I127: 0 | J127: 0 | K127: 0 | L127: 0 | M127: 0 | N127: 0 | O127: 0 | P127: 0 | Q127: 0 | R127: 0 | S127: 0 | T127: 0 | U127: 0 | V127: 0 | W127: 0
G128: 118 | H128: 2029-11-01 | I128: 0 | J128: 0 | K128: 0 | L128: 0 | M128: 0 | N128: 0 | O128: 0 | P128: 0 | Q128: 0 | R128: 0 | S128: 0 | T128: 0 | U128: 0 | V128: 0 | W128: 0
G129: 119 | H129: 2029-12-01 | I129: 0 | J129: 0 | K129: 0 | L129: 0 | M129: 0 | N129: 0 | O129: 0 | P129: 0 | Q129: 0 | R129: 0 | S129: 0 | T129: 0 | U129: 0 | V129: 0 | W129: 0
G130: 120 | H130: 2030-01-01 | I130: 0 | J130: 0 | K130: 0 | L130: 0 | M130: 0 | N130: 0 | O130: 0 | P130: 0 | Q130: 0 | R130: 0 | S130: 0 | T130: 0 | U130: 0 | V130: 0 | W130: 0
G131: 121 | H131: 2030-02-01 | I131: 0 | J131: 0 | K131: 0 | L131: 0 | M131: 0 | N131: 0 | O131: 0 | P131: 0 | Q131: 0 | R131: 0 | S131: 0 | T131: 0 | U131: 0 | V131: 0 | W131: 0
G132: 122 | H132: 2030-03-01 | I132: 0 | J132: 0 | K132: 0 | L132: 0 | M132: 0 | N132: 0 | O132: 0 | P132: 0 | Q132: 0 | R132: 0 | S132: 0 | T132: 0 | U132: 0 | V132: 0 | W132: 0
G133: 123 | H133: 2030-04-01 | I133: 0 | J133: 0 | K133: 0 | L133: 0 | M133: 0 | N133: 0 | O133: 0 | P133: 0 | Q133: 0 | R133: 0 | S133: 0 | T133: 0 | U133: 0 | V133: 0 | W133: 0
G134: 124 | H134: 2030-05-01 | I134: 0 | J134: 0 | K134: 0 | L134: 0 | M134: 0 | N134: 0 | O134: 0 | P134: 0 | Q134: 0 | R134: 0 | S134: 0 | T134: 0 | U134: 0 | V134: 0 | W134: 0
G135: 125 | H135: 2030-06-01 | I135: 0 | J135: 0 | K135: 0 | L135: 0 | M135: 0 | N135: 0 | O135: 0 | P135: 0 | Q135: 0 | R135: 0 | S135: 0 | T135: 0 | U135: 0 | V135: 0 | W135: 0
G136: 126 | H136: 2030-07-01 | I136: 0 | J136: 0 | K136: 0 | L136: 0 | M136: 0 | N136: 0 | O136: 0 | P136: 0 | Q136: 0 | R136: 0 | S136: 0 | T136: 0 | U136: 0 | V136: 0 | W136: 0
G137: 127 | H137: 2030-08-01 | I137: 0 | J137: 0 | K137: 0 | L137: 0 | M137: 0 | N137: 0 | O137: 0 | P137: 0 | Q137: 0 | R137: 0 | S137: 0 | T137: 0 | U137: 0 | V137: 0 | W137: 0
G138: 128 | H138: 2030-09-01 | I138: 0 | J138: 0 | K138: 0 | L138: 0 | M138: 0 | N138: 0 | O138: 0 | P138: 0 | Q138: 0 | R138: 0 | S138: 0 | T138: 0 | U138: 0 | V138: 0 | W138: 0
G139: 129 | H139: 2030-10-01 | I139: =IF(G139<$D$14,(M139-L139-K139)*1/(1+$D$21),IF(G139=$D$14,(M139-L139-K139-$D$20)*1/(1+$D$21),0)) -> 0 | J139: 0 | K139: 0 | L139: 0 | M139: =IF(G139<=$D$14,-$D$25,0)+IF(G139=$D$14,$D$20,0) -> 0 | N139: 0 | O139: 0 | P139: =IF($D$32="нет",0,J139+L139+IF(G139=$D$14,$D$20*$D$21/(1+$D$21),0)) -> 0 | Q139: =IF(G139<=$D$14,M139-P139,0) -> 0 | R139: 0 | S139: 0 | T139: 0 | U139: 0 | V139: 0 | W139: 0
G140: 130 | H140: 2030-11-01 | I140: 0 | J140: =IF(G140<=$D$14,I140*$D$21,0) -> 0 | K140: =IF(G140<=$D$14,O139*$D$17,0) -> 0 | L140: =IF(G140<=$D$14,K140*$D$21,0) -> 0 | M140: 0 | N140: =M140+W140 -> 0 | O140: =IF(G140<$D$14,O139-I140-J140,0) -> 0 | P140: 0 | Q140: 0 | R140: =Q140+W140 -> 0 | S140: =IF($D$33="да",Q140*$D$22,0) -> 0 | T140: =IF($D$33="да",R140*$D$22,0) -> 0 | U140: =Q140-S140 -> 0 | V140: =R140-T140 -> 0 | W140: =IF(G140<=$D$14,O139*$D$23,0) -> 0
G141: 131 | H141: 2030-12-01 | I141: 0 | J141: 0 | K141: 0 | L141: 0 | M141: 0 | N141: 0 | O141: 0 | P141: 0 | Q141: 0 | R141: 0 | S141: 0 | T141: 0 | U141: 0 | V141: 0 | W141: 0
G142: 132 | H142: 2031-01-01 | I142: 0 | J142: 0 | K142: 0 | L142: 0 | M142: 0 | N142: 0 | O142: 0 | P142: 0 | Q142: 0 | R142: 0 | S142: 0 | T142: 0 | U142: 0 | V142: 0 | W142: 0
G143: 133 | H143: 2031-02-01 | I143: 0 | J143: 0 | K143: 0 | L143: 0 | M143: 0 | N143: 0 | O143: 0 | P143: 0 | Q143: 0 | R143: 0 | S143: 0 | T143: 0 | U143: 0 | V143: 0 | W143: 0
G144: 134 | H144: 2031-03-01 | I144: 0 | J144: 0 | K144: 0 | L144: 0 | M144: 0 | N144: 0 | O144: 0 | P144: 0 | Q144: 0 | R144: 0 | S144: 0 | T144: 0 | U144: 0 | V144: 0 | W144: 0
G145: 135 | H145: 2031-04-01 | I145: 0 | J145: 0 | K145: 0 | L145: 0 | M145: 0 | N145: 0 | O145: 0 | P145: 0 | Q145: 0 | R145: 0 | S145: 0 | T145: 0 | U145: 0 | V145: 0 | W145: 0
G146: 136 | H146: 2031-05-01 | I146: 0 | J146: 0 | K146: 0 | L146: 0 | M146: 0 | N146: 0 | O146: 0 | P146: 0 | Q146: 0 | R146: 0 | S146: 0 | T146: 0 | U146: 0 | V146: 0 | W146: 0
G147: 137 | H147: 2031-06-01 | I147: 0 | J147: 0 | K147: 0 | L147: 0 | M147: 0 | N147: 0 | O147: 0 | P147: 0 | Q147: 0 | R147: 0 | S147: 0 | T147: 0 | U147: 0 | V147: 0 | W147: 0
G148: 138 | H148: 2031-07-01 | I148: 0 | J148: 0 | K148: 0 | L148: 0 | M148: 0 | N148: 0 | O148: 0 | P148: 0 | Q148: 0 | R148: 0 | S148: 0 | T148: 0 | U148: 0 | V148: 0 | W148: 0
G149: 139 | H149: 2031-08-01 | I149: 0 | J149: 0 | K149: 0 | L149: 0 | M149: 0 | N149: 0 | O149: 0 | P149: 0 | Q149: 0 | R149: 0 | S149: 0 | T149: 0 | U149: 0 | V149: 0 | W149: 0
G150: 140 | H150: 2031-09-01 | I150: 0 | J150: 0 | K150: 0 | L150: 0 | M150: 0 | N150: 0 | O150: 0 | P150: 0 | Q150: 0 | R150: 0 | S150: 0 | T150: 0 | U150: 0 | V150: 0 | W150: 0
G151: 141 | H151: 2031-10-01 | I151: 0 | J151: 0 | K151: 0 | L151: 0 | M151: 0 | N151: 0 | O151: 0 | P151: 0 | Q151: 0 | R151: 0 | S151: 0 | T151: 0 | U151: 0 | V151: 0 | W151: 0
G152: 142 | H152: 2031-11-01 | I152: 0 | J152: 0 | K152: 0 | L152: 0 | M152: 0 | N152: 0 | O152: 0 | P152: 0 | Q152: 0 | R152: 0 | S152: 0 | T152: 0 | U152: 0 | V152: 0 | W152: 0
G153: 143 | H153: 2031-12-01 | I153: 0 | J153: 0 | K153: 0 | L153: 0 | M153: 0 | N153: 0 | O153: 0 | P153: 0 | Q153: 0 | R153: 0 | S153: 0 | T153: 0 | U153: 0 | V153: 0 | W153: 0
G154: 144 | H154: 2032-01-01 | I154: 0 | J154: 0 | K154: 0 | L154: 0 | M154: 0 | N154: 0 | O154: 0 | P154: 0 | Q154: 0 | R154: 0 | S154: 0 | T154: 0 | U154: 0 | V154: 0 | W154: 0
G155: 145 | H155: 2032-02-01 | I155: 0 | J155: 0 | K155: 0 | L155: 0 | M155: 0 | N155: 0 | O155: 0 | P155: 0 | Q155: 0 | R155: 0 | S155: 0 | T155: 0 | U155: 0 | V155: 0 | W155: 0
G156: 146 | H156: 2032-03-01 | I156: 0 | J156: 0 | K156: 0 | L156: 0 | M156: 0 | N156: 0 | O156: 0 | P156: 0 | Q156: 0 | R156: 0 | S156: 0 | T156: 0 | U156: 0 | V156: 0 | W156: 0
G157: 147 | H157: 2032-04-01 | I157: 0 | J157: 0 | K157: 0 | L157: 0 | M157: 0 | N157: 0 | O157: 0 | P157: 0 | Q157: 0 | R157: 0 | S157: 0 | T157: 0 | U157: 0 | V157: 0 | W157: 0
G158: 148 | H158: 2032-05-01 | I158: 0 | J158: 0 | K158: 0 | L158: 0 | M158: 0 | N158: 0 | O158: 0 | P158: 0 | Q158: 0 | R158: 0 | S158: 0 | T158: 0 | U158: 0 | V158: 0 | W158: 0
G159: 149 | H159: 2032-06-01 | I159: 0 | J159: 0 | K159: 0 | L159: 0 | M159: 0 | N159: 0 | O159: 0 | P159: 0 | Q159: 0 | R159: 0 | S159: 0 | T159: 0 | U159: 0 | V159: 0 | W159: 0
G160: 150 | H160: 2032-07-01 | I160: 0 | J160: 0 | K160: 0 | L160: 0 | M160: 0 | N160: 0 | O160: 0 | P160: 0 | Q160: 0 | R160: 0 | S160: 0 | T160: 0 | U160: 0 | V160: 0 | W160: 0
G161: 151 | H161: 2032-08-01 | I161: 0 | J161: 0 | K161: 0 | L161: 0 | M161: 0 | N161: 0 | O161: 0 | P161: 0 | Q161: 0 | R161: 0 | S161: 0 | T161: 0 | U161: 0 | V161: 0 | W161: 0
G162: 152 | H162: 2032-09-01 | I162: 0 | J162: 0 | K162: 0 | L162: 0 | M162: 0 | N162: 0 | O162: 0 | P162: 0 | Q162: 0 | R162: 0 | S162: 0 | T162: 0 | U162: 0 | V162: 0 | W162: 0
G163: 153 | H163: 2032-10-01 | I163: 0 | J163: 0 | K163: 0 | L163: 0 | M163: 0 | N163: 0 | O163: 0 | P163: 0 | Q163: 0 | R163: 0 | S163: 0 | T163: 0 | U163: 0 | V163: 0 | W163: 0
G164: 154 | H164: 2032-11-01 | I164: 0 | J164: 0 | K164: 0 | L164: 0 | M164: 0 | N164: 0 | O164: 0 | P164: 0 | Q164: 0 | R164: 0 | S164: 0 | T164: 0 | U164: 0 | V164: 0 | W164: 0
G165: 155 | H165: 2032-12-01 | I165: 0 | J165: 0 | K165: 0 | L165: 0 | M165: 0 | N165: 0 | O165: 0 | P165: 0 | Q165: 0 | R165: 0 | S165: 0 | T165: 0 | U165: 0 | V165: 0 | W165: 0
G166: 156 | H166: 2033-01-01 | I166: 0 | J166: 0 | K166: 0 | L166: 0 | M166: 0 | N166: 0 | O166: 0 | P166: 0 | Q166: 0 | R166: 0 | S166: 0 | T166: 0 | U166: 0 | V166: 0 | W166: 0
G167: 157 | H167: 2033-02-01 | I167: 0 | J167: 0 | K167: 0 | L167: 0 | M167: 0 | N167: 0 | O167: 0 | P167: 0 | Q167: 0 | R167: 0 | S167: 0 | T167: 0 | U167: 0 | V167: 0 | W167: 0
G168: 158 | H168: 2033-03-01 | I168: 0 | J168: 0 | K168: 0 | L168: 0 | M168: 0 | N168: 0 | O168: 0 | P168: 0 | Q168: 0 | R168: 0 | S168: 0 | T168: 0 | U168: 0 | V168: 0 | W168: 0
G169: 159 | H169: 2033-04-01 | I169: 0 | J169: 0 | K169: 0 | L169: 0 | M169: 0 | N169: 0 | O169: 0 | P169: 0 | Q169: 0 | R169: 0 | S169: 0 | T169: 0 | U169: 0 | V169: 0 | W169: 0
G170: 160 | H170: 2033-05-01 | I170: 0 | J170: 0 | K170: 0 | L170: 0 | M170: 0 | N170: 0 | O170: 0 | P170: 0 | Q170: 0 | R170: 0 | S170: 0 | T170: 0 | U170: 0 | V170: 0 | W170: 0
G171: 161 | H171: 2033-06-01 | I171: =IF(G171<$D$14,(M171-L171-K171)*1/(1+$D$21),IF(G171=$D$14,(M171-L171-K171-$D$20)*1/(1+$D$21),0)) -> 0 | J171: 0 | K171: 0 | L171: 0 | M171: =IF(G171<=$D$14,-$D$25,0)+IF(G171=$D$14,$D$20,0) -> 0 | N171: 0 | O171: 0 | P171: =IF($D$32="нет",0,J171+L171+IF(G171=$D$14,$D$20*$D$21/(1+$D$21),0)) -> 0 | Q171: =IF(G171<=$D$14,M171-P171,0) -> 0 | R171: 0 | S171: 0 | T171: 0 | U171: 0 | V171: 0 | W171: 0
G172: 162 | H172: 2033-07-01 | I172: 0 | J172: 0 | K172: =IF(G172<=$D$14,O171*$D$17,0) -> 0 | L172: 0 | M172: 0 | N172: 0 | O172: =IF(G172<$D$14,O171-I172-J172,0) -> 0 | P172: 0 | Q172: 0 | R172: 0 | S172: 0 | T172: 0 | U172: 0 | V172: 0 | W172: =IF(G172<=$D$14,O171*$D$23,0) -> 0
G173: 163 | H173: 2033-08-01 | I173: 0 | J173: 0 | K173: 0 | L173: 0 | M173: 0 | N173: 0 | O173: 0 | P173: 0 | Q173: 0 | R173: 0 | S173: 0 | T173: 0 | U173: 0 | V173: 0 | W173: 0
G174: 164 | H174: 2033-09-01 | I174: 0 | J174: 0 | K174: 0 | L174: 0 | M174: 0 | N174: 0 | O174: 0 | P174: 0 | Q174: 0 | R174: 0 | S174: 0 | T174: 0 | U174: 0 | V174: 0 | W174: 0
G175: 165 | H175: 2033-10-01 | I175: 0 | J175: 0 | K175: 0 | L175: 0 | M175: 0 | N175: 0 | O175: 0 | P175: 0 | Q175: 0 | R175: 0 | S175: 0 | T175: 0 | U175: 0 | V175: 0 | W175: 0
G176: 166 | H176: 2033-11-01 | I176: 0 | J176: 0 | K176: 0 | L176: 0 | M176: 0 | N176: 0 | O176: 0 | P176: 0 | Q176: 0 | R176: 0 | S176: 0 | T176: 0 | U176: 0 | V176: 0 | W176: 0
G177: 167 | H177: 2033-12-01 | I177: 0 | J177: 0 | K177: 0 | L177: 0 | M177: 0 | N177: 0 | O177: 0 | P177: 0 | Q177: 0 | R177: 0 | S177: 0 | T177: 0 | U177: 0 | V177: 0 | W177: 0
G178: 168 | H178: 2034-01-01 | I178: 0 | J178: 0 | K178: 0 | L178: 0 | M178: 0 | N178: 0 | O178: 0 | P178: 0 | Q178: 0 | R178: 0 | S178: 0 | T178: 0 | U178: 0 | V178: 0 | W178: 0
G179: 169 | H179: 2034-02-01 | I179: 0 | J179: 0 | K179: 0 | L179: 0 | M179: 0 | N179: 0 | O179: 0 | P179: 0 | Q179: 0 | R179: 0 | S179: 0 | T179: 0 | U179: 0 | V179: 0 | W179: 0
G180: 170 | H180: 2034-03-01 | I180: 0 | J180: 0 | K180: 0 | L180: 0 | M180: 0 | N180: 0 | O180: 0 | P180: 0 | Q180: 0 | R180: 0 | S180: 0 | T180: 0 | U180: 0 | V180: 0 | W180: 0
G181: 171 | H181: 2034-04-01 | I181: 0 | J181: 0 | K181: 0 | L181: 0 | M181: 0 | N181: 0 | O181: 0 | P181: 0 | Q181: 0 | R181: 0 | S181: 0 | T181: 0 | U181: 0 | V181: 0 | W181: 0
G182: 172 | H182: 2034-05-01 | I182: 0 | J182: 0 | K182: 0 | L182: 0 | M182: 0 | N182: 0 | O182: 0 | P182: 0 | Q182: 0 | R182: 0 | S182: 0 | T182: 0 | U182: 0 | V182: 0 | W182: 0
G183: 173 | H183: 2034-06-01 | I183: 0 | J183: 0 | K183: 0 | L183: 0 | M183: 0 | N183: 0 | O183: 0 | P183: 0 | Q183: 0 | R183: 0 | S183: 0 | T183: 0 | U183: 0 | V183: 0 | W183: 0
G184: 174 | H184: 2034-07-01 | I184: 0 | J184: 0 | K184: 0 | L184: 0 | M184: 0 | N184: 0 | O184: 0 | P184: 0 | Q184: 0 | R184: 0 | S184: 0 | T184: 0 | U184: 0 | V184: 0 | W184: 0
G185: 175 | H185: 2034-08-01 | I185: 0 | J185: 0 | K185: 0 | L185: 0 | M185: 0 | N185: 0 | O185: 0 | P185: 0 | Q185: 0 | R185: 0 | S185: 0 | T185: 0 | U185: 0 | V185: 0 | W185: 0
G186: 176 | H186: 2034-09-01 | I186: 0 | J186: 0 | K186: 0 | L186: 0 | M186: 0 | N186: 0 | O186: 0 | P186: 0 | Q186: 0 | R186: 0 | S186: 0 | T186: 0 | U186: 0 | V186: 0 | W186: 0
G187: 177 | H187: 2034-10-01 | I187: 0 | J187: 0 | K187: 0 | L187: 0 | M187: 0 | N187: 0 | O187: 0 | P187: 0 | Q187: 0 | R187: 0 | S187: 0 | T187: 0 | U187: 0 | V187: 0 | W187: 0
G188: 178 | H188: 2034-11-01 | I188: 0 | J188: 0 | K188: 0 | L188: 0 | M188: 0 | N188: 0 | O188: 0 | P188: 0 | Q188: 0 | R188: 0 | S188: 0 | T188: 0 | U188: 0 | V188: 0 | W188: 0
G189: 179 | H189: 2034-12-01 | I189: 0 | J189: 0 | K189: 0 | L189: 0 | M189: 0 | N189: 0 | O189: 0 | P189: 0 | Q189: 0 | R189: 0 | S189: 0 | T189: 0 | U189: 0 | V189: 0 | W189: 0
G190: 180 | H190: 2035-01-01 | I190: 0 | J190: 0 | K190: 0 | L190: 0 | M190: 0 | N190: 0 | O190: 0 | P190: 0 | Q190: 0 | R190: 0 | S190: 0 | T190: 0 | U190: 0 | V190: 0 | W190: 0

Sheet Равномерное (hidden)
G3: ЧИСТВНДОХ | M3: =XIRR(M9:M189,H9:H189) ->  | N3: =XIRR(N9:N189,H9:H189) ->  | Q3: =XIRR(Q9:Q189,H9:H189) ->  | R3: =XIRR(R9:R189,H9:H189) ->  | U3: =XIRR(U9:U189,H9:H189) ->  | V3: =XIRR(V9:V189,H9:H189) -> 
I4: =SUM(I7:I189) -> 3491666.667 | J4: =SUM(J7:J189) -> 698333.3333 | K4: =SUM(K7:K189) -> 1.041595679e+10 | L4: =SUM(L7:L189) -> 2083191358 | M4: =SUM(M7:M189)-M9-M8 -> 1.250333915e+10 | N4: =SUM(N7:N189)-N9-N8 -> 1.250334807e+10 | P4: =SUM(P7:P189)-P8 -> 2083889858 | Q4: =SUM(Q7:Q189)-Q9-Q8 -> 1.041923979e+10 | R4: =SUM(R7:R189)-R9-R8 -> 1.041924871e+10 | S4: =SUM(S7:S189)-S8 -> 2083847958 | T4: =SUM(T7:T189)-T8 -> 2083849742 | U4: =SUM(U7:U189)-U9-U8 -> 8334553832 | V4: =SUM(V7:V189)-V9-V8 -> 8334560969 | W4: =SUM(W7:W189)-W8 -> 8921.208333
G5: Платеж | I5: Погашение стоимости имущества | K5: Процент по ставке | L5: НДС по процентам | M5: Лизинговый платеж | N5: Лизинговый платеж со страхованием | O5: Остаточная стоимость имущества | P5: Возмещение НДС | Q5: Поток без НДС | R5: Поток без НДС со страхованием | S5: Экономия НП от% | T5: Экономия НП от% и страхования | U5: Поток без НДС и НП | V5: Поток без НДС и НП со страхованием | W5: Страхование
I6: без НДС | J6: НДС
G7: Аванс | I7: =D18-J7 -> 1047500 | J7: =D18*$D$20/(1+$D$20) -> 209500 | M7: =SUM(I7:J7) -> 1257000 | N7: =M7 -> 1257000 | O7: =D10-J7-I7 -> 2933000 | P7: =IF($D$31="нет",0,J7) -> 209500 | Q7: =M7-P7 -> 1047500 | R7: =Q7 -> 1047500 | S7: =IF($D$32="да",Q7*$D$21,0) -> 209500 | T7: =IF($D$32="да",R7*$D$21,0) -> 209500 | U7: =IF($D$32="да",Q7*$D$21,0) -> 209500 | V7: =U7 -> 209500
F8: в конце | G8: Выкупная стоимость | M8: =D19 -> 1000
G9: 0 | H9: 2020-01-01 | M9: =-(D10-D18) -> -2933000 | N9: =M9 -> -2933000 | Q9: =M9 -> -2933000 | R9: =Q9 -> -2933000 | U9: =Q9 -> -2933000 | V9: =U9 -> -2933000
A10: Стоимость оборудования | D10: ='Калькулятор лизинга'!K5 -> 4190000 | G10: 1 | H10: 2020-02-01 | I10: =IF(G10<=$D$13,$O$7/$D$13/(1+$D$20),0) -> 33946.75926 | J10: =IF(G10<=$D$13,I10*$D$20,0) -> 6789.351852 | K10: =IF(G10<=$D$13,O7*$D$16,0) -> 285368679.2 | L10: =IF(G10<=$D$13,K10*$D$20,0) -> 57073735.83 | M10: =IF(G10<=$D$13,SUM(I10:L10),0)+IF(G10=$D$13,$D$19,0) -> 342483151.1 | N10: =M10+W10 -> 342483395.5 | O10: =IF(G10<=$D$13,O7-I10-J10,0) -> 2892263.889 | P10: =IF($D$31="нет",0,J10+L10+IF(G10=$D$13,$D$19*$D$20/(1+$D$20),0)) -> 57080525.19 | Q10: =IF(G10<=$D$13,M10-P10,0)-P7 -> 285193125.9 | R10: =Q10+W10 -> 285193370.3 | S10: =IF($D$32="да",Q10*$D$21,0) -> 57038625.19 | T10: =IF($D$32="да",R10*$D$21,0) -> 57038674.07 | U10: =Q10-S10-T7 -> 227945000.7 | V10: =R10-T10-T7 -> 227945196.3 | W10: =IF(G10<=$D$13,$D$22*O7) -> 244.4166667
A11: НДС | D11: =D10*D20/(1+D20) -> 698333.3333 | G11: 2 | H11: 2020-03-01 | I11: =IF(G11<=$D$13,$O$7/$D$13/(1+$D$20),0) -> 33946.75926 | J11: =IF(G11<=$D$13,I11*$D$20,0) -> 6789.351852 | K11: =IF(G11<=$D$13,O10*$D$16,0) -> 281405225.3 | L11: =IF(G11<=$D$13,K11*$D$20,0) -> 56281045.06 | M11: 337727006.5 | N11: =M11+W11 -> 337727247.5 | O11: =IF(G11<=$D$13,O10-I11-J11,0) -> 2851527.778 | P11: =IF($D$31="нет",0,J11+L11+IF(G11=$D$13,$D$19*$D$20/(1+$D$20),0)) -> 56287834.41 | Q11: =IF(G11<=$D$13,M11-P11,0) -> 281439172 | R11: =Q11+W11 -> 281439413.1 | S11: =IF($D$32="да",Q11*$D$21,0) -> 56287834.41 | T11: =IF($D$32="да",R11*$D$21,0) -> 56287882.61 | U11: =Q11-S11 -> 225151337.6 | V11: =R11-T11 -> 225151530.5 | W11: =IF(G11<=$D$13,$D$22*O10,0) -> 241.0219907
A12: Без НДС | D12: =D10-D11 -> 3491666.667 | G12: 3 | H12: 2020-04-01 | I12: 33946.75926 | J12: 6789.351852 | K12: =IF(G12<=$D$13,O11*$D$16,0) -> 277441771.4 | L12: =IF(G12<=$D$13,K12*$D$20,0) -> 55488354.28 | M12: 332970861.8 | N12: 332971099.4 | O12: =IF(G12<=$D$13,O11-I12-J12,0) -> 2810791.667 | P12: 55495143.63 | Q12: 277475718.2 | R12: 277475955.8 | S12: 55495143.63 | T12: 55495191.16 | U12: 221980574.5 | V12: 221980764.6 | W12: =IF(G12<=$D$13,$D$22*O11,0) -> 237.6273148
A13: Срок, мес | D13: ='Калькулятор лизинга'!F16 -> 72 | G13: 4 | H13: 2020-05-01 | I13: 33946.75926 | J13: 6789.351852 | K13: 273478317.5 | L13: 54695663.51 | M13: 328214717.2 | N13: 328214951.4 | O13: 2770055.556 | P13: 54702452.86 | Q13: 273512264.3 | R13: 273512498.5 | S13: 54702452.86 | T13: 54702499.71 | U13: 218809811.4 | V13: 218809998.8 | W13: 234.2326389
A14: Срок, лет | D14: =D13/12 -> 6 | G14: 5 | H14: 2020-06-01 | I14: 33946.75926 | J14: 6789.351852 | K14: 269514863.7 | L14: 53902972.73 | M14: 323458572.5 | N14: 323458803.3 | O14: 2729319.444 | P14: 53909762.08 | Q14: 269548810.4 | R14: 269549041.3 | S14: 53909762.08 | T14: 53909808.25 | U14: 215639048.3 | V14: 215639233 | W14: 230.837963
A15: Ставка в год | D15: ='Калькулятор лизинга'!F21/100 -> 1167.55 | G15: 6 | H15: 2020-07-01 | I15: 33946.75926 | J15: 6789.351852 | K15: 265551409.8 | L15: 53110281.96 | M15: 318702427.8 | N15: 318702655.3 | O15: 2688583.333 | P15: 53117071.31 | Q15: 265585356.5 | R15: 265585584 | S15: 53117071.31 | T15: 53117116.8 | U15: 212468285.2 | V15: 212468467.2 | W15: 227.443287
A16: Ставка в мес | D16: =D15/12 -> 97.29583333 | G16: 7 | H16: 2020-08-01 | I16: 33946.75926 | J16: 6789.351852 | K16: 261587955.9 | L16: 52317591.18 | M16: 313946283.2 | N16: 313946507.2 | O16: 2647847.222 | P16: 52324380.53 | Q16: 261621902.7 | R16: 261622126.7 | S16: 52324380.53 | T16: 52324425.34 | U16: 209297522.1 | V16: 209297701.4 | W16: 224.0486111
A17: Аванс, % | D17: =IF('Калькулятор лизинга'!D24=Лист2!L2,'Калькулятор лизинга'!F24/100,Равномерное!D18/Равномерное!D10) -> 0.3 | G17: 8 | H17: 2020-09-01 | I17: 33946.75926 | J17: 6789.351852 | K17: 257624502 | L17: 51524900.41 | M17: 309190138.5 | N17: 309190359.2 | O17: 2607111.111 | P17: 51531689.76 | Q17: 257658448.8 | R17: 257658669.4 | S17: 51531689.76 | T17: 51531733.89 | U17: 206126759 | V17: 206126935.6 | W17: 220.6539352
A18: Аванс | D18: =IF('Калькулятор лизинга'!D24=Лист2!L2,D10*D17,'Калькулятор лизинга'!F24) -> 1257000 | G18: 9 | H18: 2020-10-01 | I18: 33946.75926 | J18: 6789.351852 | K18: 253661048.1 | L18: 50732209.63 | M18: 304433993.9 | N18: 304434211.1 | O18: 2566375 | P18: 50738998.98 | Q18: 253694994.9 | R18: 253695212.2 | S18: 50738998.98 | T18: 50739042.43 | U18: 202955995.9 | V18: 202956169.7 | W18: 217.2592593
A19: Выкупной платеж | D19: ='Калькулятор лизинга'!F27 -> 1000 | G19: 10 | H19: 2020-11-01 | I19: 33946.75926 | J19: 6789.351852 | K19: 249697594.3 | L19: 49939518.85 | M19: 299677849.2 | N19: 299678063.1 | O19: 2525638.889 | P19: 49946308.21 | Q19: 249731541 | R19: 249731754.9 | S19: 49946308.21 | T19: 49946350.98 | U19: 199785232.8 | V19: 199785403.9 | W19: 213.8645833
A20: Ставка НДС | D20: ='Калькулятор лизинга'!K11/100 -> 0.2 | G20: 11 | H20: 2020-12-01 | I20: 33946.75926 | J20: 6789.351852 | K20: 245734140.4 | L20: 49146828.08 | M20: 294921704.6 | N20: 294921915.1 | O20: 2484902.778 | P20: 49153617.43 | Q20: 245768087.2 | R20: 245768297.6 | S20: 49153617.43 | T20: 49153659.52 | U20: 196614469.7 | V20: 196614638.1 | W20: 210.4699074
A21: Ставка НП | D21: ='Калькулятор лизинга'!K9/100 -> 0.2 | G21: 12 | H21: 2021-01-01 | I21: 33946.75926 | J21: 6789.351852 | K21: 241770686.5 | L21: 48354137.3 | M21: 290165559.9 | N21: 290165767 | O21: 2444166.667 | P21: 48360926.66 | Q21: 241804633.3 | R21: 241804840.4 | S21: 48360926.66 | T21: 48360968.07 | U21: 193443706.6 | V21: 193443872.3 | W21: 207.0752315
A22: Страхование | D22: ='Калькулятор лизинга'!F30/100/12 -> 8.333333333e-05 | G22: 13 | H22: 2021-02-01 | I22: 33946.75926 | J22: 6789.351852 | K22: 237807232.6 | L22: 47561446.53 | M22: 285409415.3 | N22: 285409619 | O22: 2403430.556 | P22: 47568235.88 | Q22: 237841179.4 | R22: 237841383.1 | S22: 47568235.88 | T22: 47568276.62 | U22: 190272943.5 | V22: 190273106.5 | W22: 203.6805556
A23: Сумма договора | D23: =M4 -> 1.250333915e+10 | G23: 14 | H23: 2021-03-01 | I23: 33946.75926 | J23: 6789.351852 | K23: 233843778.8 | L23: 46768755.75 | M23: 280653270.6 | N23: 280653470.9 | O23: 2362694.444 | P23: 46775545.1 | Q23: 233877725.5 | R23: 233877925.8 | S23: 46775545.1 | T23: 46775585.16 | U23: 187102180.4 | V23: 187102340.6 | W23: 200.2858796
A24: Удорожание | D24: =(M4-D10)/D10 -> 2983.090489 | G24: 15 | H24: 2021-04-01 | I24: 33946.75926 | J24: 6789.351852 | K24: 229880324.9 | L24: 45976064.98 | M24: 275897126 | N24: 275897322.9 | O24: 2321958.333 | P24: 45982854.33 | Q24: 229914271.6 | R24: 229914468.5 | S24: 45982854.33 | T24: 45982893.71 | U24: 183931417.3 | V24: 183931574.8 | W24: 196.8912037
A25: Удорожание в год | D25: =D24/D14 -> 497.1817481 | G25: 16 | H25: 2021-05-01 | I25: 33946.75926 | J25: 6789.351852 | K25: 225916871 | L25: 45183374.2 | M25: 271140981.3 | N25: 271141174.8 | O25: 2281222.222 | P25: 45190163.55 | Q25: 225950817.8 | R25: 225951011.3 | S25: 45190163.55 | T25: 45190202.25 | U25: 180760654.2 | V25: 180760809 | W25: 193.4965278
D26: =D25*1.65/(1-D17) -> 1171.928406 | G26: 17 | H26: 2021-06-01 | I26: 33946.75926 | J26: 6789.351852 | K26: 221953417.1 | L26: 44390683.43 | M26: 266384836.7 | N26: 266385026.8 | O26: 2240486.111 | P26: 44397472.78 | Q26: 221987363.9 | R26: 221987554 | S26: 44397472.78 | T26: 44397510.8 | U26: 177589891.1 | V26: 177590043.2 | W26: 190.1018519
A27: С учетом всех вычетов | D27: =N4-P4-T4 -> 8335608469 | G27: 18 | H27: 2021-07-01 | I27: 33946.75926 | J27: 6789.351852 | K27: 217989963.3 | L27: 43597992.65 | M27: 261628692 | N27: 261628878.7 | O27: 2199750 | P27: 43604782 | Q27: 218023910 | R27: 218024096.7 | S27: 43604782 | T27: 43604819.34 | U27: 174419128 | V27: 174419277.4 | W27: 186.7071759
G28: 19 | H28: 2021-08-01 | I28: 33946.75926 | J28: 6789.351852 | K28: 214026509.4 | L28: 42805301.88 | M28: 256872547.4 | N28: 256872730.7 | O28: 2159013.889 | P28: 42812091.23 | Q28: 214060456.1 | R28: 214060639.4 | S28: 42812091.23 | T28: 42812127.89 | U28: 171248364.9 | V28: 171248511.6 | W28: 183.3125
G29: 20 | H29: 2021-09-01 | I29: 33946.75926 | J29: 6789.351852 | K29: 210063055.5 | L29: 42012611.1 | M29: 252116402.7 | N29: 252116582.6 | O29: 2118277.778 | P29: 42019400.45 | Q29: 210097002.3 | R29: 210097182.2 | S29: 42019400.45 | T29: 42019436.43 | U29: 168077601.8 | V29: 168077745.7 | W29: 179.9178241
G30: 21 | H30: 2021-10-01 | I30: 33946.75926 | J30: 6789.351852 | K30: 206099601.6 | L30: 41219920.32 | M30: 247360258.1 | N30: 247360434.6 | O30: 2077541.667 | P30: 41226709.68 | Q30: 206133548.4 | R30: 206133724.9 | S30: 41226709.68 | T30: 41226744.98 | U30: 164906838.7 | V30: 164906979.9 | W30: 176.5231481
A31: возмещение ндс | D31: =VLOOKUP('Калькулятор лизинга'!K7,Лист2!C2:E10,3,) -> да | G31: 22 | H31: 2021-11-01 | I31: 33946.75926 | J31: 6789.351852 | K31: 202136147.7 | L31: 40427229.55 | M31: 242604113.4 | N31: 242604286.5 | O31: 2036805.556 | P31: 40434018.9 | Q31: 202170094.5 | R31: 202170267.6 | S31: 40434018.9 | T31: 40434053.53 | U31: 161736075.6 | V31: 161736214.1 | W31: 173.1284722
A32: учет расходов | D32: =VLOOKUP('Калькулятор лизинга'!K7,Лист2!C2:F10,4,) -> да | G32: 23 | H32: 2021-12-01 | I32: 33946.75926 | J32: 6789.351852 | K32: 198172693.9 | L32: 39634538.77 | M32: 237847968.8 | N32: 237848138.5 | O32: 1996069.444 | P32: 39641328.13 | Q32: 198206640.6 | R32: 198206810.4 | S32: 39641328.13 | T32: 39641362.07 | U32: 158565312.5 | V32: 158565448.3 | W32: 169.7337963
G33: 24 | H33: 2022-01-01 | I33: 33946.75926 | J33: 6789.351852 | K33: 194209240 | L33: 38841848 | M33: 233091824.1 | N33: 233091990.4 | O33: 1955333.333 | P33: 38848637.35 | Q33: 194243186.7 | R33: 194243353.1 | S33: 38848637.35 | T33: 38848670.62 | U33: 155394549.4 | V33: 155394682.5 | W33: 166.3391204
G34: 25 | H34: 2022-02-01 | I34: 33946.75926 | J34: 6789.351852 | K34: 190245786.1 | L34: 38049157.22 | M34: 228335679.4 | N34: 228335842.4 | O34: 1914597.222 | P34: 38055946.57 | Q34: 190279732.9 | R34: 190279895.8 | S34: 38055946.57 | T34: 38055979.16 | U34: 152223786.3 | V34: 152223916.7 | W34: 162.9444444
G35: 26 | H35: 2022-03-01 | I35: 33946.75926 | J35: 6789.351852 | K35: 186282332.2 | L35: 37256466.45 | M35: 223579534.8 | N35: 223579694.3 | O35: 1873861.111 | P35: 37263255.8 | Q35: 186316279 | R35: 186316438.5 | S35: 37263255.8 | T35: 37263287.71 | U35: 149053023.2 | V35: 149053150.8 | W35: 159.5497685
G36: 27 | H36: 2022-04-01 | I36: 33946.75926 | J36: 6789.351852 | K36: 182318878.4 | L36: 36463775.67 | M36: 218823390.1 | N36: 218823546.3 | O36: 1833125 | P36: 36470565.02 | Q36: 182352825.1 | R36: 182352981.3 | S36: 36470565.02 | T36: 36470596.25 | U36: 145882260.1 | V36: 145882385 | W36: 156.1550926
G37: 28 | H37: 2022-05-01 | I37: 33946.75926 | J37: 6789.351852 | K37: 178355424.5 | L37: 35671084.9 | M37: 214067245.5 | N37: 214067398.2 | O37: 1792388.889 | P37: 35677874.25 | Q37: 178389371.2 | R37: 178389524 | S37: 35677874.25 | T37: 35677904.8 | U37: 142711497 | V37: 142711619.2 | W37: 152.7604167
G38: 29 | H38: 2022-06-01 | I38: 33946.75926 | J38: 6789.351852 | K38: 174391970.6 | L38: 34878394.12 | M38: 209311100.8 | N38: 209311250.2 | O38: 1751652.778 | P38: 34885183.47 | Q38: 174425917.4 | R38: 174426066.7 | S38: 34885183.47 | T38: 34885213.35 | U38: 139540733.9 | V38: 139540853.4 | W38: 149.3657407
G39: 30 | H39: 2022-07-01 | I39: 33946.75926 | J39: 6789.351852 | K39: 170428516.7 | L39: 34085703.34 | M39: 204554956.2 | N39: 204555102.2 | O39: 1710916.667 | P39: 34092492.7 | Q39: 170462463.5 | R39: 170462609.5 | S39: 34092492.7 | T39: 34092521.89 | U39: 136369970.8 | V39: 136370087.6 | W39: 145.9710648
G40: 31 | H40: 2022-08-01 | I40: 33946.75926 | J40: 6789.351852 | K40: 166465062.8 | L40: 33293012.57 | M40: 199798811.5 | N40: 199798954.1 | O40: 1670180.556 | P40: 33299801.92 | Q40: 166499009.6 | R40: 166499152.2 | S40: 33299801.92 | T40: 33299830.44 | U40: 133199207.7 | V40: 133199321.7 | W40: 142.5763889
G41: 32 | H41: 2022-09-01 | I41: 33946.75926 | J41: 6789.351852 | K41: 162501609 | L41: 32500321.79 | M41: 195042666.9 | N41: 195042806.1 | O41: 1629444.444 | P41: 32507111.15 | Q41: 162535555.7 | R41: 162535694.9 | S41: 32507111.15 | T41: 32507138.98 | U41: 130028444.6 | V41: 130028555.9 | W41: 139.181713
G42: 33 | H42: 2022-10-01 | I42: =IF(G42<=$D$13,$O$7/$D$13/(1+$D$20),0) -> 33946.75926 | J42: 6789.351852 | K42: 158538155.1 | L42: 31707631.02 | M42: 190286522.2 | N42: 190286658 | O42: 1588708.333 | P42: 31714420.37 | Q42: 158572101.9 | R42: 158572237.6 | S42: 31714420.37 | T42: 31714447.53 | U42: 126857681.5 | V42: 126857790.1 | W42: 135.787037
G43: 34 | H43: 2022-11-01 | I43: 33946.75926 | J43: 6789.351852 | K43: =IF(G43<=$D$13,O42*$D$16,0) -> 154574701.2 | L43: 30914940.24 | M43: 185530377.6 | N43: 185530510 | O43: =IF(G43<=$D$13,O42-I43-J43,0) -> 1547972.222 | P43: 30921729.59 | Q43: 154608648 | R43: 154608780.4 | S43: 30921729.59 | T43: 30921756.07 | U43: 123686918.4 | V43: 123687024.3 | W43: 132.3923611
G44: 35 | H44: 2022-12-01 | I44: 33946.75926 | J44: 6789.351852 | K44: 150611247.3 | L44: 30122249.47 | M44: 180774232.9 | N44: 180774361.9 | O44: 1507236.111 | P44: 30129038.82 | Q44: 150645194.1 | R44: 150645323.1 | S44: 30129038.82 | T44: 30129064.62 | U44: 120516155.3 | V44: 120516258.5 | W44: 128.9976852
G45: 36 | H45: 2023-01-01 | I45: 33946.75926 | J45: 6789.351852 | K45: 146647793.5 | L45: 29329558.69 | M45: =IF(G45<=$D$13,SUM(I45:L45),0)+IF(G45=$D$13,$D$19,0) -> 176018088.3 | N45: 176018213.9 | O45: 1466500 | P45: 29336348.04 | Q45: =IF(G45<=$D$13,M45-P45,0) -> 146681740.2 | R45: 146681865.8 | S45: 29336348.04 | T45: 29336373.16 | U45: =Q45-S45 -> 117345392.2 | V45: 117345492.7 | W45: 125.6030093
G46: 37 | H46: 2023-02-01 | I46: 33946.75926 | J46: 6789.351852 | K46: 142684339.6 | L46: 28536867.92 | M46: 171261943.6 | N46: 171262065.8 | O46: 1425763.889 | P46: 28543657.27 | Q46: 142718286.3 | R46: 142718408.6 | S46: 28543657.27 | T46: 28543681.71 | U46: 114174629.1 | V46: 114174726.8 | W46: 122.2083333
G47: 38 | H47: 2023-03-01 | I47: 33946.75926 | J47: 6789.351852 | K47: 138720885.7 | L47: 27744177.14 | M47: 166505799 | N47: 166505917.8 | O47: 1385027.778 | P47: 27750966.49 | Q47: 138754832.5 | R47: 138754951.3 | S47: 27750966.49 | T47: 27750990.26 | U47: 111003866 | V47: 111003961 | W47: 118.8136574
G48: 39 | H48: 2023-04-01 | I48: 33946.75926 | J48: 6789.351852 | K48: 134757431.8 | L48: 26951486.37 | M48: 161749654.3 | N48: 161749769.7 | O48: 1344291.667 | P48: 26958275.72 | Q48: 134791378.6 | R48: 134791494 | S48: 26958275.72 | T48: 26958298.8 | U48: 107833102.9 | V48: 107833195.2 | W48: 115.4189815
G49: 40 | H49: 2023-05-01 | I49: 33946.75926 | J49: 6789.351852 | K49: 130793978 | L49: 26158795.59 | M49: 156993509.7 | N49: 156993621.7 | O49: 1303555.556 | P49: 26165584.94 | Q49: 130827924.7 | R49: 130828036.7 | S49: 26165584.94 | T49: 26165607.35 | U49: 104662339.8 | V49: 104662429.4 | W49: 112.0243056
G50: 41 | H50: 2023-06-01 | I50: 33946.75926 | J50: 6789.351852 | K50: 126830524.1 | L50: 25366104.81 | M50: 152237365 | N50: 152237473.6 | O50: 1262819.444 | P50: 25372894.17 | Q50: 126864470.8 | R50: 126864579.5 | S50: 25372894.17 | T50: 25372915.89 | U50: 101491576.7 | V50: 101491663.6 | W50: 108.6296296
G51: 42 | H51: 2023-07-01 | I51: 33946.75926 | J51: 6789.351852 | K51: 122867070.2 | L51: 24573414.04 | M51: 147481220.3 | N51: 147481325.6 | O51: 1222083.333 | P51: 24580203.39 | Q51: 122901017 | R51: 122901122.2 | S51: 24580203.39 | T51: 24580224.44 | U51: 98320813.56 | V51: 98320897.75 | W51: 105.2349537
G52: 43 | H52: 2023-08-01 | I52: 33946.75926 | J52: 6789.351852 | K52: 118903616.3 | L52: 23780723.26 | M52: 142725075.7 | N52: 142725177.5 | O52: 1181347.222 | P52: 23787512.62 | Q52: 118937563.1 | R52: 118937664.9 | S52: 23787512.62 | T52: 23787532.98 | U52: 95150050.46 | V52: 95150131.94 | W52: 101.8402778
G53: 44 | H53: 2023-09-01 | I53: 33946.75926 | J53: 6789.351852 | K53: 114940162.4 | L53: 22988032.49 | M53: 137968931 | N53: 137969029.5 | O53: 1140611.111 | P53: 22994821.84 | Q53: 114974109.2 | R53: 114974207.6 | S53: 22994821.84 | T53: 22994841.53 | U53: 91979287.36 | V53: 91979366.12 | W53: 98.44560185
G54: 45 | H54: 2023-10-01 | I54: 33946.75926 | J54: 6789.351852 | K54: 110976708.6 | L54: 22195341.71 | M54: 133212786.4 | N54: 133212881.4 | O54: 1099875 | P54: 22202131.06 | Q54: 111010655.3 | R54: 111010750.4 | S54: 22202131.06 | T54: 22202150.07 | U54: 88808524.26 | V54: 88808600.3 | W54: 95.05092593
G55: 46 | H55: 2023-11-01 | I55: 33946.75926 | J55: 6789.351852 | K55: 107013254.7 | L55: 21402650.94 | M55: 128456641.7 | N55: 128456733.4 | O55: 1059138.889 | P55: 21409440.29 | Q55: 107047201.4 | R55: 107047293.1 | S55: 21409440.29 | T55: 21409458.62 | U55: 85637761.16 | V55: 85637834.48 | W55: 91.65625
G56: 47 | H56: 2023-12-01 | I56: 33946.75926 | J56: 6789.351852 | K56: 103049800.8 | L56: 20609960.16 | M56: 123700497.1 | N56: 123700585.3 | O56: 1018402.778 | P56: 20616749.51 | Q56: 103083747.6 | R56: 103083835.8 | S56: 20616749.51 | T56: 20616767.17 | U56: 82466998.06 | V56: 82467068.66 | W56: 88.26157407
G57: 48 | H57: 2024-01-01 | I57: 33946.75926 | J57: 6789.351852 | K57: 99086346.93 | L57: 19817269.39 | M57: 118944352.4 | N57: 118944437.3 | O57: 977666.6667 | P57: 19824058.74 | Q57: 99120293.69 | R57: 99120378.56 | S57: 19824058.74 | T57: 19824075.71 | U57: 79296234.95 | V57: 79296302.85 | W57: 84.86689815
G58: 49 | H58: 2024-02-01 | I58: 33946.75926 | J58: 6789.351852 | K58: 95122893.06 | L58: 19024578.61 | M58: 114188207.8 | N58: 114188289.2 | O58: 936930.5556 | P58: 19031367.96 | Q58: 95156839.81 | R58: 95156921.29 | S58: 19031367.96 | T58: 19031384.26 | U58: 76125471.85 | V58: 76125537.03 | W58: 81.47222222
G59: 50 | H59: 2024-03-01 | I59: 33946.75926 | J59: 6789.351852 | K59: 91159439.18 | L59: 18231887.84 | M59: 109432063.1 | N59: 109432141.2 | O59: 896194.4444 | P59: 18238677.19 | Q59: 91193385.94 | R59: 91193464.02 | S59: 18238677.19 | T59: 18238692.8 | U59: 72954708.75 | V59: 72954771.21 | W59: 78.0775463
G60: 51 | H60: 2024-04-01 | I60: 33946.75926 | J60: 6789.351852 | K60: 87195985.3 | L60: 17439197.06 | M60: 104675918.5 | N60: 104675993.2 | O60: 855458.3333 | P60: 17445986.41 | Q60: 87229932.06 | R60: 87230006.74 | S60: 17445986.41 | T60: 17446001.35 | U60: 69783945.65 | V60: 69784005.39 | W60: 74.68287037
G61: 52 | H61: 2024-05-01 | I61: 33946.75926 | J61: 6789.351852 | K61: 83232531.42 | L61: 16646506.28 | M61: 99919773.82 | N61: 99919845.11 | O61: 814722.2222 | P61: 16653295.64 | Q61: 83266478.18 | R61: 83266549.47 | S61: 16653295.64 | T61: 16653309.89 | U61: 66613182.55 | V61: 66613239.58 | W61: 71.28819444
G62: 53 | H62: 2024-06-01 | I62: 33946.75926 | J62: 6789.351852 | K62: 79269077.55 | L62: 15853815.51 | M62: 95163629.17 | N62: 95163697.06 | O62: 773986.1111 | P62: 15860604.86 | Q62: 79303024.31 | R62: 79303092.2 | S62: 15860604.86 | T62: 15860618.44 | U62: 63442419.44 | V62: 63442473.76 | W62: 67.89351852
G63: 54 | H63: 2024-07-01 | I63: 33946.75926 | J63: 6789.351852 | K63: 75305623.67 | L63: 15061124.73 | M63: 90407484.51 | N63: 90407549.01 | O63: 733250 | P63: 15067914.09 | Q63: 75339570.43 | R63: 75339634.93 | S63: 15067914.09 | T63: 15067926.99 | U63: 60271656.34 | V63: 60271707.94 | W63: 64.49884259
G64: 55 | H64: 2024-08-01 | I64: 33946.75926 | J64: 6789.351852 | K64: 71342169.79 | L64: 14268433.96 | M64: 85651339.86 | N64: 85651400.97 | O64: 692513.8889 | P64: 14275223.31 | Q64: 71376116.55 | R64: 71376177.66 | S64: 14275223.31 | T64: 14275235.53 | U64: 57100893.24 | V64: 57100942.12 | W64: 61.10416667
G65: 56 | H65: 2024-09-01 | I65: 33946.75926 | J65: 6789.351852 | K65: 67378715.91 | L65: 13475743.18 | M65: 80895195.21 | N65: 80895252.92 | O65: 651777.7778 | P65: 13482532.53 | Q65: 67412662.67 | R65: 67412720.38 | S65: 13482532.53 | T65: 13482544.08 | U65: 53930130.14 | V65: 53930176.31 | W65: 57.70949074
G66: 57 | H66: 2024-10-01 | I66: 33946.75926 | J66: 6789.351852 | K66: 63415262.04 | L66: 12683052.41 | M66: 76139050.56 | N66: 76139104.87 | O66: 611041.6667 | P66: 12689841.76 | Q66: 63449208.8 | R66: 63449263.11 | S66: 12689841.76 | T66: 12689852.62 | U66: 50759367.04 | V66: 50759410.49 | W66: 54.31481481
G67: 58 | H67: 2024-11-01 | I67: 33946.75926 | J67: 6789.351852 | K67: 59451808.16 | L67: 11890361.63 | M67: 71382905.9 | N67: 71382956.82 | O67: 570305.5556 | P67: 11897150.98 | Q67: 59485754.92 | R67: 59485805.84 | S67: 11897150.98 | T67: 11897161.17 | U67: 47588603.94 | V67: 47588644.67 | W67: 50.92013889
G68: 59 | H68: 2024-12-01 | I68: 33946.75926 | J68: 6789.351852 | K68: 55488354.28 | L68: 11097670.86 | M68: 66626761.25 | N68: 66626808.78 | O68: 529569.4444 | P68: 11104460.21 | Q68: 55522301.04 | R68: 55522348.57 | S68: 11104460.21 | T68: 11104469.71 | U68: 44417840.83 | V68: 44417878.85 | W68: 47.52546296
G69: 60 | H69: 2025-01-01 | I69: 33946.75926 | J69: 6789.351852 | K69: 51524900.41 | L69: 10304980.08 | M69: 61870616.6 | N69: 61870660.73 | O69: 488833.3333 | P69: 10311769.43 | Q69: 51558847.16 | R69: 51558891.3 | S69: 10311769.43 | T69: 10311778.26 | U69: 41247077.73 | V69: 41247113.04 | W69: 44.13078704
G70: 61 | H70: 2025-02-01 | I70: 33946.75926 | J70: 6789.351852 | K70: 47561446.53 | L70: 9512289.306 | M70: 57114471.94 | N70: 57114512.68 | O70: 448097.2222 | P70: 9519078.657 | Q70: 47595393.29 | R70: 47595434.02 | S70: 9519078.657 | T70: 9519086.805 | U70: 38076314.63 | V70: 38076347.22 | W70: 40.73611111
G71: 62 | H71: 2025-03-01 | I71: 33946.75926 | J71: 6789.351852 | K71: 43597992.65 | L71: 8719598.53 | M71: 52358327.29 | N71: 52358364.63 | O71: 407361.1111 | P71: 8726387.882 | Q71: 43631939.41 | R71: 43631976.75 | S71: 8726387.882 | T71: 8726395.35 | U71: 34905551.53 | V71: 34905581.4 | W71: 37.34143519
G72: 63 | H72: 2025-04-01 | I72: 33946.75926 | J72: 6789.351852 | K72: 39634538.77 | L72: 7926907.755 | M72: 47602182.64 | N72: 47602216.59 | O72: 366625 | P72: 7933697.106 | Q72: 39668485.53 | R72: 39668519.48 | S72: 7933697.106 | T72: 7933703.896 | U72: 31734788.43 | V72: 31734815.58 | W72: 33.94675926
G73: 64 | H73: 2025-05-01 | I73: 33946.75926 | J73: 6789.351852 | K73: 35671084.9 | L73: 7134216.979 | M73: 42846037.99 | N73: 42846068.54 | O73: 325888.8889 | P73: 7141006.331 | Q73: 35705031.66 | R73: 35705062.21 | S73: 7141006.331 | T73: 7141012.441 | U73: 28564025.32 | V73: 28564049.77 | W73: 30.55208333
G74: 65 | H74: 2025-06-01 | I74: =IF(G74<=$D$13,$O$7/$D$13/(1+$D$20),0) -> 33946.75926 | J74: 6789.351852 | K74: 31707631.02 | L74: 6341526.204 | M74: =IF(G74<=$D$13,SUM(I74:L74),0)+IF(G74=$D$13,$D$19,0) -> 38089893.33 | N74: 38089920.49 | O74: 285152.7778 | P74: 6348315.556 | Q74: 31741577.78 | R74: 31741604.94 | S74: 6348315.556 | T74: 6348320.987 | U74: 25393262.22 | V74: 25393283.95 | W74: 27.15740741
G75: 66 | H75: 2025-07-01 | I75: 33946.75926 | J75: =IF(G75<=$D$13,I75*$D$20,0) -> 6789.351852 | K75: =IF(G75<=$D$13,O74*$D$16,0) -> 27744177.14 | L75: =IF(G75<=$D$13,K75*$D$20,0) -> 5548835.428 | M75: 33333748.68 | N75: =M75+W75 -> 33333772.44 | O75: =IF(G75<=$D$13,O74-I75-J75,0) -> 244416.6667 | P75: =IF($D$31="нет",0,J75+L75+IF(G75=$D$13,$D$19*$D$20/(1+$D$20),0)) -> 5555624.78 | Q75: =IF(G75<=$D$13,M75-P75,0) -> 27778123.9 | R75: =Q75+W75 -> 27778147.66 | S75: =IF($D$32="да",Q75*$D$21,0) -> 5555624.78 | T75: =IF($D$32="да",R75*$D$21,0) -> 5555629.533 | U75: =Q75-S75 -> 22222499.12 | V75: =R75-T75 -> 22222518.13 | W75: 23.76273148
G76: 67 | H76: 2025-08-01 | I76: 33946.75926 | J76: 6789.351852 | K76: 23780723.26 | L76: 4756144.653 | M76: 28577604.03 | N76: 28577624.4 | O76: 203680.5556 | P76: 4762934.005 | Q76: 23814670.02 | R76: 23814690.39 | S76: 4762934.005 | T76: 4762938.078 | U76: 19051736.02 | V76: 19051752.31 | W76: =IF(G76<=$D$13,$D$22*O75,0) -> 20.36805556
G77: 68 | H77: 2025-09-01 | I77: 33946.75926 | J77: 6789.351852 | K77: 19817269.39 | L77: 3963453.877 | M77: 23821459.37 | N77: 23821476.35 | O77: 162944.4444 | P77: 3970243.229 | Q77: 19851216.15 | R77: 19851233.12 | S77: 3970243.229 | T77: 3970246.624 | U77: 15880972.92 | V77: 15880986.5 | W77: 16.97337963
G78: 69 | H78: 2025-10-01 | I78: 33946.75926 | J78: 6789.351852 | K78: 15853815.51 | L78: 3170763.102 | M78: 19065314.72 | N78: 19065328.3 | O78: 122208.3333 | P78: 3177552.454 | Q78: 15887762.27 | R78: 15887775.85 | S78: 3177552.454 | T78: 3177555.169 | U78: 12710209.81 | V78: 12710220.68 | W78: 13.5787037
G79: 70 | H79: 2025-11-01 | I79: 33946.75926 | J79: 6789.351852 | K79: 11890361.63 | L79: 2378072.326 | M79: 14309170.07 | N79: 14309180.25 | O79: 81472.22222 | P79: 2384861.678 | Q79: 11924308.39 | R79: 11924318.58 | S79: 2384861.678 | T79: 2384863.715 | U79: 9539446.713 | V79: 9539454.86 | W79: 10.18402778
G80: 71 | H80: 2025-12-01 | I80: 33946.75926 | J80: 6789.351852 | K80: 7926907.755 | L80: 1585381.551 | M80: 9553025.417 | N80: 9553032.206 | O80: 40736.11111 | P80: 1592170.903 | Q80: 7960854.514 | R80: 7960861.303 | S80: 1592170.903 | T80: 1592172.261 | U80: 6368683.611 | V80: 6368689.043 | W80: 6.789351852
G81: 72 | H81: 2026-01-01 | I81: 33946.75926 | J81: 6789.351852 | K81: 3963453.877 | L81: 792690.7755 | M81: 4797880.764 | N81: 4797884.159 | O81: -1.009539119e-10 | P81: 799646.794 | Q81: 3998233.97 | R81: 3998237.365 | S81: 799646.794 | T81: 799647.4729 | U81: 3198587.176 | V81: 3198589.892 | W81: 3.394675926
G82: 73 | H82: 2026-02-01 | I82: 0 | J82: 0 | K82: 0 | L82: 0 | M82: 0 | N82: 0 | O82: 0 | P82: 0 | Q82: 0 | R82: 0 | S82: 0 | T82: 0 | U82: 0 | V82: 0 | W82: 0
G83: 74 | H83: 2026-03-01 | I83: 0 | J83: 0 | K83: 0 | L83: 0 | M83: 0 | N83: 0 | O83: 0 | P83: 0 | Q83: 0 | R83: 0 | S83: 0 | T83: 0 | U83: 0 | V83: 0 | W83: 0
G84: 75 | H84: 2026-04-01 | I84: 0 | J84: 0 | K84: 0 | L84: 0 | M84: 0 | N84: 0 | O84: 0 | P84: 0 | Q84: 0 | R84: 0 | S84: 0 | T84: 0 | U84: 0 | V84: 0 | W84: 0
G85: 76 | H85: 2026-05-01 | I85: 0 | J85: 0 | K85: 0 | L85: 0 | M85: 0 | N85: 0 | O85: 0 | P85: 0 | Q85: 0 | R85: 0 | S85: 0 | T85: 0 | U85: 0 | V85: 0 | W85: 0
G86: 77 | H86: 2026-06-01 | I86: 0 | J86: 0 | K86: 0 | L86: 0 | M86: 0 | N86: 0 | O86: 0 | P86: 0 | Q86: 0 | R86: 0 | S86: 0 | T86: 0 | U86: 0 | V86: 0 | W86: 0
G87: 78 | H87: 2026-07-01 | I87: 0 | J87: 0 | K87: 0 | L87: 0 | M87: 0 | N87: 0 | O87: 0 | P87: 0 | Q87: 0 | R87: 0 | S87: 0 | T87: 0 | U87: 0 | V87: 0 | W87: 0
G88: 79 | H88: 2026-08-01 | I88: 0 | J88: 0 | K88: 0 | L88: 0 | M88: 0 | N88: 0 | O88: 0 | P88: 0 | Q88: 0 | R88: 0 | S88: 0 | T88: 0 | U88: 0 | V88: 0 | W88: 0
G89: 80 | H89: 2026-09-01 | I89: 0 | J89: 0 | K89: 0 | L89: 0 | M89: 0 | N89: 0 | O89: 0 | P89: 0 | Q89: 0 | R89: 0 | S89: 0 | T89: 0 | U89: 0 | V89: 0 | W89: 0
G90: 81 | H90: 2026-10-01 | I90: 0 | J90: 0 | K90: 0 | L90: 0 | M90: 0 | N90: 0 | O90: 0 | P90: 0 | Q90: 0 | R90: 0 | S90: 0 | T90: 0 | U90: 0 | V90: 0 | W90: 0
G91: 82 | H91: 2026-11-01 | I91: 0 | J91: 0 | K91: 0 | L91: 0 | M91: 0 | N91: 0 | O91: 0 | P91: 0 | Q91: 0 | R91: 0 | S91: 0 | T91: 0 | U91: 0 | V91: 0 | W91: 0
G92: 83 | H92: 2026-12-01 | I92: 0 | J92: 0 | K92: 0 | L92: 0 | M92: 0 | N92: 0 | O92: 0 | P92: 0 | Q92: 0 | R92: 0 | S92: 0 | T92: 0 | U92: 0 | V92: 0 | W92: 0
G93: 84 | H93: 2027-01-01 | I93: 0 | J93: 0 | K93: 0 | L93: 0 | M93: 0 | N93: 0 | O93: 0 | P93: 0 | Q93: 0 | R93: 0 | S93: 0 | T93: 0 | U93: 0 | V93: 0 | W93: 0
G94: 85 | H94: 2027-02-01 | I94: 0 | J94: 0 | K94: 0 | L94: 0 | M94: 0 | N94: 0 | O94: 0 | P94: 0 | Q94: 0 | R94: 0 | S94: 0 | T94: 0 | U94: 0 | V94: 0 | W94: 0
G95: 86 | H95: 2027-03-01 | I95: 0 | J95: 0 | K95: 0 | L95: 0 | M95: 0 | N95: 0 | O95: 0 | P95: 0 | Q95: 0 | R95: 0 | S95: 0 | T95: 0 | U95: 0 | V95: 0 | W95: 0
G96: 87 | H96: 2027-04-01 | I96: 0 | J96: 0 | K96: 0 | L96: 0 | M96: 0 | N96: 0 | O96: 0 | P96: 0 | Q96: 0 | R96: 0 | S96: 0 | T96: 0 | U96: 0 | V96: 0 | W96: 0
G97: 88 | H97: 2027-05-01 | I97: 0 | J97: 0 | K97: 0 | L97: 0 | M97: 0 | N97: 0 | O97: 0 | P97: 0 | Q97: 0 | R97: 0 | S97: 0 | T97: 0 | U97: 0 | V97: 0 | W97: 0
G98: 89 | H98: 2027-06-01 | I98: 0 | J98: 0 | K98: 0 | L98: 0 | M98: 0 | N98: 0 | O98: 0 | P98: 0 | Q98: 0 | R98: 0 | S98: 0 | T98: 0 | U98: 0 | V98: 0 | W98: 0
G99: 90 | H99: 2027-07-01 | I99: 0 | J99: 0 | K99: 0 | L99: 0 | M99: 0 | N99: 0 | O99: 0 | P99: 0 | Q99: 0 | R99: 0 | S99: 0 | T99: 0 | U99: 0 | V99: 0 | W99: 0
G100: 91 | H100: 2027-08-01 | I100: 0 | J100: 0 | K100: 0 | L100: 0 | M100: 0 | N100: 0 | O100: 0 | P100: 0 | Q100: 0 | R100: 0 | S100: 0 | T100: 0 | U100: 0 | V100: 0 | W100: 0
G101: 92 | H101: 2027-09-01 | I101: 0 | J101: 0 | K101: 0 | L101: 0 | M101: 0 | N101: 0 | O101: 0 | P101: 0 | Q101: 0 | R101: 0 | S101: 0 | T101: 0 | U101: 0 | V101: 0 | W101: 0
G102: 93 | H102: 2027-10-01 | I102: 0 | J102: 0 | K102: 0 | L102: 0 | M102: 0 | N102: 0 | O102: 0 | P102: 0 | Q102: 0 | R102: 0 | S102: 0 | T102: 0 | U102: 0 | V102: 0 | W102: 0
G103: 94 | H103: 2027-11-01 | I103: 0 | J103: 0 | K103: 0 | L103: 0 | M103: 0 | N103: 0 | O103: 0 | P103: 0 | Q103: 0 | R103: 0 | S103: 0 | T103: 0 | U103: 0 | V103: 0 | W103: 0
G104: 95 | H104: 2027-12-01 | I104: 0 | J104: 0 | K104: 0 | L104: 0 | M104: 0 | N104: 0 | O104: 0 | P104: 0 | Q104: 0 | R104: 0 | S104: 0 | T104: 0 | U104: 0 | V104: 0 | W104: 0
G105: 96 | H105: 2028-01-01 | I105: 0 | J105: 0 | K105: 0 | L105: 0 | M105: 0 | N105: 0 | O105: 0 | P105: 0 | Q105: 0 | R105: 0 | S105: 0 | T105: 0 | U105: 0 | V105: 0 | W105: 0
G106: 97 | H106: 2028-02-01 | I106: =IF(G106<=$D$13,$O$7/$D$13/(1+$D$20),0) -> 0 | J106: 0 | K106: 0 | L106: 0 | M106: 0 | N106: 0 | O106: 0 | P106: 0 | Q106: 0 | R106: 0 | S106: 0 | T106: 0 | U106: 0 | V106: 0 | W106: 0
G107: 98 | H107: 2028-03-01 | I107: 0 | J107: 0 | K107: =IF(G107<=$D$13,O106*$D$16,0) -> 0 | L107: 0 | M107: 0 | N107: 0 | O107: =IF(G107<=$D$13,O106-I107-J107,0) -> 0 | P107: 0 | Q107: 0 | R107: 0 | S107: 0 | T107: 0 | U107: 0 | V107: 0 | W107: 0
G108: 99 | H108: 2028-04-01 | I108: 0 | J108: 0 | K108: 0 | L108: 0 | M108: 0 | N108: 0 | O108: 0 | P108: 0 | Q108: 0 | R108: 0 | S108: 0 | T108: 0 | U108: 0 | V108: 0 | W108: 0
G109: 100 | H109: 2028-05-01 | I109: 0 | J109: 0 | K109: 0 | L109: 0 | M109: 0 | N109: 0 | O109: 0 | P109: 0 | Q109: 0 | R109: 0 | S109: 0 | T109: 0 | U109: 0 | V109: 0 | W109: 0
G110: 101 | H110: 2028-06-01 | I110: 0 | J110: 0 | K110: 0 | L110: 0 | M110: 0 | N110: 0 | O110: 0 | P110: 0 | Q110: 0 | R110: 0 | S110: 0 | T110: 0 | U110: 0 | V110: 0 | W110: 0
G111: 102 | H111: 2028-07-01 | I111: 0 | J111: 0 | K111: 0 | L111: 0 | M111: 0 | N111: 0 | O111: 0 | P111: 0 | Q111: 0 | R111: 0 | S111: 0 | T111: 0 | U111: 0 | V111: 0 | W111: 0
G112: 103 | H112: 2028-08-01 | I112: 0 | J112: 0 | K112: 0 | L112: 0 | M112: 0 | N112: 0 | O112: 0 | P112: 0 | Q112: 0 | R112: 0 | S112: 0 | T112: 0 | U112: 0 | V112: 0 | W112: 0
G113: 104 | H113: 2028-09-01 | I113: 0 | J113: 0 | K113: 0 | L113: 0 | M113: 0 | N113: 0 | O113: 0 | P113: 0 | Q113: 0 | R113: 0 | S113: 0 | T113: 0 | U113: 0 | V113: 0 | W113: 0
G114: 105 | H114: 2028-10-01 | I114: 0 | J114: 0 | K114: 0 | L114: 0 | M114: 0 | N114: 0 | O114: 0 | P114: 0 | Q114: 0 | R114: 0 | S114: 0 | T114: 0 | U114: 0 | V114: 0 | W114: 0
G115: 106 | H115: 2028-11-01 | I115: 0 | J115: 0 | K115: 0 | L115: 0 | M115: 0 | N115: 0 | O115: 0 | P115: 0 | Q115: 0 | R115: 0 | S115: 0 | T115: 0 | U115: 0 | V115: 0 | W115: 0
G116: 107 | H116: 2028-12-01 | I116: 0 | J116: 0 | K116: 0 | L116: 0 | M116: 0 | N116: 0 | O116: 0 | P116: 0 | Q116: 0 | R116: 0 | S116: 0 | T116: 0 | U116: 0 | V116: 0 | W116: 0
G117: 108 | H117: 2029-01-01 | I117: 0 | J117: 0 | K117: 0 | L117: 0 | M117: 0 | N117: 0 | O117: 0 | P117: 0 | Q117: 0 | R117: 0 | S117: 0 | T117: 0 | U117: 0 | V117: 0 | W117: 0
G118: 109 | H118: 2029-02-01 | I118: 0 | J118: 0 | K118: 0 | L118: 0 | M118: 0 | N118: 0 | O118: 0 | P118: 0 | Q118: 0 | R118: 0 | S118: 0 | T118: 0 | U118: 0 | V118: 0 | W118: 0
G119: 110 | H119: 2029-03-01 | I119: 0 | J119: 0 | K119: 0 | L119: 0 | M119: 0 | N119: 0 | O119: 0 | P119: 0 | Q119: 0 | R119: 0 | S119: 0 | T119: 0 | U119: 0 | V119: 0 | W119: 0
G120: 111 | H120: 2029-04-01 | I120: 0 | J120: 0 | K120: 0 | L120: 0 | M120: 0 | N120: 0 | O120: 0 | P120: 0 | Q120: 0 | R120: 0 | S120: 0 | T120: 0 | U120: 0 | V120: 0 | W120: 0
G121: 112 | H121: 2029-05-01 | I121: 0 | J121: 0 | K121: 0 | L121: 0 | M121: 0 | N121: 0 | O121: 0 | P121: 0 | Q121: 0 | R121: 0 | S121: 0 | T121: 0 | U121: 0 | V121: 0 | W121: 0
G122: 113 | H122: 2029-06-01 | I122: 0 | J122: 0 | K122: 0 | L122: 0 | M122: 0 | N122: 0 | O122: 0 | P122: 0 | Q122: 0 | R122: 0 | S122: 0 | T122: 0 | U122: 0 | V122: 0 | W122: 0
G123: 114 | H123: 2029-07-01 | I123: 0 | J123: 0 | K123: 0 | L123: 0 | M123: 0 | N123: 0 | O123: 0 | P123: 0 | Q123: 0 | R123: 0 | S123: 0 | T123: 0 | U123: 0 | V123: 0 | W123: 0
G124: 115 | H124: 2029-08-01 | I124: 0 | J124: 0 | K124: 0 | L124: 0 | M124: 0 | N124: 0 | O124: 0 | P124: 0 | Q124: 0 | R124: 0 | S124: 0 | T124: 0 | U124: 0 | V124: 0 | W124: 0
G125: 116 | H125: 2029-09-01 | I125: 0 | J125: 0 | K125: 0 | L125: 0 | M125: 0 | N125: 0 | O125: 0 | P125: 0 | Q125: 0 | R125: 0 | S125: 0 | T125: 0 | U125: 0 | V125: 0 | W125: 0
G126: 117 | H126: 2029-10-01 | I126: 0 | J126: 0 | K126: 0 | L126: 0 | M126: 0 | N126: 0 | O126: 0 | P126: 0 | Q126: 0 | R126: 0 | S126: 0 | T126: 0 | U126: 0 | V126: 0 | W126: 0
G127: 118 | H127: 2029-11-01 | I127: 0 | J127: 0 | K127: 0 | L127: 0 | M127: 0 | N127: 0 | O127: 0 | P127: 0 | Q127: 0 | R127: 0 | S127: 0 | T127: 0 | U127: 0 | V127: 0 | W127: 0
G128: 119 | H128: 2029-12-01 | I128: 0 | J128: 0 | K128: 0 | L128: 0 | M128: 0 | N128: 0 | O128: 0 | P128: 0 | Q128: 0 | R128: 0 | S128: 0 | T128: 0 | U128: 0 | V128: 0 | W128: 0
G129: 120 | H129: 2030-01-01 | I129: 0 | J129: 0 | K129: 0 | L129: 0 | M129: 0 | N129: 0 | O129: 0 | P129: 0 | Q129: 0 | R129: 0 | S129: 0 | T129: 0 | U129: 0 | V129: 0 | W129: 0
G130: 121 | H130: 2030-02-01 | I130: 0 | J130: 0 | K130: 0 | L130: 0 | M130: 0 | N130: 0 | O130: 0 | P130: 0 | Q130: 0 | R130: 0 | S130: 0 | T130: 0 | U130: 0 | V130: 0 | W130: 0
G131: 122 | H131: 2030-03-01 | I131: 0 | J131: 0 | K131: 0 | L131: 0 | M131: 0 | N131: 0 | O131: 0 | P131: 0 | Q131: 0 | R131: 0 | S131: 0 | T131: 0 | U131: 0 | V131: 0 | W131: 0
G132: 123 | H132: 2030-04-01 | I132: 0 | J132: 0 | K132: 0 | L132: 0 | M132: 0 | N132: 0 | O132: 0 | P132: 0 | Q132: 0 | R132: 0 | S132: 0 | T132: 0 | U132: 0 | V132: 0 | W132: 0
G133: 124 | H133: 2030-05-01 | I133: 0 | J133: 0 | K133: 0 | L133: 0 | M133: 0 | N133: 0 | O133: 0 | P133: 0 | Q133: 0 | R133: 0 | S133: 0 | T133: 0 | U133: 0 | V133: 0 | W133: 0
G134: 125 | H134: 2030-06-01 | I134: 0 | J134: 0 | K134: 0 | L134: 0 | M134: 0 | N134: 0 | O134: 0 | P134: 0 | Q134: 0 | R134: 0 | S134: 0 | T134: 0 | U134: 0 | V134: 0 | W134: 0
G135: 126 | H135: 2030-07-01 | I135: 0 | J135: 0 | K135: 0 | L135: 0 | M135: 0 | N135: 0 | O135: 0 | P135: 0 | Q135: 0 | R135: 0 | S135: 0 | T135: 0 | U135: 0 | V135: 0 | W135: 0
G136: 127 | H136: 2030-08-01 | I136: 0 | J136: 0 | K136: 0 | L136: 0 | M136: 0 | N136: 0 | O136: 0 | P136: 0 | Q136: 0 | R136: 0 | S136: 0 | T136: 0 | U136: 0 | V136: 0 | W136: 0
G137: 128 | H137: 2030-09-01 | I137: 0 | J137: 0 | K137: 0 | L137: 0 | M137: 0 | N137: 0 | O137: 0 | P137: 0 | Q137: 0 | R137: 0 | S137: 0 | T137: 0 | U137: 0 | V137: 0 | W137: 0
G138: 129 | H138: 2030-10-01 | I138: =IF(G138<=$D$13,$O$7/$D$13/(1+$D$20),0) -> 0 | J138: 0 | K138: 0 | L138: 0 | M138: =IF(G138<=$D$13,SUM(I138:L138),0)+IF(G138=$D$13,$D$19,0) -> 0 | N138: 0 | O138: 0 | P138: 0 | Q138: 0 | R138: 0 | S138: 0 | T138: 0 | U138: 0 | V138: 0 | W138: 0
G139: 130 | H139: 2030-11-01 | I139: 0 | J139: =IF(G139<=$D$13,I139*$D$20,0) -> 0 | K139: =IF(G139<=$D$13,O138*$D$16,0) -> 0 | L139: =IF(G139<=$D$13,K139*$D$20,0) -> 0 | M139: 0 | N139: =M139+W139 -> 0 | O139: =IF(G139<=$D$13,O138-I139-J139,0) -> 0 | P139: =IF($D$31="нет",0,J139+L139+IF(G139=$D$13,$D$19*$D$20/(1+$D$20),0)) -> 0 | Q139: =IF(G139<=$D$13,M139-P139,0) -> 0 | R139: =Q139+W139 -> 0 | S139: =IF($D$32="да",Q139*$D$21,0) -> 0 | T139: =IF($D$32="да",R139*$D$21,0) -> 0 | U139: =Q139-S139 -> 0 | V139: =R139-T139 -> 0 | W139: 0
G140: 131 | H140: 2030-12-01 | I140: 0 | J140: 0 | K140: 0 | L140: 0 | M140: 0 | N140: 0 | O140: 0 | P140: 0 | Q140: 0 | R140: 0 | S140: 0 | T140: 0 | U140: 0 | V140: 0 | W140: =IF(G140<=$D$13,$D$22*O139,0) -> 0
G141: 132 | H141: 2031-01-01 | I141: 0 | J141: 0 | K141: 0 | L141: 0 | M141: 0 | N141: 0 | O141: 0 | P141: 0 | Q141: 0 | R141: 0 | S141: 0 | T141: 0 | U141: 0 | V141: 0 | W141: 0
G142: 133 | H142: 2031-02-01 | I142: 0 | J142: 0 | K142: 0 | L142: 0 | M142: 0 | N142: 0 | O142: 0 | P142: 0 | Q142: 0 | R142: 0 | S142: 0 | T142: 0 | U142: 0 | V142: 0 | W142: 0
G143: 134 | H143: 2031-03-01 | I143: 0 | J143: 0 | K143: 0 | L143: 0 | M143: 0 | N143: 0 | O143: 0 | P143: 0 | Q143: 0 | R143: 0 | S143: 0 | T143: 0 | U143: 0 | V143: 0 | W143: 0
G144: 135 | H144: 2031-04-01 | I144: 0 | J144: 0 | K144: 0 | L144: 0 | M144: 0 | N144: 0 | O144: 0 | P144: 0 | Q144: 0 | R144: 0 | S144: 0 | T144: 0 | U144: 0 | V144: 0 | W144: 0
G145: 136 | H145: 2031-05-01 | I145: 0 | J145: 0 | K145: 0 | L145: 0 | M145: 0 | N145: 0 | O145: 0 | P145: 0 | Q145: 0 | R145: 0 | S145: 0 | T145: 0 | U145: 0 | V145: 0 | W145: 0
G146: 137 | H146: 2031-06-01 | I146: 0 | J146: 0 | K146: 0 | L146: 0 | M146: 0 | N146: 0 | O146: 0 | P146: 0 | Q146: 0 | R146: 0 | S146: 0 | T146: 0 | U146: 0 | V146: 0 | W146: 0
G147: 138 | H147: 2031-07-01 | I147: 0 | J147: 0 | K147: 0 | L147: 0 | M147: 0 | N147: 0 | O147: 0 | P147: 0 | Q147: 0 | R147: 0 | S147: 0 | T147: 0 | U147: 0 | V147: 0 | W147: 0
G148: 139 | H148: 2031-08-01 | I148: 0 | J148: 0 | K148: 0 | L148: 0 | M148: 0 | N148: 0 | O148: 0 | P148: 0 | Q148: 0 | R148: 0 | S148: 0 | T148: 0 | U148: 0 | V148: 0 | W148: 0
G149: 140 | H149: 2031-09-01 | I149: 0 | J149: 0 | K149: 0 | L149: 0 | M149: 0 | N149: 0 | O149: 0 | P149: 0 | Q149: 0 | R149: 0 | S149: 0 | T149: 0 | U149: 0 | V149: 0 | W149: 0
G150: 141 | H150: 2031-10-01 | I150: 0 | J150: 0 | K150: 0 | L150: 0 | M150: 0 | N150: 0 | O150: 0 | P150: 0 | Q150: 0 | R150: 0 | S150: 0 | T150: 0 | U150: 0 | V150: 0 | W150: 0
G151: 142 | H151: 2031-11-01 | I151: 0 | J151: 0 | K151: 0 | L151: 0 | M151: 0 | N151: 0 | O151: 0 | P151: 0 | Q151: 0 | R151: 0 | S151: 0 | T151: 0 | U151: 0 | V151: 0 | W151: 0
G152: 143 | H152: 2031-12-01 | I152: 0 | J152: 0 | K152: 0 | L152: 0 | M152: 0 | N152: 0 | O152: 0 | P152: 0 | Q152: 0 | R152: 0 | S152: 0 | T152: 0 | U152: 0 | V152: 0 | W152: 0
G153: 144 | H153: 2032-01-01 | I153: 0 | J153: 0 | K153: 0 | L153: 0 | M153: 0 | N153: 0 | O153: 0 | P153: 0 | Q153: 0 | R153: 0 | S153: 0 | T153: 0 | U153: 0 | V153: 0 | W153: 0
G154: 145 | H154: 2032-02-01 | I154: 0 | J154: 0 | K154: 0 | L154: 0 | M154: 0 | N154: 0 | O154: 0 | P154: 0 | Q154: 0 | R154: 0 | S154: 0 | T154: 0 | U154: 0 | V154: 0 | W154: 0
G155: 146 | H155: 2032-03-01 | I155: 0 | J155: 0 | K155: 0 | L155: 0 | M155: 0 | N155: 0 | O155: 0 | P155: 0 | Q155: 0 | R155: 0 | S155: 0 | T155: 0 | U155: 0 | V155: 0 | W155: 0
G156: 147 | H156: 2032-04-01 | I156: 0 | J156: 0 | K156: 0 | L156: 0 | M156: 0 | N156: 0 | O156: 0 | P156: 0 | Q156: 0 | R156: 0 | S156: 0 | T156: 0 | U156: 0 | V156: 0 | W156: 0
G157: 148 | H157: 2032-05-01 | I157: 0 | J157: 0 | K157: 0 | L157: 0 | M157: 0 | N157: 0 | O157: 0 | P157: 0 | Q157: 0 | R157: 0 | S157: 0 | T157: 0 | U157: 0 | V157: 0 | W157: 0
G158: 149 | H158: 2032-06-01 | I158: 0 | J158: 0 | K158: 0 | L158: 0 | M158: 0 | N158: 0 | O158: 0 | P158: 0 | Q158: 0 | R158: 0 | S158: 0 | T158: 0 | U158: 0 | V158: 0 | W158: 0
G159: 150 | H159: 2032-07-01 | I159: 0 | J159: 0 | K159: 0 | L159: 0 | M159: 0 | N159: 0 | O159: 0 | P159: 0 | Q159: 0 | R159: 0 | S159: 0 | T159: 0 | U159: 0 | V159: 0 | W159: 0
G160: 151 | H160: 2032-08-01 | I160: 0 | J160: 0 | K160: 0 | L160: 0 | M160: 0 | N160: 0 | O160: 0 | P160: 0 | Q160: 0 | R160: 0 | S160: 0 | T160: 0 | U160: 0 | V160: 0 | W160: 0
G161: 152 | H161: 2032-09-01 | I161: 0 | J161: 0 | K161: 0 | L161: 0 | M161: 0 | N161: 0 | O161: 0 | P161: 0 | Q161: 0 | R161: 0 | S161: 0 | T161: 0 | U161: 0 | V161: 0 | W161: 0
G162: 153 | H162: 2032-10-01 | I162: 0 | J162: 0 | K162: 0 | L162: 0 | M162: 0 | N162: 0 | O162: 0 | P162: 0 | Q162: 0 | R162: 0 | S162: 0 | T162: 0 | U162: 0 | V162: 0 | W162: 0
G163: 154 | H163: 2032-11-01 | I163: 0 | J163: 0 | K163: 0 | L163: 0 | M163: 0 | N163: 0 | O163: 0 | P163: 0 | Q163: 0 | R163: 0 | S163: 0 | T163: 0 | U163: 0 | V163: 0 | W163: 0
G164: 155 | H164: 2032-12-01 | I164: 0 | J164: 0 | K164: 0 | L164: 0 | M164: 0 | N164: 0 | O164: 0 | P164: 0 | Q164: 0 | R164: 0 | S164: 0 | T164: 0 | U164: 0 | V164: 0 | W164: 0
G165: 156 | H165: 2033-01-01 | I165: 0 | J165: 0 | K165: 0 | L165: 0 | M165: 0 | N165: 0 | O165: 0 | P165: 0 | Q165: 0 | R165: 0 | S165: 0 | T165: 0 | U165: 0 | V165: 0 | W165: 0
G166: 157 | H166: 2033-02-01 | I166: 0 | J166: 0 | K166: 0 | L166: 0 | M166: 0 | N166: 0 | O166: 0 | P166: 0 | Q166: 0 | R166: 0 | S166: 0 | T166: 0 | U166: 0 | V166: 0 | W166: 0
G167: 158 | H167: 2033-03-01 | I167: 0 | J167: 0 | K167: 0 | L167: 0 | M167: 0 | N167: 0 | O167: 0 | P167: 0 | Q167: 0 | R167: 0 | S167: 0 | T167: 0 | U167: 0 | V167: 0 | W167: 0
G168: 159 | H168: 2033-04-01 | I168: 0 | J168: 0 | K168: 0 | L168: 0 | M168: 0 | N168: 0 | O168: 0 | P168: 0 | Q168: 0 | R168: 0 | S168: 0 | T168: 0 | U168: 0 | V168: 0 | W168: 0
G169: 160 | H169: 2033-05-01 | I169: 0 | J169: 0 | K169: 0 | L169: 0 | M169: 0 | N169: 0 | O169: 0 | P169: 0 | Q169: 0 | R169: 0 | S169: 0 | T169: 0 | U169: 0 | V169: 0 | W169: 0
G170: 161 | H170: 2033-06-01 | I170: =IF(G170<=$D$13,$O$7/$D$13/(1+$D$20),0) -> 0 | J170: 0 | K170: 0 | L170: 0 | M170: 0 | N170: 0 | O170: 0 | P170: 0 | Q170: 0 | R170: 0 | S170: 0 | T170: 0 | U170: 0 | V170: 0 | W170: 0
G171: 162 | H171: 2033-07-01 | I171: 0 | J171: 0 | K171: =IF(G171<=$D$13,O170*$D$16,0) -> 0 | L171: 0 | M171: 0 | N171: 0 | O171: =IF(G171<=$D$13,O170-I171-J171,0) -> 0 | P171: 0 | Q171: 0 | R171: 0 | S171: 0 | T171: 0 | U171: 0 | V171: 0 | W171: 0
G172: 163 | H172: 2033-08-01 | I172: 0 | J172: 0 | K172: 0 | L172: 0 | M172: 0 | N172: 0 | O172: 0 | P172: 0 | Q172: 0 | R172: 0 | S172: 0 | T172: 0 | U172: 0 | V172: 0 | W172: 0
G173: 164 | H173: 2033-09-01 | I173: 0 | J173: 0 | K173: 0 | L173: 0 | M173: 0 | N173: 0 | O173: 0 | P173: 0 | Q173: 0 | R173: 0 | S173: 0 | T173: 0 | U173: 0 | V173: 0 | W173: 0
G174: 165 | H174: 2033-10-01 | I174: 0 | J174: 0 | K174: 0 | L174: 0 | M174: 0 | N174: 0 | O174: 0 | P174: 0 | Q174: 0 | R174: 0 | S174: 0 | T174: 0 | U174: 0 | V174: 0 | W174: 0
G175: 166 | H175: 2033-11-01 | I175: 0 | J175: 0 | K175: 0 | L175: 0 | M175: 0 | N175: 0 | O175: 0 | P175: 0 | Q175: 0 | R175: 0 | S175: 0 | T175: 0 | U175: 0 | V175: 0 | W175: 0
G176: 167 | H176: 2033-12-01 | I176: 0 | J176: 0 | K176: 0 | L176: 0 | M176: 0 | N176: 0 | O176: 0 | P176: 0 | Q176: 0 | R176: 0 | S176: 0 | T176: 0 | U176: 0 | V176: 0 | W176: 0
G177: 168 | H177: 2034-01-01 | I177: 0 | J177: 0 | K177: 0 | L177: 0 | M177: 0 | N177: 0 | O177: 0 | P177: 0 | Q177: 0 | R177: 0 | S177: 0 | T177: 0 | U177: 0 | V177: 0 | W177: 0
G178: 169 | H178: 2034-02-01 | I178: 0 | J178: 0 | K178: 0 | L178: 0 | M178: 0 | N178: 0 | O178: 0 | P178: 0 | Q178: 0 | R178: 0 | S178: 0 | T178: 0 | U178: 0 | V178: 0 | W178: 0
G179: 170 | H179: 2034-03-01 | I179: 0 | J179: 0 | K179: 0 | L179: 0 | M179: 0 | N179: 0 | O179: 0 | P179: 0 | Q179: 0 | R179: 0 | S179: 0 | T179: 0 | U179: 0 | V179: 0 | W179: 0
G180: 171 | H180: 2034-04-01 | I180: 0 | J180: 0 | K180: 0 | L180: 0 | M180: 0 | N180: 0 | O180: 0 | P180: 0 | Q180: 0 | R180: 0 | S180: 0 | T180: 0 | U180: 0 | V180: 0 | W180: 0
G181: 172 | H181: 2034-05-01 | I181: 0 | J181: 0 | K181: 0 | L181: 0 | M181: 0 | N181: 0 | O181: 0 | P181: 0 | Q181: 0 | R181: 0 | S181: 0 | T181: 0 | U181: 0 | V181: 0 | W181: 0
G182: 173 | H182: 2034-06-01 | I182: 0 | J182: 0 | K182: 0 | L182: 0 | M182: 0 | N182: 0 | O182: 0 | P182: 0 | Q182: 0 | R182: 0 | S182: 0 | T182: 0 | U182: 0 | V182: 0 | W182: 0
G183: 174 | H183: 2034-07-01 | I183: 0 | J183: 0 | K183: 0 | L183: 0 | M183: 0 | N183: 0 | O183: 0 | P183: 0 | Q183: 0 | R183: 0 | S183: 0 | T183: 0 | U183: 0 | V183: 0 | W183: 0
G184: 175 | H184: 2034-08-01 | I184: 0 | J184: 0 | K184: 0 | L184: 0 | M184: 0 | N184: 0 | O184: 0 | P184: 0 | Q184: 0 | R184: 0 | S184: 0 | T184: 0 | U184: 0 | V184: 0 | W184: 0
G185: 176 | H185: 2034-09-01 | I185: 0 | J185: 0 | K185: 0 | L185: 0 | M185: 0 | N185: 0 | O185: 0 | P185: 0 | Q185: 0 | R185: 0 | S185: 0 | T185: 0 | U185: 0 | V185: 0 | W185: 0
G186: 177 | H186: 2034-10-01 | I186: 0 | J186: 0 | K186: 0 | L186: 0 | M186: 0 | N186: 0 | O186: 0 | P186: 0 | Q186: 0 | R186: 0 | S186: 0 | T186: 0 | U186: 0 | V186: 0 | W186: 0
G187: 178 | H187: 2034-11-01 | I187: 0 | J187: 0 | K187: 0 | L187: 0 | M187: 0 | N187: 0 | O187: 0 | P187: 0 | Q187: 0 | R187: 0 | S187: 0 | T187: 0 | U187: 0 | V187: 0 | W187: 0
G188: 179 | H188: 2034-12-01 | I188: 0 | J188: 0 | K188: 0 | L188: 0 | M188: 0 | N188: 0 | O188: 0 | P188: 0 | Q188: 0 | R188: 0 | S188: 0 | T188: 0 | U188: 0 | V188: 0 | W188: 0
G189: 180 | H189: 2035-01-01 | I189: 0 | J189: 0 | K189: 0 | L189: 0 | M189: 0 | N189: 0 | O189: 0 | P189: 0 | Q189: 0 | R189: 0 | S189: 0 | T189: 0 | U189: 0 | V189: 0 | W189: =IF(G189<=$D$13,$D$22*O188,0) -> 0

Sheet Персональный (hidden)
C2: =XIRR(C6:C186,A6:A186,) -> -0.2191707678 | E2: =XIRR(E6:E186,A6:A186,) -> -0.3212141626 | F2: ЭП | G2: =XIRR(G6:G186,A6:A186,) -> -0.3747106738 | I2: возмещение ндс | J2: =VLOOKUP('Калькулятор лизинга'!K7,Лист2!C2:E10,3,) -> да | K2: страхование | L2: ='Калькулятор лизинга'!F30/100/12 -> 8.333333333e-05
C3: =SUM(C7:C186)+C5 -> 3208000 | D3: =SUM(D7:D186)+D5 -> 534666.6667 | E3: =SUM(E7:E186)+E5 -> 2673333.333 | F3: =SUM(F5:F186) -> 534666.6667 | I3: учет расходов | J3: =VLOOKUP('Калькулятор лизинга'!K7,Лист2!C2:F10,4,) -> да
C4: Лизинговый платеж | D4: Возмещение НДС | E4: Поток без НДС | F4: Экономия НП | G4: Поток без НДС и НП
A5: Аванс | C5: =IF('Калькулятор лизинга'!D24=Лист2!L2,'Калькулятор лизинга'!K5*'Калькулятор лизинга'!F24/100,'Калькулятор лизинга'!F24) -> 1257000 | D5: =IF($J$2="нет",0,C5*'Калькулятор лизинга'!K11/(100+'Калькулятор лизинга'!K11)) -> 209500 | E5: =C5-D5 -> 1047500 | F5: =IF($J$3="да",E5*'Калькулятор лизинга'!$K$9/100,0) -> 209500
A6: 2020-01-01 | C6: =-('Калькулятор лизинга'!K5-C5) -> -2933000 | E6: =C6-D5 -> -3142500 | G6: =E6+F5 -> -2933000
A7: 2020-02-01 | B7: 1 | C7: =IF(B7<='Калькулятор лизинга'!$F$16,'Калькулятор лизинга'!Y5,0)+IF(B7='Калькулятор лизинга'!$F$16,'Калькулятор лизинга'!$F$27) -> 50000 | D7: =IF($J$2="нет",0,C7*'Калькулятор лизинга'!$K$11/(100+'Калькулятор лизинга'!$K$11)) -> 8333.333333 | E7: =C7-D7 -> 41666.66667 | F7: =IF($J$3="да",E7*'Калькулятор лизинга'!$K$9/100,0) -> 8333.333333 | G7: =E7-F7 -> 33333.33333
A8: 2020-03-01 | B8: 2 | C8: =IF(B8<='Калькулятор лизинга'!$F$16,'Калькулятор лизинга'!Y6,0)+IF(B8='Калькулятор лизинга'!$F$16,'Калькулятор лизинга'!$F$27) -> 50000 | D8: =IF($J$2="нет",0,C8*'Калькулятор лизинга'!$K$11/(100+'Калькулятор лизинга'!$K$11)) -> 8333.333333 | E8: 41666.66667 | F8: =IF($J$3="да",E8*'Калькулятор лизинга'!$K$9/100,0) -> 8333.333333 | G8: 33333.33333
A9: 2020-04-01 | B9: 3 | C9: =IF(B9<='Калькулятор лизинга'!$F$16,'Калькулятор лизинга'!Y7,0)+IF(B9='Калькулятор лизинга'!$F$16,'Калькулятор лизинга'!$F$27) -> 50000 | D9: =IF($J$2="нет",0,C9*'Калькулятор лизинга'!$K$11/(100+'Калькулятор лизинга'!$K$11)) -> 8333.333333 | E9: 41666.66667 | F9: =IF($J$3="да",E9*'Калькулятор лизинга'!$K$9/100,0) -> 8333.333333 | G9: 33333.33333
A10: 2020-05-01 | B10: 4 | C10: =IF(B10<='Калькулятор лизинга'!$F$16,'Калькулятор лизинга'!Y8,0)+IF(B10='Калькулятор лизинга'!$F$16,'Калькулятор лизинга'!$F$27) -> 50000 | D10: =IF($J$2="нет",0,C10*'Калькулятор лизинга'!$K$11/(100+'Калькулятор лизинга'!$K$11)) -> 8333.333333 | E10: 41666.66667 | F10: =IF($J$3="да",E10*'Калькулятор лизинга'!$K$9/100,0) -> 8333.333333 | G10: 33333.33333
A11: 2020-06-01 | B11: 5 | C11: =IF(B11<='Калькулятор лизинга'!$F$16,'Калькулятор лизинга'!Y9,0)+IF(B11='Калькулятор лизинга'!$F$16,'Калькулятор лизинга'!$F$27) -> 50000 | D11: =IF($J$2="нет",0,C11*'Калькулятор лизинга'!$K$11/(100+'Калькулятор лизинга'!$K$11)) -> 8333.333333 | E11: 41666.66667 | F11: =IF($J$3="да",E11*'Калькулятор лизинга'!$K$9/100,0) -> 8333.333333 | G11: 33333.33333
A12: 2020-07-01 | B12: 6 | C12: =IF(B12<='Калькулятор лизинга'!$F$16,'Калькулятор лизинга'!Y10,0)+IF(B12='Калькулятор лизинга'!$F$16,'Калькулятор лизинга'!$F$27) -> 50000 | D12: =IF($J$2="нет",0,C12*'Калькулятор лизинга'!$K$11/(100+'Калькулятор лизинга'!$K$11)) -> 8333.333333 | E12: 41666.66667 | F12: =IF($J$3="да",E12*'Калькулятор лизинга'!$K$9/100,0) -> 8333.333333 | G12: 33333.33333
A13: 2020-08-01 | B13: 7 | C13: =IF(B13<='Калькулятор лизинга'!$F$16,'Калькулятор лизинга'!Y11,0)+IF(B13='Калькулятор лизинга'!$F$16,'Калькулятор лизинга'!$F$27) -> 60000 | D13: =IF($J$2="нет",0,C13*'Калькулятор лизинга'!$K$11/(100+'Калькулятор лизинга'!$K$11)) -> 10000 | E13: 50000 | F13: =IF($J$3="да",E13*'Калькулятор лизинга'!$K$9/100,0) -> 10000 | G13: 40000
A14: 2020-09-01 | B14: 8 | C14: =IF(B14<='Калькулятор лизинга'!$F$16,'Калькулятор лизинга'!Y12,0)+IF(B14='Калькулятор лизинга'!$F$16,'Калькулятор лизинга'!$F$27) -> 60000 | D14: =IF($J$2="нет",0,C14*'Калькулятор лизинга'!$K$11/(100+'Калькулятор лизинга'!$K$11)) -> 10000 | E14: 50000 | F14: =IF($J$3="да",E14*'Калькулятор лизинга'!$K$9/100,0) -> 10000 | G14: 40000
A15: 2020-10-01 | B15: 9 | C15: =IF(B15<='Калькулятор лизинга'!$F$16,'Калькулятор лизинга'!Y13,0)+IF(B15='Калькулятор лизинга'!$F$16,'Калькулятор лизинга'!$F$27) -> 60000 | D15: =IF($J$2="нет",0,C15*'Калькулятор лизинга'!$K$11/(100+'Калькулятор лизинга'!$K$11)) -> 10000 | E15: 50000 | F15: =IF($J$3="да",E15*'Калькулятор лизинга'!$K$9/100,0) -> 10000 | G15: 40000
A16: 2020-11-01 | B16: 10 | C16: =IF(B16<='Калькулятор лизинга'!$F$16,'Калькулятор лизинга'!Y14,0)+IF(B16='Калькулятор лизинга'!$F$16,'Калькулятор лизинга'!$F$27) -> 60000 | D16: =IF($J$2="нет",0,C16*'Калькулятор лизинга'!$K$11/(100+'Калькулятор лизинга'!$K$11)) -> 10000 | E16: 50000 | F16: =IF($J$3="да",E16*'Калькулятор лизинга'!$K$9/100,0) -> 10000 | G16: 40000
A17: 2020-12-01 | B17: 11 | C17: =IF(B17<='Калькулятор лизинга'!$F$16,'Калькулятор лизинга'!Y15,0)+IF(B17='Калькулятор лизинга'!$F$16,'Калькулятор лизинга'!$F$27) -> 60000 | D17: =IF($J$2="нет",0,C17*'Калькулятор лизинга'!$K$11/(100+'Калькулятор лизинга'!$K$11)) -> 10000 | E17: 50000 | F17: =IF($J$3="да",E17*'Калькулятор лизинга'!$K$9/100,0) -> 10000 | G17: 40000
A18: 2021-01-01 | B18: 12 | C18: =IF(B18<='Калькулятор лизинга'!$F$16,'Калькулятор лизинга'!Y16,0)+IF(B18='Калькулятор лизинга'!$F$16,'Калькулятор лизинга'!$F$27) -> 50000 | D18: =IF($J$2="нет",0,C18*'Калькулятор лизинга'!$K$11/(100+'Калькулятор лизинга'!$K$11)) -> 8333.333333 | E18: 41666.66667 | F18: =IF($J$3="да",E18*'Калькулятор лизинга'!$K$9/100,0) -> 8333.333333 | G18: 33333.33333
A19: 2021-02-01 | B19: 13 | C19: =IF(B19<='Калькулятор лизинга'!$F$16,'Калькулятор лизинга'!Y17,0)+IF(B19='Калькулятор лизинга'!$F$16,'Калькулятор лизинга'!$F$27) -> 50000 | D19: =IF($J$2="нет",0,C19*'Калькулятор лизинга'!$K$11/(100+'Калькулятор лизинга'!$K$11)) -> 8333.333333 | E19: 41666.66667 | F19: =IF($J$3="да",E19*'Калькулятор лизинга'!$K$9/100,0) -> 8333.333333 | G19: 33333.33333
A20: 2021-03-01 | B20: 14 | C20: =IF(B20<='Калькулятор лизинга'!$F$16,'Калькулятор лизинга'!Y18,0)+IF(B20='Калькулятор лизинга'!$F$16,'Калькулятор лизинга'!$F$27) -> 50000 | D20: =IF($J$2="нет",0,C20*'Калькулятор лизинга'!$K$11/(100+'Калькулятор лизинга'!$K$11)) -> 8333.333333 | E20: 41666.66667 | F20: =IF($J$3="да",E20*'Калькулятор лизинга'!$K$9/100,0) -> 8333.333333 | G20: 33333.33333
A21: 2021-04-01 | B21: 15 | C21: =IF(B21<='Калькулятор лизинга'!$F$16,'Калькулятор лизинга'!Y19,0)+IF(B21='Калькулятор лизинга'!$F$16,'Калькулятор лизинга'!$F$27) -> 50000 | D21: =IF($J$2="нет",0,C21*'Калькулятор лизинга'!$K$11/(100+'Калькулятор лизинга'!$K$11)) -> 8333.333333 | E21: 41666.66667 | F21: =IF($J$3="да",E21*'Калькулятор лизинга'!$K$9/100,0) -> 8333.333333 | G21: 33333.33333
A22: 2021-05-01 | B22: 16 | C22: =IF(B22<='Калькулятор лизинга'!$F$16,'Калькулятор лизинга'!Y20,0)+IF(B22='Калькулятор лизинга'!$F$16,'Калькулятор лизинга'!$F$27) -> 50000 | D22: =IF($J$2="нет",0,C22*'Калькулятор лизинга'!$K$11/(100+'Калькулятор лизинга'!$K$11)) -> 8333.333333 | E22: 41666.66667 | F22: =IF($J$3="да",E22*'Калькулятор лизинга'!$K$9/100,0) -> 8333.333333 | G22: 33333.33333
A23: 2021-06-01 | B23: 17 | C23: =IF(B23<='Калькулятор лизинга'!$F$16,'Калькулятор лизинга'!Y21,0)+IF(B23='Калькулятор лизинга'!$F$16,'Калькулятор лизинга'!$F$27) -> 60000 | D23: =IF($J$2="нет",0,C23*'Калькулятор лизинга'!$K$11/(100+'Калькулятор лизинга'!$K$11)) -> 10000 | E23: 50000 | F23: =IF($J$3="да",E23*'Калькулятор лизинга'!$K$9/100,0) -> 10000 | G23: 40000
A24: 2021-07-01 | B24: 18 | C24: =IF(B24<='Калькулятор лизинга'!$F$16,'Калькулятор лизинга'!Y22,0)+IF(B24='Калькулятор лизинга'!$F$16,'Калькулятор лизинга'!$F$27) -> 60000 | D24: =IF($J$2="нет",0,C24*'Калькулятор лизинга'!$K$11/(100+'Калькулятор лизинга'!$K$11)) -> 10000 | E24: 50000 | F24: =IF($J$3="да",E24*'Калькулятор лизинга'!$K$9/100,0) -> 10000 | G24: 40000
A25: 2021-08-01 | B25: 19 | C25: =IF(B25<='Калькулятор лизинга'!$F$16,'Калькулятор лизинга'!Y23,0)+IF(B25='Калькулятор лизинга'!$F$16,'Калькулятор лизинга'!$F$27) -> 60000 | D25: =IF($J$2="нет",0,C25*'Калькулятор лизинга'!$K$11/(100+'Калькулятор лизинга'!$K$11)) -> 10000 | E25: 50000 | F25: =IF($J$3="да",E25*'Калькулятор лизинга'!$K$9/100,0) -> 10000 | G25: 40000
A26: 2021-09-01 | B26: 20 | C26: =IF(B26<='Калькулятор лизинга'!$F$16,'Калькулятор лизинга'!Y24,0)+IF(B26='Калькулятор лизинга'!$F$16,'Калькулятор лизинга'!$F$27) -> 60000 | D26: =IF($J$2="нет",0,C26*'Калькулятор лизинга'!$K$11/(100+'Калькулятор лизинга'!$K$11)) -> 10000 | E26: 50000 | F26: =IF($J$3="да",E26*'Калькулятор лизинга'!$K$9/100,0) -> 10000 | G26: 40000
A27: 2021-10-01 | B27: 21 | C27: =IF(B27<='Калькулятор лизинга'!$F$16,'Калькулятор лизинга'!Y25,0)+IF(B27='Калькулятор лизинга'!$F$16,'Калькулятор лизинга'!$F$27) -> 60000 | D27: =IF($J$2="нет",0,C27*'Калькулятор лизинга'!$K$11/(100+'Калькулятор лизинга'!$K$11)) -> 10000 | E27: 50000 | F27: =IF($J$3="да",E27*'Калькулятор лизинга'!$K$9/100,0) -> 10000 | G27: 40000
A28: 2021-11-01 | B28: 22 | C28: =IF(B28<='Калькулятор лизинга'!$F$16,'Калькулятор лизинга'!Y26,0)+IF(B28='Калькулятор лизинга'!$F$16,'Калькулятор лизинга'!$F$27) -> 60000 | D28: =IF($J$2="нет",0,C28*'Калькулятор лизинга'!$K$11/(100+'Калькулятор лизинга'!$K$11)) -> 10000 | E28: 50000 | F28: =IF($J$3="да",E28*'Калькулятор лизинга'!$K$9/100,0) -> 10000 | G28: 40000
A29: 2021-12-01 | B29: 23 | C29: =IF(B29<='Калькулятор лизинга'!$F$16,'Калькулятор лизинга'!Y27,0)+IF(B29='Калькулятор лизинга'!$F$16,'Калькулятор лизинга'!$F$27) -> 50000 | D29: =IF($J$2="нет",0,C29*'Калькулятор лизинга'!$K$11/(100+'Калькулятор лизинга'!$K$11)) -> 8333.333333 | E29: 41666.66667 | F29: =IF($J$3="да",E29*'Калькулятор лизинга'!$K$9/100,0) -> 8333.333333 | G29: 33333.33333
A30: 2022-01-01 | B30: 24 | C30: =IF(B30<='Калькулятор лизинга'!$F$16,'Калькулятор лизинга'!Y28,0)+IF(B30='Калькулятор лизинга'!$F$16,'Калькулятор лизинга'!$F$27) -> 50000 | D30: =IF($J$2="нет",0,C30*'Калькулятор лизинга'!$K$11/(100+'Калькулятор лизинга'!$K$11)) -> 8333.333333 | E30: 41666.66667 | F30: =IF($J$3="да",E30*'Калькулятор лизинга'!$K$9/100,0) -> 8333.333333 | G30: 33333.33333
A31: 2022-02-01 | B31: 25 | C31: =IF(B31<='Калькулятор лизинга'!$F$16,'Калькулятор лизинга'!Y29,0)+IF(B31='Калькулятор лизинга'!$F$16,'Калькулятор лизинга'!$F$27) -> 50000 | D31: =IF($J$2="нет",0,C31*'Калькулятор лизинга'!$K$11/(100+'Калькулятор лизинга'!$K$11)) -> 8333.333333 | E31: 41666.66667 | F31: =IF($J$3="да",E31*'Калькулятор лизинга'!$K$9/100,0) -> 8333.333333 | G31: 33333.33333
A32: 2022-03-01 | B32: 26 | C32: =IF(B32<='Калькулятор лизинга'!$F$16,'Калькулятор лизинга'!Y30,0)+IF(B32='Калькулятор лизинга'!$F$16,'Калькулятор лизинга'!$F$27) -> 50000 | D32: =IF($J$2="нет",0,C32*'Калькулятор лизинга'!$K$11/(100+'Калькулятор лизинга'!$K$11)) -> 8333.333333 | E32: 41666.66667 | F32: =IF($J$3="да",E32*'Калькулятор лизинга'!$K$9/100,0) -> 8333.333333 | G32: 33333.33333
A33: 2022-04-01 | B33: 27 | C33: =IF(B33<='Калькулятор лизинга'!$F$16,'Калькулятор лизинга'!Y31,0)+IF(B33='Калькулятор лизинга'!$F$16,'Калькулятор лизинга'!$F$27) -> 50000 | D33: =IF($J$2="нет",0,C33*'Калькулятор лизинга'!$K$11/(100+'Калькулятор лизинга'!$K$11)) -> 8333.333333 | E33: 41666.66667 | F33: =IF($J$3="да",E33*'Калькулятор лизинга'!$K$9/100,0) -> 8333.333333 | G33: 33333.33333
A34: 2022-05-01 | B34: 28 | C34: =IF(B34<='Калькулятор лизинга'!$F$16,'Калькулятор лизинга'!Y32,0)+IF(B34='Калькулятор лизинга'!$F$16,'Калькулятор лизинга'!$F$27) -> 50000 | D34: =IF($J$2="нет",0,C34*'Калькулятор лизинга'!$K$11/(100+'Калькулятор лизинга'!$K$11)) -> 8333.333333 | E34: 41666.66667 | F34: =IF($J$3="да",E34*'Калькулятор лизинга'!$K$9/100,0) -> 8333.333333 | G34: 33333.33333
A35: 2022-06-01 | B35: 29 | C35: =IF(B35<='Калькулятор лизинга'!$F$16,'Калькулятор лизинга'!Y33,0)+IF(B35='Калькулятор лизинга'!$F$16,'Калькулятор лизинга'!$F$27) -> 50000 | D35: =IF($J$2="нет",0,C35*'Калькулятор лизинга'!$K$11/(100+'Калькулятор лизинга'!$K$11)) -> 8333.333333 | E35: 41666.66667 | F35: =IF($J$3="да",E35*'Калькулятор лизинга'!$K$9/100,0) -> 8333.333333 | G35: 33333.33333
A36: 2022-07-01 | B36: 30 | C36: =IF(B36<='Калькулятор лизинга'!$F$16,'Калькулятор лизинга'!Y34,0)+IF(B36='Калькулятор лизинга'!$F$16,'Калькулятор лизинга'!$F$27) -> 50000 | D36: =IF($J$2="нет",0,C36*'Калькулятор лизинга'!$K$11/(100+'Калькулятор лизинга'!$K$11)) -> 8333.333333 | E36: 41666.66667 | F36: =IF($J$3="да",E36*'Калькулятор лизинга'!$K$9/100,0) -> 8333.333333 | G36: 33333.33333
A37: 2022-08-01 | B37: 31 | C37: =IF(B37<='Калькулятор лизинга'!$F$16,'Калькулятор лизинга'!Y35,0)+IF(B37='Калькулятор лизинга'!$F$16,'Калькулятор лизинга'!$F$27) -> 50000 | D37: =IF($J$2="нет",0,C37*'Калькулятор лизинга'!$K$11/(100+'Калькулятор лизинга'!$K$11)) -> 8333.333333 | E37: 41666.66667 | F37: =IF($J$3="да",E37*'Калькулятор лизинга'!$K$9/100,0) -> 8333.333333 | G37: 33333.33333
A38: 2022-09-01 | B38: 32 | C38: =IF(B38<='Калькулятор лизинга'!$F$16,'Калькулятор лизинга'!Y36,0)+IF(B38='Калькулятор лизинга'!$F$16,'Калькулятор лизинга'!$F$27) -> 50000 | D38: =IF($J$2="нет",0,C38*'Калькулятор лизинга'!$K$11/(100+'Калькулятор лизинга'!$K$11)) -> 8333.333333 | E38: 41666.66667 | F38: =IF($J$3="да",E38*'Калькулятор лизинга'!$K$9/100,0) -> 8333.333333 | G38: 33333.33333
A39: 2022-10-01 | B39: 33 | C39: =IF(B39<='Калькулятор лизинга'!$F$16,'Калькулятор лизинга'!Y37,0)+IF(B39='Калькулятор лизинга'!$F$16,'Калькулятор лизинга'!$F$27) -> 60000 | D39: =IF($J$2="нет",0,C39*'Калькулятор лизинга'!$K$11/(100+'Калькулятор лизинга'!$K$11)) -> 10000 | E39: =C39-D39 -> 50000 | F39: =IF($J$3="да",E39*'Калькулятор лизинга'!$K$9/100,0) -> 10000 | G39: =E39-F39 -> 40000
A40: 2022-11-01 | B40: 34 | C40: =IF(B40<='Калькулятор лизинга'!$F$16,'Калькулятор лизинга'!Y38,0)+IF(B40='Калькулятор лизинга'!$F$16,'Калькулятор лизинга'!$F$27) -> 60000 | D40: =IF($J$2="нет",0,C40*'Калькулятор лизинга'!$K$11/(100+'Калькулятор лизинга'!$K$11)) -> 10000 | E40: 50000 | F40: =IF($J$3="да",E40*'Калькулятор лизинга'!$K$9/100,0) -> 10000 | G40: 40000
A41: 2022-12-01 | B41: 35 | C41: =IF(B41<='Калькулятор лизинга'!$F$16,'Калькулятор лизинга'!Y39,0)+IF(B41='Калькулятор лизинга'!$F$16,'Калькулятор лизинга'!$F$27) -> 60000 | D41: =IF($J$2="нет",0,C41*'Калькулятор лизинга'!$K$11/(100+'Калькулятор лизинга'!$K$11)) -> 10000 | E41: 50000 | F41: =IF($J$3="да",E41*'Калькулятор лизинга'!$K$9/100,0) -> 10000 | G41: 40000
A42: 2023-01-01 | B42: 36 | C42: =IF(B42<='Калькулятор лизинга'!$F$16,'Калькулятор лизинга'!Y40,0)+IF(B42='Калькулятор лизинга'!$F$16,'Калькулятор лизинга'!$F$27) -> 60000 | D42: =IF($J$2="нет",0,C42*'Калькулятор лизинга'!$K$11/(100+'Калькулятор лизинга'!$K$11)) -> 10000 | E42: 50000 | F42: =IF($J$3="да",E42*'Калькулятор лизинга'!$K$9/100,0) -> 10000 | G42: 40000
A43: 2023-02-01 | B43: 37 | C43: =IF(B43<='Калькулятор лизинга'!$F$16,'Калькулятор лизинга'!Y41,0)+IF(B43='Калькулятор лизинга'!$F$16,'Калькулятор лизинга'!$F$27) -> 0 | D43: =IF($J$2="нет",0,C43*'Калькулятор лизинга'!$K$11/(100+'Калькулятор лизинга'!$K$11)) -> 0 | E43: 0 | F43: =IF($J$3="да",E43*'Калькулятор лизинга'!$K$9/100,0) -> 0 | G43: 0
A44: 2023-03-01 | B44: 38 | C44: =IF(B44<='Калькулятор лизинга'!$F$16,'Калькулятор лизинга'!Y42,0)+IF(B44='Калькулятор лизинга'!$F$16,'Калькулятор лизинга'!$F$27) -> 0 | D44: =IF($J$2="нет",0,C44*'Калькулятор лизинга'!$K$11/(100+'Калькулятор лизинга'!$K$11)) -> 0 | E44: 0 | F44: =IF($J$3="да",E44*'Калькулятор лизинга'!$K$9/100,0) -> 0 | G44: 0
A45: 2023-04-01 | B45: 39 | C45: =IF(B45<='Калькулятор лизинга'!$F$16,'Калькулятор лизинга'!Y43,0)+IF(B45='Калькулятор лизинга'!$F$16,'Калькулятор лизинга'!$F$27) -> 0 | D45: =IF($J$2="нет",0,C45*'Калькулятор лизинга'!$K$11/(100+'Калькулятор лизинга'!$K$11)) -> 0 | E45: 0 | F45: =IF($J$3="да",E45*'Калькулятор лизинга'!$K$9/100,0) -> 0 | G45: 0
A46: 2023-05-01 | B46: 40 | C46: =IF(B46<='Калькулятор лизинга'!$F$16,'Калькулятор лизинга'!Y44,0)+IF(B46='Калькулятор лизинга'!$F$16,'Калькулятор лизинга'!$F$27) -> 0 | D46: =IF($J$2="нет",0,C46*'Калькулятор лизинга'!$K$11/(100+'Калькулятор лизинга'!$K$11)) -> 0 | E46: 0 | F46: =IF($J$3="да",E46*'Калькулятор лизинга'!$K$9/100,0) -> 0 | G46: 0
A47: 2023-06-01 | B47: 41 | C47: =IF(B47<='Калькулятор лизинга'!$F$16,'Калькулятор лизинга'!Y45,0)+IF(B47='Калькулятор лизинга'!$F$16,'Калькулятор лизинга'!$F$27) -> 0 | D47: =IF($J$2="нет",0,C47*'Калькулятор лизинга'!$K$11/(100+'Калькулятор лизинга'!$K$11)) -> 0 | E47: 0 | F47: =IF($J$3="да",E47*'Калькулятор лизинга'!$K$9/100,0) -> 0 | G47: 0
A48: 2023-07-01 | B48: 42 | C48: =IF(B48<='Калькулятор лизинга'!$F$16,'Калькулятор лизинга'!Y46,0)+IF(B48='Калькулятор лизинга'!$F$16,'Калькулятор лизинга'!$F$27) -> 0 | D48: =IF($J$2="нет",0,C48*'Калькулятор лизинга'!$K$11/(100+'Калькулятор лизинга'!$K$11)) -> 0 | E48: 0 | F48: =IF($J$3="да",E48*'Калькулятор лизинга'!$K$9/100,0) -> 0 | G48: 0
A49: 2023-08-01 | B49: 43 | C49: =IF(B49<='Калькулятор лизинга'!$F$16,'Калькулятор лизинга'!Y47,0)+IF(B49='Калькулятор лизинга'!$F$16,'Калькулятор лизинга'!$F$27) -> 0 | D49: =IF($J$2="нет",0,C49*'Калькулятор лизинга'!$K$11/(100+'Калькулятор лизинга'!$K$11)) -> 0 | E49: 0 | F49: =IF($J$3="да",E49*'Калькулятор лизинга'!$K$9/100,0) -> 0 | G49: 0
A50: 2023-09-01 | B50: 44 | C50: =IF(B50<='Калькулятор лизинга'!$F$16,'Калькулятор лизинга'!Y48,0)+IF(B50='Калькулятор лизинга'!$F$16,'Калькулятор лизинга'!$F$27) -> 0 | D50: =IF($J$2="нет",0,C50*'Калькулятор лизинга'!$K$11/(100+'Калькулятор лизинга'!$K$11)) -> 0 | E50: 0 | F50: =IF($J$3="да",E50*'Калькулятор лизинга'!$K$9/100,0) -> 0 | G50: 0
A51: 2023-10-01 | B51: 45 | C51: =IF(B51<='Калькулятор лизинга'!$F$16,'Калькулятор лизинга'!Y49,0)+IF(B51='Калькулятор лизинга'!$F$16,'Калькулятор лизинга'!$F$27) -> 0 | D51: =IF($J$2="нет",0,C51*'Калькулятор лизинга'!$K$11/(100+'Калькулятор лизинга'!$K$11)) -> 0 | E51: 0 | F51: =IF($J$3="да",E51*'Калькулятор лизинга'!$K$9/100,0) -> 0 | G51: 0
A52: 2023-11-01 | B52: 46 | C52: =IF(B52<='Калькулятор лизинга'!$F$16,'Калькулятор лизинга'!Y50,0)+IF(B52='Калькулятор лизинга'!$F$16,'Калькулятор лизинга'!$F$27) -> 0 | D52: =IF($J$2="нет",0,C52*'Калькулятор лизинга'!$K$11/(100+'Калькулятор лизинга'!$K$11)) -> 0 | E52: 0 | F52: =IF($J$3="да",E52*'Калькулятор лизинга'!$K$9/100,0) -> 0 | G52: 0
A53: 2023-12-01 | B53: 47 | C53: =IF(B53<='Калькулятор лизинга'!$F$16,'Калькулятор лизинга'!Y51,0)+IF(B53='Калькулятор лизинга'!$F$16,'Калькулятор лизинга'!$F$27) -> 0 | D53: =IF($J$2="нет",0,C53*'Калькулятор лизинга'!$K$11/(100+'Калькулятор лизинга'!$K$11)) -> 0 | E53: 0 | F53: =IF($J$3="да",E53*'Калькулятор лизинга'!$K$9/100,0) -> 0 | G53: 0
A54: 2024-01-01 | B54: 48 | C54: =IF(B54<='Калькулятор лизинга'!$F$16,'Калькулятор лизинга'!Y52,0)+IF(B54='Калькулятор лизинга'!$F$16,'Калькулятор лизинга'!$F$27) -> 0 | D54: =IF($J$2="нет",0,C54*'Калькулятор лизинга'!$K$11/(100+'Калькулятор лизинга'!$K$11)) -> 0 | E54: 0 | F54: =IF($J$3="да",E54*'Калькулятор лизинга'!$K$9/100,0) -> 0 | G54: 0
A55: 2024-02-01 | B55: 49 | C55: =IF(B55<='Калькулятор лизинга'!$F$16,'Калькулятор лизинга'!Y53,0)+IF(B55='Калькулятор лизинга'!$F$16,'Калькулятор лизинга'!$F$27) -> 0 | D55: =IF($J$2="нет",0,C55*'Калькулятор лизинга'!$K$11/(100+'Калькулятор лизинга'!$K$11)) -> 0 | E55: 0 | F55: =IF($J$3="да",E55*'Калькулятор лизинга'!$K$9/100,0) -> 0 | G55: 0
A56: 2024-03-01 | B56: 50 | C56: =IF(B56<='Калькулятор лизинга'!$F$16,'Калькулятор лизинга'!Y54,0)+IF(B56='Калькулятор лизинга'!$F$16,'Калькулятор лизинга'!$F$27) -> 0 | D56: =IF($J$2="нет",0,C56*'Калькулятор лизинга'!$K$11/(100+'Калькулятор лизинга'!$K$11)) -> 0 | E56: 0 | F56: =IF($J$3="да",E56*'Калькулятор лизинга'!$K$9/100,0) -> 0 | G56: 0
A57: 2024-04-01 | B57: 51 | C57: =IF(B57<='Калькулятор лизинга'!$F$16,'Калькулятор лизинга'!Y55,0)+IF(B57='Калькулятор лизинга'!$F$16,'Калькулятор лизинга'!$F$27) -> 0 | D57: =IF($J$2="нет",0,C57*'Калькулятор лизинга'!$K$11/(100+'Калькулятор лизинга'!$K$11)) -> 0 | E57: 0 | F57: =IF($J$3="да",E57*'Калькулятор лизинга'!$K$9/100,0) -> 0 | G57: 0
A58: 2024-05-01 | B58: 52 | C58: =IF(B58<='Калькулятор лизинга'!$F$16,'Калькулятор лизинга'!Y56,0)+IF(B58='Калькулятор лизинга'!$F$16,'Калькулятор лизинга'!$F$27) -> 0 | D58: =IF($J$2="нет",0,C58*'Калькулятор лизинга'!$K$11/(100+'Калькулятор лизинга'!$K$11)) -> 0 | E58: 0 | F58: =IF($J$3="да",E58*'Калькулятор лизинга'!$K$9/100,0) -> 0 | G58: 0
A59: 2024-06-01 | B59: 53 | C59: =IF(B59<='Калькулятор лизинга'!$F$16,'Калькулятор лизинга'!Y57,0)+IF(B59='Калькулятор лизинга'!$F$16,'Калькулятор лизинга'!$F$27) -> 0 | D59: =IF($J$2="нет",0,C59*'Калькулятор лизинга'!$K$11/(100+'Калькулятор лизинга'!$K$11)) -> 0 | E59: 0 | F59: =IF($J$3="да",E59*'Калькулятор лизинга'!$K$9/100,0) -> 0 | G59: 0
A60: 2024-07-01 | B60: 54 | C60: =IF(B60<='Калькулятор лизинга'!$F$16,'Калькулятор лизинга'!Y58,0)+IF(B60='Калькулятор лизинга'!$F$16,'Калькулятор лизинга'!$F$27) -> 0 | D60: =IF($J$2="нет",0,C60*'Калькулятор лизинга'!$K$11/(100+'Калькулятор лизинга'!$K$11)) -> 0 | E60: 0 | F60: =IF($J$3="да",E60*'Калькулятор лизинга'!$K$9/100,0) -> 0 | G60: 0
A61: 2024-08-01 | B61: 55 | C61: =IF(B61<='Калькулятор лизинга'!$F$16,'Калькулятор лизинга'!Y59,0)+IF(B61='Калькулятор лизинга'!$F$16,'Калькулятор лизинга'!$F$27) -> 0 | D61: =IF($J$2="нет",0,C61*'Калькулятор лизинга'!$K$11/(100+'Калькулятор лизинга'!$K$11)) -> 0 | E61: 0 | F61: =IF($J$3="да",E61*'Калькулятор лизинга'!$K$9/100,0) -> 0 | G61: 0
A62: 2024-09-01 | B62: 56 | C62: =IF(B62<='Калькулятор лизинга'!$F$16,'Калькулятор лизинга'!Y60,0)+IF(B62='Калькулятор лизинга'!$F$16,'Калькулятор лизинга'!$F$27) -> 0 | D62: =IF($J$2="нет",0,C62*'Калькулятор лизинга'!$K$11/(100+'Калькулятор лизинга'!$K$11)) -> 0 | E62: 0 | F62: =IF($J$3="да",E62*'Калькулятор лизинга'!$K$9/100,0) -> 0 | G62: 0
A63: 2024-10-01 | B63: 57 | C63: =IF(B63<='Калькулятор лизинга'!$F$16,'Калькулятор лизинга'!Y61,0)+IF(B63='Калькулятор лизинга'!$F$16,'Калькулятор лизинга'!$F$27) -> 0 | D63: =IF($J$2="нет",0,C63*'Калькулятор лизинга'!$K$11/(100+'Калькулятор лизинга'!$K$11)) -> 0 | E63: 0 | F63: =IF($J$3="да",E63*'Калькулятор лизинга'!$K$9/100,0) -> 0 | G63: 0
A64: 2024-11-01 | B64: 58 | C64: =IF(B64<='Калькулятор лизинга'!$F$16,'Калькулятор лизинга'!Y62,0)+IF(B64='Калькулятор лизинга'!$F$16,'Калькулятор лизинга'!$F$27) -> 0 | D64: =IF($J$2="нет",0,C64*'Калькулятор лизинга'!$K$11/(100+'Калькулятор лизинга'!$K$11)) -> 0 | E64: 0 | F64: =IF($J$3="да",E64*'Калькулятор лизинга'!$K$9/100,0) -> 0 | G64: 0
A65: 2024-12-01 | B65: 59 | C65: =IF(B65<='Калькулятор лизинга'!$F$16,'Калькулятор лизинга'!Y63,0)+IF(B65='Калькулятор лизинга'!$F$16,'Калькулятор лизинга'!$F$27) -> 0 | D65: =IF($J$2="нет",0,C65*'Калькулятор лизинга'!$K$11/(100+'Калькулятор лизинга'!$K$11)) -> 0 | E65: 0 | F65: =IF($J$3="да",E65*'Калькулятор лизинга'!$K$9/100,0) -> 0 | G65: 0
A66: 2025-01-01 | B66: 60 | C66: =IF(B66<='Калькулятор лизинга'!$F$16,'Калькулятор лизинга'!Y64,0)+IF(B66='Калькулятор лизинга'!$F$16,'Калькулятор лизинга'!$F$27) -> 0 | D66: =IF($J$2="нет",0,C66*'Калькулятор лизинга'!$K$11/(100+'Калькулятор лизинга'!$K$11)) -> 0 | E66: 0 | F66: =IF($J$3="да",E66*'Калькулятор лизинга'!$K$9/100,0) -> 0 | G66: 0
A67: 2025-02-01 | B67: 61 | C67: =IF(B67<='Калькулятор лизинга'!$F$16,'Калькулятор лизинга'!Y65,0)+IF(B67='Калькулятор лизинга'!$F$16,'Калькулятор лизинга'!$F$27) -> 0 | D67: =IF($J$2="нет",0,C67*'Калькулятор лизинга'!$K$11/(100+'Калькулятор лизинга'!$K$11)) -> 0 | E67: 0 | F67: =IF($J$3="да",E67*'Калькулятор лизинга'!$K$9/100,0) -> 0 | G67: 0
A68: 2025-03-01 | B68: 62 | C68: =IF(B68<='Калькулятор лизинга'!$F$16,'Калькулятор лизинга'!Y66,0)+IF(B68='Калькулятор лизинга'!$F$16,'Калькулятор лизинга'!$F$27) -> 0 | D68: =IF($J$2="нет",0,C68*'Калькулятор лизинга'!$K$11/(100+'Калькулятор лизинга'!$K$11)) -> 0 | E68: 0 | F68: =IF($J$3="да",E68*'Калькулятор лизинга'!$K$9/100,0) -> 0 | G68: 0
A69: 2025-04-01 | B69: 63 | C69: =IF(B69<='Калькулятор лизинга'!$F$16,'Калькулятор лизинга'!Y67,0)+IF(B69='Калькулятор лизинга'!$F$16,'Калькулятор лизинга'!$F$27) -> 0 | D69: =IF($J$2="нет",0,C69*'Калькулятор лизинга'!$K$11/(100+'Калькулятор лизинга'!$K$11)) -> 0 | E69: 0 | F69: =IF($J$3="да",E69*'Калькулятор лизинга'!$K$9/100,0) -> 0 | G69: 0
A70: 2025-05-01 | B70: 64 | C70: =IF(B70<='Калькулятор лизинга'!$F$16,'Калькулятор лизинга'!Y68,0)+IF(B70='Калькулятор лизинга'!$F$16,'Калькулятор лизинга'!$F$27) -> 0 | D70: =IF($J$2="нет",0,C70*'Калькулятор лизинга'!$K$11/(100+'Калькулятор лизинга'!$K$11)) -> 0 | E70: 0 | F70: =IF($J$3="да",E70*'Калькулятор лизинга'!$K$9/100,0) -> 0 | G70: 0
A71: 2025-06-01 | B71: 65 | C71: =IF(B71<='Калькулятор лизинга'!$F$16,'Калькулятор лизинга'!Y69,0)+IF(B71='Калькулятор лизинга'!$F$16,'Калькулятор лизинга'!$F$27) -> 0 | D71: =IF($J$2="нет",0,C71*'Калькулятор лизинга'!$K$11/(100+'Калькулятор лизинга'!$K$11)) -> 0 | E71: =C71-D71 -> 0 | F71: =IF($J$3="да",E71*'Калькулятор лизинга'!$K$9/100,0) -> 0 | G71: =E71-F71 -> 0
A72: 2025-07-01 | B72: 66 | C72: =IF(B72<='Калькулятор лизинга'!$F$16,'Калькулятор лизинга'!Y70,0)+IF(B72='Калькулятор лизинга'!$F$16,'Калькулятор лизинга'!$F$27) -> 0 | D72: =IF($J$2="нет",0,C72*'Калькулятор лизинга'!$K$11/(100+'Калькулятор лизинга'!$K$11)) -> 0 | E72: 0 | F72: =IF($J$3="да",E72*'Калькулятор лизинга'!$K$9/100,0) -> 0 | G72: 0
A73: 2025-08-01 | B73: 67 | C73: =IF(B73<='Калькулятор лизинга'!$F$16,'Калькулятор лизинга'!Y71,0)+IF(B73='Калькулятор лизинга'!$F$16,'Калькулятор лизинга'!$F$27) -> 0 | D73: =IF($J$2="нет",0,C73*'Калькулятор лизинга'!$K$11/(100+'Калькулятор лизинга'!$K$11)) -> 0 | E73: 0 | F73: =IF($J$3="да",E73*'Калькулятор лизинга'!$K$9/100,0) -> 0 | G73: 0
A74: 2025-09-01 | B74: 68 | C74: =IF(B74<='Калькулятор лизинга'!$F$16,'Калькулятор лизинга'!Y72,0)+IF(B74='Калькулятор лизинга'!$F$16,'Калькулятор лизинга'!$F$27) -> 0 | D74: =IF($J$2="нет",0,C74*'Калькулятор лизинга'!$K$11/(100+'Калькулятор лизинга'!$K$11)) -> 0 | E74: 0 | F74: =IF($J$3="да",E74*'Калькулятор лизинга'!$K$9/100,0) -> 0 | G74: 0
A75: 2025-10-01 | B75: 69 | C75: =IF(B75<='Калькулятор лизинга'!$F$16,'Калькулятор лизинга'!Y73,0)+IF(B75='Калькулятор лизинга'!$F$16,'Калькулятор лизинга'!$F$27) -> 0 | D75: =IF($J$2="нет",0,C75*'Калькулятор лизинга'!$K$11/(100+'Калькулятор лизинга'!$K$11)) -> 0 | E75: 0 | F75: =IF($J$3="да",E75*'Калькулятор лизинга'!$K$9/100,0) -> 0 | G75: 0
A76: 2025-11-01 | B76: 70 | C76: =IF(B76<='Калькулятор лизинга'!$F$16,'Калькулятор лизинга'!Y74,0)+IF(B76='Калькулятор лизинга'!$F$16,'Калькулятор лизинга'!$F$27) -> 0 | D76: =IF($J$2="нет",0,C76*'Калькулятор лизинга'!$K$11/(100+'Калькулятор лизинга'!$K$11)) -> 0 | E76: 0 | F76: =IF($J$3="да",E76*'Калькулятор лизинга'!$K$9/100,0) -> 0 | G76: 0
A77: 2025-12-01 | B77: 71 | C77: =IF(B77<='Калькулятор лизинга'!$F$16,'Калькулятор лизинга'!Y75,0)+IF(B77='Калькулятор лизинга'!$F$16,'Калькулятор лизинга'!$F$27) -> 0 | D77: =IF($J$2="нет",0,C77*'Калькулятор лизинга'!$K$11/(100+'Калькулятор лизинга'!$K$11)) -> 0 | E77: 0 | F77: =IF($J$3="да",E77*'Калькулятор лизинга'!$K$9/100,0) -> 0 | G77: 0
A78: 2026-01-01 | B78: 72 | C78: =IF(B78<='Калькулятор лизинга'!$F$16,'Калькулятор лизинга'!Y76,0)+IF(B78='Калькулятор лизинга'!$F$16,'Калькулятор лизинга'!$F$27) -> 1000 | D78: =IF($J$2="нет",0,C78*'Калькулятор лизинга'!$K$11/(100+'Калькулятор лизинга'!$K$11)) -> 166.6666667 | E78: 833.3333333 | F78: =IF($J$3="да",E78*'Калькулятор лизинга'!$K$9/100,0) -> 166.6666667 | G78: 666.6666667
A79: 2026-02-01 | B79: 73 | C79: =IF(B79<='Калькулятор лизинга'!$F$16,'Калькулятор лизинга'!Y77,0)+IF(B79='Калькулятор лизинга'!$F$16,'Калькулятор лизинга'!$F$27) -> 0 | D79: =IF($J$2="нет",0,C79*'Калькулятор лизинга'!$K$11/(100+'Калькулятор лизинга'!$K$11)) -> 0 | E79: 0 | F79: =IF($J$3="да",E79*'Калькулятор лизинга'!$K$9/100,0) -> 0 | G79: 0
A80: 2026-03-01 | B80: 74 | C80: =IF(B80<='Калькулятор лизинга'!$F$16,'Калькулятор лизинга'!Y78,0)+IF(B80='Калькулятор лизинга'!$F$16,'Калькулятор лизинга'!$F$27) -> 0 | D80: =IF($J$2="нет",0,C80*'Калькулятор лизинга'!$K$11/(100+'Калькулятор лизинга'!$K$11)) -> 0 | E80: 0 | F80: =IF($J$3="да",E80*'Калькулятор лизинга'!$K$9/100,0) -> 0 | G80: 0
A81: 2026-04-01 | B81: 75 | C81: =IF(B81<='Калькулятор лизинга'!$F$16,'Калькулятор лизинга'!Y79,0)+IF(B81='Калькулятор лизинга'!$F$16,'Калькулятор лизинга'!$F$27) -> 0 | D81: =IF($J$2="нет",0,C81*'Калькулятор лизинга'!$K$11/(100+'Калькулятор лизинга'!$K$11)) -> 0 | E81: 0 | F81: =IF($J$3="да",E81*'Калькулятор лизинга'!$K$9/100,0) -> 0 | G81: 0
A82: 2026-05-01 | B82: 76 | C82: =IF(B82<='Калькулятор лизинга'!$F$16,'Калькулятор лизинга'!Y80,0)+IF(B82='Калькулятор лизинга'!$F$16,'Калькулятор лизинга'!$F$27) -> 0 | D82: =IF($J$2="нет",0,C82*'Калькулятор лизинга'!$K$11/(100+'Калькулятор лизинга'!$K$11)) -> 0 | E82: 0 | F82: =IF($J$3="да",E82*'Калькулятор лизинга'!$K$9/100,0) -> 0 | G82: 0
A83: 2026-06-01 | B83: 77 | C83: =IF(B83<='Калькулятор лизинга'!$F$16,'Калькулятор лизинга'!Y81,0)+IF(B83='Калькулятор лизинга'!$F$16,'Калькулятор лизинга'!$F$27) -> 0 | D83: =IF($J$2="нет",0,C83*'Калькулятор лизинга'!$K$11/(100+'Калькулятор лизинга'!$K$11)) -> 0 | E83: 0 | F83: =IF($J$3="да",E83*'Калькулятор лизинга'!$K$9/100,0) -> 0 | G83: 0
A84: 2026-07-01 | B84: 78 | C84: =IF(B84<='Калькулятор лизинга'!$F$16,'Калькулятор лизинга'!Y82,0)+IF(B84='Калькулятор лизинга'!$F$16,'Калькулятор лизинга'!$F$27) -> 0 | D84: =IF($J$2="нет",0,C84*'Калькулятор лизинга'!$K$11/(100+'Калькулятор лизинга'!$K$11)) -> 0 | E84: 0 | F84: =IF($J$3="да",E84*'Калькулятор лизинга'!$K$9/100,0) -> 0 | G84: 0
A85: 2026-08-01 | B85: 79 | C85: =IF(B85<='Калькулятор лизинга'!$F$16,'Калькулятор лизинга'!Y83,0)+IF(B85='Калькулятор лизинга'!$F$16,'Калькулятор лизинга'!$F$27) -> 0 | D85: =IF($J$2="нет",0,C85*'Калькулятор лизинга'!$K$11/(100+'Калькулятор лизинга'!$K$11)) -> 0 | E85: 0 | F85: =IF($J$3="да",E85*'Калькулятор лизинга'!$K$9/100,0) -> 0 | G85: 0
A86: 2026-09-01 | B86: 80 | C86: =IF(B86<='Калькулятор лизинга'!$F$16,'Калькулятор лизинга'!Y84,0)+IF(B86='Калькулятор лизинга'!$F$16,'Калькулятор лизинга'!$F$27) -> 0 | D86: =IF($J$2="нет",0,C86*'Калькулятор лизинга'!$K$11/(100+'Калькулятор лизинга'!$K$11)) -> 0 | E86: 0 | F86: =IF($J$3="да",E86*'Калькулятор лизинга'!$K$9/100,0) -> 0 | G86: 0
A87: 2026-10-01 | B87: 81 | C87: =IF(B87<='Калькулятор лизинга'!$F$16,'Калькулятор лизинга'!Y85,0)+IF(B87='Калькулятор лизинга'!$F$16,'Калькулятор лизинга'!$F$27) -> 0 | D87: =IF($J$2="нет",0,C87*'Калькулятор лизинга'!$K$11/(100+'Калькулятор лизинга'!$K$11)) -> 0 | E87: 0 | F87: =IF($J$3="да",E87*'Калькулятор лизинга'!$K$9/100,0) -> 0 | G87: 0
A88: 2026-11-01 | B88: 82 | C88: =IF(B88<='Калькулятор лизинга'!$F$16,'Калькулятор лизинга'!Y86,0)+IF(B88='Калькулятор лизинга'!$F$16,'Калькулятор лизинга'!$F$27) -> 0 | D88: =IF($J$2="нет",0,C88*'Калькулятор лизинга'!$K$11/(100+'Калькулятор лизинга'!$K$11)) -> 0 | E88: 0 | F88: =IF($J$3="да",E88*'Калькулятор лизинга'!$K$9/100,0) -> 0 | G88: 0
A89: 2026-12-01 | B89: 83 | C89: =IF(B89<='Калькулятор лизинга'!$F$16,'Калькулятор лизинга'!Y87,0)+IF(B89='Калькулятор лизинга'!$F$16,'Калькулятор лизинга'!$F$27) -> 0 | D89: =IF($J$2="нет",0,C89*'Калькулятор лизинга'!$K$11/(100+'Калькулятор лизинга'!$K$11)) -> 0 | E89: 0 | F89: =IF($J$3="да",E89*'Калькулятор лизинга'!$K$9/100,0) -> 0 | G89: 0
A90: 2027-01-01 | B90: 84 | C90: =IF(B90<='Калькулятор лизинга'!$F$16,'Калькулятор лизинга'!Y88,0)+IF(B90='Калькулятор лизинга'!$F$16,'Калькулятор лизинга'!$F$27) -> 0 | D90: =IF($J$2="нет",0,C90*'Калькулятор лизинга'!$K$11/(100+'Калькулятор лизинга'!$K$11)) -> 0 | E90: 0 | F90: =IF($J$3="да",E90*'Калькулятор лизинга'!$K$9/100,0) -> 0 | G90: 0
A91: 2027-02-01 | B91: 85 | C91: =IF(B91<='Калькулятор лизинга'!$F$16,'Калькулятор лизинга'!Y89,0)+IF(B91='Калькулятор лизинга'!$F$16,'Калькулятор лизинга'!$F$27) -> 0 | D91: =IF($J$2="нет",0,C91*'Калькулятор лизинга'!$K$11/(100+'Калькулятор лизинга'!$K$11)) -> 0 | E91: 0 | F91: =IF($J$3="да",E91*'Калькулятор лизинга'!$K$9/100,0) -> 0 | G91: 0
A92: 2027-03-01 | B92: 86 | C92: =IF(B92<='Калькулятор лизинга'!$F$16,'Калькулятор лизинга'!Y90,0)+IF(B92='Калькулятор лизинга'!$F$16,'Калькулятор лизинга'!$F$27) -> 0 | D92: =IF($J$2="нет",0,C92*'Калькулятор лизинга'!$K$11/(100+'Калькулятор лизинга'!$K$11)) -> 0 | E92: 0 | F92: =IF($J$3="да",E92*'Калькулятор лизинга'!$K$9/100,0) -> 0 | G92: 0
A93: 2027-04-01 | B93: 87 | C93: =IF(B93<='Калькулятор лизинга'!$F$16,'Калькулятор лизинга'!Y91,0)+IF(B93='Калькулятор лизинга'!$F$16,'Калькулятор лизинга'!$F$27) -> 0 | D93: =IF($J$2="нет",0,C93*'Калькулятор лизинга'!$K$11/(100+'Калькулятор лизинга'!$K$11)) -> 0 | E93: 0 | F93: =IF($J$3="да",E93*'Калькулятор лизинга'!$K$9/100,0) -> 0 | G93: 0
A94: 2027-05-01 | B94: 88 | C94: =IF(B94<='Калькулятор лизинга'!$F$16,'Калькулятор лизинга'!Y92,0)+IF(B94='Калькулятор лизинга'!$F$16,'Калькулятор лизинга'!$F$27) -> 0 | D94: =IF($J$2="нет",0,C94*'Калькулятор лизинга'!$K$11/(100+'Калькулятор лизинга'!$K$11)) -> 0 | E94: 0 | F94: =IF($J$3="да",E94*'Калькулятор лизинга'!$K$9/100,0) -> 0 | G94: 0
A95: 2027-06-01 | B95: 89 | C95: =IF(B95<='Калькулятор лизинга'!$F$16,'Калькулятор лизинга'!Y93,0)+IF(B95='Калькулятор лизинга'!$F$16,'Калькулятор лизинга'!$F$27) -> 0 | D95: =IF($J$2="нет",0,C95*'Калькулятор лизинга'!$K$11/(100+'Калькулятор лизинга'!$K$11)) -> 0 | E95: 0 | F95: =IF($J$3="да",E95*'Калькулятор лизинга'!$K$9/100,0) -> 0 | G95: 0
A96: 2027-07-01 | B96: 90 | C96: =IF(B96<='Калькулятор лизинга'!$F$16,'Калькулятор лизинга'!Y94,0)+IF(B96='Калькулятор лизинга'!$F$16,'Калькулятор лизинга'!$F$27) -> 0 | D96: =IF($J$2="нет",0,C96*'Калькулятор лизинга'!$K$11/(100+'Калькулятор лизинга'!$K$11)) -> 0 | E96: 0 | F96: =IF($J$3="да",E96*'Калькулятор лизинга'!$K$9/100,0) -> 0 | G96: 0
A97: 2027-08-01 | B97: 91 | C97: =IF(B97<='Калькулятор лизинга'!$F$16,'Калькулятор лизинга'!Y95,0)+IF(B97='Калькулятор лизинга'!$F$16,'Калькулятор лизинга'!$F$27) -> 0 | D97: =IF($J$2="нет",0,C97*'Калькулятор лизинга'!$K$11/(100+'Калькулятор лизинга'!$K$11)) -> 0 | E97: 0 | F97: =IF($J$3="да",E97*'Калькулятор лизинга'!$K$9/100,0) -> 0 | G97: 0
A98: 2027-09-01 | B98: 92 | C98: =IF(B98<='Калькулятор лизинга'!$F$16,'Калькулятор лизинга'!Y96,0)+IF(B98='Калькулятор лизинга'!$F$16,'Калькулятор лизинга'!$F$27) -> 0 | D98: =IF($J$2="нет",0,C98*'Калькулятор лизинга'!$K$11/(100+'Калькулятор лизинга'!$K$11)) -> 0 | E98: 0 | F98: =IF($J$3="да",E98*'Калькулятор лизинга'!$K$9/100,0) -> 0 | G98: 0
A99: 2027-10-01 | B99: 93 | C99: =IF(B99<='Калькулятор лизинга'!$F$16,'Калькулятор лизинга'!Y97,0)+IF(B99='Калькулятор лизинга'!$F$16,'Калькулятор лизинга'!$F$27) -> 0 | D99: =IF($J$2="нет",0,C99*'Калькулятор лизинга'!$K$11/(100+'Калькулятор лизинга'!$K$11)) -> 0 | E99: 0 | F99: =IF($J$3="да",E99*'Калькулятор лизинга'!$K$9/100,0) -> 0 | G99: 0
A100: 2027-11-01 | B100: 94 | C100: =IF(B100<='Калькулятор лизинга'!$F$16,'Калькулятор лизинга'!Y98,0)+IF(B100='Калькулятор лизинга'!$F$16,'Калькулятор лизинга'!$F$27) -> 0 | D100: =IF($J$2="нет",0,C100*'Калькулятор лизинга'!$K$11/(100+'Калькулятор лизинга'!$K$11)) -> 0 | E100: 0 | F100: =IF($J$3="да",E100*'Калькулятор лизинга'!$K$9/100,0) -> 0 | G100: 0
A101: 2027-12-01 | B101: 95 | C101: =IF(B101<='Калькулятор лизинга'!$F$16,'Калькулятор лизинга'!Y99,0)+IF(B101='Калькулятор лизинга'!$F$16,'Калькулятор лизинга'!$F$27) -> 0 | D101: =IF($J$2="нет",0,C101*'Калькулятор лизинга'!$K$11/(100+'Калькулятор лизинга'!$K$11)) -> 0 | E101: 0 | F101: =IF($J$3="да",E101*'Калькулятор лизинга'!$K$9/100,0) -> 0 | G101: 0
A102: 2028-01-01 | B102: 96 | C102: =IF(B102<='Калькулятор лизинга'!$F$16,'Калькулятор лизинга'!Y100,0)+IF(B102='Калькулятор лизинга'!$F$16,'Калькулятор лизинга'!$F$27) -> 0 | D102: =IF($J$2="нет",0,C102*'Калькулятор лизинга'!$K$11/(100+'Калькулятор лизинга'!$K$11)) -> 0 | E102: 0 | F102: =IF($J$3="да",E102*'Калькулятор лизинга'!$K$9/100,0) -> 0 | G102: 0
A103: 2028-02-01 | B103: 97 | C103: =IF(B103<='Калькулятор лизинга'!$F$16,'Калькулятор лизинга'!Y101,0)+IF(B103='Калькулятор лизинга'!$F$16,'Калькулятор лизинга'!$F$27) -> 0 | D103: =IF($J$2="нет",0,C103*'Калькулятор лизинга'!$K$11/(100+'Калькулятор лизинга'!$K$11)) -> 0 | E103: =C103-D103 -> 0 | F103: =IF($J$3="да",E103*'Калькулятор лизинга'!$K$9/100,0) -> 0 | G103: =E103-F103 -> 0
A104: 2028-03-01 | B104: 98 | C104: =IF(B104<='Калькулятор лизинга'!$F$16,'Калькулятор лизинга'!Y102,0)+IF(B104='Калькулятор лизинга'!$F$16,'Калькулятор лизинга'!$F$27) -> 0 | D104: =IF($J$2="нет",0,C104*'Калькулятор лизинга'!$K$11/(100+'Калькулятор лизинга'!$K$11)) -> 0 | E104: 0 | F104: =IF($J$3="да",E104*'Калькулятор лизинга'!$K$9/100,0) -> 0 | G104: 0
A105: 2028-04-01 | B105: 99 | C105: =IF(B105<='Калькулятор лизинга'!$F$16,'Калькулятор лизинга'!Y103,0)+IF(B105='Калькулятор лизинга'!$F$16,'Калькулятор лизинга'!$F$27) -> 0 | D105: =IF($J$2="нет",0,C105*'Калькулятор лизинга'!$K$11/(100+'Калькулятор лизинга'!$K$11)) -> 0 | E105: 0 | F105: =IF($J$3="да",E105*'Калькулятор лизинга'!$K$9/100,0) -> 0 | G105: 0
A106: 2028-05-01 | B106: 100 | C106: =IF(B106<='Калькулятор лизинга'!$F$16,'Калькулятор лизинга'!Y104,0)+IF(B106='Калькулятор лизинга'!$F$16,'Калькулятор лизинга'!$F$27) -> 0 | D106: =IF($J$2="нет",0,C106*'Калькулятор лизинга'!$K$11/(100+'Калькулятор лизинга'!$K$11)) -> 0 | E106: 0 | F106: =IF($J$3="да",E106*'Калькулятор лизинга'!$K$9/100,0) -> 0 | G106: 0
A107: 2028-06-01 | B107: 101 | C107: =IF(B107<='Калькулятор лизинга'!$F$16,'Калькулятор лизинга'!Y105,0)+IF(B107='Калькулятор лизинга'!$F$16,'Калькулятор лизинга'!$F$27) -> 0 | D107: =IF($J$2="нет",0,C107*'Калькулятор лизинга'!$K$11/(100+'Калькулятор лизинга'!$K$11)) -> 0 | E107: 0 | F107: =IF($J$3="да",E107*'Калькулятор лизинга'!$K$9/100,0) -> 0 | G107: 0
A108: 2028-07-01 | B108: 102 | C108: =IF(B108<='Калькулятор лизинга'!$F$16,'Калькулятор лизинга'!Y106,0)+IF(B108='Калькулятор лизинга'!$F$16,'Калькулятор лизинга'!$F$27) -> 0 | D108: =IF($J$2="нет",0,C108*'Калькулятор лизинга'!$K$11/(100+'Калькулятор лизинга'!$K$11)) -> 0 | E108: 0 | F108: =IF($J$3="да",E108*'Калькулятор лизинга'!$K$9/100,0) -> 0 | G108: 0
A109: 2028-08-01 | B109: 103 | C109: =IF(B109<='Калькулятор лизинга'!$F$16,'Калькулятор лизинга'!Y107,0)+IF(B109='Калькулятор лизинга'!$F$16,'Калькулятор лизинга'!$F$27) -> 0 | D109: =IF($J$2="нет",0,C109*'Калькулятор лизинга'!$K$11/(100+'Калькулятор лизинга'!$K$11)) -> 0 | E109: 0 | F109: =IF($J$3="да",E109*'Калькулятор лизинга'!$K$9/100,0) -> 0 | G109: 0
A110: 2028-09-01 | B110: 104 | C110: =IF(B110<='Калькулятор лизинга'!$F$16,'Калькулятор лизинга'!Y108,0)+IF(B110='Калькулятор лизинга'!$F$16,'Калькулятор лизинга'!$F$27) -> 0 | D110: =IF($J$2="нет",0,C110*'Калькулятор лизинга'!$K$11/(100+'Калькулятор лизинга'!$K$11)) -> 0 | E110: 0 | F110: =IF($J$3="да",E110*'Калькулятор лизинга'!$K$9/100,0) -> 0 | G110: 0
A111: 2028-10-01 | B111: 105 | C111: =IF(B111<='Калькулятор лизинга'!$F$16,'Калькулятор лизинга'!Y109,0)+IF(B111='Калькулятор лизинга'!$F$16,'Калькулятор лизинга'!$F$27) -> 0 | D111: =IF($J$2="нет",0,C111*'Калькулятор лизинга'!$K$11/(100+'Калькулятор лизинга'!$K$11)) -> 0 | E111: 0 | F111: =IF($J$3="да",E111*'Калькулятор лизинга'!$K$9/100,0) -> 0 | G111: 0
A112: 2028-11-01 | B112: 106 | C112: =IF(B112<='Калькулятор лизинга'!$F$16,'Калькулятор лизинга'!Y110,0)+IF(B112='Калькулятор лизинга'!$F$16,'Калькулятор лизинга'!$F$27) -> 0 | D112: =IF($J$2="нет",0,C112*'Калькулятор лизинга'!$K$11/(100+'Калькулятор лизинга'!$K$11)) -> 0 | E112: 0 | F112: =IF($J$3="да",E112*'Калькулятор лизинга'!$K$9/100,0) -> 0 | G112: 0
A113: 2028-12-01 | B113: 107 | C113: =IF(B113<='Калькулятор лизинга'!$F$16,'Калькулятор лизинга'!Y111,0)+IF(B113='Калькулятор лизинга'!$F$16,'Калькулятор лизинга'!$F$27) -> 0 | D113: =IF($J$2="нет",0,C113*'Калькулятор лизинга'!$K$11/(100+'Калькулятор лизинга'!$K$11)) -> 0 | E113: 0 | F113: =IF($J$3="да",E113*'Калькулятор лизинга'!$K$9/100,0) -> 0 | G113: 0
A114: 2029-01-01 | B114: 108 | C114: =IF(B114<='Калькулятор лизинга'!$F$16,'Калькулятор лизинга'!Y112,0)+IF(B114='Калькулятор лизинга'!$F$16,'Калькулятор лизинга'!$F$27) -> 0 | D114: =IF($J$2="нет",0,C114*'Калькулятор лизинга'!$K$11/(100+'Калькулятор лизинга'!$K$11)) -> 0 | E114: 0 | F114: =IF($J$3="да",E114*'Калькулятор лизинга'!$K$9/100,0) -> 0 | G114: 0
A115: 2029-02-01 | B115: 109 | C115: =IF(B115<='Калькулятор лизинга'!$F$16,'Калькулятор лизинга'!Y113,0)+IF(B115='Калькулятор лизинга'!$F$16,'Калькулятор лизинга'!$F$27) -> 0 | D115: =IF($J$2="нет",0,C115*'Калькулятор лизинга'!$K$11/(100+'Калькулятор лизинга'!$K$11)) -> 0 | E115: 0 | F115: =IF($J$3="да",E115*'Калькулятор лизинга'!$K$9/100,0) -> 0 | G115: 0
A116: 2029-03-01 | B116: 110 | C116: =IF(B116<='Калькулятор лизинга'!$F$16,'Калькулятор лизинга'!Y114,0)+IF(B116='Калькулятор лизинга'!$F$16,'Калькулятор лизинга'!$F$27) -> 0 | D116: =IF($J$2="нет",0,C116*'Калькулятор лизинга'!$K$11/(100+'Калькулятор лизинга'!$K$11)) -> 0 | E116: 0 | F116: =IF($J$3="да",E116*'Калькулятор лизинга'!$K$9/100,0) -> 0 | G116: 0
A117: 2029-04-01 | B117: 111 | C117: =IF(B117<='Калькулятор лизинга'!$F$16,'Калькулятор лизинга'!Y115,0)+IF(B117='Калькулятор лизинга'!$F$16,'Калькулятор лизинга'!$F$27) -> 0 | D117: =IF($J$2="нет",0,C117*'Калькулятор лизинга'!$K$11/(100+'Калькулятор лизинга'!$K$11)) -> 0 | E117: 0 | F117: =IF($J$3="да",E117*'Калькулятор лизинга'!$K$9/100,0) -> 0 | G117: 0
A118: 2029-05-01 | B118: 112 | C118: =IF(B118<='Калькулятор лизинга'!$F$16,'Калькулятор лизинга'!Y116,0)+IF(B118='Калькулятор лизинга'!$F$16,'Калькулятор лизинга'!$F$27) -> 0 | D118: =IF($J$2="нет",0,C118*'Калькулятор лизинга'!$K$11/(100+'Калькулятор лизинга'!$K$11)) -> 0 | E118: 0 | F118: =IF($J$3="да",E118*'Калькулятор лизинга'!$K$9/100,0) -> 0 | G118: 0
A119: 2029-06-01 | B119: 113 | C119: =IF(B119<='Калькулятор лизинга'!$F$16,'Калькулятор лизинга'!Y117,0)+IF(B119='Калькулятор лизинга'!$F$16,'Калькулятор лизинга'!$F$27) -> 0 | D119: =IF($J$2="нет",0,C119*'Калькулятор лизинга'!$K$11/(100+'Калькулятор лизинга'!$K$11)) -> 0 | E119: 0 | F119: =IF($J$3="да",E119*'Калькулятор лизинга'!$K$9/100,0) -> 0 | G119: 0
A120: 2029-07-01 | B120: 114 | C120: =IF(B120<='Калькулятор лизинга'!$F$16,'Калькулятор лизинга'!Y118,0)+IF(B120='Калькулятор лизинга'!$F$16,'Калькулятор лизинга'!$F$27) -> 0 | D120: =IF($J$2="нет",0,C120*'Калькулятор лизинга'!$K$11/(100+'Калькулятор лизинга'!$K$11)) -> 0 | E120: 0 | F120: =IF($J$3="да",E120*'Калькулятор лизинга'!$K$9/100,0) -> 0 | G120: 0
A121: 2029-08-01 | B121: 115 | C121: =IF(B121<='Калькулятор лизинга'!$F$16,'Калькулятор лизинга'!Y119,0)+IF(B121='Калькулятор лизинга'!$F$16,'Калькулятор лизинга'!$F$27) -> 0 | D121: =IF($J$2="нет",0,C121*'Калькулятор лизинга'!$K$11/(100+'Калькулятор лизинга'!$K$11)) -> 0 | E121: 0 | F121: =IF($J$3="да",E121*'Калькулятор лизинга'!$K$9/100,0) -> 0 | G121: 0
A122: 2029-09-01 | B122: 116 | C122: =IF(B122<='Калькулятор лизинга'!$F$16,'Калькулятор лизинга'!Y120,0)+IF(B122='Калькулятор лизинга'!$F$16,'Калькулятор лизинга'!$F$27) -> 0 | D122: =IF($J$2="нет",0,C122*'Калькулятор лизинга'!$K$11/(100+'Калькулятор лизинга'!$K$11)) -> 0 | E122: 0 | F122: =IF($J$3="да",E122*'Калькулятор лизинга'!$K$9/100,0) -> 0 | G122: 0
A123: 2029-10-01 | B123: 117 | C123: =IF(B123<='Калькулятор лизинга'!$F$16,'Калькулятор лизинга'!Y121,0)+IF(B123='Калькулятор лизинга'!$F$16,'Калькулятор лизинга'!$F$27) -> 0 | D123: =IF($J$2="нет",0,C123*'Калькулятор лизинга'!$K$11/(100+'Калькулятор лизинга'!$K$11)) -> 0 | E123: 0 | F123: =IF($J$3="да",E123*'Калькулятор лизинга'!$K$9/100,0) -> 0 | G123: 0
A124: 2029-11-01 | B124: 118 | C124: =IF(B124<='Калькулятор лизинга'!$F$16,'Калькулятор лизинга'!Y122,0)+IF(B124='Калькулятор лизинга'!$F$16,'Калькулятор лизинга'!$F$27) -> 0 | D124: =IF($J$2="нет",0,C124*'Калькулятор лизинга'!$K$11/(100+'Калькулятор лизинга'!$K$11)) -> 0 | E124: 0 | F124: =IF($J$3="да",E124*'Калькулятор лизинга'!$K$9/100,0) -> 0 | G124: 0
A125: 2029-12-01 | B125: 119 | C125: =IF(B125<='Калькулятор лизинга'!$F$16,'Калькулятор лизинга'!Y123,0)+IF(B125='Калькулятор лизинга'!$F$16,'Калькулятор лизинга'!$F$27) -> 0 | D125: =IF($J$2="нет",0,C125*'Калькулятор лизинга'!$K$11/(100+'Калькулятор лизинга'!$K$11)) -> 0 | E125: 0 | F125: =IF($J$3="да",E125*'Калькулятор лизинга'!$K$9/100,0) -> 0 | G125: 0
A126: 2030-01-01 | B126: 120 | C126: =IF(B126<='Калькулятор лизинга'!$F$16,'Калькулятор лизинга'!Y124,0)+IF(B126='Калькулятор лизинга'!$F$16,'Калькулятор лизинга'!$F$27) -> 0 | D126: =IF($J$2="нет",0,C126*'Калькулятор лизинга'!$K$11/(100+'Калькулятор лизинга'!$K$11)) -> 0 | E126: 0 | F126: =IF($J$3="да",E126*'Калькулятор лизинга'!$K$9/100,0) -> 0 | G126: 0
A127: 2030-02-01 | B127: 121 | C127: =IF(B127<='Калькулятор лизинга'!$F$16,'Калькулятор лизинга'!Y125,0)+IF(B127='Калькулятор лизинга'!$F$16,'Калькулятор лизинга'!$F$27) -> 0 | D127: =IF($J$2="нет",0,C127*'Калькулятор лизинга'!$K$11/(100+'Калькулятор лизинга'!$K$11)) -> 0 | E127: 0 | F127: =IF($J$3="да",E127*'Калькулятор лизинга'!$K$9/100,0) -> 0 | G127: 0
A128: 2030-03-01 | B128: 122 | C128: =IF(B128<='Калькулятор лизинга'!$F$16,'Калькулятор лизинга'!Y126,0)+IF(B128='Калькулятор лизинга'!$F$16,'Калькулятор лизинга'!$F$27) -> 0 | D128: =IF($J$2="нет",0,C128*'Калькулятор лизинга'!$K$11/(100+'Калькулятор лизинга'!$K$11)) -> 0 | E128: 0 | F128: =IF($J$3="да",E128*'Калькулятор лизинга'!$K$9/100,0) -> 0 | G128: 0
A129: 2030-04-01 | B129: 123 | C129: =IF(B129<='Калькулятор лизинга'!$F$16,'Калькулятор лизинга'!Y127,0)+IF(B129='Калькулятор лизинга'!$F$16,'Калькулятор лизинга'!$F$27) -> 0 | D129: =IF($J$2="нет",0,C129*'Калькулятор лизинга'!$K$11/(100+'Калькулятор лизинга'!$K$11)) -> 0 | E129: 0 | F129: =IF($J$3="да",E129*'Калькулятор лизинга'!$K$9/100,0) -> 0 | G129: 0
A130: 2030-05-01 | B130: 124 | C130: =IF(B130<='Калькулятор лизинга'!$F$16,'Калькулятор лизинга'!Y128,0)+IF(B130='Калькулятор лизинга'!$F$16,'Калькулятор лизинга'!$F$27) -> 0 | D130: =IF($J$2="нет",0,C130*'Калькулятор лизинга'!$K$11/(100+'Калькулятор лизинга'!$K$11)) -> 0 | E130: 0 | F130: =IF($J$3="да",E130*'Калькулятор лизинга'!$K$9/100,0) -> 0 | G130: 0
A131: 2030-06-01 | B131: 125 | C131: =IF(B131<='Калькулятор лизинга'!$F$16,'Калькулятор лизинга'!Y129,0)+IF(B131='Калькулятор лизинга'!$F$16,'Калькулятор лизинга'!$F$27) -> 0 | D131: =IF($J$2="нет",0,C131*'Калькулятор лизинга'!$K$11/(100+'Калькулятор лизинга'!$K$11)) -> 0 | E131: 0 | F131: =IF($J$3="да",E131*'Калькулятор лизинга'!$K$9/100,0) -> 0 | G131: 0
A132: 2030-07-01 | B132: 126 | C132: =IF(B132<='Калькулятор лизинга'!$F$16,'Калькулятор лизинга'!Y130,0)+IF(B132='Калькулятор лизинга'!$F$16,'Калькулятор лизинга'!$F$27) -> 0 | D132: =IF($J$2="нет",0,C132*'Калькулятор лизинга'!$K$11/(100+'Калькулятор лизинга'!$K$11)) -> 0 | E132: 0 | F132: =IF($J$3="да",E132*'Калькулятор лизинга'!$K$9/100,0) -> 0 | G132: 0
A133: 2030-08-01 | B133: 127 | C133: =IF(B133<='Калькулятор лизинга'!$F$16,'Калькулятор лизинга'!Y131,0)+IF(B133='Калькулятор лизинга'!$F$16,'Калькулятор лизинга'!$F$27) -> 0 | D133: =IF($J$2="нет",0,C133*'Калькулятор лизинга'!$K$11/(100+'Калькулятор лизинга'!$K$11)) -> 0 | E133: 0 | F133: =IF($J$3="да",E133*'Калькулятор лизинга'!$K$9/100,0) -> 0 | G133: 0
A134: 2030-09-01 | B134: 128 | C134: =IF(B134<='Калькулятор лизинга'!$F$16,'Калькулятор лизинга'!Y132,0)+IF(B134='Калькулятор лизинга'!$F$16,'Калькулятор лизинга'!$F$27) -> 0 | D134: =IF($J$2="нет",0,C134*'Калькулятор лизинга'!$K$11/(100+'Калькулятор лизинга'!$K$11)) -> 0 | E134: 0 | F134: =IF($J$3="да",E134*'Калькулятор лизинга'!$K$9/100,0) -> 0 | G134: 0
A135: 2030-10-01 | B135: 129 | C135: =IF(B135<='Калькулятор лизинга'!$F$16,'Калькулятор лизинга'!Y133,0)+IF(B135='Калькулятор лизинга'!$F$16,'Калькулятор лизинга'!$F$27) -> 0 | D135: =IF($J$2="нет",0,C135*'Калькулятор лизинга'!$K$11/(100+'Калькулятор лизинга'!$K$11)) -> 0 | E135: =C135-D135 -> 0 | F135: =IF($J$3="да",E135*'Калькулятор лизинга'!$K$9/100,0) -> 0 | G135: =E135-F135 -> 0
A136: 2030-11-01 | B136: 130 | C136: =IF(B136<='Калькулятор лизинга'!$F$16,'Калькулятор лизинга'!Y134,0)+IF(B136='Калькулятор лизинга'!$F$16,'Калькулятор лизинга'!$F$27) -> 0 | D136: =IF($J$2="нет",0,C136*'Калькулятор лизинга'!$K$11/(100+'Калькулятор лизинга'!$K$11)) -> 0 | E136: 0 | F136: =IF($J$3="да",E136*'Калькулятор лизинга'!$K$9/100,0) -> 0 | G136: 0
A137: 2030-12-01 | B137: 131 | C137: =IF(B137<='Калькулятор лизинга'!$F$16,'Калькулятор лизинга'!Y135,0)+IF(B137='Калькулятор лизинга'!$F$16,'Калькулятор лизинга'!$F$27) -> 0 | D137: =IF($J$2="нет",0,C137*'Калькулятор лизинга'!$K$11/(100+'Калькулятор лизинга'!$K$11)) -> 0 | E137: 0 | F137: =IF($J$3="да",E137*'Калькулятор лизинга'!$K$9/100,0) -> 0 | G137: 0
A138: 2031-01-01 | B138: 132 | C138: =IF(B138<='Калькулятор лизинга'!$F$16,'Калькулятор лизинга'!Y136,0)+IF(B138='Калькулятор лизинга'!$F$16,'Калькулятор лизинга'!$F$27) -> 0 | D138: =IF($J$2="нет",0,C138*'Калькулятор лизинга'!$K$11/(100+'Калькулятор лизинга'!$K$11)) -> 0 | E138: 0 | F138: =IF($J$3="да",E138*'Калькулятор лизинга'!$K$9/100,0) -> 0 | G138: 0
A139: 2031-02-01 | B139: 133 | C139: =IF(B139<='Калькулятор лизинга'!$F$16,'Калькулятор лизинга'!Y137,0)+IF(B139='Калькулятор лизинга'!$F$16,'Калькулятор лизинга'!$F$27) -> 0 | D139: =IF($J$2="нет",0,C139*'Калькулятор лизинга'!$K$11/(100+'Калькулятор лизинга'!$K$11)) -> 0 | E139: 0 | F139: =IF($J$3="да",E139*'Калькулятор лизинга'!$K$9/100,0) -> 0 | G139: 0
A140: 2031-03-01 | B140: 134 | C140: =IF(B140<='Калькулятор лизинга'!$F$16,'Калькулятор лизинга'!Y138,0)+IF(B140='Калькулятор лизинга'!$F$16,'Калькулятор лизинга'!$F$27) -> 0 | D140: =IF($J$2="нет",0,C140*'Калькулятор лизинга'!$K$11/(100+'Калькулятор лизинга'!$K$11)) -> 0 | E140: 0 | F140: =IF($J$3="да",E140*'Калькулятор лизинга'!$K$9/100,0) -> 0 | G140: 0
A141: 2031-04-01 | B141: 135 | C141: =IF(B141<='Калькулятор лизинга'!$F$16,'Калькулятор лизинга'!Y139,0)+IF(B141='Калькулятор лизинга'!$F$16,'Калькулятор лизинга'!$F$27) -> 0 | D141: =IF($J$2="нет",0,C141*'Калькулятор лизинга'!$K$11/(100+'Калькулятор лизинга'!$K$11)) -> 0 | E141: 0 | F141: =IF($J$3="да",E141*'Калькулятор лизинга'!$K$9/100,0) -> 0 | G141: 0
A142: 2031-05-01 | B142: 136 | C142: =IF(B142<='Калькулятор лизинга'!$F$16,'Калькулятор лизинга'!Y140,0)+IF(B142='Калькулятор лизинга'!$F$16,'Калькулятор лизинга'!$F$27) -> 0 | D142: =IF($J$2="нет",0,C142*'Калькулятор лизинга'!$K$11/(100+'Калькулятор лизинга'!$K$11)) -> 0 | E142: 0 | F142: =IF($J$3="да",E142*'Калькулятор лизинга'!$K$9/100,0) -> 0 | G142: 0
A143: 2031-06-01 | B143: 137 | C143: =IF(B143<='Калькулятор лизинга'!$F$16,'Калькулятор лизинга'!Y141,0)+IF(B143='Калькулятор лизинга'!$F$16,'Калькулятор лизинга'!$F$27) -> 0 | D143: =IF($J$2="нет",0,C143*'Калькулятор лизинга'!$K$11/(100+'Калькулятор лизинга'!$K$11)) -> 0 | E143: 0 | F143: =IF($J$3="да",E143*'Калькулятор лизинга'!$K$9/100,0) -> 0 | G143: 0
A144: 2031-07-01 | B144: 138 | C144: =IF(B144<='Калькулятор лизинга'!$F$16,'Калькулятор лизинга'!Y142,0)+IF(B144='Калькулятор лизинга'!$F$16,'Калькулятор лизинга'!$F$27) -> 0 | D144: =IF($J$2="нет",0,C144*'Калькулятор лизинга'!$K$11/(100+'Калькулятор лизинга'!$K$11)) -> 0 | E144: 0 | F144: =IF($J$3="да",E144*'Калькулятор лизинга'!$K$9/100,0) -> 0 | G144: 0
A145: 2031-08-01 | B145: 139 | C145: =IF(B145<='Калькулятор лизинга'!$F$16,'Калькулятор лизинга'!Y143,0)+IF(B145='Калькулятор лизинга'!$F$16,'Калькулятор лизинга'!$F$27) -> 0 | D145: =IF($J$2="нет",0,C145*'Калькулятор лизинга'!$K$11/(100+'Калькулятор лизинга'!$K$11)) -> 0 | E145: 0 | F145: =IF($J$3="да",E145*'Калькулятор лизинга'!$K$9/100,0) -> 0 | G145: 0
A146: 2031-09-01 | B146: 140 | C146: =IF(B146<='Калькулятор лизинга'!$F$16,'Калькулятор лизинга'!Y144,0)+IF(B146='Калькулятор лизинга'!$F$16,'Калькулятор лизинга'!$F$27) -> 0 | D146: =IF($J$2="нет",0,C146*'Калькулятор лизинга'!$K$11/(100+'Калькулятор лизинга'!$K$11)) -> 0 | E146: 0 | F146: =IF($J$3="да",E146*'Калькулятор лизинга'!$K$9/100,0) -> 0 | G146: 0
A147: 2031-10-01 | B147: 141 | C147: =IF(B147<='Калькулятор лизинга'!$F$16,'Калькулятор лизинга'!Y145,0)+IF(B147='Калькулятор лизинга'!$F$16,'Калькулятор лизинга'!$F$27) -> 0 | D147: =IF($J$2="нет",0,C147*'Калькулятор лизинга'!$K$11/(100+'Калькулятор лизинга'!$K$11)) -> 0 | E147: 0 | F147: =IF($J$3="да",E147*'Калькулятор лизинга'!$K$9/100,0) -> 0 | G147: 0
A148: 2031-11-01 | B148: 142 | C148: =IF(B148<='Калькулятор лизинга'!$F$16,'Калькулятор лизинга'!Y146,0)+IF(B148='Калькулятор лизинга'!$F$16,'Калькулятор лизинга'!$F$27) -> 0 | D148: =IF($J$2="нет",0,C148*'Калькулятор лизинга'!$K$11/(100+'Калькулятор лизинга'!$K$11)) -> 0 | E148: 0 | F148: =IF($J$3="да",E148*'Калькулятор лизинга'!$K$9/100,0) -> 0 | G148: 0
A149: 2031-12-01 | B149: 143 | C149: =IF(B149<='Калькулятор лизинга'!$F$16,'Калькулятор лизинга'!Y147,0)+IF(B149='Калькулятор лизинга'!$F$16,'Калькулятор лизинга'!$F$27) -> 0 | D149: =IF($J$2="нет",0,C149*'Калькулятор лизинга'!$K$11/(100+'Калькулятор лизинга'!$K$11)) -> 0 | E149: 0 | F149: =IF($J$3="да",E149*'Калькулятор лизинга'!$K$9/100,0) -> 0 | G149: 0
A150: 2032-01-01 | B150: 144 | C150: =IF(B150<='Калькулятор лизинга'!$F$16,'Калькулятор лизинга'!Y148,0)+IF(B150='Калькулятор лизинга'!$F$16,'Калькулятор лизинга'!$F$27) -> 0 | D150: =IF($J$2="нет",0,C150*'Калькулятор лизинга'!$K$11/(100+'Калькулятор лизинга'!$K$11)) -> 0 | E150: 0 | F150: =IF($J$3="да",E150*'Калькулятор лизинга'!$K$9/100,0) -> 0 | G150: 0
A151: 2032-02-01 | B151: 145 | C151: =IF(B151<='Калькулятор лизинга'!$F$16,'Калькулятор лизинга'!Y149,0)+IF(B151='Калькулятор лизинга'!$F$16,'Калькулятор лизинга'!$F$27) -> 0 | D151: =IF($J$2="нет",0,C151*'Калькулятор лизинга'!$K$11/(100+'Калькулятор лизинга'!$K$11)) -> 0 | E151: 0 | F151: =IF($J$3="да",E151*'Калькулятор лизинга'!$K$9/100,0) -> 0 | G151: 0
A152: 2032-03-01 | B152: 146 | C152: =IF(B152<='Калькулятор лизинга'!$F$16,'Калькулятор лизинга'!Y150,0)+IF(B152='Калькулятор лизинга'!$F$16,'Калькулятор лизинга'!$F$27) -> 0 | D152: =IF($J$2="нет",0,C152*'Калькулятор лизинга'!$K$11/(100+'Калькулятор лизинга'!$K$11)) -> 0 | E152: 0 | F152: =IF($J$3="да",E152*'Калькулятор лизинга'!$K$9/100,0) -> 0 | G152: 0
A153: 2032-04-01 | B153: 147 | C153: =IF(B153<='Калькулятор лизинга'!$F$16,'Калькулятор лизинга'!Y151,0)+IF(B153='Калькулятор лизинга'!$F$16,'Калькулятор лизинга'!$F$27) -> 0 | D153: =IF($J$2="нет",0,C153*'Калькулятор лизинга'!$K$11/(100+'Калькулятор лизинга'!$K$11)) -> 0 | E153: 0 | F153: =IF($J$3="да",E153*'Калькулятор лизинга'!$K$9/100,0) -> 0 | G153: 0
A154: 2032-05-01 | B154: 148 | C154: =IF(B154<='Калькулятор лизинга'!$F$16,'Калькулятор лизинга'!Y152,0)+IF(B154='Калькулятор лизинга'!$F$16,'Калькулятор лизинга'!$F$27) -> 0 | D154: =IF($J$2="нет",0,C154*'Калькулятор лизинга'!$K$11/(100+'Калькулятор лизинга'!$K$11)) -> 0 | E154: 0 | F154: =IF($J$3="да",E154*'Калькулятор лизинга'!$K$9/100,0) -> 0 | G154: 0
A155: 2032-06-01 | B155: 149 | C155: =IF(B155<='Калькулятор лизинга'!$F$16,'Калькулятор лизинга'!Y153,0)+IF(B155='Калькулятор лизинга'!$F$16,'Калькулятор лизинга'!$F$27) -> 0 | D155: =IF($J$2="нет",0,C155*'Калькулятор лизинга'!$K$11/(100+'Калькулятор лизинга'!$K$11)) -> 0 | E155: 0 | F155: =IF($J$3="да",E155*'Калькулятор лизинга'!$K$9/100,0) -> 0 | G155: 0
A156: 2032-07-01 | B156: 150 | C156: =IF(B156<='Калькулятор лизинга'!$F$16,'Калькулятор лизинга'!Y154,0)+IF(B156='Калькулятор лизинга'!$F$16,'Калькулятор лизинга'!$F$27) -> 0 | D156: =IF($J$2="нет",0,C156*'Калькулятор лизинга'!$K$11/(100+'Калькулятор лизинга'!$K$11)) -> 0 | E156: 0 | F156: =IF($J$3="да",E156*'Калькулятор лизинга'!$K$9/100,0) -> 0 | G156: 0
A157: 2032-08-01 | B157: 151 | C157: =IF(B157<='Калькулятор лизинга'!$F$16,'Калькулятор лизинга'!Y155,0)+IF(B157='Калькулятор лизинга'!$F$16,'Калькулятор лизинга'!$F$27) -> 0 | D157: =IF($J$2="нет",0,C157*'Калькулятор лизинга'!$K$11/(100+'Калькулятор лизинга'!$K$11)) -> 0 | E157: 0 | F157: =IF($J$3="да",E157*'Калькулятор лизинга'!$K$9/100,0) -> 0 | G157: 0
A158: 2032-09-01 | B158: 152 | C158: =IF(B158<='Калькулятор лизинга'!$F$16,'Калькулятор лизинга'!Y156,0)+IF(B158='Калькулятор лизинга'!$F$16,'Калькулятор лизинга'!$F$27) -> 0 | D158: =IF($J$2="нет",0,C158*'Калькулятор лизинга'!$K$11/(100+'Калькулятор лизинга'!$K$11)) -> 0 | E158: 0 | F158: =IF($J$3="да",E158*'Калькулятор лизинга'!$K$9/100,0) -> 0 | G158: 0
A159: 2032-10-01 | B159: 153 | C159: =IF(B159<='Калькулятор лизинга'!$F$16,'Калькулятор лизинга'!Y157,0)+IF(B159='Калькулятор лизинга'!$F$16,'Калькулятор лизинга'!$F$27) -> 0 | D159: =IF($J$2="нет",0,C159*'Калькулятор лизинга'!$K$11/(100+'Калькулятор лизинга'!$K$11)) -> 0 | E159: 0 | F159: =IF($J$3="да",E159*'Калькулятор лизинга'!$K$9/100,0) -> 0 | G159: 0
A160: 2032-11-01 | B160: 154 | C160: =IF(B160<='Калькулятор лизинга'!$F$16,'Калькулятор лизинга'!Y158,0)+IF(B160='Калькулятор лизинга'!$F$16,'Калькулятор лизинга'!$F$27) -> 0 | D160: =IF($J$2="нет",0,C160*'Калькулятор лизинга'!$K$11/(100+'Калькулятор лизинга'!$K$11)) -> 0 | E160: 0 | F160: =IF($J$3="да",E160*'Калькулятор лизинга'!$K$9/100,0) -> 0 | G160: 0
A161: 2032-12-01 | B161: 155 | C161: =IF(B161<='Калькулятор лизинга'!$F$16,'Калькулятор лизинга'!Y159,0)+IF(B161='Калькулятор лизинга'!$F$16,'Калькулятор лизинга'!$F$27) -> 0 | D161: =IF($J$2="нет",0,C161*'Калькулятор лизинга'!$K$11/(100+'Калькулятор лизинга'!$K$11)) -> 0 | E161: 0 | F161: =IF($J$3="да",E161*'Калькулятор лизинга'!$K$9/100,0) -> 0 | G161: 0
A162: 2033-01-01 | B162: 156 | C162: =IF(B162<='Калькулятор лизинга'!$F$16,'Калькулятор лизинга'!Y160,0)+IF(B162='Калькулятор лизинга'!$F$16,'Калькулятор лизинга'!$F$27) -> 0 | D162: =IF($J$2="нет",0,C162*'Калькулятор лизинга'!$K$11/(100+'Калькулятор лизинга'!$K$11)) -> 0 | E162: 0 | F162: =IF($J$3="да",E162*'Калькулятор лизинга'!$K$9/100,0) -> 0 | G162: 0
A163: 2033-02-01 | B163: 157 | C163: =IF(B163<='Калькулятор лизинга'!$F$16,'Калькулятор лизинга'!Y161,0)+IF(B163='Калькулятор лизинга'!$F$16,'Калькулятор лизинга'!$F$27) -> 0 | D163: =IF($J$2="нет",0,C163*'Калькулятор лизинга'!$K$11/(100+'Калькулятор лизинга'!$K$11)) -> 0 | E163: 0 | F163: =IF($J$3="да",E163*'Калькулятор лизинга'!$K$9/100,0) -> 0 | G163: 0
A164: 2033-03-01 | B164: 158 | C164: =IF(B164<='Калькулятор лизинга'!$F$16,'Калькулятор лизинга'!Y162,0)+IF(B164='Калькулятор лизинга'!$F$16,'Калькулятор лизинга'!$F$27) -> 0 | D164: =IF($J$2="нет",0,C164*'Калькулятор лизинга'!$K$11/(100+'Калькулятор лизинга'!$K$11)) -> 0 | E164: 0 | F164: =IF($J$3="да",E164*'Калькулятор лизинга'!$K$9/100,0) -> 0 | G164: 0
A165: 2033-04-01 | B165: 159 | C165: =IF(B165<='Калькулятор лизинга'!$F$16,'Калькулятор лизинга'!Y163,0)+IF(B165='Калькулятор лизинга'!$F$16,'Калькулятор лизинга'!$F$27) -> 0 | D165: =IF($J$2="нет",0,C165*'Калькулятор лизинга'!$K$11/(100+'Калькулятор лизинга'!$K$11)) -> 0 | E165: 0 | F165: =IF($J$3="да",E165*'Калькулятор лизинга'!$K$9/100,0) -> 0 | G165: 0
A166: 2033-05-01 | B166: 160 | C166: =IF(B166<='Калькулятор лизинга'!$F$16,'Калькулятор лизинга'!Y164,0)+IF(B166='Калькулятор лизинга'!$F$16,'Калькулятор лизинга'!$F$27) -> 0 | D166: =IF($J$2="нет",0,C166*'Калькулятор лизинга'!$K$11/(100+'Калькулятор лизинга'!$K$11)) -> 0 | E166: 0 | F166: =IF($J$3="да",E166*'Калькулятор лизинга'!$K$9/100,0) -> 0 | G166: 0
A167: 2033-06-01 | B167: 161 | C167: =IF(B167<='Калькулятор лизинга'!$F$16,'Калькулятор лизинга'!Y165,0)+IF(B167='Калькулятор лизинга'!$F$16,'Калькулятор лизинга'!$F$27) -> 0 | D167: =IF($J$2="нет",0,C167*'Калькулятор лизинга'!$K$11/(100+'Калькулятор лизинга'!$K$11)) -> 0 | E167: =C167-D167 -> 0 | F167: =IF($J$3="да",E167*'Калькулятор лизинга'!$K$9/100,0) -> 0 | G167: =E167-F167 -> 0
A168: 2033-07-01 | B168: 162 | C168: =IF(B168<='Калькулятор лизинга'!$F$16,'Калькулятор лизинга'!Y166,0)+IF(B168='Калькулятор лизинга'!$F$16,'Калькулятор лизинга'!$F$27) -> 0 | D168: =IF($J$2="нет",0,C168*'Калькулятор лизинга'!$K$11/(100+'Калькулятор лизинга'!$K$11)) -> 0 | E168: 0 | F168: =IF($J$3="да",E168*'Калькулятор лизинга'!$K$9/100,0) -> 0 | G168: 0
A169: 2033-08-01 | B169: 163 | C169: =IF(B169<='Калькулятор лизинга'!$F$16,'Калькулятор лизинга'!Y167,0)+IF(B169='Калькулятор лизинга'!$F$16,'Калькулятор лизинга'!$F$27) -> 0 | D169: =IF($J$2="нет",0,C169*'Калькулятор лизинга'!$K$11/(100+'Калькулятор лизинга'!$K$11)) -> 0 | E169: 0 | F169: =IF($J$3="да",E169*'Калькулятор лизинга'!$K$9/100,0) -> 0 | G169: 0
A170: 2033-09-01 | B170: 164 | C170: =IF(B170<='Калькулятор лизинга'!$F$16,'Калькулятор лизинга'!Y168,0)+IF(B170='Калькулятор лизинга'!$F$16,'Калькулятор лизинга'!$F$27) -> 0 | D170: =IF($J$2="нет",0,C170*'Калькулятор лизинга'!$K$11/(100+'Калькулятор лизинга'!$K$11)) -> 0 | E170: 0 | F170: =IF($J$3="да",E170*'Калькулятор лизинга'!$K$9/100,0) -> 0 | G170: 0
A171: 2033-10-01 | B171: 165 | C171: =IF(B171<='Калькулятор лизинга'!$F$16,'Калькулятор лизинга'!Y169,0)+IF(B171='Калькулятор лизинга'!$F$16,'Калькулятор лизинга'!$F$27) -> 0 | D171: =IF($J$2="нет",0,C171*'Калькулятор лизинга'!$K$11/(100+'Калькулятор лизинга'!$K$11)) -> 0 | E171: 0 | F171: =IF($J$3="да",E171*'Калькулятор лизинга'!$K$9/100,0) -> 0 | G171: 0
A172: 2033-11-01 | B172: 166 | C172: =IF(B172<='Калькулятор лизинга'!$F$16,'Калькулятор лизинга'!Y170,0)+IF(B172='Калькулятор лизинга'!$F$16,'Калькулятор лизинга'!$F$27) -> 0 | D172: =IF($J$2="нет",0,C172*'Калькулятор лизинга'!$K$11/(100+'Калькулятор лизинга'!$K$11)) -> 0 | E172: 0 | F172: =IF($J$3="да",E172*'Калькулятор лизинга'!$K$9/100,0) -> 0 | G172: 0
A173: 2033-12-01 | B173: 167 | C173: =IF(B173<='Калькулятор лизинга'!$F$16,'Калькулятор лизинга'!Y171,0)+IF(B173='Калькулятор лизинга'!$F$16,'Калькулятор лизинга'!$F$27) -> 0 | D173: =IF($J$2="нет",0,C173*'Калькулятор лизинга'!$K$11/(100+'Калькулятор лизинга'!$K$11)) -> 0 | E173: 0 | F173: =IF($J$3="да",E173*'Калькулятор лизинга'!$K$9/100,0) -> 0 | G173: 0
A174: 2034-01-01 | B174: 168 | C174: =IF(B174<='Калькулятор лизинга'!$F$16,'Калькулятор лизинга'!Y172,0)+IF(B174='Калькулятор лизинга'!$F$16,'Калькулятор лизинга'!$F$27) -> 0 | D174: =IF($J$2="нет",0,C174*'Калькулятор лизинга'!$K$11/(100+'Калькулятор лизинга'!$K$11)) -> 0 | E174: 0 | F174: =IF($J$3="да",E174*'Калькулятор лизинга'!$K$9/100,0) -> 0 | G174: 0
A175: 2034-02-01 | B175: 169 | C175: =IF(B175<='Калькулятор лизинга'!$F$16,'Калькулятор лизинга'!Y173,0)+IF(B175='Калькулятор лизинга'!$F$16,'Калькулятор лизинга'!$F$27) -> 0 | D175: =IF($J$2="нет",0,C175*'Калькулятор лизинга'!$K$11/(100+'Калькулятор лизинга'!$K$11)) -> 0 | E175: 0 | F175: =IF($J$3="да",E175*'Калькулятор лизинга'!$K$9/100,0) -> 0 | G175: 0
A176: 2034-03-01 | B176: 170 | C176: =IF(B176<='Калькулятор лизинга'!$F$16,'Калькулятор лизинга'!Y174,0)+IF(B176='Калькулятор лизинга'!$F$16,'Калькулятор лизинга'!$F$27) -> 0 | D176: =IF($J$2="нет",0,C176*'Калькулятор лизинга'!$K$11/(100+'Калькулятор лизинга'!$K$11)) -> 0 | E176: 0 | F176: =IF($J$3="да",E176*'Калькулятор лизинга'!$K$9/100,0) -> 0 | G176: 0
A177: 2034-04-01 | B177: 171 | C177: =IF(B177<='Калькулятор лизинга'!$F$16,'Калькулятор лизинга'!Y175,0)+IF(B177='Калькулятор лизинга'!$F$16,'Калькулятор лизинга'!$F$27) -> 0 | D177: =IF($J$2="нет",0,C177*'Калькулятор лизинга'!$K$11/(100+'Калькулятор лизинга'!$K$11)) -> 0 | E177: 0 | F177: =IF($J$3="да",E177*'Калькулятор лизинга'!$K$9/100,0) -> 0 | G177: 0
A178: 2034-05-01 | B178: 172 | C178: =IF(B178<='Калькулятор лизинга'!$F$16,'Калькулятор лизинга'!Y176,0)+IF(B178='Калькулятор лизинга'!$F$16,'Калькулятор лизинга'!$F$27) -> 0 | D178: =IF($J$2="нет",0,C178*'Калькулятор лизинга'!$K$11/(100+'Калькулятор лизинга'!$K$11)) -> 0 | E178: 0 | F178: =IF($J$3="да",E178*'Калькулятор лизинга'!$K$9/100,0) -> 0 | G178: 0
A179: 2034-06-01 | B179: 173 | C179: =IF(B179<='Калькулятор лизинга'!$F$16,'Калькулятор лизинга'!Y177,0)+IF(B179='Калькулятор лизинга'!$F$16,'Калькулятор лизинга'!$F$27) -> 0 | D179: =IF($J$2="нет",0,C179*'Калькулятор лизинга'!$K$11/(100+'Калькулятор лизинга'!$K$11)) -> 0 | E179: 0 | F179: =IF($J$3="да",E179*'Калькулятор лизинга'!$K$9/100,0) -> 0 | G179: 0
A180: 2034-07-01 | B180: 174 | C180: =IF(B180<='Калькулятор лизинга'!$F$16,'Калькулятор лизинга'!Y178,0)+IF(B180='Калькулятор лизинга'!$F$16,'Калькулятор лизинга'!$F$27) -> 0 | D180: =IF($J$2="нет",0,C180*'Калькулятор лизинга'!$K$11/(100+'Калькулятор лизинга'!$K$11)) -> 0 | E180: 0 | F180: =IF($J$3="да",E180*'Калькулятор лизинга'!$K$9/100,0) -> 0 | G180: 0
A181: 2034-08-01 | B181: 175 | C181: =IF(B181<='Калькулятор лизинга'!$F$16,'Калькулятор лизинга'!Y179,0)+IF(B181='Калькулятор лизинга'!$F$16,'Калькулятор лизинга'!$F$27) -> 0 | D181: =IF($J$2="нет",0,C181*'Калькулятор лизинга'!$K$11/(100+'Калькулятор лизинга'!$K$11)) -> 0 | E181: 0 | F181: =IF($J$3="да",E181*'Калькулятор лизинга'!$K$9/100,0) -> 0 | G181: 0
A182: 2034-09-01 | B182: 176 | C182: =IF(B182<='Калькулятор лизинга'!$F$16,'Калькулятор лизинга'!Y180,0)+IF(B182='Калькулятор лизинга'!$F$16,'Калькулятор лизинга'!$F$27) -> 0 | D182: =IF($J$2="нет",0,C182*'Калькулятор лизинга'!$K$11/(100+'Калькулятор лизинга'!$K$11)) -> 0 | E182: 0 | F182: =IF($J$3="да",E182*'Калькулятор лизинга'!$K$9/100,0) -> 0 | G182: 0
A183: 2034-10-01 | B183: 177 | C183: =IF(B183<='Калькулятор лизинга'!$F$16,'Калькулятор лизинга'!Y181,0)+IF(B183='Калькулятор лизинга'!$F$16,'Калькулятор лизинга'!$F$27) -> 0 | D183: =IF($J$2="нет",0,C183*'Калькулятор лизинга'!$K$11/(100+'Калькулятор лизинга'!$K$11)) -> 0 | E183: 0 | F183: =IF($J$3="да",E183*'Калькулятор лизинга'!$K$9/100,0) -> 0 | G183: 0
A184: 2034-11-01 | B184: 178 | C184: =IF(B184<='Калькулятор лизинга'!$F$16,'Калькулятор лизинга'!Y182,0)+IF(B184='Калькулятор лизинга'!$F$16,'Калькулятор лизинга'!$F$27) -> 0 | D184: =IF($J$2="нет",0,C184*'Калькулятор лизинга'!$K$11/(100+'Калькулятор лизинга'!$K$11)) -> 0 | E184: 0 | F184: =IF($J$3="да",E184*'Калькулятор лизинга'!$K$9/100,0) -> 0 | G184: 0
A185: 2034-12-01 | B185: 179 | C185: =IF(B185<='Калькулятор лизинга'!$F$16,'Калькулятор лизинга'!Y183,0)+IF(B185='Калькулятор лизинга'!$F$16,'Калькулятор лизинга'!$F$27) -> 0 | D185: =IF($J$2="нет",0,C185*'Калькулятор лизинга'!$K$11/(100+'Калькулятор лизинга'!$K$11)) -> 0 | E185: 0 | F185: =IF($J$3="да",E185*'Калькулятор лизинга'!$K$9/100,0) -> 0 | G185: 0
A186: 2035-01-01 | B186: 180 | C186: =IF(B186<='Калькулятор лизинга'!$F$16,'Калькулятор лизинга'!Y184,0)+IF(B186='Калькулятор лизинга'!$F$16,'Калькулятор лизинга'!$F$27) -> 0 | D186: =IF($J$2="нет",0,C186*'Калькулятор лизинга'!$K$11/(100+'Калькулятор лизинга'!$K$11)) -> 0 | E186: 0 | F186: =IF($J$3="да",E186*'Калькулятор лизинга'!$K$9/100,0) -> 0 | G186: 0

Sheet Кредит аннуитет (hidden)
K1: На % не начисляется НДС | O1: НДС на ОС возмещается сразу при постановке на учет | W1: В затраты идет только часть процентов | X1: Амортизация обычная
G3: ЧИСТВНДОХ | L3: =XIRR(L9:L189,H9:H189) -> 0.5439376891 | M3: =XIRR(M9:M189,H9:H189) -> 0.5454270422 | S3: =XIRR(S9:S189,H9:H189) -> 1.042581499 | U3: =XIRR(U9:U189,H9:H189) -> 0.3902986467 | V3: =XIRR(V9:V189,H9:H189) -> 0.3914508283 | Y3: =SUM(W4:Y4) -> 1795350.531 | Z3: =XIRR(Z9:Z189,H9:H189) -> 0.2332354367 | AA3: =XIRR(AA9:AA189,H9:H189) -> 0.234081465
I4: =SUM(I8:I189) -> 2444166.667 | J4: =SUM(J8:J189) -> 488833.3333 | K4: =SUM(K8:K189) -> 5473360 | L4: =SUM(L10:L189)+D19 -> 9663360 | M4: =SUM(M10:M189)+D19 -> 9675730.44 | O4: =SUM(O8:O189) -> 698333.3333 | W4: =SUM(W10:W189) -> 1094672 | X4: =SUM(X10:X189) -> 698333.3333 | Y4: =SUM(Y10:Y189) -> 2345.197333 | AB4: =SUM(AB10:AB189) -> 12370.44024
K5: Ост ст-ть*% в мес
G6: Платеж | I6: Погашение стоимости имущества | K6: Процент по ставке | L6: Кредитный платеж | M6: Кредитный платеж со страхованием | N6: Основной долг | O6: Возмещение НДС | P6: "погашение" | Q6: "процент при НДС" | R6: "остаточная стоимость без НДС" | S6: Поток без НДС | T6: % по ставке ЦБ+3 | U6: Поток без НДС | V6: Поток без НДС со страхованием | W6: Экономия налога на прибыль от % | X6: Экономия НП от амортизации | Y6: Экономия НП от страхования | Z6: Поток без НДС и НП | AA6: Поток без НДС и НП со страхованием | AB6: Страхование
I7: без НДС | J7: НДС
F8: Собственные ср-ва | L8: =SUM(I8:J8) -> 0 | N8: =D11-D19 -> 2933000 | O8: =IF($D$37="да",D12,0) -> 698333.3333
G9: 0 | H9: 2020-01-01 | L9: =-D11+D19 -> -2933000 | M9: =L9 -> -2933000 | R9: =$D$13 -> 3491666.667 | S9: =L9+O8 -> -2234666.667 | U9: =L9 -> -2933000 | V9: =U9 -> -2933000 | Z9: =U9 -> -2933000 | AA9: =Z9 -> -2933000
G10: 1 | H10: 2020-02-01 | I10: =IF(G10<=$D$14,(L10-K10)*1/(1+$D$20),0) -> 7176.404774 | J10: =IF(G10<=$D$14,I10*$D$20,0) -> 1435.280955 | K10: =IF(G10<=$D$14,N8*$D$17,0) -> 108143.3143 | L10: =IF(G10<=$D$14,-$D$29,0) -> 116755 | M10: =L10+AB10 -> 116999.4167 | N10: =IF(G10<=$D$14,N8-I10-J10,0) -> 2924388.314 | P10: =IF(G10<=$D$14,-$E$29-Q10,0) -> 10252.00682 | Q10: =IF(G10<=$D$14,R9*$D$17,0) -> 128742.0408 | R10: =IF(G10<=$D$14,R9-P10,0) -> 3481414.66 | S10: =IF(G10<=$D$14,P10+Q10,0) -> 138994.0476 | T10: =IF(G10<=$D$14,IF($D$37="льготное",K10,N8*($D$24+3%)/12),0) -> 7352.868056 | U10: =L10-O8 -> -581578.3333 | V10: =M10-O8 -> -581333.9167 | W10: =IF($D$38="да",K10*$D$23,0) -> 21628.66285 | X10: =IF(G10<=$D$21,IF($D$38="да",($D$13)/$D$21*$D$23,0),0) -> 11638.88889 | Y10: =IF(G10<=$D$21,IF($D$38="да",AB10*$D$23,0),0) -> 48.88333333 | Z10: =U10-W10-X10 -> -614845.8851 | AA10: =V10-X10-Y10-W10 -> -614650.3517 | AB10: =N8*D24 -> 244.4166667
A11: Стоимость оборудования | D11: ='Калькулятор лизинга'!K5 -> 4190000 | G11: 2 | H11: 2020-03-01 | I11: =IF(G11<=$D$14,(L11-K11)*1/(1+$D$20),0) -> 7441.007636 | J11: =IF(G11<=$D$14,I11*$D$20,0) -> 1488.201527 | K11: =IF(G11<=$D$14,N10*$D$17,0) -> 107825.7908 | L11: =IF(G11<=$D$14,-$D$29,0) -> 116755 | M11: =L11+AB11 -> 116998.699 | N11: =IF(G11<=$D$14,N10-I11-J11,0) -> 2915459.105 | P11: =IF(G11<=$D$14,-$E$29-Q11,0) -> 10630.01091 | Q11: 128364.0367 | R11: =IF(G11<=$D$14,R10-P11,0) -> 3470784.649 | S11: =IF(G11<=$D$14,P11+Q11,0) -> 138994.0476 | T11: =IF(G11<=$D$14,IF($D$37="льготное",K11,N10*($D$24+3%)/12),0) -> 7331.279038 | U11: =L11 -> 116755 | V11: =M11 -> 116998.699 | W11: =IF($D$38="да",K11*$D$23,0) -> 21565.15817 | X11: =IF(G11<=$D$21,IF($D$38="да",($D$13)/$D$21*$D$23,0),0) -> 11638.88889 | Y11: =IF(G11<=$D$21,IF($D$38="да",AB11*$D$23,0),0) -> 48.73980524 | Z11: =U11-W11-X11 -> 83550.95294 | AA11: =V11-X11-Y11-W11 -> 83745.91216 | AB11: =IF(G11<=$D$14,N10*$D$24,0) -> 243.6990262
A12: НДС | D12: =D11*$D$20/(1+$D$20) -> 698333.3333 | G12: 3 | H12: 2020-04-01 | I12: 7715.366732 | J12: 1543.073346 | K12: =IF(G12<=$D$14,N11*$D$17,0) -> 107496.5599 | L12: 116755 | M12: 116997.9549 | N12: 2906200.665 | P12: 11021.95247 | Q12: 127972.0951 | R12: 3459762.696 | S12: 138994.0476 | T12: 7308.894007 | U12: =L12 -> 116755 | V12: 116997.9549 | W12: 21499.31198 | X12: 11638.88889 | Y12: 48.59098509 | Z12: 83616.79913 | AA12: 83811.16307 | AB12: =IF(G12<=$D$14,N11*$D$24,0) -> 242.9549254
A13: Без НДС | D13: =D11-D12 -> 3491666.667 | G13: 4 | H13: 2020-05-01 | I13: 7999.841785 | J13: 1599.968357 | K13: 107155.1899 | L13: 116755 | M13: 116997.1834 | N13: 2896600.855 | P13: 11428.34541 | Q13: 127565.7022 | R13: 3448334.351 | S13: 138994.0476 | T13: 7285.683612 | U13: 116755 | V13: 116997.1834 | W13: 21431.03797 | X13: 11638.88889 | Y13: 48.43667775 | Z13: 83685.07314 | AA13: 83878.81985 | AB13: 242.1833888
A14: Срок, мес | D14: ='Калькулятор лизинга'!O16 -> 72 | G14: 5 | H14: 2020-06-01 | I14: 8294.805782 | J14: 1658.961156 | K14: 106801.2331 | L14: 116755 | M14: 116996.3834 | N14: 2886647.088 | P14: 11849.72255 | Q14: 127144.3251 | R14: 3436484.629 | S14: 138994.0476 | T14: 7261.617421 | U14: 116755 | V14: 116996.3834 | W14: 21360.24661 | X14: 11638.88889 | Y14: 48.27668091 | Z14: 83755.8645 | AA14: 83948.97122 | AB14: 241.3834046
A15: Срок, лет | D15: =D14/12 -> 6 | G15: 6 | H15: 2020-07-01 | I15: 8600.645464 | J15: 1720.129093 | K15: 106434.2254 | L15: 116755 | M15: 116995.5539 | N15: 2876326.313 | P15: 12286.63638 | Q15: 126707.4112 | R15: 3424197.992 | S15: 138994.0476 | T15: 7236.66388 | U15: 116755 | V15: 116995.5539 | W15: 21286.84509 | X15: 11638.88889 | Y15: 48.1107848 | Z15: 83829.26602 | AA15: 84021.70916 | AB15: 240.553924
A16: Ставка в год | D16: =IF('Калькулятор лизинга'!M21=Лист2!G2,'Калькулятор лизинга'!O21/100,RATE('Кредит аннуитет'!D14,'Кредит аннуитет'!D29,'Кредит аннуитет'!N8)*12) -> 0.4424547464 | G16: 7 | H16: 2020-08-01 | I16: 8917.761832 | J16: 1783.552366 | K16: 106053.6858 | L16: 116755 | M16: 116994.6939 | N16: 2865624.999 | P16: 12739.65976 | Q16: 126254.3879 | R16: 3411458.332 | S16: 138994.0476 | T16: 7210.790272 | U16: 116755 | V16: 116994.6939 | W16: 21210.73716 | X16: 11638.88889 | Y16: 47.93877189 | Z16: 83905.37395 | AA16: 84097.12904 | AB16: 239.6938594
A17: Ставка в мес | D17: =D16/12 -> 0.03687122887 | G17: 8 | H17: 2020-09-01 | I17: 9246.570669 | J17: 1849.314134 | K17: 105659.1152 | L17: 116755 | M17: 116993.8021 | N17: 2854529.114 | P17: 13209.38667 | Q17: 125784.6609 | R17: 3398248.946 | S17: 138994.0476 | T17: 7183.962672 | U17: 116755 | V17: 116993.8021 | W17: 21131.82304 | X17: 11638.88889 | Y17: 47.76041665 | Z17: 83984.28807 | AA17: 84175.32974 | AB17: 238.8020833
A18: Собств ср-ва, % | D18: =IF('Калькулятор лизинга'!M24=Лист2!N2,'Калькулятор лизинга'!O24/100,'Калькулятор лизинга'!O24/'Калькулятор лизинга'!K5) -> 0.3 | G18: 9 | H18: 2020-10-01 | I18: 9587.503093 | J18: 1917.500619 | K18: 105249.9963 | L18: 116755 | M18: 116992.8774 | N18: 2843024.111 | P18: 13696.43299 | Q18: 125297.6146 | R18: 3384552.513 | S18: 138994.0476 | T18: 7156.145905 | U18: 116755 | V18: 116992.8774 | W18: 21049.99926 | X18: 11638.88889 | Y18: 47.57548524 | Z18: 84066.11185 | AA18: 84256.41379 | AB18: 237.8774262
A19: Собств ср-ва | D19: =IF('Калькулятор лизинга'!M24=Лист2!N3,'Калькулятор лизинга'!O24,'Калькулятор лизинга'!O24/100*'Калькулятор лизинга'!K5) -> 1257000 | G19: 10 | H19: 2020-11-01 | I19: 9941.006113 | J19: 1988.201223 | K19: 104825.7927 | L19: 116755 | M19: 116991.9187 | N19: 2831094.903 | P19: 14201.4373 | Q19: 124792.6103 | R19: 3370351.075 | S19: 138994.0476 | T19: 7127.3035 | U19: 116755 | V19: 116991.9187 | W19: 20965.15853 | X19: 11638.88889 | Y19: 47.38373518 | Z19: 84150.95258 | AA19: 84340.48752 | AB19: 236.9186759
A20: Ставка НДС | D20: ='Калькулятор лизинга'!K11/100 -> 0.2 | G20: 11 | H20: 2020-12-01 | I20: 10307.54322 | J20: 2061.508645 | K20: 104385.9481 | L20: 116755 | M20: 116990.9246 | N20: 2818725.851 | P20: 14725.06175 | Q20: 124268.9859 | R20: 3355626.014 | S20: 138994.0476 | T20: 7097.39764 | U20: 116755 | V20: 116990.9246 | W20: 20877.18963 | X20: 11638.88889 | Y20: 47.18491506 | Z20: 84238.92149 | AA20: 84427.66115 | AB20: 235.9245753
A21: СПИ, мес | D21: ='Калькулятор лизинга'!O27 -> 60 | G21: 12 | H21: 2021-01-01 | I21: 10687.59501 | J21: 2137.519002 | K21: 103929.886 | L21: 116755 | M21: 116989.8938 | N21: 2805900.737 | P21: 15267.99287 | Q21: 123726.0547 | R21: 3340358.021 | S21: 138994.0476 | T21: 7066.389114 | U21: 116755 | V21: 116989.8938 | W21: 20785.9772 | X21: 11638.88889 | Y21: 46.97876419 | Z21: 84330.13391 | AA21: 84518.04897 | AB21: 234.893821
A22: СПИ, лет | D22: =D21/12 -> 5 | G22: 13 | H22: 2021-02-01 | I22: 11081.65977 | J22: 2216.331954 | K22: 103457.0083 | L22: 116755 | M22: 116988.8251 | N22: 2792602.746 | P22: 15830.94253 | Q22: 123163.1051 | R22: 3324527.078 | S22: 138994.0476 | T22: 7034.237265 | U22: 116755 | V22: 116988.8251 | W22: 20691.40165 | X22: 11638.88889 | Y22: 46.76501229 | Z22: 84424.70946 | AA22: 84611.76951 | AB22: 233.8250615
A23: Ставка НП | D23: ='Калькулятор лизинга'!K9/100 -> 0.2 | G23: 14 | H23: 2021-03-01 | I23: 11490.25419 | J23: 2298.050837 | K23: 102966.695 | L23: 116755 | M23: 116987.7169 | N23: 2778814.441 | P23: 16414.64884 | Q23: 122579.3988 | R23: 3308112.429 | S23: 138994.0476 | T23: 7000.899939 | U23: 116755 | V23: 116987.7169 | W23: 20593.339 | X23: 11638.88889 | Y23: 46.5433791 | Z23: 84522.77212 | AA23: 84708.94563 | AB23: 232.7168955
A24: Страхование | D24: ='Калькулятор лизинга'!O30/100/12 -> 8.333333333e-05 | G24: 15 | H24: 2021-04-01 | I24: 11913.91398 | J24: 2382.782796 | K24: 102458.3032 | L24: 116755 | M24: 116986.5679 | N24: 2764517.744 | P24: 17019.87711 | Q24: 121974.1705 | R24: 3291092.552 | S24: 138994.0476 | T24: 6966.333424 | U24: 116755 | V24: 116986.5679 | W24: 20491.66065 | X24: 11638.88889 | Y24: 46.31357401 | Z24: 84624.45047 | AA24: 84809.70476 | AB24: 231.5678701
G25: 16 | H25: 2021-05-01 | I25: 12353.19463 | J25: 2470.638925 | K25: 101931.1664 | L25: 116755 | M25: 116985.3765 | N25: 2749693.91 | P25: 17647.4209 | Q25: 121346.6267 | R25: 3273445.131 | S25: 138994.0476 | T25: 6930.4924 | U25: 116755 | V25: 116985.3765 | W25: 20386.23329 | X25: 11638.88889 | Y25: 46.07529573 | Z25: 84729.87782 | AA25: 84914.179 | AB25: 230.3764787
G26: 17 | H26: 2021-06-01 | I26: 12808.67209 | J26: 2561.734419 | K26: 101384.5935 | L26: 116755 | M26: 116984.1412 | N26: 2734323.504 | P26: 18298.10299 | Q26: 120695.9446 | R26: 3255147.028 | S26: 138994.0476 | T26: 6893.329873 | U26: 116755 | V26: 116984.1412 | W26: 20276.9187 | X26: 11638.88889 | Y26: 45.82823184 | Z26: 84839.19241 | AA26: 85022.50534 | AB26: 229.1411592
G27: 18 | H27: 2021-07-01 | I27: 13280.94357 | J27: 2656.188715 | K27: 100817.8677 | L27: 116755 | M27: 116982.8603 | N27: 2718386.372 | P27: 18972.77653 | Q27: 120021.2711 | R27: 3236174.252 | S27: 138994.0476 | T27: 6854.797117 | U27: 116755 | V27: 116982.8603 | W27: 20163.57354 | X27: 11638.88889 | Y27: 45.5720584 | Z27: 84952.53757 | AA27: 85134.8258 | AB27: 227.860292
A28: Сумма договора | D28: =L4 -> 9663360 | G28: 19 | H28: 2021-08-01 | I28: 13770.62828 | J28: 2754.125657 | K28: 100230.2461 | L28: 116755 | M28: 116981.5322 | N28: 2701861.618 | P28: 19672.32612 | Q28: 119321.7215 | R28: 3216501.926 | S28: 138994.0476 | T28: 6814.843612 | U28: 116755 | V28: 116981.5322 | W28: 20046.04921 | X28: 11638.88889 | Y28: 45.30643953 | Z28: 85070.0619 | AA28: 85251.28766 | AB28: 226.5321976
A29: Платеж по кредиту | D29: =IF('Калькулятор лизинга'!M21=Лист2!G3,-'Калькулятор лизинга'!O21,PMT('Кредит аннуитет'!D17,'Кредит аннуитет'!D14,'Кредит аннуитет'!N8)) -> -116755 | E29: =PMT($D$17,$D$14,$R$9) -> -138994.0476 | G29: 20 | H29: 2021-09-01 | I29: 14278.36827 | J29: 2855.673654 | K29: 99620.95808 | L29: 116755 | M29: 116980.1551 | N29: 2684727.576 | P29: 20397.66896 | Q29: 118596.3787 | R29: 3196104.257 | S29: 138994.0476 | T29: 6773.416972 | U29: 116755 | V29: 116980.1551 | W29: 19924.19162 | X29: 11638.88889 | Y29: 45.03102696 | Z29: 85191.9195 | AA29: 85372.0436 | AB29: 225.1551348
D30: =IF('Калькулятор лизинга'!M21=Лист2!G3,'Калькулятор лизинга'!O21,PMT('Кредит аннуитет'!D17,'Кредит аннуитет'!D14,'Кредит аннуитет'!N8)) -> 116755 | G30: 21 | H30: 2021-10-01 | I30: 14804.82925 | J30: 2960.965851 | K30: 98989.20489 | L30: 116755 | M30: 116978.7273 | N30: 2666961.781 | P30: 21149.75608 | Q30: 117844.2915 | R30: 3174954.501 | S30: 138994.0476 | T30: 6730.462881 | U30: 116755 | V30: 116978.7273 | W30: 19797.84098 | X30: 11638.88889 | Y30: 44.7454596 | Z30: 85318.27013 | AA30: 85497.25197 | AB30: 223.727298
A31: Удорожание | D31: =(L4-D11)/D11 -> 1.306291169 | G31: 22 | H31: 2021-11-01 | I31: 15350.7015 | J31: 3070.1403 | K31: 98334.1582 | L31: 116755 | M31: 116977.2468 | N31: 2648540.939 | P31: 21929.57357 | Q31: 117064.474 | R31: 3153024.927 | S31: 138994.0476 | T31: 6685.925019 | U31: 116755 | V31: 116977.2468 | W31: 19666.83164 | X31: 11638.88889 | Y31: 44.44936301 | Z31: 85449.27947 | AA31: 85627.07692 | AB31: 222.2468151
A32: Удорожание в год | D32: =D31/D15 -> 0.2177151949 | G32: 23 | H32: 2021-12-01 | I32: 15916.70073 | J32: 3183.340146 | K32: 97654.95912 | L32: 116755 | M32: 116975.7117 | N32: 2629440.898 | P32: 22738.1439 | Q32: 116255.9037 | R32: 3130286.783 | S32: 138994.0476 | T32: 6639.744992 | U32: 116755 | V32: 116975.7117 | W32: 19530.99182 | X32: 11638.88889 | Y32: 44.14234898 | Z32: 85585.11929 | AA32: 85761.68868 | AB32: 220.7117449
D33: =D32*1.45/(1-D18) -> 0.4509814752 | G33: 24 | H33: 2022-01-01 | I33: 16503.56905 | J33: 3300.713809 | K33: 96950.71714 | L33: 116755 | M33: 116974.1201 | N33: 2609636.615 | P33: 23576.52721 | Q33: 115417.5204 | R33: 3106710.256 | S33: 138994.0476 | T33: 6591.862251 | U33: 116755 | V33: 116974.1201 | W33: 19390.14343 | X33: 11638.88889 | Y33: 43.82401497 | Z33: 85725.96768 | AA33: 85901.26374 | AB33: 219.1200748
G34: 25 | H34: 2022-02-01 | I34: 17112.07592 | J34: 3422.415184 | K34: 96220.5089 | L34: 116755 | M34: 116972.4697 | N34: 2589102.124 | P34: 24445.82274 | Q34: 114548.2249 | R34: 3082264.433 | S34: 138994.0476 | T34: 6542.214014 | U34: 116755 | V34: 116972.4697 | W34: 19244.10178 | X34: 11638.88889 | Y34: 43.49394358 | Z34: 85872.00933 | AA34: 86045.98511 | AB34: 217.4697179
A35: С учетом всех вычетов | D35: =M4-O4-Y3 -> 7182046.576 | G35: 26 | H35: 2022-03-01 | I35: 17743.01919 | J35: 3548.603837 | K35: 95463.37698 | L35: 116755 | M35: 116970.7585 | N35: 2567810.501 | P35: 25347.17026 | Q35: 113646.8774 | R35: 3056917.263 | S35: 138994.0476 | T35: 6490.735186 | U35: 116755 | V35: 116970.7585 | W35: 19092.6754 | X35: 11638.88889 | Y35: 43.15170207 | Z35: 86023.43572 | AA35: 86196.04252 | AB35: 215.7585103
G36: 27 | H36: 2022-04-01 | I36: 18397.22611 | J36: 3679.445221 | K36: 94678.32867 | L36: 116755 | M36: 116968.9842 | N36: 2545733.83 | P36: 26281.75158 | Q36: 112712.296 | R36: 3030635.511 | S36: 138994.0476 | T36: 6437.35827 | U36: 116755 | V36: 116968.9842 | W36: 18935.66573 | X36: 11638.88889 | Y36: 42.79684168 | Z36: 86180.44538 | AA36: 86351.63274 | AB36: 213.9842084
A37: возмещение ндс | D37: =VLOOKUP('Калькулятор лизинга'!K7,Лист2!C2:E10,3,) -> да | G37: 28 | H37: 2022-05-01 | I37: 19075.55444 | J37: 3815.110888 | K37: 93864.33467 | L37: 116755 | M37: 116967.1445 | N37: 2522843.164 | P37: 27250.79206 | Q37: 111743.2556 | R37: 3003384.719 | S37: 138994.0476 | T37: 6382.013281 | U37: 116755 | V37: 116967.1445 | W37: 18772.86693 | X37: 11638.88889 | Y37: 42.42889716 | Z37: 86343.24418 | AA37: 86512.95977 | AB37: 212.1444858
A38: учет расходов | D38: =VLOOKUP('Калькулятор лизинга'!K7,Лист2!C2:F10,4,) -> да | G38: 29 | H38: 2022-06-01 | I38: 19778.89357 | J38: 3955.778715 | K38: 93020.32771 | L38: 116755 | M38: 116965.2369 | N38: 2499108.492 | P38: 28255.56225 | Q38: 110738.4854 | R38: 2975129.157 | S38: 138994.0476 | T38: 6324.627655 | U38: 116755 | V38: 116965.2369 | W38: 18604.06554 | X38: 11638.88889 | Y38: 42.04738607 | Z38: 86512.04557 | AA38: 86680.23511 | AB38: 210.2369304
G39: 30 | H39: 2022-07-01 | I39: 20508.16569 | J39: 4101.633137 | K39: 92145.20118 | L39: 116755 | M39: 116963.259 | N39: 2474498.693 | P39: 29297.37955 | Q39: 109696.6681 | R39: 2945831.778 | S39: 138994.0476 | T39: 6265.12615 | U39: 116755 | V39: 116963.259 | W39: 18429.04024 | X39: 11638.88889 | Y39: 41.6518082 | Z39: 86687.07088 | AA39: 86853.67811 | AB39: 208.259041
G40: 31 | H40: 2022-08-01 | I40: 21264.32696 | J40: 4252.865391 | K40: 91237.80765 | L40: 116755 | M40: 116961.2082 | N40: 2448981.501 | P40: 30377.60994 | Q40: 108616.4377 | R40: 2915454.168 | S40: 138994.0476 | T40: 6203.430752 | U40: 116755 | V40: 116961.2082 | W40: 18247.56153 | X40: 11638.88889 | Y40: 41.24164489 | Z40: 86868.54958 | AA40: 87033.51616 | AB40: 206.2082244
G41: 32 | H41: 2022-09-01 | I41: 22048.36882 | J41: 4409.673765 | K41: 90296.95741 | L41: 116755 | M41: 116959.0818 | N41: 2422523.458 | P41: 31497.66975 | Q41: 107496.3779 | R41: 2883956.498 | S41: 138994.0476 | T41: 6139.460568 | U41: 116755 | V41: 116959.0818 | W41: 18059.39148 | X41: 11638.88889 | Y41: 40.81635835 | Z41: 87056.71963 | AA41: 87219.98506 | AB41: 204.0817917
G42: 33 | H42: 2022-10-01 | I42: =IF(G42<=$D$14,(L42-K42)*1/(1+$D$20),0) -> 22861.31928 | J42: =IF(G42<=$D$14,I42*$D$20,0) -> 4572.263855 | K42: =IF(G42<=$D$14,N41*$D$17,0) -> 89321.41687 | L42: =IF(G42<=$D$14,-$D$29,0) -> 116755 | M42: 116956.877 | N42: =IF(G42<=$D$14,N41-I42-J42,0) -> 2395089.875 | P42: 32659.02754 | Q42: =IF(G42<=$D$14,R41*$D$17,0) -> 106335.0201 | R42: 2851297.47 | S42: 138994.0476 | T42: 6073.131725 | U42: 116755 | V42: 116956.877 | W42: 17864.28337 | X42: 11638.88889 | Y42: 40.37539097 | Z42: 87251.82774 | AA42: 87413.3293 | AB42: 201.8769549
B43: на расходы и ндс, и платеж | G43: 34 | H43: 2022-11-01 | I43: 23704.24421 | J43: 4740.848842 | K43: 88309.90695 | L43: 116755 | M43: 116954.5908 | N43: 2366644.782 | P43: 33863.20602 | Q43: 105130.8416 | R43: 2817434.264 | S43: 138994.0476 | T43: =IF(G43<=$D$14,IF($D$37="льготное",K43,N42*($D$24+3%)/12),0) -> 6004.357256 | U43: 116755 | V43: 116954.5908 | W43: 17661.98139 | X43: 11638.88889 | Y43: 39.91816459 | Z43: 87454.12972 | AA43: 87613.80238 | AB43: 199.5908229
B44: УСН проценты в полной сумме | G44: 35 | H44: 2022-12-01 | I44: 24578.24882 | J44: 4915.649765 | K44: 87261.10141 | L44: 116755 | M44: 116952.2204 | N44: 2337150.883 | P44: 35111.78404 | Q44: 103882.2636 | R44: 2782322.48 | S44: 138994.0476 | T44: 5933.046988 | U44: 116755 | V44: 116952.2204 | W44: 17452.22028 | X44: 11638.88889 | Y44: 39.4440797 | Z44: 87663.89083 | AA44: 87821.66715 | AB44: 197.2203985
G45: 36 | H45: 2023-01-01 | I45: 25484.47906 | J45: 5096.895812 | K45: 86173.62513 | L45: 116755 | M45: 116949.7626 | N45: 2306569.509 | P45: 36406.39866 | Q45: 102587.649 | R45: 2745916.082 | S45: 138994.0476 | T45: 5859.107423 | U45: 116755 | V45: 116949.7626 | W45: 17234.72503 | X45: 11638.88889 | Y45: 38.95251472 | Z45: 87881.38609 | AA45: 88037.19614 | AB45: 194.7625736
G46: 37 | H46: 2023-02-01 | I46: 26424.12312 | J46: 5284.824624 | K46: 85046.05225 | L46: 116755 | M46: 116947.2141 | N46: 2274860.561 | P46: 37748.74732 | Q46: 101245.3003 | R46: 2708167.334 | S46: 138994.0476 | T46: 5782.441615 | U46: 116755 | V46: 116947.2141 | W46: 17009.21045 | X46: 11638.88889 | Y46: 38.44282514 | Z46: 88106.90066 | AA46: 88260.67196 | AB46: 192.2141257
G47: 38 | H47: 2023-03-01 | I47: 27398.41301 | J47: 5479.682603 | K47: 83876.90438 | L47: 116755 | M47: 116944.5717 | N47: 2241982.465 | P47: 39140.59002 | Q47: 99853.4576 | R47: 2669026.744 | S47: 138994.0476 | T47: 5702.949045 | U47: 116755 | V47: 116944.5717 | W47: 16775.38088 | X47: 11638.88889 | Y47: 37.91434268 | Z47: 88340.73023 | AA47: 88492.38761 | AB47: 189.5717134
G48: 39 | H48: 2023-04-01 | I48: 28408.62617 | J48: 5681.725234 | K48: 82664.6486 | L48: 116755 | M48: 116941.8319 | N48: 2207892.114 | P48: 40583.75167 | Q48: 98410.29595 | R48: 2628442.993 | S48: 138994.0476 | T48: 5620.525486 | U48: 116755 | V48: 116941.8319 | W48: 16532.92972 | X48: 11638.88889 | Y48: 37.36637442 | Z48: 88583.18139 | AA48: 88732.64689 | AB48: 186.8318721
G49: 40 | H49: 2023-05-01 | I49: 29456.08713 | J49: 5891.217426 | K49: 81407.69545 | L49: 116755 | M49: 116938.991 | N49: 2172544.809 | P49: 42080.12447 | Q49: 96913.92315 | R49: 2586362.868 | S49: 138994.0476 | T49: 5535.062869 | U49: 116755 | V49: 116938.991 | W49: 16281.53909 | X49: 11638.88889 | Y49: 36.7982019 | Z49: 88834.57202 | AA49: 88981.76483 | AB49: 183.9910095
G50: 41 | H50: 2023-06-01 | I50: 30542.16926 | J50: 6108.433852 | K50: 80104.39689 | L50: 116755 | M50: 116936.0454 | N50: 2135894.206 | P50: 43631.67037 | Q50: 95362.37725 | R50: 2542731.198 | S50: 138994.0476 | T50: 5446.44914 | U50: 116755 | V50: 116936.0454 | W50: 16020.87938 | X50: 11638.88889 | Y50: 36.20908015 | Z50: 89095.23173 | AA50: 89240.06805 | AB50: 181.0454008
G51: 42 | H51: 2023-07-01 | I51: 31668.29657 | J51: 6333.659314 | K51: 78753.04412 | L51: 116755 | M51: 116932.9912 | N51: 2097892.25 | P51: 45240.42367 | Q51: 93753.62395 | R51: 2497490.774 | S51: 138994.0476 | T51: 5354.568114 | U51: 116755 | V51: 116932.9912 | W51: 15750.60882 | X51: 11638.88889 | Y51: 35.59823677 | Z51: 89365.50229 | AA51: 89507.89524 | AB51: 177.9911838
G52: 43 | H52: 2023-08-01 | I52: 32835.94558 | J52: 6567.189116 | K52: 77351.8653 | L52: 116755 | M52: 116929.8244 | N52: 2058489.116 | P52: 46908.49369 | Q52: 92085.55393 | R52: 2450582.28 | S52: 138994.0476 | T52: 5259.299322 | U52: 116755 | V52: 116929.8244 | W52: 15470.37306 | X52: 11638.88889 | Y52: 34.96487084 | Z52: 89645.73805 | AA52: 89785.59753 | AB52: 174.8243542
G53: 44 | H53: 2023-09-01 | I53: 34046.64725 | J53: 6809.329449 | K53: 75899.0233 | L53: 116755 | M53: 116926.5408 | N53: 2017633.139 | P53: 48638.06749 | Q53: 90355.98012 | R53: 2401944.213 | S53: 138994.0476 | T53: 5160.517852 | U53: 116755 | V53: 116926.5408 | W53: 15179.80466 | X53: 11638.88889 | Y53: 34.30815193 | Z53: 89936.30645 | AA53: 90073.53906 | AB53: 171.5407596
G54: 45 | H54: 2023-10-01 | I54: 35301.98897 | J54: 7060.397794 | K54: 74392.61324 | L54: 116755 | M54: 116923.1361 | N54: 1975270.752 | P54: 50431.41281 | Q54: 88562.63481 | R54: 2351512.8 | S54: 138994.0476 | T54: 5058.094188 | U54: 116755 | V54: 116923.1361 | W54: 14878.52265 | X54: 11638.88889 | Y54: 33.62721898 | Z54: 90237.58846 | AA54: 90372.09734 | AB54: 168.1360949
G55: 46 | H55: 2023-11-01 | I55: 36603.61668 | J55: 7320.723337 | K55: 72830.65998 | L55: 116755 | M55: 116919.6059 | N55: 1931346.412 | P55: 52290.88098 | Q55: 86703.16664 | R55: 2299221.919 | S55: 138994.0476 | T55: 4951.894038 | U55: 116755 | V55: 116919.6059 | W55: 14566.132 | X55: 11638.88889 | Y55: 32.9211792 | Z55: 90549.97912 | AA55: 90681.66383 | AB55: 164.605896
G56: 47 | H56: 2023-12-01 | I56: 37953.23701 | J56: 7590.647402 | K56: 71211.11559 | L56: 116755 | M56: 116915.9455 | N56: 1885802.528 | P56: 54218.91002 | Q56: 84775.1376 | R56: 2245003.009 | S56: 138994.0476 | T56: 4841.778158 | U56: 116755 | V56: 116915.9455 | W56: 14242.22312 | X56: 11638.88889 | Y56: 32.18910687 | Z56: 90873.88799 | AA56: 91002.64442 | AB56: 160.9455343
G57: 48 | H57: 2024-01-01 | I57: 39352.6195 | J57: 7870.5239 | K57: 69531.8566 | L57: 116755 | M57: 116912.1502 | N57: 1838579.384 | P57: 56218.02786 | Q57: 82776.01976 | R57: 2188784.981 | S57: 138994.0476 | T57: 4727.60217 | U57: 116755 | V57: 116912.1502 | W57: 13906.37132 | X57: 11638.88889 | Y57: 31.43004213 | Z57: 91209.73979 | AA57: 91335.45996 | AB57: 157.1502106
G58: 49 | H58: 2024-02-01 | I58: 40803.59894 | J58: 8160.719788 | K58: 67790.68127 | L58: 116755 | M58: 116908.2149 | N58: 1789615.066 | P58: 58290.85563 | Q58: 80703.19199 | R58: 2130494.126 | S58: 138994.0476 | T58: 4609.216373 | U58: 116755 | V58: 116908.2149 | W58: 13558.13625 | X58: 11638.88889 | Y58: 30.64298974 | Z58: 91557.97486 | AA58: 91680.54682 | AB58: 153.2149487
G59: 50 | H59: 2024-03-01 | I59: 42308.07778 | J59: 8461.615555 | K59: 65985.30667 | L59: 116755 | M59: 116904.1346 | N59: 1738845.372 | P59: 60440.11111 | Q59: 78553.93651 | R59: 2070054.015 | S59: 138994.0476 | T59: 4486.465546 | U59: 116755 | V59: 116904.1346 | W59: 13197.06133 | X59: 11638.88889 | Y59: 29.82691776 | Z59: 91919.04978 | AA59: 92038.35745 | AB59: 149.1345888
G60: 51 | H60: 2024-04-01 | I60: 43868.02859 | J60: 8773.605719 | K60: 64113.36569 | L60: 116755 | M60: 116899.9038 | N60: 1686203.738 | P60: 62668.61228 | Q60: 76325.43534 | R60: 2007385.402 | S60: 138994.0476 | T60: 4359.188746 | U60: 116755 | V60: 116899.9038 | W60: 12822.67314 | X60: 11638.88889 | Y60: 28.9807562 | Z60: 92293.43797 | AA60: 92409.361 | AB60: 144.903781
G61: 52 | H61: 2024-05-01 | I61: 45485.49672 | J61: 9097.099343 | K61: 62172.40394 | L61: 116755 | M61: 116895.517 | N61: 1631621.142 | P61: 64979.28102 | Q61: 74014.7666 | R61: 1942406.121 | S61: 138994.0476 | T61: 4227.219093 | U61: 116755 | V61: 116895.517 | W61: 12434.48079 | X61: 11638.88889 | Y61: 28.10339563 | Z61: 92681.63032 | AA61: 92794.04391 | AB61: 140.5169782
G62: 53 | H62: 2024-06-01 | I62: 47162.60288 | J62: 9432.520575 | K62: 60159.87655 | L62: 116755 | M62: 116890.9684 | N62: 1575026.018 | P62: 67375.14697 | Q62: 71618.90065 | R62: 1875030.974 | S62: 138994.0476 | T62: 4090.383557 | U62: 116755 | V62: 116890.9684 | W62: 12031.97531 | X62: 11638.88889 | Y62: 27.1936857 | Z62: 93084.1358 | AA62: 93192.91054 | AB62: 135.9684285
G63: 54 | H63: 2024-07-01 | I63: 48901.546 | J63: 9780.3092 | K63: 58073.1448 | L63: 116755 | M63: 116886.2522 | N63: 1516344.163 | P63: 69859.35143 | Q63: 69134.69619 | R63: 1805171.623 | S63: 138994.0476 | T63: 3948.502727 | U63: 116755 | V63: 116886.2522 | W63: 11614.62896 | X63: 11638.88889 | Y63: 26.25043364 | Z63: 93501.48215 | AA63: 93606.48389 | AB63: 131.2521682
G64: 55 | H64: 2024-08-01 | I64: 50704.6061 | J64: 10140.92122 | K64: 55909.47269 | L64: 116755 | M64: 116881.362 | N64: 1455498.636 | P64: 72435.15156 | Q64: 66558.89605 | R64: 1732736.471 | S64: 138994.0476 | T64: 3801.390576 | U64: 116755 | V64: 116881.362 | W64: 11181.89454 | X64: 11638.88889 | Y64: 25.27240272 | Z64: 93934.21657 | AA64: 94035.30618 | AB64: 126.3620136
G65: 56 | H65: 2024-09-01 | I65: 52574.14723 | J65: 10514.82945 | K65: 53666.02332 | L65: 116755 | M65: 116876.2916 | N65: 1392409.659 | P65: 75105.92462 | Q65: 63888.123 | R65: 1657630.547 | S65: 138994.0476 | T65: 3648.854219 | U65: 116755 | V65: 116876.2916 | W65: 10733.20466 | X65: 11638.88889 | Y65: 24.2583106 | Z65: 94382.90645 | AA65: 94479.93969 | AB65: 121.291553
G66: 57 | H66: 2024-10-01 | I66: 54512.62065 | J66: 10902.52413 | K66: 51339.85522 | L66: 116755 | M66: 116871.0341 | N66: 1326994.514 | P66: 77875.17235 | Q66: 61118.87527 | R66: 1579755.374 | S66: 138994.0476 | T66: 3490.69366 | U66: 116755 | V66: 116871.0341 | W66: 10267.97104 | X66: 11638.88889 | Y66: 23.20682765 | Z66: 94848.14007 | AA66: 94940.96738 | AB66: 116.0341383
G67: 58 | H67: 2024-11-01 | I67: 56522.56796 | J67: 11304.51359 | K67: 48927.91845 | L67: 116755 | M67: 116865.5829 | N67: 1259167.433 | P67: 80746.52566 | Q67: 58247.52196 | R67: 1499008.849 | S67: 138994.0476 | T67: 3326.701526 | U67: 116755 | V67: 116865.5829 | W67: 9785.58369 | X67: 11638.88889 | Y67: 22.11657524 | Z67: 95330.52742 | AA67: 95418.99372 | AB67: 110.5828762
G68: 59 | H68: 2024-12-01 | I68: 58606.6245 | J68: 11721.3249 | K68: 46427.0506 | L68: 116755 | M68: 116859.9306 | N68: 1188839.483 | P68: 83723.74928 | Q68: 55270.29834 | R68: 1415285.099 | S68: 138994.0476 | T68: 3156.662801 | U68: 116755 | V68: 116859.9306 | W68: 9285.41012 | X68: 11638.88889 | Y68: 20.98612388 | Z68: 95830.70099 | AA68: 95914.64549 | AB68: 104.9306194
G69: 60 | H69: 2025-01-01 | I69: 60767.52276 | J69: 12153.50455 | K69: 43833.97268 | L69: 116755 | M69: 116854.07 | N69: 1115918.456 | P69: 86810.7468 | Q69: 52183.30081 | R69: 1328474.353 | S69: 138994.0476 | T69: 2980.354538 | U69: 116755 | V69: 116854.07 | W69: 8766.794537 | X69: 11638.88889 | Y69: 19.81399139 | Z69: 96349.31657 | AA69: 96428.57254 | AB69: 99.06995696
G70: 61 | H70: 2025-02-01 | I70: 63008.096 | J70: 12601.6192 | K70: 41145.2848 | L70: 116755 | M70: 116847.9932 | N70: 1040308.741 | P70: 90011.56572 | Q70: 48982.4819 | R70: 1238462.787 | S70: 138994.0476 | T70: 2797.545574 | U70: 116755 | V70: 116847.9932 | W70: 8229.056959 | X70: 0 | Y70: 0 | Z70: 108525.943 | AA70: 108618.9362 | AB70: 92.99320468
G71: 62 | H71: 2025-03-01 | I71: 65331.28193 | J71: 13066.25639 | K71: 38357.46168 | L71: 116755 | M71: 116841.6924 | N71: 961911.2027 | P71: 93330.40276 | Q71: 45663.64486 | R71: 1145132.384 | S71: 138994.0476 | T71: 2607.996219 | U71: 116755 | V71: 116841.6924 | W71: 7671.492337 | X71: 0 | Y71: 0 | Z71: 109083.5077 | AA71: 109170.2001 | AB71: 86.69239508
G72: 63 | H72: 2025-04-01 | I72: 67740.12658 | J72: 13548.02532 | K72: 35466.8481 | L72: 116755 | M72: 116835.1593 | N72: 880623.0508 | P72: 96771.6094 | Q72: 42222.43822 | R72: 1048360.775 | S72: 138994.0476 | T72: 2411.457946 | U72: 116755 | V72: 116835.1593 | W72: 7093.369621 | X72: 0 | Y72: 0 | Z72: 109661.6304 | AA72: 109741.7896 | AB72: 80.15926689
G73: 64 | H73: 2025-05-01 | I73: 70237.78829 | J73: 14047.55766 | K73: 32469.65405 | L73: 116755 | M73: 116828.3853 | N73: 796337.7048 | P73: 100339.6976 | Q73: 38654.35006 | R73: 948021.0772 | S73: 138994.0476 | T73: 2207.673065 | U73: 116755 | V73: 116828.3853 | W73: 6493.93081 | X73: 0 | Y73: 0 | Z73: 110261.0692 | AA73: 110334.4544 | AB73: 73.38525423
G74: 65 | H74: 2025-06-01 | I74: =IF(G74<=$D$14,(L74-K74)*1/(1+$D$20),0) -> 72827.54186 | J74: =IF(G74<=$D$14,I74*$D$20,0) -> 14565.50837 | K74: =IF(G74<=$D$14,N73*$D$17,0) -> 29361.94977 | L74: =IF(G74<=$D$14,-$D$29,0) -> 116755 | M74: 116821.3615 | N74: =IF(G74<=$D$14,N73-I74-J74,0) -> 708944.6546 | P74: 104039.3455 | Q74: 34954.70211 | R74: 843981.7317 | S74: 138994.0476 | T74: 1996.374385 | U74: 116755 | V74: 116821.3615 | W74: 5872.389954 | X74: 0 | Y74: 0 | Z74: 110882.61 | AA74: 110948.9715 | AB74: 66.3614754
G75: 66 | H75: 2025-07-01 | I75: 75512.78282 | J75: 15102.55656 | K75: 26139.66061 | L75: 116755 | M75: =L75+AB75 -> 116814.0787 | N75: 618329.3152 | P75: =IF(G75<=$D$14,-$E$29-Q75,0) -> 107875.404 | Q75: =IF(G75<=$D$14,R74*$D$17,0) -> 31118.64359 | R75: =IF(G75<=$D$14,R74-P75,0) -> 736106.3276 | S75: =IF(G75<=$D$14,P75+Q75,0) -> 138994.0476 | T75: =IF(G75<=$D$14,IF($D$37="льготное",K75,N74*($D$24+3%)/12),0) -> 1777.284863 | U75: =L75 -> 116755 | V75: =M75 -> 116814.0787 | W75: =IF($D$38="да",K75*$D$23,0) -> 5227.932123 | X75: =IF(G75<=$D$21,IF($D$38="да",($D$13)/$D$21*$D$23,0),0) -> 0 | Y75: =IF(G75<=$D$21,IF($D$38="да",AB75*$D$23,0),0) -> 0 | Z75: =U75-W75-X75 -> 111527.0679 | AA75: =V75-X75-Y75-W75 -> 111586.1466 | AB75: 59.07872122
G76: 67 | H76: 2025-08-01 | I76: 78297.03192 | J76: 15659.40638 | K76: 22798.5617 | L76: 116755 | M76: 116806.5274 | N76: 524372.8769 | P76: 111852.9027 | Q76: 27141.14488 | R76: 624253.4249 | S76: 138994.0476 | T76: 1550.117242 | U76: 116755 | V76: 116806.5274 | W76: 4559.712339 | X76: 0 | Y76: 0 | Z76: 112195.2877 | AA76: 112246.8151 | AB76: =IF(G76<=$D$14,N75*$D$24,0) -> 51.52744293
G77: 68 | H77: 2025-09-01 | I77: 81183.9397 | J77: 16236.78794 | K77: 19334.27236 | L77: 116755 | M77: 116798.6977 | N77: 426952.1493 | P77: 115977.0567 | Q77: 23016.9909 | R77: 508276.3682 | S77: 138994.0476 | T77: 1314.573671 | U77: 116755 | V77: 116798.6977 | W77: 3866.854471 | X77: 0 | Y77: 0 | Z77: 112888.1455 | AA77: 112931.8433 | AB77: 43.69773974
G78: 69 | H78: 2025-10-01 | I78: 84177.29132 | J78: 16835.45826 | K78: 15742.25041 | L78: 116755 | M78: 116790.5793 | N78: 325939.3997 | P78: 120253.2733 | Q78: 18740.7743 | R78: 388023.0948 | S78: 138994.0476 | T78: 1070.345319 | U78: 116755 | V78: 116790.5793 | W78: 3148.450082 | X78: 0 | Y78: 0 | Z78: 113606.5499 | AA78: 113642.1293 | AB78: 35.57934577
G79: 70 | H79: 2025-11-01 | I79: 87281.0115 | J79: 17456.2023 | K79: 12017.7862 | L79: 116755 | M79: 116782.1616 | N79: 221202.1859 | P79: 124687.1593 | Q79: 14306.88834 | R79: 263335.9356 | S79: 138994.0476 | T79: 817.1119672 | U79: 116755 | V79: 116782.1616 | W79: 2403.557241 | X79: 0 | Y79: 0 | Z79: 114351.4428 | AA79: 114378.6044 | AB79: 27.16161664
G80: 71 | H80: 2025-12-01 | I80: 90499.16965 | J80: 18099.83393 | K80: 8155.996422 | L80: 116755 | M80: 116773.4335 | N80: 112603.1823 | P80: 129284.5281 | Q80: 9709.519549 | R80: 134051.4075 | S80: 138994.0476 | T80: 554.541591 | U80: 116755 | V80: 116773.4335 | W80: 1631.199284 | X80: 0 | Y80: 0 | Z80: 115123.8007 | AA80: 115142.2342 | AB80: 18.43351549
G81: 72 | H81: 2026-01-01 | I81: 93835.98525 | J81: 18767.19705 | K81: 4151.817706 | L81: 116755 | M81: 116764.3836 | N81: -3.132299753e-09 | P81: 134051.4075 | Q81: 4942.640126 | R81: 3.550667316e-09 | S81: 138994.0476 | T81: 282.2899223 | U81: 116755 | V81: 116764.3836 | W81: 830.3635411 | X81: 0 | Y81: 0 | Z81: 115924.6365 | AA81: 115934.0201 | AB81: 9.383598525
G82: 73 | H82: 2026-02-01 | I82: 0 | J82: 0 | K82: 0 | L82: 0 | M82: 0 | N82: 0 | P82: 0 | Q82: 0 | R82: 0 | S82: 0 | T82: 0 | U82: 0 | V82: 0 | W82: 0 | X82: 0 | Y82: 0 | Z82: 0 | AA82: 0 | AB82: 0
G83: 74 | H83: 2026-03-01 | I83: 0 | J83: 0 | K83: 0 | L83: 0 | M83: 0 | N83: 0 | P83: 0 | Q83: 0 | R83: 0 | S83: 0 | T83: 0 | U83: 0 | V83: 0 | W83: 0 | X83: 0 | Y83: 0 | Z83: 0 | AA83: 0 | AB83: 0
G84: 75 | H84: 2026-04-01 | I84: 0 | J84: 0 | K84: 0 | L84: 0 | M84: 0 | N84: 0 | P84: 0 | Q84: 0 | R84: 0 | S84: 0 | T84: 0 | U84: 0 | V84: 0 | W84: 0 | X84: 0 | Y84: 0 | Z84: 0 | AA84: 0 | AB84: 0
G85: 76 | H85: 2026-05-01 | I85: 0 | J85: 0 | K85: 0 | L85: 0 | M85: 0 | N85: 0 | P85: 0 | Q85: 0 | R85: 0 | S85: 0 | T85: 0 | U85: 0 | V85: 0 | W85: 0 | X85: 0 | Y85: 0 | Z85: 0 | AA85: 0 | AB85: 0
G86: 77 | H86: 2026-06-01 | I86: 0 | J86: 0 | K86: 0 | L86: 0 | M86: 0 | N86: 0 | P86: 0 | Q86: 0 | R86: 0 | S86: 0 | T86: 0 | U86: 0 | V86: 0 | W86: 0 | X86: 0 | Y86: 0 | Z86: 0 | AA86: 0 | AB86: 0
G87: 78 | H87: 2026-07-01 | I87: 0 | J87: 0 | K87: 0 | L87: 0 | M87: 0 | N87: 0 | P87: 0 | Q87: 0 | R87: 0 | S87: 0 | T87: 0 | U87: 0 | V87: 0 | W87: 0 | X87: 0 | Y87: 0 | Z87: 0 | AA87: 0 | AB87: 0
G88: 79 | H88: 2026-08-01 | I88: 0 | J88: 0 | K88: 0 | L88: 0 | M88: 0 | N88: 0 | P88: 0 | Q88: 0 | R88: 0 | S88: 0 | T88: 0 | U88: 0 | V88: 0 | W88: 0 | X88: 0 | Y88: 0 | Z88: 0 | AA88: 0 | AB88: 0
G89: 80 | H89: 2026-09-01 | I89: 0 | J89: 0 | K89: 0 | L89: 0 | M89: 0 | N89: 0 | P89: 0 | Q89: 0 | R89: 0 | S89: 0 | T89: 0 | U89: 0 | V89: 0 | W89: 0 | X89: 0 | Y89: 0 | Z89: 0 | AA89: 0 | AB89: 0
G90: 81 | H90: 2026-10-01 | I90: 0 | J90: 0 | K90: 0 | L90: 0 | M90: 0 | N90: 0 | P90: 0 | Q90: 0 | R90: 0 | S90: 0 | T90: 0 | U90: 0 | V90: 0 | W90: 0 | X90: 0 | Y90: 0 | Z90: 0 | AA90: 0 | AB90: 0
G91: 82 | H91: 2026-11-01 | I91: 0 | J91: 0 | K91: 0 | L91: 0 | M91: 0 | N91: 0 | P91: 0 | Q91: 0 | R91: 0 | S91: 0 | T91: 0 | U91: 0 | V91: 0 | W91: 0 | X91: 0 | Y91: 0 | Z91: 0 | AA91: 0 | AB91: 0
G92: 83 | H92: 2026-12-01 | I92: 0 | J92: 0 | K92: 0 | L92: 0 | M92: 0 | N92: 0 | P92: 0 | Q92: 0 | R92: 0 | S92: 0 | T92: 0 | U92: 0 | V92: 0 | W92: 0 | X92: 0 | Y92: 0 | Z92: 0 | AA92: 0 | AB92: 0
G93: 84 | H93: 2027-01-01 | I93: 0 | J93: 0 | K93: 0 | L93: 0 | M93: 0 | N93: 0 | P93: 0 | Q93: 0 | R93: 0 | S93: 0 | T93: 0 | U93: 0 | V93: 0 | W93: 0 | X93: 0 | Y93: 0 | Z93: 0 | AA93: 0 | AB93: 0
G94: 85 | H94: 2027-02-01 | I94: 0 | J94: 0 | K94: 0 | L94: 0 | M94: 0 | N94: 0 | P94: 0 | Q94: 0 | R94: 0 | S94: 0 | T94: 0 | U94: 0 | V94: 0 | W94: 0 | X94: 0 | Y94: 0 | Z94: 0 | AA94: 0 | AB94: 0
G95: 86 | H95: 2027-03-01 | I95: 0 | J95: 0 | K95: 0 | L95: 0 | M95: 0 | N95: 0 | P95: 0 | Q95: 0 | R95: 0 | S95: 0 | T95: 0 | U95: 0 | V95: 0 | W95: 0 | X95: 0 | Y95: 0 | Z95: 0 | AA95: 0 | AB95: 0
G96: 87 | H96: 2027-04-01 | I96: 0 | J96: 0 | K96: 0 | L96: 0 | M96: 0 | N96: 0 | P96: 0 | Q96: 0 | R96: 0 | S96: 0 | T96: 0 | U96: 0 | V96: 0 | W96: 0 | X96: 0 | Y96: 0 | Z96: 0 | AA96: 0 | AB96: 0
G97: 88 | H97: 2027-05-01 | I97: 0 | J97: 0 | K97: 0 | L97: 0 | M97: 0 | N97: 0 | P97: 0 | Q97: 0 | R97: 0 | S97: 0 | T97: 0 | U97: 0 | V97: 0 | W97: 0 | X97: 0 | Y97: 0 | Z97: 0 | AA97: 0 | AB97: 0
G98: 89 | H98: 2027-06-01 | I98: 0 | J98: 0 | K98: 0 | L98: 0 | M98: 0 | N98: 0 | P98: 0 | Q98: 0 | R98: 0 | S98: 0 | T98: 0 | U98: 0 | V98: 0 | W98: 0 | X98: 0 | Y98: 0 | Z98: 0 | AA98: 0 | AB98: 0
G99: 90 | H99: 2027-07-01 | I99: 0 | J99: 0 | K99: 0 | L99: 0 | M99: 0 | N99: 0 | P99: 0 | Q99: 0 | R99: 0 | S99: 0 | T99: 0 | U99: 0 | V99: 0 | W99: 0 | X99: 0 | Y99: 0 | Z99: 0 | AA99: 0 | AB99: 0
G100: 91 | H100: 2027-08-01 | I100: 0 | J100: 0 | K100: 0 | L100: 0 | M100: 0 | N100: 0 | P100: 0 | Q100: 0 | R100: 0 | S100: 0 | T100: 0 | U100: 0 | V100: 0 | W100: 0 | X100: 0 | Y100: 0 | Z100: 0 | AA100: 0 | AB100: 0
G101: 92 | H101: 2027-09-01 | I101: 0 | J101: 0 | K101: 0 | L101: 0 | M101: 0 | N101: 0 | P101: 0 | Q101: 0 | R101: 0 | S101: 0 | T101: 0 | U101: 0 | V101: 0 | W101: 0 | X101: 0 | Y101: 0 | Z101: 0 | AA101: 0 | AB101: 0
G102: 93 | H102: 2027-10-01 | I102: 0 | J102: 0 | K102: 0 | L102: 0 | M102: 0 | N102: 0 | P102: 0 | Q102: 0 | R102: 0 | S102: 0 | T102: 0 | U102: 0 | V102: 0 | W102: 0 | X102: 0 | Y102: 0 | Z102: 0 | AA102: 0 | AB102: 0
G103: 94 | H103: 2027-11-01 | I103: 0 | J103: 0 | K103: 0 | L103: 0 | M103: 0 | N103: 0 | P103: 0 | Q103: 0 | R103: 0 | S103: 0 | T103: 0 | U103: 0 | V103: 0 | W103: 0 | X103: 0 | Y103: 0 | Z103: 0 | AA103: 0 | AB103: 0
G104: 95 | H104: 2027-12-01 | I104: 0 | J104: 0 | K104: 0 | L104: 0 | M104: 0 | N104: 0 | P104: 0 | Q104: 0 | R104: 0 | S104: 0 | T104: 0 | U104: 0 | V104: 0 | W104: 0 | X104: 0 | Y104: 0 | Z104: 0 | AA104: 0 | AB104: 0
G105: 96 | H105: 2028-01-01 | I105: 0 | J105: 0 | K105: 0 | L105: 0 | M105: 0 | N105: 0 | P105: 0 | Q105: 0 | R105: 0 | S105: 0 | T105: 0 | U105: 0 | V105: 0 | W105: 0 | X105: 0 | Y105: 0 | Z105: 0 | AA105: 0 | AB105: 0
G106: 97 | H106: 2028-02-01 | I106: =IF(G106<=$D$14,(L106-K106)*1/(1+$D$20),0) -> 0 | J106: =IF(G106<=$D$14,I106*$D$20,0) -> 0 | K106: =IF(G106<=$D$14,N105*$D$17,0) -> 0 | L106: =IF(G106<=$D$14,-$D$29,0) -> 0 | M106: 0 | N106: =IF(G106<=$D$14,N105-I106-J106,0) -> 0 | P106: 0 | Q106: 0 | R106: 0 | S106: 0 | T106: 0 | U106: 0 | V106: 0 | W106: 0 | X106: 0 | Y106: 0 | Z106: 0 | AA106: 0 | AB106: 0
G107: 98 | H107: 2028-03-01 | I107: 0 | J107: 0 | K107: 0 | L107: 0 | M107: 0 | N107: 0 | P107: 0 | Q107: 0 | R107: 0 | S107: 0 | T107: =IF(G107<=$D$14,IF($D$37="льготное",K107,N106*($D$24+3%)/12),0) -> 0 | U107: 0 | V107: 0 | W107: 0 | X107: 0 | Y107: 0 | Z107: 0 | AA107: 0 | AB107: 0
G108: 99 | H108: 2028-04-01 | I108: 0 | J108: 0 | K108: 0 | L108: 0 | M108: 0 | N108: 0 | P108: 0 | Q108: 0 | R108: 0 | S108: 0 | T108: 0 | U108: 0 | V108: 0 | W108: 0 | X108: 0 | Y108: 0 | Z108: 0 | AA108: 0 | AB108: 0
G109: 100 | H109: 2028-05-01 | I109: 0 | J109: 0 | K109: 0 | L109: 0 | M109: 0 | N109: 0 | P109: 0 | Q109: 0 | R109: 0 | S109: 0 | T109: 0 | U109: 0 | V109: 0 | W109: 0 | X109: 0 | Y109: 0 | Z109: 0 | AA109: 0 | AB109: 0
G110: 101 | H110: 2028-06-01 | I110: 0 | J110: 0 | K110: 0 | L110: 0 | M110: 0 | N110: 0 | P110: 0 | Q110: 0 | R110: 0 | S110: 0 | T110: 0 | U110: 0 | V110: 0 | W110: 0 | X110: 0 | Y110: 0 | Z110: 0 | AA110: 0 | AB110: 0
G111: 102 | H111: 2028-07-01 | I111: 0 | J111: 0 | K111: 0 | L111: 0 | M111: 0 | N111: 0 | P111: 0 | Q111: 0 | R111: 0 | S111: 0 | T111: 0 | U111: 0 | V111: 0 | W111: 0 | X111: 0 | Y111: 0 | Z111: 0 | AA111: 0 | AB111: 0
G112: 103 | H112: 2028-08-01 | I112: 0 | J112: 0 | K112: 0 | L112: 0 | M112: 0 | N112: 0 | P112: 0 | Q112: 0 | R112: 0 | S112: 0 | T112: 0 | U112: 0 | V112: 0 | W112: 0 | X112: 0 | Y112: 0 | Z112: 0 | AA112: 0 | AB112: 0
G113: 104 | H113: 2028-09-01 | I113: 0 | J113: 0 | K113: 0 | L113: 0 | M113: 0 | N113: 0 | P113: 0 | Q113: 0 | R113: 0 | S113: 0 | T113: 0 | U113: 0 | V113: 0 | W113: 0 | X113: 0 | Y113: 0 | Z113: 0 | AA113: 0 | AB113: 0
G114: 105 | H114: 2028-10-01 | I114: 0 | J114: 0 | K114: 0 | L114: 0 | M114: 0 | N114: 0 | P114: 0 | Q114: 0 | R114: 0 | S114: 0 | T114: 0 | U114: 0 | V114: 0 | W114: 0 | X114: 0 | Y114: 0 | Z114: 0 | AA114: 0 | AB114: 0
G115: 106 | H115: 2028-11-01 | I115: 0 | J115: 0 | K115: 0 | L115: 0 | M115: 0 | N115: 0 | P115: 0 | Q115: 0 | R115: 0 | S115: 0 | T115: 0 | U115: 0 | V115: 0 | W115: 0 | X115: 0 | Y115: 0 | Z115: 0 | AA115: 0 | AB115: 0
G116: 107 | H116: 2028-12-01 | I116: 0 | J116: 0 | K116: 0 | L116: 0 | M116: 0 | N116: 0 | P116: 0 | Q116: 0 | R116: 0 | S116: 0 | T116: 0 | U116: 0 | V116: 0 | W116: 0 | X116: 0 | Y116: 0 | Z116: 0 | AA116: 0 | AB116: 0
G117: 108 | H117: 2029-01-01 | I117: 0 | J117: 0 | K117: 0 | L117: 0 | M117: 0 | N117: 0 | P117: 0 | Q117: 0 | R117: 0 | S117: 0 | T117: 0 | U117: 0 | V117: 0 | W117: 0 | X117: 0 | Y117: 0 | Z117: 0 | AA117: 0 | AB117: 0
G118: 109 | H118: 2029-02-01 | I118: 0 | J118: 0 | K118: 0 | L118: 0 | M118: 0 | N118: 0 | P118: 0 | Q118: 0 | R118: 0 | S118: 0 | T118: 0 | U118: 0 | V118: 0 | W118: 0 | X118: 0 | Y118: 0 | Z118: 0 | AA118: 0 | AB118: 0
G119: 110 | H119: 2029-03-01 | I119: 0 | J119: 0 | K119: 0 | L119: 0 | M119: 0 | N119: 0 | P119: 0 | Q119: 0 | R119: 0 | S119: 0 | T119: 0 | U119: 0 | V119: 0 | W119: 0 | X119: 0 | Y119: 0 | Z119: 0 | AA119: 0 | AB119: 0
G120: 111 | H120: 2029-04-01 | I120: 0 | J120: 0 | K120: 0 | L120: 0 | M120: 0 | N120: 0 | P120: 0 | Q120: 0 | R120: 0 | S120: 0 | T120: 0 | U120: 0 | V120: 0 | W120: 0 | X120: 0 | Y120: 0 | Z120: 0 | AA120: 0 | AB120: 0
G121: 112 | H121: 2029-05-01 | I121: 0 | J121: 0 | K121: 0 | L121: 0 | M121: 0 | N121: 0 | P121: 0 | Q121: 0 | R121: 0 | S121: 0 | T121: 0 | U121: 0 | V121: 0 | W121: 0 | X121: 0 | Y121: 0 | Z121: 0 | AA121: 0 | AB121: 0
G122: 113 | H122: 2029-06-01 | I122: 0 | J122: 0 | K122: 0 | L122: 0 | M122: 0 | N122: 0 | P122: 0 | Q122: 0 | R122: 0 | S122: 0 | T122: 0 | U122: 0 | V122: 0 | W122: 0 | X122: 0 | Y122: 0 | Z122: 0 | AA122: 0 | AB122: 0
G123: 114 | H123: 2029-07-01 | I123: 0 | J123: 0 | K123: 0 | L123: 0 | M123: 0 | N123: 0 | P123: 0 | Q123: 0 | R123: 0 | S123: 0 | T123: 0 | U123: 0 | V123: 0 | W123: 0 | X123: 0 | Y123: 0 | Z123: 0 | AA123: 0 | AB123: 0
G124: 115 | H124: 2029-08-01 | I124: 0 | J124: 0 | K124: 0 | L124: 0 | M124: 0 | N124: 0 | P124: 0 | Q124: 0 | R124: 0 | S124: 0 | T124: 0 | U124: 0 | V124: 0 | W124: 0 | X124: 0 | Y124: 0 | Z124: 0 | AA124: 0 | AB124: 0
G125: 116 | H125: 2029-09-01 | I125: 0 | J125: 0 | K125: 0 | L125: 0 | M125: 0 | N125: 0 | P125: 0 | Q125: 0 | R125: 0 | S125: 0 | T125: 0 | U125: 0 | V125: 0 | W125: 0 | X125: 0 | Y125: 0 | Z125: 0 | AA125: 0 | AB125: 0
G126: 117 | H126: 2029-10-01 | I126: 0 | J126: 0 | K126: 0 | L126: 0 | M126: 0 | N126: 0 | P126: 0 | Q126: 0 | R126: 0 | S126: 0 | T126: 0 | U126: 0 | V126: 0 | W126: 0 | X126: 0 | Y126: 0 | Z126: 0 | AA126: 0 | AB126: 0
G127: 118 | H127: 2029-11-01 | I127: 0 | J127: 0 | K127: 0 | L127: 0 | M127: 0 | N127: 0 | P127: 0 | Q127: 0 | R127: 0 | S127: 0 | T127: 0 | U127: 0 | V127: 0 | W127: 0 | X127: 0 | Y127: 0 | Z127: 0 | AA127: 0 | AB127: 0
G128: 119 | H128: 2029-12-01 | I128: 0 | J128: 0 | K128: 0 | L128: 0 | M128: 0 | N128: 0 | P128: 0 | Q128: 0 | R128: 0 | S128: 0 | T128: 0 | U128: 0 | V128: 0 | W128: 0 | X128: 0 | Y128: 0 | Z128: 0 | AA128: 0 | AB128: 0
G129: 120 | H129: 2030-01-01 | I129: 0 | J129: 0 | K129: 0 | L129: 0 | M129: 0 | N129: 0 | P129: 0 | Q129: 0 | R129: 0 | S129: 0 | T129: 0 | U129: 0 | V129: 0 | W129: 0 | X129: 0 | Y129: 0 | Z129: 0 | AA129: 0 | AB129: 0
G130: 121 | H130: 2030-02-01 | I130: 0 | J130: 0 | K130: 0 | L130: 0 | M130: 0 | N130: 0 | P130: 0 | Q130: 0 | R130: 0 | S130: 0 | T130: 0 | U130: 0 | V130: 0 | W130: 0 | X130: 0 | Y130: 0 | Z130: 0 | AA130: 0 | AB130: 0
G131: 122 | H131: 2030-03-01 | I131: 0 | J131: 0 | K131: 0 | L131: 0 | M131: 0 | N131: 0 | P131: 0 | Q131: 0 | R131: 0 | S131: 0 | T131: 0 | U131: 0 | V131: 0 | W131: 0 | X131: 0 | Y131: 0 | Z131: 0 | AA131: 0 | AB131: 0
G132: 123 | H132: 2030-04-01 | I132: 0 | J132: 0 | K132: 0 | L132: 0 | M132: 0 | N132: 0 | P132: 0 | Q132: 0 | R132: 0 | S132: 0 | T132: 0 | U132: 0 | V132: 0 | W132: 0 | X132: 0 | Y132: 0 | Z132: 0 | AA132: 0 | AB132: 0
G133: 124 | H133: 2030-05-01 | I133: 0 | J133: 0 | K133: 0 | L133: 0 | M133: 0 | N133: 0 | P133: 0 | Q133: 0 | R133: 0 | S133: 0 | T133: 0 | U133: 0 | V133: 0 | W133: 0 | X133: 0 | Y133: 0 | Z133: 0 | AA133: 0 | AB133: 0
G134: 125 | H134: 2030-06-01 | I134: 0 | J134: 0 | K134: 0 | L134: 0 | M134: 0 | N134: 0 | P134: 0 | Q134: 0 | R134: 0 | S134: 0 | T134: 0 | U134: 0 | V134: 0 | W134: 0 | X134: 0 | Y134: 0 | Z134: 0 | AA134: 0 | AB134: 0
G135: 126 | H135: 2030-07-01 | I135: 0 | J135: 0 | K135: 0 | L135: 0 | M135: 0 | N135: 0 | P135: 0 | Q135: 0 | R135: 0 | S135: 0 | T135: 0 | U135: 0 | V135: 0 | W135: 0 | X135: 0 | Y135: 0 | Z135: 0 | AA135: 0 | AB135: 0
G136: 127 | H136: 2030-08-01 | I136: 0 | J136: 0 | K136: 0 | L136: 0 | M136: 0 | N136: 0 | P136: 0 | Q136: 0 | R136: 0 | S136: 0 | T136: 0 | U136: 0 | V136: 0 | W136: 0 | X136: 0 | Y136: 0 | Z136: 0 | AA136: 0 | AB136: 0
G137: 128 | H137: 2030-09-01 | I137: 0 | J137: 0 | K137: 0 | L137: 0 | M137: 0 | N137: 0 | P137: 0 | Q137: 0 | R137: 0 | S137: 0 | T137: 0 | U137: 0 | V137: 0 | W137: 0 | X137: 0 | Y137: 0 | Z137: 0 | AA137: 0 | AB137: 0
G138: 129 | H138: 2030-10-01 | I138: =IF(G138<=$D$14,(L138-K138)*1/(1+$D$20),0) -> 0 | J138: =IF(G138<=$D$14,I138*$D$20,0) -> 0 | K138: =IF(G138<=$D$14,N137*$D$17,0) -> 0 | L138: =IF(G138<=$D$14,-$D$29,0) -> 0 | M138: 0 | N138: =IF(G138<=$D$14,N137-I138-J138,0) -> 0 | P138: 0 | Q138: 0 | R138: 0 | S138: 0 | T138: 0 | U138: 0 | V138: 0 | W138: 0 | X138: 0 | Y138: 0 | Z138: 0 | AA138: 0 | AB138: 0
G139: 130 | H139: 2030-11-01 | I139: 0 | J139: 0 | K139: 0 | L139: 0 | M139: =L139+AB139 -> 0 | N139: 0 | P139: =IF(G139<=$D$14,-$E$29-Q139,0) -> 0 | Q139: =IF(G139<=$D$14,R138*$D$17,0) -> 0 | R139: =IF(G139<=$D$14,R138-P139,0) -> 0 | S139: =IF(G139<=$D$14,P139+Q139,0) -> 0 | T139: =IF(G139<=$D$14,IF($D$37="льготное",K139,N138*($D$24+3%)/12),0) -> 0 | U139: =L139 -> 0 | V139: =M139 -> 0 | W139: =IF($D$38="да",K139*$D$23,0) -> 0 | X139: =IF(G139<=$D$21,IF($D$38="да",($D$13)/$D$21*$D$23,0),0) -> 0 | Y139: =IF(G139<=$D$21,IF($D$38="да",AB139*$D$23,0),0) -> 0 | Z139: =U139-W139-X139 -> 0 | AA139: =V139-X139-Y139-W139 -> 0 | AB139: 0
G140: 131 | H140: 2030-12-01 | I140: 0 | J140: 0 | K140: 0 | L140: 0 | M140: 0 | N140: 0 | P140: 0 | Q140: 0 | R140: 0 | S140: 0 | T140: 0 | U140: 0 | V140: 0 | W140: 0 | X140: 0 | Y140: 0 | Z140: 0 | AA140: 0 | AB140: =IF(G140<=$D$14,N139*$D$24,0) -> 0
G141: 132 | H141: 2031-01-01 | I141: 0 | J141: 0 | K141: 0 | L141: 0 | M141: 0 | N141: 0 | P141: 0 | Q141: 0 | R141: 0 | S141: 0 | T141: 0 | U141: 0 | V141: 0 | W141: 0 | X141: 0 | Y141: 0 | Z141: 0 | AA141: 0 | AB141: 0
G142: 133 | H142: 2031-02-01 | I142: 0 | J142: 0 | K142: 0 | L142: 0 | M142: 0 | N142: 0 | P142: 0 | Q142: 0 | R142: 0 | S142: 0 | T142: 0 | U142: 0 | V142: 0 | W142: 0 | X142: 0 | Y142: 0 | Z142: 0 | AA142: 0 | AB142: 0
G143: 134 | H143: 2031-03-01 | I143: 0 | J143: 0 | K143: 0 | L143: 0 | M143: 0 | N143: 0 | P143: 0 | Q143: 0 | R143: 0 | S143: 0 | T143: 0 | U143: 0 | V143: 0 | W143: 0 | X143: 0 | Y143: 0 | Z143: 0 | AA143: 0 | AB143: 0
G144: 135 | H144: 2031-04-01 | I144: 0 | J144: 0 | K144: 0 | L144: 0 | M144: 0 | N144: 0 | P144: 0 | Q144: 0 | R144: 0 | S144: 0 | T144: 0 | U144: 0 | V144: 0 | W144: 0 | X144: 0 | Y144: 0 | Z144: 0 | AA144: 0 | AB144: 0
G145: 136 | H145: 2031-05-01 | I145: 0 | J145: 0 | K145: 0 | L145: 0 | M145: 0 | N145: 0 | P145: 0 | Q145: 0 | R145: 0 | S145: 0 | T145: 0 | U145: 0 | V145: 0 | W145: 0 | X145: 0 | Y145: 0 | Z145: 0 | AA145: 0 | AB145: 0
G146: 137 | H146: 2031-06-01 | I146: 0 | J146: 0 | K146: 0 | L146: 0 | M146: 0 | N146: 0 | P146: 0 | Q146: 0 | R146: 0 | S146: 0 | T146: 0 | U146: 0 | V146: 0 | W146: 0 | X146: 0 | Y146: 0 | Z146: 0 | AA146: 0 | AB146: 0
G147: 138 | H147: 2031-07-01 | I147: 0 | J147: 0 | K147: 0 | L147: 0 | M147: 0 | N147: 0 | P147: 0 | Q147: 0 | R147: 0 | S147: 0 | T147: 0 | U147: 0 | V147: 0 | W147: 0 | X147: 0 | Y147: 0 | Z147: 0 | AA147: 0 | AB147: 0
G148: 139 | H148: 2031-08-01 | I148: 0 | J148: 0 | K148: 0 | L148: 0 | M148: 0 | N148: 0 | P148: 0 | Q148: 0 | R148: 0 | S148: 0 | T148: 0 | U148: 0 | V148: 0 | W148: 0 | X148: 0 | Y148: 0 | Z148: 0 | AA148: 0 | AB148: 0
G149: 140 | H149: 2031-09-01 | I149: 0 | J149: 0 | K149: 0 | L149: 0 | M149: 0 | N149: 0 | P149: 0 | Q149: 0 | R149: 0 | S149: 0 | T149: 0 | U149: 0 | V149: 0 | W149: 0 | X149: 0 | Y149: 0 | Z149: 0 | AA149: 0 | AB149: 0
G150: 141 | H150: 2031-10-01 | I150: 0 | J150: 0 | K150: 0 | L150: 0 | M150: 0 | N150: 0 | P150: 0 | Q150: 0 | R150: 0 | S150: 0 | T150: 0 | U150: 0 | V150: 0 | W150: 0 | X150: 0 | Y150: 0 | Z150: 0 | AA150: 0 | AB150: 0
G151: 142 | H151: 2031-11-01 | I151: 0 | J151: 0 | K151: 0 | L151: 0 | M151: 0 | N151: 0 | P151: 0 | Q151: 0 | R151: 0 | S151: 0 | T151: 0 | U151: 0 | V151: 0 | W151: 0 | X151: 0 | Y151: 0 | Z151: 0 | AA151: 0 | AB151: 0
G152: 143 | H152: 2031-12-01 | I152: 0 | J152: 0 | K152: 0 | L152: 0 | M152: 0 | N152: 0 | P152: 0 | Q152: 0 | R152: 0 | S152: 0 | T152: 0 | U152: 0 | V152: 0 | W152: 0 | X152: 0 | Y152: 0 | Z152: 0 | AA152: 0 | AB152: 0
G153: 144 | H153: 2032-01-01 | I153: 0 | J153: 0 | K153: 0 | L153: 0 | M153: 0 | N153: 0 | P153: 0 | Q153: 0 | R153: 0 | S153: 0 | T153: 0 | U153: 0 | V153: 0 | W153: 0 | X153: 0 | Y153: 0 | Z153: 0 | AA153: 0 | AB153: 0
G154: 145 | H154: 2032-02-01 | I154: 0 | J154: 0 | K154: 0 | L154: 0 | M154: 0 | N154: 0 | P154: 0 | Q154: 0 | R154: 0 | S154: 0 | T154: 0 | U154: 0 | V154: 0 | W154: 0 | X154: 0 | Y154: 0 | Z154: 0 | AA154: 0 | AB154: 0
G155: 146 | H155: 2032-03-01 | I155: 0 | J155: 0 | K155: 0 | L155: 0 | M155: 0 | N155: 0 | P155: 0 | Q155: 0 | R155: 0 | S155: 0 | T155: 0 | U155: 0 | V155: 0 | W155: 0 | X155: 0 | Y155: 0 | Z155: 0 | AA155: 0 | AB155: 0
G156: 147 | H156: 2032-04-01 | I156: 0 | J156: 0 | K156: 0 | L156: 0 | M156: 0 | N156: 0 | P156: 0 | Q156: 0 | R156: 0 | S156: 0 | T156: 0 | U156: 0 | V156: 0 | W156: 0 | X156: 0 | Y156: 0 | Z156: 0 | AA156: 0 | AB156: 0
G157: 148 | H157: 2032-05-01 | I157: 0 | J157: 0 | K157: 0 | L157: 0 | M157: 0 | N157: 0 | P157: 0 | Q157: 0 | R157: 0 | S157: 0 | T157: 0 | U157: 0 | V157: 0 | W157: 0 | X157: 0 | Y157: 0 | Z157: 0 | AA157: 0 | AB157: 0
G158: 149 | H158: 2032-06-01 | I158: 0 | J158: 0 | K158: 0 | L158: 0 | M158: 0 | N158: 0 | P158: 0 | Q158: 0 | R158: 0 | S158: 0 | T158: 0 | U158: 0 | V158: 0 | W158: 0 | X158: 0 | Y158: 0 | Z158: 0 | AA158: 0 | AB158: 0
G159: 150 | H159: 2032-07-01 | I159: 0 | J159: 0 | K159: 0 | L159: 0 | M159: 0 | N159: 0 | P159: 0 | Q159: 0 | R159: 0 | S159: 0 | T159: 0 | U159: 0 | V159: 0 | W159: 0 | X159: 0 | Y159: 0 | Z159: 0 | AA159: 0 | AB159: 0
G160: 151 | H160: 2032-08-01 | I160: 0 | J160: 0 | K160: 0 | L160: 0 | M160: 0 | N160: 0 | P160: 0 | Q160: 0 | R160: 0 | S160: 0 | T160: 0 | U160: 0 | V160: 0 | W160: 0 | X160: 0 | Y160: 0 | Z160: 0 | AA160: 0 | AB160: 0
G161: 152 | H161: 2032-09-01 | I161: 0 | J161: 0 | K161: 0 | L161: 0 | M161: 0 | N161: 0 | P161: 0 | Q161: 0 | R161: 0 | S161: 0 | T161: 0 | U161: 0 | V161: 0 | W161: 0 | X161: 0 | Y161: 0 | Z161: 0 | AA161: 0 | AB161: 0
G162: 153 | H162: 2032-10-01 | I162: 0 | J162: 0 | K162: 0 | L162: 0 | M162: 0 | N162: 0 | P162: 0 | Q162: 0 | R162: 0 | S162: 0 | T162: 0 | U162: 0 | V162: 0 | W162: 0 | X162: 0 | Y162: 0 | Z162: 0 | AA162: 0 | AB162: 0
G163: 154 | H163: 2032-11-01 | I163: 0 | J163: 0 | K163: 0 | L163: 0 | M163: 0 | N163: 0 | P163: 0 | Q163: 0 | R163: 0 | S163: 0 | T163: 0 | U163: 0 | V163: 0 | W163: 0 | X163: 0 | Y163: 0 | Z163: 0 | AA163: 0 | AB163: 0
G164: 155 | H164: 2032-12-01 | I164: 0 | J164: 0 | K164: 0 | L164: 0 | M164: 0 | N164: 0 | P164: 0 | Q164: 0 | R164: 0 | S164: 0 | T164: 0 | U164: 0 | V164: 0 | W164: 0 | X164: 0 | Y164: 0 | Z164: 0 | AA164: 0 | AB164: 0
G165: 156 | H165: 2033-01-01 | I165: 0 | J165: 0 | K165: 0 | L165: 0 | M165: 0 | N165: 0 | P165: 0 | Q165: 0 | R165: 0 | S165: 0 | T165: 0 | U165: 0 | V165: 0 | W165: 0 | X165: 0 | Y165: 0 | Z165: 0 | AA165: 0 | AB165: 0
G166: 157 | H166: 2033-02-01 | I166: 0 | J166: 0 | K166: 0 | L166: 0 | M166: 0 | N166: 0 | P166: 0 | Q166: 0 | R166: 0 | S166: 0 | T166: 0 | U166: 0 | V166: 0 | W166: 0 | X166: 0 | Y166: 0 | Z166: 0 | AA166: 0 | AB166: 0
G167: 158 | H167: 2033-03-01 | I167: 0 | J167: 0 | K167: 0 | L167: 0 | M167: 0 | N167: 0 | P167: 0 | Q167: 0 | R167: 0 | S167: 0 | T167: 0 | U167: 0 | V167: 0 | W167: 0 | X167: 0 | Y167: 0 | Z167: 0 | AA167: 0 | AB167: 0
G168: 159 | H168: 2033-04-01 | I168: 0 | J168: 0 | K168: 0 | L168: 0 | M168: 0 | N168: 0 | P168: 0 | Q168: 0 | R168: 0 | S168: 0 | T168: 0 | U168: 0 | V168: 0 | W168: 0 | X168: 0 | Y168: 0 | Z168: 0 | AA168: 0 | AB168: 0
G169: 160 | H169: 2033-05-01 | I169: 0 | J169: 0 | K169: 0 | L169: 0 | M169: 0 | N169: 0 | P169: 0 | Q169: 0 | R169: 0 | S169: 0 | T169: 0 | U169: 0 | V169: 0 | W169: 0 | X169: 0 | Y169: 0 | Z169: 0 | AA169: 0 | AB169: 0
G170: 161 | H170: 2033-06-01 | I170: =IF(G170<=$D$14,(L170-K170)*1/(1+$D$20),0) -> 0 | J170: =IF(G170<=$D$14,I170*$D$20,0) -> 0 | K170: =IF(G170<=$D$14,N169*$D$17,0) -> 0 | L170: =IF(G170<=$D$14,-$D$29,0) -> 0 | M170: 0 | N170: =IF(G170<=$D$14,N169-I170-J170,0) -> 0 | P170: 0 | Q170: 0 | R170: 0 | S170: 0 | T170: 0 | U170: 0 | V170: 0 | W170: 0 | X170: 0 | Y170: 0 | Z170: 0 | AA170: 0 | AB170: 0
G171: 162 | H171: 2033-07-01 | I171: 0 | J171: 0 | K171: 0 | L171: 0 | M171: 0 | N171: 0 | P171: 0 | Q171: 0 | R171: 0 | S171: 0 | T171: =IF(G171<=$D$14,IF($D$37="льготное",K171,N170*($D$24+3%)/12),0) -> 0 | U171: 0 | V171: 0 | W171: 0 | X171: 0 | Y171: 0 | Z171: 0 | AA171: 0 | AB171: 0
G172: 163 | H172: 2033-08-01 | I172: 0 | J172: 0 | K172: 0 | L172: 0 | M172: 0 | N172: 0 | P172: 0 | Q172: 0 | R172: 0 | S172: 0 | T172: 0 | U172: 0 | V172: 0 | W172: 0 | X172: 0 | Y172: 0 | Z172: 0 | AA172: 0 | AB172: 0
G173: 164 | H173: 2033-09-01 | I173: 0 | J173: 0 | K173: 0 | L173: 0 | M173: 0 | N173: 0 | P173: 0 | Q173: 0 | R173: 0 | S173: 0 | T173: 0 | U173: 0 | V173: 0 | W173: 0 | X173: 0 | Y173: 0 | Z173: 0 | AA173: 0 | AB173: 0
G174: 165 | H174: 2033-10-01 | I174: 0 | J174: 0 | K174: 0 | L174: 0 | M174: 0 | N174: 0 | P174: 0 | Q174: 0 | R174: 0 | S174: 0 | T174: 0 | U174: 0 | V174: 0 | W174: 0 | X174: 0 | Y174: 0 | Z174: 0 | AA174: 0 | AB174: 0
G175: 166 | H175: 2033-11-01 | I175: 0 | J175: 0 | K175: 0 | L175: 0 | M175: 0 | N175: 0 | P175: 0 | Q175: 0 | R175: 0 | S175: 0 | T175: 0 | U175: 0 | V175: 0 | W175: 0 | X175: 0 | Y175: 0 | Z175: 0 | AA175: 0 | AB175: 0
G176: 167 | H176: 2033-12-01 | I176: 0 | J176: 0 | K176: 0 | L176: 0 | M176: 0 | N176: 0 | P176: 0 | Q176: 0 | R176: 0 | S176: 0 | T176: 0 | U176: 0 | V176: 0 | W176: 0 | X176: 0 | Y176: 0 | Z176: 0 | AA176: 0 | AB176: 0
G177: 168 | H177: 2034-01-01 | I177: 0 | J177: 0 | K177: 0 | L177: 0 | M177: 0 | N177: 0 | P177: 0 | Q177: 0 | R177: 0 | S177: 0 | T177: 0 | U177: 0 | V177: 0 | W177: 0 | X177: 0 | Y177: 0 | Z177: 0 | AA177: 0 | AB177: 0
G178: 169 | H178: 2034-02-01 | I178: 0 | J178: 0 | K178: 0 | L178: 0 | M178: 0 | N178: 0 | P178: 0 | Q178: 0 | R178: 0 | S178: 0 | T178: 0 | U178: 0 | V178: 0 | W178: 0 | X178: 0 | Y178: 0 | Z178: 0 | AA178: 0 | AB178: 0
G179: 170 | H179: 2034-03-01 | I179: 0 | J179: 0 | K179: 0 | L179: 0 | M179: 0 | N179: 0 | P179: 0 | Q179: 0 | R179: 0 | S179: 0 | T179: 0 | U179: 0 | V179: 0 | W179: 0 | X179: 0 | Y179: 0 | Z179: 0 | AA179: 0 | AB179: 0
G180: 171 | H180: 2034-04-01 | I180: 0 | J180: 0 | K180: 0 | L180: 0 | M180: 0 | N180: 0 | P180: 0 | Q180: 0 | R180: 0 | S180: 0 | T180: 0 | U180: 0 | V180: 0 | W180: 0 | X180: 0 | Y180: 0 | Z180: 0 | AA180: 0 | AB180: 0
G181: 172 | H181: 2034-05-01 | I181: 0 | J181: 0 | K181: 0 | L181: 0 | M181: 0 | N181: 0 | P181: 0 | Q181: 0 | R181: 0 | S181: 0 | T181: 0 | U181: 0 | V181: 0 | W181: 0 | X181: 0 | Y181: 0 | Z181: 0 | AA181: 0 | AB181: 0
G182: 173 | H182: 2034-06-01 | I182: 0 | J182: 0 | K182: 0 | L182: 0 | M182: 0 | N182: 0 | P182: 0 | Q182: 0 | R182: 0 | S182: 0 | T182: 0 | U182: 0 | V182: 0 | W182: 0 | X182: 0 | Y182: 0 | Z182: 0 | AA182: 0 | AB182: 0
G183: 174 | H183: 2034-07-01 | I183: 0 | J183: 0 | K183: 0 | L183: 0 | M183: 0 | N183: 0 | P183: 0 | Q183: 0 | R183: 0 | S183: 0 | T183: 0 | U183: 0 | V183: 0 | W183: 0 | X183: 0 | Y183: 0 | Z183: 0 | AA183: 0 | AB183: 0
G184: 175 | H184: 2034-08-01 | I184: 0 | J184: 0 | K184: 0 | L184: 0 | M184: 0 | N184: 0 | P184: 0 | Q184: 0 | R184: 0 | S184: 0 | T184: 0 | U184: 0 | V184: 0 | W184: 0 | X184: 0 | Y184: 0 | Z184: 0 | AA184: 0 | AB184: 0
G185: 176 | H185: 2034-09-01 | I185: 0 | J185: 0 | K185: 0 | L185: 0 | M185: 0 | N185: 0 | P185: 0 | Q185: 0 | R185: 0 | S185: 0 | T185: 0 | U185: 0 | V185: 0 | W185: 0 | X185: 0 | Y185: 0 | Z185: 0 | AA185: 0 | AB185: 0
G186: 177 | H186: 2034-10-01 | I186: 0 | J186: 0 | K186: 0 | L186: 0 | M186: 0 | N186: 0 | P186: 0 | Q186: 0 | R186: 0 | S186: 0 | T186: 0 | U186: 0 | V186: 0 | W186: 0 | X186: 0 | Y186: 0 | Z186: 0 | AA186: 0 | AB186: 0
G187: 178 | H187: 2034-11-01 | I187: 0 | J187: 0 | K187: 0 | L187: 0 | M187: 0 | N187: 0 | P187: 0 | Q187: 0 | R187: 0 | S187: 0 | T187: 0 | U187: 0 | V187: 0 | W187: 0 | X187: 0 | Y187: 0 | Z187: 0 | AA187: 0 | AB187: 0
G188: 179 | H188: 2034-12-01 | I188: 0 | J188: 0 | K188: 0 | L188: 0 | M188: 0 | N188: 0 | P188: 0 | Q188: 0 | R188: 0 | S188: 0 | T188: 0 | U188: 0 | V188: 0 | W188: 0 | X188: 0 | Y188: 0 | Z188: 0 | AA188: 0 | AB188: 0
G189: 180 | H189: 2035-01-01 | I189: 0 | J189: 0 | K189: 0 | L189: 0 | M189: 0 | N189: 0 | P189: 0 | Q189: 0 | R189: 0 | S189: 0 | T189: 0 | U189: 0 | V189: 0 | W189: 0 | X189: 0 | Y189: 0 | Z189: 0 | AA189: 0 | AB189: 0

Sheet Кредит равномерное (hidden)
K1: На % не начисляется НДС | O1: НДС на ОС возмещается сразу при постановке на учет | V1: В затраты идет только часть процентов, не превышающая ставку ЦБ+ 3 | W1: Амортизация обычная
G3: ЧИСТВНДОХ | L3: =XIRR(L9:L189,H9:H189) ->  | M3: =XIRR(M9:M189,H9:H189) ->  | R3: =XIRR(R9:R189,H9:H189) ->  | T3: =XIRR(T9:T189,H9:H189) ->  | U3: =XIRR(U9:U189,H9:H189) ->  | X3: =SUM(V4:X4) -> 2083640075 | Y3: =XIRR(Y9:Y189,H9:H189) ->  | Z3: =XIRR(Z9:Z189,H9:H189) -> 
I4: =SUM(I8:I189) -> 2444166.667 | J4: =SUM(J8:J189) -> 488833.3333 | K4: =SUM(K8:K189) -> 1.041595679e+10 | L4: =SUM(L10:L189)+D19 -> 1.042014679e+10 | M4: =SUM(M10:M189)+D19 -> 1.042015571e+10 | O4: =SUM(O9:O189) -> 698333.3333 | R4: =SUM(R10:R189) -> 7337098670 | V4: =SUM(V8:V189) -> 2083191358 | W4: =SUM(W8:W189) -> 446933.3333 | X4: =SUM(X8:X189) -> 1784.241667 | AA4: =SUM(AA8:AA189) -> 8921.208333
K5: Ост ст-ть*% в мес
G6: Платеж | I6: Погашение стоимости имущества | K6: Процент по ставке | L6: Кредитный платеж | M6: Кредитный платеж со страхованием | N6: Основной долг | O6: Возмещение НДС | P6: "процент при НДС" | Q6: "остаточная стоимость без НДС" | R6: Поток без НДС | S6: % по ставке ЦБ+3 | T6: Поток без НДС | U6: Поток без НДС со страхованием | V6: Экономия налога на прибыль от % | W6: Экономия НП от амортизации | X6: Экономия НП от страхования | Y6: Поток без НДС и НП | Z6: Поток без НДС и НП со страхованием
I7: без НДС | J7: НДС | AA7: Страхование
G9: 0 | H9: 2020-01-01 | L9: =-D11+D19 -> -2933000 | M9: =L9 -> -2933000 | N9: =D11-D19 -> 2933000 | O9: =IF(D37="да",D12,0) -> 698333.3333 | Q9: =$D$13 -> 3491666.667 | R9: =L9+O9 -> -2234666.667 | T9: =L9 -> -2933000 | U9: =T9 -> -2933000 | Y9: =T9 -> -2933000 | Z9: =Y9 -> -2933000
G10: 1 | H10: 2020-02-01 | I10: =IF(G10<=$D$14,$N$9/$D$14*1/(1+$D$20),0) -> 33946.75926 | J10: =IF(G10<=$D$14,I10*$D$20,0) -> 6789.351852 | K10: =IF(G10<=$D$14,N9*$D$17,0) -> 285368679.2 | L10: =IF(G10<=$D$14,SUM(I10:K10),0) -> 285409415.3 | M10: =L10+AA10 -> 285409659.7 | N10: =IF(G10<=$D$14,N9-I10-J10,0) -> 2892263.889 | P10: =IF(G10<=$D$14,Q9*$D$17,0) -> 339724618.1 | Q10: =-R9-I10 -> 2200719.907 | R10: =IF(G10<=$D$14,I10+P10,0) -> 339758564.8 | S10: =IF(G10<=$D$14,IF($D$37="льготное",K10,N9*($D$24+3%)/12),0) -> 7352.868056 | T10: =L10-O9 -> 284711081.9 | U10: =M10-O9 -> 284711326.4 | V10: =IF($D$38="да",K10*$D$23,0) -> 57073735.83 | W10: =IF($D$38="да",IF(G10<=$D$21,(-$R$9)/$D$21*$D$23,0),0) -> 7448.888889 | X10: =IF($D$38="да",IF(G10<=$D$14,AA10*$D$23,0),0) -> 48.88333333 | Y10: =T10-V10-W10 -> 227629897.2 | Z10: =U10-W10-X10-V10 -> 227630092.8 | AA10: =IF(G10<=$D$14,N9*$D$24,0) -> 244.4166667
A11: Стоимость оборудования | D11: ='Калькулятор лизинга'!K5 -> 4190000 | G11: 2 | H11: 2020-03-01 | I11: =IF(G11<=$D$14,$N$9/$D$14*1/(1+$D$20),0) -> 33946.75926 | J11: =IF(G11<=$D$14,I11*$D$20,0) -> 6789.351852 | K11: =IF(G11<=$D$14,N10*$D$17,0) -> 281405225.3 | L11: =IF(G11<=$D$14,SUM(I11:K11),0) -> 281445961.4 | M11: =L11+AA11 -> 281446202.4 | N11: =IF(G11<=$D$14,N10-I11-J11,0) -> 2851527.778 | P11: =IF(G10<=$D$14,Q10*$D$17,0) -> 214120877.3 | Q11: =IF(G10<=$D$14,Q10-I11,0) -> 2166773.148 | R11: 214154824.1 | S11: 7250.744888 | T11: =L11 -> 281445961.4 | U11: =M11 -> 281446202.4 | V11: =IF($D$38="да",K11*$D$23,0) -> 56281045.06 | W11: =IF($D$38="да",IF(G11<=$D$21,(-$R$9)/$D$21*$D$23,0),0) -> 7448.888889 | X11: =IF($D$38="да",IF(G11<=$D$14,AA11*$D$23,0),0) -> 48.20439815 | Y11: =T11-V11-W11 -> 225157467.5 | Z11: =U11-W11-X11-V11 -> 225157660.3 | AA11: =IF(G11<=$D$14,N10*$D$24,0) -> 241.0219907
A12: НДС | D12: =D11*D20/(1+D20) -> 698333.3333 | G12: 3 | H12: 2020-04-01 | I12: 33946.75926 | J12: =IF(G12<=$D$14,I12*$D$20,0) -> 6789.351852 | K12: =IF(G12<=$D$14,N11*$D$17,0) -> 277441771.4 | L12: 277482507.5 | M12: 277482745.2 | N12: =IF(G12<=$D$14,N11-I12-J12,0) -> 2810791.667 | P12: 210817999.1 | Q12: 2132826.389 | R12: 210851945.9 | S12: 7148.621721 | T12: 277482507.5 | U12: 277482745.2 | V12: 55488354.28 | W12: 7448.888889 | X12: 47.52546296 | Y12: 221986704.4 | Z12: 221986894.5 | AA12: 237.6273148
A13: Без НДС | D13: =D11-D12 -> 3491666.667 | G13: 4 | H13: 2020-05-01 | I13: 33946.75926 | J13: 6789.351852 | K13: =IF(G13<=$D$14,N12*$D$17,0) -> 273478317.5 | L13: =IF(G13<=$D$14,SUM(I13:K13),0) -> 273519053.6 | M13: 273519287.9 | N13: 2770055.556 | P13: 207515120.9 | Q13: 2098879.63 | R13: 207549067.6 | S13: 7046.498553 | T13: 273519053.6 | U13: 273519287.9 | V13: 54695663.51 | W13: 7448.888889 | X13: 46.84652778 | Y13: 218815941.3 | Z13: 218816128.6 | AA13: 234.2326389
A14: Срок, мес | D14: ='Калькулятор лизинга'!O16 -> 72 | G14: 5 | H14: 2020-06-01 | I14: 33946.75926 | J14: 6789.351852 | K14: 269514863.7 | L14: 269555599.8 | M14: 269555830.6 | N14: =IF(G14<=$D$14,N13-I14-J14,0) -> 2729319.444 | P14: 204212242.6 | Q14: 2064932.87 | R14: 204246189.4 | S14: 6944.375386 | T14: 269555599.8 | U14: 269555830.6 | V14: 53902972.73 | W14: 7448.888889 | X14: 46.16759259 | Y14: 215645178.1 | Z14: 215645362.8 | AA14: 230.837963
A15: Срок, лет | D15: =D14/12 -> 6 | G15: 6 | H15: 2020-07-01 | I15: 33946.75926 | J15: 6789.351852 | K15: 265551409.8 | L15: 265592145.9 | M15: 265592373.3 | N15: 2688583.333 | P15: 200909364.4 | Q15: 2030986.111 | R15: 200943311.2 | S15: 6842.252218 | T15: 265592145.9 | U15: 265592373.3 | V15: 53110281.96 | W15: 7448.888889 | X15: 45.48865741 | Y15: 212474415 | Z15: 212474597 | AA15: 227.443287
A16: Ставка в год | D16: ='Калькулятор лизинга'!O21/100 -> 1167.55 | G16: 7 | H16: 2020-08-01 | I16: 33946.75926 | J16: 6789.351852 | K16: 261587955.9 | L16: 261628692 | M16: 261628916.1 | N16: 2647847.222 | P16: 197606486.2 | Q16: 1997039.352 | R16: 197640432.9 | S16: 6740.129051 | T16: 261628692 | U16: 261628916.1 | V16: 52317591.18 | W16: 7448.888889 | X16: 44.80972222 | Y16: 209303651.9 | Z16: 209303831.2 | AA16: 224.0486111
A17: Ставка в мес | D17: =D16/12 -> 97.29583333 | G17: 8 | H17: 2020-09-01 | I17: 33946.75926 | J17: 6789.351852 | K17: 257624502 | L17: 257665238.1 | M17: 257665458.8 | N17: 2607111.111 | P17: 194303607.9 | Q17: 1963092.593 | R17: 194337554.7 | S17: 6638.005883 | T17: 257665238.1 | U17: 257665458.8 | V17: 51524900.41 | W17: 7448.888889 | X17: 44.13078704 | Y17: 206132888.8 | Z17: 206133065.4 | AA17: 220.6539352
A18: Собств ср-ва, % | D18: =IF('Калькулятор лизинга'!M24=Лист2!N2,'Калькулятор лизинга'!O24/100,'Калькулятор лизинга'!O24/'Калькулятор лизинга'!K5) -> 0.3 | G18: 9 | H18: 2020-10-01 | I18: 33946.75926 | J18: 6789.351852 | K18: 253661048.1 | L18: 253701784.3 | M18: 253702001.5 | N18: 2566375 | P18: 191000729.7 | Q18: 1929145.833 | R18: 191034676.5 | S18: 6535.882716 | T18: 253701784.3 | U18: 253702001.5 | V18: 50732209.63 | W18: 7448.888889 | X18: 43.45185185 | Y18: 202962125.7 | Z18: 202962299.5 | AA18: 217.2592593
A19: Собств ср-ва | D19: =IF('Калькулятор лизинга'!M24=Лист2!N3,'Калькулятор лизинга'!O24,'Калькулятор лизинга'!O24/100*'Калькулятор лизинга'!K5) -> 1257000 | G19: 10 | H19: 2020-11-01 | I19: 33946.75926 | J19: 6789.351852 | K19: 249697594.3 | L19: 249738330.4 | M19: 249738544.2 | N19: 2525638.889 | P19: 187697851.5 | Q19: 1895199.074 | R19: 187731798.2 | S19: 6433.759549 | T19: 249738330.4 | U19: 249738544.2 | V19: 49939518.85 | W19: 7448.888889 | X19: 42.77291667 | Y19: 199791362.6 | Z19: 199791533.7 | AA19: 213.8645833
A20: Ставка НДС | D20: ='Калькулятор лизинга'!K11/100 -> 0.2 | G20: 11 | H20: 2020-12-01 | I20: 33946.75926 | J20: 6789.351852 | K20: 245734140.4 | L20: 245774876.5 | M20: 245775087 | N20: 2484902.778 | P20: 184394973.2 | Q20: 1861252.315 | R20: 184428920 | S20: 6331.636381 | T20: 245774876.5 | U20: 245775087 | V20: 49146828.08 | W20: 7448.888889 | X20: 42.09398148 | Y20: 196620599.5 | Z20: 196620767.9 | AA20: 210.4699074
A21: СПИ, мес | D21: ='Калькулятор лизинга'!O27 -> 60 | G21: 12 | H21: 2021-01-01 | I21: 33946.75926 | J21: 6789.351852 | K21: 241770686.5 | L21: 241811422.6 | M21: 241811629.7 | N21: 2444166.667 | P21: 181092095 | Q21: 1827305.556 | R21: 181126041.8 | S21: 6229.513214 | T21: 241811422.6 | U21: 241811629.7 | V21: 48354137.3 | W21: 7448.888889 | X21: 41.4150463 | Y21: 193449836.4 | Z21: 193450002.1 | AA21: 207.0752315
A22: СПИ, лет | D22: =D21/12 -> 5 | G22: 13 | H22: 2021-02-01 | I22: 33946.75926 | J22: 6789.351852 | K22: 237807232.6 | L22: 237847968.8 | M22: 237848172.4 | N22: 2403430.556 | P22: 177789216.8 | Q22: 1793358.796 | R22: 177823163.5 | S22: 6127.390046 | T22: 237847968.8 | U22: 237848172.4 | V22: 47561446.53 | W22: 7448.888889 | X22: 40.73611111 | Y22: 190279073.3 | Z22: 190279236.3 | AA22: 203.6805556
A23: Ставка НП | D23: ='Калькулятор лизинга'!K9/100 -> 0.2 | G23: 14 | H23: 2021-03-01 | I23: 33946.75926 | J23: 6789.351852 | K23: 233843778.8 | L23: 233884514.9 | M23: 233884715.2 | N23: 2362694.444 | P23: 174486338.6 | Q23: 1759412.037 | R23: 174520285.3 | S23: 6025.266879 | T23: 233884514.9 | U23: 233884715.2 | V23: 46768755.75 | W23: 7448.888889 | X23: 40.05717593 | Y23: 187108310.2 | Z23: 187108470.5 | AA23: 200.2858796
A24: Страхование | D24: ='Калькулятор лизинга'!O30/100/12 -> 8.333333333e-05 | G24: 15 | H24: 2021-04-01 | I24: 33946.75926 | J24: 6789.351852 | K24: 229880324.9 | L24: 229921061 | M24: 229921257.9 | N24: 2321958.333 | P24: 171183460.3 | Q24: 1725465.278 | R24: 171217407.1 | S24: 5923.143711 | T24: 229921061 | U24: 229921257.9 | V24: 45976064.98 | W24: 7448.888889 | X24: 39.37824074 | Y24: 183937547.1 | Z24: 183937704.6 | AA24: 196.8912037
G25: 16 | H25: 2021-05-01 | I25: 33946.75926 | J25: 6789.351852 | K25: 225916871 | L25: 225957607.1 | M25: 225957800.6 | N25: 2281222.222 | P25: 167880582.1 | Q25: 1691518.519 | R25: 167914528.8 | S25: 5821.020544 | T25: 225957607.1 | U25: 225957800.6 | V25: 45183374.2 | W25: 7448.888889 | X25: 38.69930556 | Y25: 180766784 | Z25: 180766938.8 | AA25: 193.4965278
G26: 17 | H26: 2021-06-01 | I26: 33946.75926 | J26: 6789.351852 | K26: 221953417.1 | L26: 221994153.2 | M26: 221994343.3 | N26: 2240486.111 | P26: 164577703.9 | Q26: 1657571.759 | R26: 164611650.6 | S26: 5718.897377 | T26: 221994153.2 | U26: 221994343.3 | V26: 44390683.43 | W26: 7448.888889 | X26: 38.02037037 | Y26: 177596020.9 | Z26: 177596173 | AA26: 190.1018519
G27: 18 | H27: 2021-07-01 | I27: 33946.75926 | J27: 6789.351852 | K27: 217989963.3 | L27: 218030699.4 | M27: 218030886.1 | N27: 2199750 | P27: 161274825.6 | Q27: 1623625 | R27: 161308772.4 | S27: 5616.774209 | T27: 218030699.4 | U27: 218030886.1 | V27: 43597992.65 | W27: 7448.888889 | X27: 37.34143519 | Y27: 174425257.8 | Z27: 174425407.2 | AA27: 186.7071759
A28: Сумма договора | D28: =L4 -> 1.042014679e+10 | G28: 19 | H28: 2021-08-01 | I28: 33946.75926 | J28: 6789.351852 | K28: 214026509.4 | L28: 214067245.5 | M28: 214067428.8 | N28: 2159013.889 | P28: 157971947.4 | Q28: 1589678.241 | R28: 158005894.2 | S28: 5514.651042 | T28: 214067245.5 | U28: 214067428.8 | V28: 42805301.88 | W28: 7448.888889 | X28: 36.6625 | Y28: 171254494.7 | Z28: 171254641.4 | AA28: 183.3125
A29: Платеж по кредиту | D29: =PMT($D$17,$D$14,$N$9) -> -285368679.2 | G29: 20 | H29: 2021-09-01 | I29: 33946.75926 | J29: 6789.351852 | K29: 210063055.5 | L29: 210103791.6 | M29: 210103971.5 | N29: 2118277.778 | P29: 154669069.2 | Q29: 1555731.481 | R29: 154703015.9 | S29: 5412.527874 | T29: 210103791.6 | U29: 210103971.5 | V29: 42012611.1 | W29: 7448.888889 | X29: 35.98356481 | Y29: 168083731.6 | Z29: 168083875.6 | AA29: 179.9178241
G30: 21 | H30: 2021-10-01 | I30: 33946.75926 | J30: 6789.351852 | K30: 206099601.6 | L30: 206140337.7 | M30: 206140514.3 | N30: 2077541.667 | P30: 151366190.9 | Q30: 1521784.722 | R30: 151400137.7 | S30: 5310.404707 | T30: 206140337.7 | U30: 206140514.3 | V30: 41219920.32 | W30: 7448.888889 | X30: 35.30462963 | Y30: 164912968.5 | Z30: 164913109.7 | AA30: 176.5231481
A31: Удорожание | D31: =(L4-D11)/D11 -> 2485.908542 | E31: 33065 | G31: 22 | H31: 2021-11-01 | I31: 33946.75926 | J31: 6789.351852 | K31: 202136147.7 | L31: 202176883.9 | M31: 202177057 | N31: 2036805.556 | P31: 148063312.7 | Q31: 1487837.963 | R31: 148097259.5 | S31: 5208.281539 | T31: 202176883.9 | U31: 202177057 | V31: 40427229.55 | W31: 7448.888889 | X31: 34.62569444 | Y31: 161742205.4 | Z31: 161742343.9 | AA31: 173.1284722
A32: Удорожание в год | D32: =D31/D15 -> 414.3180903 | G32: 23 | H32: 2021-12-01 | I32: 33946.75926 | J32: 6789.351852 | K32: 198172693.9 | L32: 198213430 | M32: 198213599.7 | N32: 1996069.444 | P32: 144760434.5 | Q32: 1453891.204 | R32: 144794381.2 | S32: 5106.158372 | T32: 198213430 | U32: 198213599.7 | V32: 39634538.77 | W32: 7448.888889 | X32: 33.94675926 | Y32: 158571442.3 | Z32: 158571578.1 | AA32: 169.7337963
D33: =D32*1.45/(1-D18) -> 858.2303299 | G33: 24 | H33: 2022-01-01 | I33: 33946.75926 | J33: 6789.351852 | K33: 194209240 | L33: 194249976.1 | M33: 194250142.4 | N33: 1955333.333 | P33: 141457556.2 | Q33: 1419944.444 | R33: 141491503 | S33: 5004.035204 | T33: 194249976.1 | U33: 194250142.4 | V33: 38841848 | W33: 7448.888889 | X33: 33.26782407 | Y33: 155400679.2 | Z33: 155400812.3 | AA33: 166.3391204
G34: 25 | H34: 2022-02-01 | I34: 33946.75926 | J34: 6789.351852 | K34: 190245786.1 | L34: 190286522.2 | M34: 190286685.2 | N34: 1914597.222 | P34: 138154678 | Q34: 1385997.685 | R34: 138188624.8 | S34: 4901.912037 | T34: 190286522.2 | U34: 190286685.2 | V34: 38049157.22 | W34: 7448.888889 | X34: 32.58888889 | Y34: 152229916.1 | Z34: 152230046.5 | AA34: 162.9444444
A35: С учетом всех вычетов | D35: =M4-O4-X3 -> 8335817302 | G35: 26 | H35: 2022-03-01 | I35: 33946.75926 | J35: 6789.351852 | K35: 186282332.2 | L35: 186323068.3 | M35: 186323227.9 | N35: 1873861.111 | P35: 134851799.8 | Q35: 1352050.926 | R35: 134885746.5 | S35: 4799.78887 | T35: 186323068.3 | U35: 186323227.9 | V35: 37256466.45 | W35: 7448.888889 | X35: 31.9099537 | Y35: 149059153 | Z35: 149059280.6 | AA35: 159.5497685
G36: 27 | H36: 2022-04-01 | I36: 33946.75926 | J36: 6789.351852 | K36: 182318878.4 | L36: 182359614.5 | M36: 182359770.6 | N36: 1833125 | P36: 131548921.5 | Q36: 1318104.167 | R36: 131582868.3 | S36: 4697.665702 | T36: 182359614.5 | U36: 182359770.6 | V36: 36463775.67 | W36: 7448.888889 | X36: 31.23101852 | Y36: 145888389.9 | Z36: 145888514.8 | AA36: 156.1550926
A37: возмещение ндс | D37: =VLOOKUP('Калькулятор лизинга'!K7,Лист2!C2:E10,3,) -> да | G37: 28 | H37: 2022-05-01 | I37: 33946.75926 | J37: 6789.351852 | K37: 178355424.5 | L37: 178396160.6 | M37: 178396313.4 | N37: 1792388.889 | P37: 128246043.3 | Q37: 1284157.407 | R37: 128279990.1 | S37: 4595.542535 | T37: 178396160.6 | U37: 178396313.4 | V37: 35671084.9 | W37: 7448.888889 | X37: 30.55208333 | Y37: 142717626.8 | Z37: 142717749 | AA37: 152.7604167
A38: учет расходов | D38: =VLOOKUP('Калькулятор лизинга'!K7,Лист2!C2:F10,4,) -> да | G38: 29 | H38: 2022-06-01 | I38: 33946.75926 | J38: 6789.351852 | K38: 174391970.6 | L38: 174432706.7 | M38: 174432856.1 | N38: 1751652.778 | P38: 124943165.1 | Q38: 1250210.648 | R38: 124977111.8 | S38: 4493.419367 | T38: 174432706.7 | U38: 174432856.1 | V38: 34878394.12 | W38: 7448.888889 | X38: 29.87314815 | Y38: 139546863.7 | Z38: 139546983.2 | AA38: 149.3657407
G39: 30 | H39: 2022-07-01 | I39: 33946.75926 | J39: 6789.351852 | K39: 170428516.7 | L39: 170469252.8 | M39: 170469398.8 | N39: 1710916.667 | P39: 121640286.9 | Q39: 1216263.889 | R39: 121674233.6 | S39: 4391.2962 | T39: 170469252.8 | U39: 170469398.8 | V39: 34085703.34 | W39: 7448.888889 | X39: 29.19421296 | Y39: 136376100.6 | Z39: 136376217.4 | AA39: 145.9710648
G40: 31 | H40: 2022-08-01 | I40: 33946.75926 | J40: 6789.351852 | K40: 166465062.8 | L40: 166505799 | M40: 166505941.5 | N40: 1670180.556 | P40: 118337408.6 | Q40: 1182317.13 | R40: 118371355.4 | S40: 4289.173032 | T40: 166505799 | U40: 166505941.5 | V40: 33293012.57 | W40: 7448.888889 | X40: 28.51527778 | Y40: 133205337.5 | Z40: 133205451.6 | AA40: 142.5763889
G41: 32 | H41: 2022-09-01 | I41: 33946.75926 | J41: 6789.351852 | K41: 162501609 | L41: 162542345.1 | M41: 162542484.3 | N41: 1629444.444 | P41: 115034530.4 | Q41: 1148370.37 | R41: 115068477.2 | S41: 4187.049865 | T41: 162542345.1 | U41: 162542484.3 | V41: 32500321.79 | W41: 7448.888889 | X41: 27.83634259 | Y41: 130034574.4 | Z41: 130034685.7 | AA41: 139.181713
G42: 33 | H42: 2022-10-01 | I42: =IF(G42<=$D$14,$N$9/$D$14*1/(1+$D$20),0) -> 33946.75926 | J42: 6789.351852 | K42: =IF(G42<=$D$14,N41*$D$17,0) -> 158538155.1 | L42: 158578891.2 | M42: 158579027 | N42: =IF(G42<=$D$14,N41-I42-J42,0) -> 1588708.333 | P42: 111731652.2 | Q42: 1114423.611 | R42: =IF(G42<=$D$14,I42+P42,0) -> 111765598.9 | S42: =IF(G42<=$D$14,IF($D$37="льготное",K42,N41*($D$24+3%)/12),0) -> 4084.926698 | T42: 158578891.2 | U42: 158579027 | V42: 31707631.02 | W42: 7448.888889 | X42: 27.15740741 | Y42: 126863811.3 | Z42: 126863919.9 | AA42: 135.787037
B43: на расходы и ндс, и платеж | G43: 34 | H43: 2022-11-01 | I43: 33946.75926 | J43: 6789.351852 | K43: 154574701.2 | L43: 154615437.3 | M43: 154615569.7 | N43: 1547972.222 | P43: =IF(G42<=$D$14,Q42*$D$17,0) -> 108428773.9 | Q43: =IF(G42<=$D$14,Q42-I43,0) -> 1080476.852 | R43: 108462720.7 | S43: 3982.80353 | T43: 154615437.3 | U43: 154615569.7 | V43: 30914940.24 | W43: 7448.888889 | X43: 26.47847222 | Y43: 123693048.2 | Z43: 123693154.1 | AA43: 132.3923611
G44: 35 | H44: 2022-12-01 | I44: 33946.75926 | J44: 6789.351852 | K44: 150611247.3 | L44: 150651983.4 | M44: 150652112.4 | N44: 1507236.111 | P44: 105125895.7 | Q44: 1046530.093 | R44: 105159842.5 | S44: 3880.680363 | T44: 150651983.4 | U44: 150652112.4 | V44: 30122249.47 | W44: 7448.888889 | X44: 25.79953704 | Y44: 120522285.1 | Z44: 120522388.3 | AA44: 128.9976852
G45: 36 | H45: 2023-01-01 | I45: 33946.75926 | J45: 6789.351852 | K45: 146647793.5 | L45: 146688529.6 | M45: 146688655.2 | N45: 1466500 | P45: 101823017.5 | Q45: 1012583.333 | R45: 101856964.2 | S45: 3778.557195 | T45: 146688529.6 | U45: 146688655.2 | V45: 29329558.69 | W45: 7448.888889 | X45: 25.12060185 | Y45: 117351522 | Z45: 117351622.5 | AA45: 125.6030093
G46: 37 | H46: 2023-02-01 | I46: 33946.75926 | J46: 6789.351852 | K46: 142684339.6 | L46: 142725075.7 | M46: 142725197.9 | N46: 1425763.889 | P46: 98520139.24 | Q46: 978636.5741 | R46: 98554086 | S46: 3676.434028 | T46: 142725075.7 | U46: 142725197.9 | V46: 28536867.92 | W46: 7448.888889 | X46: 24.44166667 | Y46: 114180758.9 | Z46: 114180856.7 | AA46: 122.2083333
